Workbook

Sheet Basi (hidden)
B2: Tavola Fumatori | G2: Tavola Non Fumatori | N2: Tavola Fumatori | S2: Tavola Non Fumatori
B3: x | C3: Lx | D3: % Maschi | E3: qx(*1000) | G3: x | H3: Lx | I3: % Maschi | J3: qx(*1000) | N3: x | O3: Lx | P3: % Maschi | Q3: qx(*1000) | S3: x | T3: Lx | U3: % Maschi | V3: qx(*1000)
B4: 0 | C4: 100000 | D4: 0.559 | E4: 4.36689 | G4: 0 | H4: 100000 | I4: 0.5389 | J4: 2.82920235 | N4: 0 | O4: 100000 | P4: 0.5 | Q4: 4.325 | S4: 0 | T4: 100000 | U4: 0.5 | V4: 2.81125
B5: 1 | C5: 99563.311 | D5: 0.559 | E5: 0.2880331183 | G5: 1 | H5: 99717.07977 | I5: 0.5389 | J5: 0.1868252076 | N5: 1 | O5: 99567.5 | P5: 0.5 | Q5: 0.286243387 | S5: 1 | T5: 99718.875 | U5: 0.5 | V5: 0.1860582016
B6: 2 | C6: 99534.63347 | D6: 0.559 | E6: 0.212171066 | G6: 2 | H6: 99698.4501 | I6: 0.5389 | J6: 0.1376466335 | N6: 2 | O6: 99538.99946 | P6: 0.5 | Q6: 0.2109763471 | S6: 2 | T6: 99700.32149 | U6: 0.5 | V6: 0.1371346256
B7: 3 | C7: 99513.5151 | D7: 0.559 | E7: 0.1619717549 | G7: 3 | H7: 99684.72694 | I7: 0.5389 | J7: 0.105017471 | N7: 3 | O7: 99517.99909 | P7: 0.5 | Q7: 0.1607787955 | S7: 3 | T7: 99686.64912 | U7: 0.5 | V7: 0.1045062171
B8: 4 | C8: 99497.39672 | D8: 0.559 | E8: 0.1362768833 | G8: 4 | H8: 99674.25831 | I8: 0.5389 | J8: 0.08844728066 | N8: 4 | O8: 99501.9987 | P8: 0.5 | Q8: 0.1356776552 | S8: 4 | T8: 99676.23124 | U8: 0.5 | V8: 0.08819047589
B9: 5 | C9: 99483.83753 | D9: 0.559 | E9: 0.1274336548 | G9: 5 | H9: 99665.44239 | I9: 0.5389 | J9: 0.08243660695 | N9: 5 | O9: 99488.49851 | P9: 0.5 | Q9: 0.1256486681 | S9: 5 | T9: 99667.44075 | U9: 0.5 | V9: 0.08167163427
B10: 6 | C10: 99471.15994 | D10: 0.559 | E10: 0.121828359 | G10: 6 | H10: 99657.22631 | I10: 0.5389 | J10: 0.07892445768 | N10: 6 | O10: 99475.99791 | P10: 0.5 | Q10: 0.1206362761 | S10: 6 | T10: 99659.30075 | U10: 0.5 | V10: 0.07841357945
B11: 7 | C11: 99459.04153 | D11: 0.559 | E11: 0.1230339081 | G11: 7 | H11: 99649.36092 | I11: 0.5389 | J11: 0.07944529274 | N11: 7 | O11: 99463.99749 | P11: 0.5 | Q11: 0.1206551784 | S11: 7 | T11: 99651.48611 | U11: 0.5 | V11: 0.07842586597
B12: 8 | C12: 99446.80469 | D12: 0.559 | E12: 0.1085614803 | G12: 8 | H12: 99641.44424 | I12: 0.5389 | J12: 0.06990689198 | N12: 8 | O12: 99451.99665 | P12: 0.5 | Q12: 0.1055897128 | S12: 8 | T12: 99643.67085 | U12: 0.5 | V12: 0.06863331332
B13: 9 | C13: 99436.0086 | D13: 0.559 | E13: 0.1130065882 | G13: 9 | H13: 99634.47862 | I13: 0.5389 | J13: 0.0729273955 | N13: 9 | O13: 99441.49554 | P13: 0.5 | Q13: 0.1106272294 | S13: 9 | T13: 99636.83198 | U13: 0.5 | V13: 0.07190769909
B14: 10 | C14: 99424.77168 | D14: 0.559 | E14: 0.1186445222 | G14: 10 | H14: 99627.21254 | I14: 0.5389 | J14: 0.07646047357 | N14: 10 | O14: 99430.4946 | P14: 0.5 | Q14: 0.115670968 | S14: 10 | T14: 99629.66732 | U14: 0.5 | V14: 0.07518612918
B15: 11 | C15: 99412.97547 | D15: 0.559 | E15: 0.1162751149 | G15: 11 | H15: 99619.59499 | I15: 0.5389 | J15: 0.07544586064 | N15: 11 | O15: 99418.99338 | P15: 0.5 | Q15: 0.115674665 | S15: 11 | T15: 99622.17655 | U15: 0.5 | V15: 0.07518853223
B16: 12 | C16: 99401.41622 | D16: 0.559 | E16: 0.1331673607 | G16: 12 | H16: 99612.07911 | I16: 0.5389 | J16: 0.08603129915 | N16: 12 | O16: 99407.49312 | P16: 0.5 | Q16: 0.1307852992 | S16: 12 | T16: 99614.68611 | U16: 0.5 | V16: 0.08501044447
B17: 13 | C17: 99388.17919 | D17: 0.559 | E17: 0.1657553893 | G17: 13 | H17: 99603.50935 | I17: 0.5389 | J17: 0.1066871714 | N17: 13 | O17: 99394.49208 | P17: 0.5 | Q17: 0.16099641 | S17: 13 | T17: 99606.21782 | U17: 0.5 | V17: 0.1046476665
B18: 14 | C18: 99371.70507 | D18: 0.559 | E18: 0.2140520094 | G18: 14 | H18: 99592.88293 | I18: 0.5389 | J18: 0.137421615 | N18: 14 | O18: 99378.48993 | P18: 0.5 | Q18: 0.2063199559 | S18: 14 | T18: 99595.79426 | U18: 0.5 | V18: 0.1341079713
B19: 15 | C19: 99350.43435 | D19: 0.559 | E19: 0.273641064 | G19: 15 | H19: 99579.19672 | I19: 0.5389 | J19: 0.1752324023 | N19: 15 | O19: 99357.98616 | P19: 0.5 | Q19: 0.2617449238 | S19: 15 | T19: 99582.43767 | U19: 0.5 | V19: 0.1701342005
B20: 16 | C20: 99323.248 | D20: 0.559 | E20: 0.369120996 | G20: 16 | H20: 99561.74722 | I20: 0.5389 | J20: 0.2362389852 | N20: 16 | O20: 99331.97971 | P20: 0.5 | Q20: 0.3524589166 | S20: 16 | T20: 99565.49529 | U20: 0.5 | V20: 0.2290982958
B21: 17 | C21: 99286.5857 | D21: 0.559 | E21: 0.4356945319 | G21: 17 | H21: 99538.22685 | I21: 0.5389 | J21: 0.2781920312 | N21: 17 | O21: 99296.96927 | P21: 0.5 | Q21: 0.4130726063 | S21: 17 | T21: 99542.68501 | U21: 0.5 | V21: 0.2684971941
B22: 18 | C22: 99243.32708 | D22: 0.559 | E22: 0.505615339 | G22: 18 | H22: 99510.53611 | I22: 0.5389 | J22: 0.3227131635 | N22: 18 | O22: 99255.95241 | P22: 0.5 | Q22: 0.4788054192 | S22: 18 | T22: 99515.95807 | U22: 0.5 | V22: 0.3112235225
B23: 19 | C23: 99193.14813 | D23: 0.559 | E23: 0.5454158294 | G23: 19 | H23: 99478.42275 | I23: 0.5389 | J23: 0.3476547414 | N23: 19 | O23: 99208.42813 | P23: 0.5 | Q23: 0.5144118254 | S23: 19 | T23: 99484.98637 | U23: 0.5 | V23: 0.3343676865
B24: 20 | C24: 99139.04662 | D24: 0.559 | E24: 0.5728075601 | G24: 20 | H24: 99443.8386 | I24: 0.5389 | J24: 0.3650559827 | N24: 20 | O24: 99157.39414 | P24: 0.5 | Q24: 0.5399819228 | S24: 20 | T24: 99451.7218 | U24: 0.5 | V24: 0.3509882498
B25: 21 | C25: 99082.25902 | D25: 0.559 | E25: 0.5970254923 | G25: 21 | H25: 99407.53604 | I25: 0.5389 | J25: 0.3799978179 | N25: 21 | O25: 99103.85094 | P25: 0.5 | Q25: 0.5605879587 | S25: 21 | T25: 99416.81542 | U25: 0.5 | V25: 0.3643821731
B26: 22 | C26: 99023.10439 | D26: 0.559 | E26: 0.6233295806 | G26: 22 | H26: 99369.76139 | I26: 0.5389 | J26: 0.3969530931 | N26: 22 | O26: 99048.29451 | P26: 0.5 | Q26: 0.5862490658 | S26: 22 | T26: 99380.5897 | U26: 0.5 | V26: 0.3810618928
B27: 23 | C27: 98961.38036 | D27: 0.559 | E27: 0.6193719141 | G27: 23 | H27: 99330.31626 | I27: 0.5389 | J27: 0.3942393158 | N27: 23 | O27: 98990.22754 | P27: 0.5 | Q27: 0.5816533322 | S27: 23 | T27: 99342.71955 | U27: 0.5 | V27: 0.3780746659
B28: 24 | C28: 98900.08646 | D28: 0.559 | E28: 0.6413001542 | G28: 24 | H28: 99291.15634 | I28: 0.5389 | J28: 0.4082173523 | N28: 24 | O28: 98932.64954 | P28: 0.5 | Q28: 0.6023382613 | S28: 24 | T28: 99305.16058 | U28: 0.5 | V28: 0.3915198699
B29: 25 | C29: 98836.66182 | D29: 0.559 | E29: 0.6361480028 | G29: 25 | H29: 99250.62397 | I29: 0.5389 | J29: 0.404990602 | N29: 25 | O29: 98873.05862 | P29: 0.5 | Q29: 0.5977377165 | S29: 25 | T29: 99266.28064 | U29: 0.5 | V29: 0.3885295157
B30: 26 | C30: 98773.78707 | D30: 0.559 | E30: 0.6253043677 | G30: 26 | H30: 99210.4284 | I30: 0.5389 | J30: 0.3981974101 | N30: 26 | O30: 98813.95847 | P30: 0.5 | Q30: 0.5880464034 | S30: 26 | T30: 99227.71276 | U30: 0.5 | V30: 0.3822301622
B31: 27 | C31: 98712.02339 | D31: 0.559 | E31: 0.6346916893 | G31: 27 | H31: 99170.92306 | I31: 0.5389 | J31: 0.4045530551 | N31: 27 | O31: 98755.85128 | P31: 0.5 | Q31: 0.5985802438 | S31: 27 | T31: 99189.78493 | U31: 0.5 | V31: 0.3890771585
B32: 28 | C32: 98649.37169 | D32: 0.559 | E32: 0.6384005837 | G32: 28 | H32: 99130.80316 | I32: 0.5389 | J32: 0.4073508445 | N32: 28 | O32: 98696.73797 | P32: 0.5 | Q32: 0.6040368212 | S32: 28 | T32: 99151.19245 | U32: 0.5 | V32: 0.3926239338
B33: 29 | C33: 98586.39387 | D33: 0.559 | E33: 0.6218161793 | G33: 29 | H33: 99090.42214 | I33: 0.5389 | J33: 0.3969608817 | N33: 29 | O33: 98637.12151 | P33: 0.5 | Q33: 0.5892131594 | S33: 29 | T33: 99112.26332 | U33: 0.5 | V33: 0.3829885536
B34: 30 | C34: 98525.09126 | D34: 0.7011 | E34: 0.7212210099 | G34: 30 | H34: 99051.08712 | I34: 0.6266 | J34: 0.4419936404 | N34: 30 | O34: 98579.00322 | P34: 0.5 | Q34: 0.6099255381 | S34: 30 | T34: 99074.30446 | U34: 0.5 | V34: 0.3964515998
B35: 31 | C35: 98454.03289 | D35: 0.7011 | E35: 0.7278439952 | G35: 31 | H35: 99007.30717 | I35: 0.6266 | J35: 0.4472441001 | N35: 31 | O35: 98518.87737 | P35: 0.5 | Q35: 0.6204750888 | S35: 31 | T35: 99035.02629 | U35: 0.5 | V35: 0.4033088077
B36: 32 | C36: 98382.37372 | D36: 0.7011 | E36: 0.7559476871 | G36: 32 | H36: 98963.02674 | I36: 0.6266 | J36: 0.4649748035 | N36: 32 | O36: 98457.74886 | P36: 0.5 | Q36: 0.6463499805 | S36: 32 | T36: 98995.08459 | U36: 0.5 | V36: 0.4201274873
B37: 33 | C37: 98308.00179 | D37: 0.7011 | E37: 0.7943033059 | G37: 33 | H37: 98917.01142 | I37: 0.6266 | J37: 0.4893608591 | N37: 33 | O37: 98394.1107 | P37: 0.5 | Q37: 0.6824419147 | S37: 33 | T37: 98953.49404 | U37: 0.5 | V37: 0.4435872446
B38: 34 | C38: 98229.91542 | D38: 0.7011 | E38: 0.8572886085 | G38: 34 | H38: 98868.60531 | I38: 0.6266 | J38: 0.5287559606 | N38: 34 | O38: 98326.96243 | P38: 0.5 | Q38: 0.739009687 | S38: 34 | T38: 98909.59953 | U38: 0.5 | V38: 0.4803562965
B39: 35 | C39: 98145.70403 | D39: 0.7011 | E39: 0.8845495723 | G39: 35 | H39: 98816.32795 | I39: 0.6266 | J39: 0.5474013506 | N39: 35 | O39: 98254.29785 | P39: 0.5 | Q39: 0.7701151737 | S39: 35 | T39: 98862.08768 | U39: 0.5 | V39: 0.5005748629
B40: 36 | C40: 98058.88929 | D40: 0.7011 | E40: 0.9364585991 | G40: 36 | H40: 98762.23576 | I40: 0.6266 | J40: 0.5810686015 | N40: 36 | O40: 98178.63073 | P40: 0.5 | Q40: 0.8217184851 | S40: 36 | T40: 98812.5998 | U40: 0.5 | V40: 0.5341170153
B41: 37 | C41: 97967.0612 | D41: 0.7011 | E41: 0.9752625033 | G41: 37 | H41: 98704.84812 | I41: 0.6266 | J41: 0.6057292327 | N41: 37 | O41: 98097.95553 | P41: 0.5 | Q41: 0.8581888964 | S41: 37 | T41: 98759.82231 | U41: 0.5 | V41: 0.5578227827
B42: 38 | C42: 97871.5176 | D42: 0.7011 | E42: 1.044875257 | G42: 38 | H42: 98645.05971 | I42: 0.6266 | J42: 0.6503907629 | N42: 38 | O42: 98013.76895 | P42: 0.5 | Q42: 0.9253649457 | S42: 38 | T42: 98704.73183 | U42: 0.5 | V42: 0.6014872147
B43: 39 | C43: 97769.25407 | D43: 0.7011 | E43: 1.121916328 | G43: 39 | H43: 98580.90187 | I43: 0.6266 | J43: 0.6993753148 | N43: 39 | O43: 97923.07045 | P43: 0.5 | Q43: 0.9978705462 | S43: 39 | T43: 98645.3622 | U43: 0.5 | V43: 0.648615855
B44: 40 | C44: 97659.56515 | D44: 0.7477 | E44: 1.24442452 | G44: 40 | H44: 98511.95682 | I44: 0.7062 | J44: 0.791067443 | N44: 40 | O44: 97825.3559 | P44: 0.5 | Q44: 1.080896654 | S44: 40 | T44: 98581.37925 | U44: 0.5 | V44: 0.7025828251
B45: 41 | C45: 97538.03519 | D45: 0.7477 | E45: 1.32312079 | G45: 41 | H45: 98434.02722 | I45: 0.7062 | J45: 0.8415991142 | N45: 41 | O45: 97719.6168 | P45: 0.5 | Q45: 1.15389142 | S45: 41 | T45: 98512.11767 | U45: 0.5 | V45: 0.7500294232
B46: 42 | C46: 97408.98059 | D46: 0.7477 | E46: 1.438150504 | G46: 42 | H46: 98351.18523 | I46: 0.7062 | J46: 0.9151751954 | N46: 42 | O46: 97606.85897 | P46: 0.5 | Q46: 1.257964183 | S46: 42 | T46: 98438.23068 | U46: 0.5 | V46: 0.8176767191
B47: 43 | C47: 97268.89181 | D47: 0.7477 | E47: 1.551113111 | G47: 43 | H47: 98261.17667 | I47: 0.7062 | J47: 0.987122969 | N47: 43 | O47: 97484.07304 | P47: 0.5 | Q47: 1.357355667 | S47: 43 | T47: 98357.74003 | U47: 0.5 | V47: 0.8822811834
B48: 44 | C48: 97118.01676 | D48: 0.7477 | E48: 1.718811057 | G48: 44 | H48: 98164.1808 | I48: 0.7062 | J48: 1.093783222 | N48: 44 | O48: 97351.75248 | P48: 0.5 | Q48: 1.50353505 | S48: 44 | T48: 98270.96085 | U48: 0.5 | V48: 0.9772977825
B49: 45 | C49: 96951.08924 | D49: 0.7477 | E49: 1.884762761 | G49: 45 | H49: 98056.81047 | I49: 0.7062 | J49: 1.200118281 | N49: 45 | O49: 97205.38071 | P49: 0.5 | Q49: 1.655404832 | S49: 45 | T49: 98174.92086 | U49: 0.5 | V49: 1.076013141
B50: 46 | C50: 96768.35944 | D50: 0.7477 | E50: 2.04901868 | G50: 46 | H50: 97939.1307 | I50: 0.7062 | J50: 1.306163872 | N50: 46 | O50: 97044.46645 | P50: 0.5 | Q50: 1.813042352 | S50: 46 | T50: 98069.28335 | U50: 0.5 | V50: 1.178477529
B51: 47 | C51: 96570.07926 | D51: 0.7477 | E51: 2.289739396 | G51: 47 | H51: 97811.20614 | I51: 0.7062 | J51: 1.457698542 | N51: 47 | O51: 96868.52073 | P51: 0.5 | Q51: 2.00845811 | S51: 47 | T51: 97953.71091 | U51: 0.5 | V51: 1.305497772
B52: 48 | C52: 96348.95895 | D52: 0.7477 | E52: 2.482593525 | G52: 48 | H52: 97668.62689 | I52: 0.7062 | J52: 1.58060089 | N52: 48 | O52: 96673.96436 | P52: 0.5 | Q52: 2.178788889 | S52: 48 | T52: 97825.83256 | U52: 0.5 | V52: 1.416212778
B53: 49 | C53: 96109.76364 | D53: 0.7477 | E53: 2.721189503 | G53: 49 | H53: 97514.25177 | I53: 0.7062 | J53: 1.733454375 | N53: 49 | O53: 96463.3322 | P53: 0.5 | Q53: 2.3968719 | S53: 49 | T53: 97687.29036 | U53: 0.5 | V53: 1.557966735
B54: 50 | C54: 95848.23076 | D54: 0.7266 | E54: 2.948858137 | G54: 50 | H54: 97345.21527 | I54: 0.725 | J54: 1.915211373 | N54: 50 | O54: 96232.12195 | P54: 0.5 | Q54: 2.611917953 | S54: 50 | T54: 97535.09681 | U54: 0.5 | V54: 1.697746669
B55: 51 | C55: 95565.58793 | D55: 0.7266 | E55: 3.279846482 | G55: 51 | H55: 97158.7786 | I55: 0.725 | J55: 2.130164766 | N55: 51 | O55: 95980.77154 | P55: 0.5 | Q55: 2.9017192 | S55: 51 | T55: 97369.50693 | U55: 0.5 | V55: 1.88611748
B56: 52 | C56: 95252.14747 | D56: 0.7266 | E56: 3.625410151 | G56: 52 | H56: 96951.8144 | I56: 0.725 | J56: 2.354631969 | N56: 52 | O56: 95702.2623 | P56: 0.5 | Q56: 3.214778571 | S56: 52 | T56: 97185.8566 | U56: 0.5 | V56: 2.089606071
B57: 53 | C57: 94906.81937 | D57: 0.7266 | E57: 4.150425721 | G57: 53 | H57: 96723.52855 | I57: 0.725 | J57: 2.695517929 | N57: 53 | O57: 95394.60071 | P57: 0.5 | Q57: 3.658270333 | S57: 53 | T57: 96982.77644 | U57: 0.5 | V57: 2.377875717
B58: 54 | C58: 94512.91566 | D58: 0.7266 | E58: 4.435712885 | G58: 54 | H58: 96462.80855 | I58: 0.725 | J58: 2.880896707 | N58: 54 | O58: 95045.62148 | P58: 0.5 | Q58: 3.930946603 | S58: 54 | T58: 96752.16345 | U58: 0.5 | V58: 2.555115292
B59: 55 | C59: 94093.68351 | D59: 0.7266 | E59: 4.850321203 | G59: 55 | H59: 96184.90916 | I59: 0.725 | J59: 3.150196594 | N59: 55 | O59: 94672.00221 | P59: 0.5 | Q59: 4.302954065 | S59: 55 | T59: 96504.95052 | U59: 0.5 | V59: 2.796920143
B60: 56 | C60: 93637.29892 | D60: 0.7266 | E60: 5.373016756 | G60: 56 | H60: 95881.90779 | I60: 0.725 | J60: 3.489602038 | N60: 56 | O60: 94264.63294 | P60: 0.5 | Q60: 4.750116666 | S60: 56 | T60: 96235.03388 | U60: 0.5 | V60: 3.087575833
B61: 57 | C61: 93134.18414 | D61: 0.7266 | E61: 6.070143159 | G61: 57 | H61: 95547.31809 | I61: 0.725 | J61: 3.942141792 | N61: 57 | O61: 93816.86493 | P61: 0.5 | Q61: 5.318166456 | S61: 57 | T61: 95937.90092 | U61: 0.5 | V61: 3.456808197
B62: 58 | C62: 92568.84631 | D62: 0.7266 | E62: 6.671333333 | G62: 58 | H62: 95170.65701 | I62: 0.725 | J62: 4.332434573 | N62: 58 | O62: 93317.93123 | P62: 0.5 | Q62: 5.814590586 | S62: 58 | T62: 95606.26199 | U62: 0.5 | V62: 3.779483881
B63: 59 | C63: 91951.28868 | D63: 0.7266 | E63: 7.560007449 | G63: 59 | H63: 94758.33637 | I63: 0.725 | J63: 4.909365675 | N63: 59 | O63: 92775.32566 | P63: 0.5 | Q63: 6.549204272 | S63: 59 | T63: 95244.91967 | U63: 0.5 | V63: 4.256982777
B64: 60 | C64: 91256.13625 | D64: 0.6834 | E64: 7.973077442 | G64: 60 | H64: 94293.13304 | I64: 0.7026 | J64: 5.243674325 | N64: 60 | O64: 92167.7211 | P64: 0.5 | Q64: 7.07409432 | S64: 60 | T64: 94839.46369 | U64: 0.5 | V64: 4.598161308
B65: 61 | C65: 90528.54401 | D65: 0.6834 | E65: 8.631845912 | G65: 61 | H65: 93798.69056 | I65: 0.7026 | J65: 5.679629978 | N65: 61 | O65: 91515.71795 | P65: 0.5 | Q65: 7.618882236 | S65: 61 | T65: 94403.37653 | U65: 0.5 | V65: 4.952273453
B66: 62 | C66: 89747.11557 | D66: 0.6834 | E66: 9.410983238 | G66: 62 | H66: 93265.94871 | I66: 0.7026 | J66: 6.191867869 | N66: 62 | O66: 90818.47047 | P66: 0.5 | Q66: 8.312805734 | S66: 62 | T66: 93935.8652 | U66: 0.5 | V66: 5.403323727
B67: 63 | C67: 88902.50697 | D67: 0.6834 | E67: 10.13162723 | G67: 63 | H67: 92688.45828 | I67: 0.7026 | J67: 6.66684856 | N67: 63 | O67: 90063.51417 | P67: 0.5 | Q67: 8.937016338 | S67: 63 | T67: 93428.29931 | U67: 0.5 | V67: 5.80906062
B68: 64 | C68: 88001.77991 | D68: 0.6834 | E68: 11.18856343 | G68: 64 | H68: 92070.51836 | I68: 0.7026 | J68: 7.362114011 | N68: 64 | O68: 89258.61507 | P68: 0.5 | Q68: 9.872612886 | S68: 64 | T68: 92885.56865 | U68: 0.5 | V68: 6.417198376
B69: 65 | C69: 87017.16641 | D69: 0.6834 | E69: 12.49113599 | G69: 65 | H69: 91392.68471 | I69: 0.7026 | J69: 8.217161856 | N69: 65 | O69: 88377.39932 | P69: 0.5 | Q69: 11.05210054 | S69: 65 | T69: 92289.50353 | U69: 0.5 | V69: 7.183865353
B70: 66 | C70: 85930.22315 | D70: 0.6834 | E70: 13.97608484 | G70: 66 | H70: 90641.69623 | I70: 0.7026 | J70: 9.193170869 | N70: 66 | O70: 87400.64342 | P70: 0.5 | Q70: 12.37845153 | S70: 66 | T70: 91626.50817 | U70: 0.5 | V70: 8.045993496
B71: 67 | C71: 84729.25506 | D71: 0.6834 | E71: 15.53583093 | G71: 67 | H71: 89808.41162 | I71: 0.7026 | J71: 10.22100578 | N71: 67 | O71: 86318.75879 | P71: 0.5 | Q71: 13.73246123 | S71: 67 | T71: 90889.28188 | U71: 0.5 | V71: 8.926099801
B72: 68 | C72: 83412.91568 | D72: 0.6834 | E72: 17.102127 | G72: 68 | H72: 88890.47933 | I72: 0.7026 | J72: 11.25142949 | N72: 68 | O72: 85133.38978 | P72: 0.5 | Q72: 15.117543 | S72: 68 | T72: 90077.99508 | U72: 0.5 | V72: 9.826402947
B73: 69 | C73: 81986.37741 | D73: 0.6834 | E73: 19.06785915 | G73: 69 | H73: 87890.33437 | I73: 0.7026 | J73: 12.54545599 | N73: 69 | O73: 83846.3821 | P73: 0.5 | Q73: 16.84372939 | S73: 69 | T73: 89192.8524 | U73: 0.5 | V73: 10.9484241
B74: 70 | C74: 80423.07271 | D74: 0.6834 | E74: 21.29902498 | G74: 70 | H74: 86787.71005 | I74: 0.6235 | J74: 13.31133282 | N74: 70 | O74: 82434.09633 | P74: 0.5 | Q74: 18.78821649 | S74: 70 | T74: 88216.33123 | U74: 0.5 | V74: 12.21234072
B75: 71 | C75: 78710.13967 | D75: 0.6834 | E75: 23.59243875 | G75: 71 | H75: 85632.44996 | I75: 0.6235 | J75: 14.75103522 | N75: 71 | O75: 80885.30668 | P75: 0.5 | Q75: 20.84132116 | S75: 71 | T75: 87139.00333 | U75: 0.5 | V75: 13.54685875
B76: 72 | C76: 76853.17552 | D76: 0.6834 | E76: 26.29133732 | G76: 72 | H76: 84369.28267 | I76: 0.6235 | J76: 16.44617326 | N76: 72 | O76: 79199.55003 | P76: 0.5 | Q76: 23.26161739 | S76: 72 | T76: 85958.54356 | U76: 0.5 | V76: 15.1200513
B77: 73 | C77: 74832.60276 | D77: 0.6834 | E77: 29.05242234 | G77: 73 | H77: 82981.73083 | I77: 0.6235 | J77: 18.19367549 | N77: 73 | O77: 77357.2404 | P77: 0.5 | Q77: 25.8003565 | S77: 73 | T77: 84658.84597 | U77: 0.5 | V77: 16.77023172
B78: 74 | C78: 72658.53438 | D78: 0.6834 | E78: 32.33308619 | G78: 74 | H78: 81471.98815 | I78: 0.6235 | J78: 20.26692182 | N78: 74 | O78: 75361.39602 | P78: 0.5 | Q78: 28.80223369 | S78: 74 | T78: 83239.09751 | U78: 0.5 | V78: 18.7214519
B79: 75 | C79: 70309.25973 | D79: 0.6834 | E79: 36.13235082 | G79: 75 | H79: 79820.80173 | I79: 0.6235 | J79: 22.67979739 | N79: 75 | O79: 73190.81948 | P79: 0.5 | Q79: 32.3346701 | S79: 75 | T79: 81680.74075 | U79: 0.5 | V79: 21.01753556
B80: 76 | C80: 67768.82089 | D80: 0.6834 | E80: 40.33022862 | G80: 76 | H80: 78010.48212 | I80: 0.6235 | J80: 25.35039859 | N80: 76 | O80: 70824.21848 | P80: 0.5 | Q80: 36.25925256 | S80: 76 | T80: 79964.01288 | U80: 0.5 | V80: 23.56851416
B81: 77 | C81: 65035.68885 | D81: 0.6834 | E81: 44.63054264 | G81: 77 | H81: 76032.88531 | I81: 0.6235 | J81: 28.07914648 | N81: 77 | O81: 68256.18525 | P81: 0.5 | Q81: 40.2465302 | S81: 77 | T81: 78079.37991 | U81: 0.5 | V81: 26.16024463
B82: 78 | C82: 62133.11077 | D82: 0.6834 | E82: 49.85632265 | G82: 78 | H82: 73897.94678 | I82: 0.6235 | J82: 31.40776689 | N82: 78 | O82: 65509.11063 | P82: 0.5 | Q82: 45.1513586 | S82: 78 | T82: 76036.80423 | U82: 0.5 | V82: 29.34838309
B83: 79 | C83: 59035.38235 | D83: 0.6834 | E83: 55.3977403 | G83: 79 | H83: 71576.9773 | I83: 0.6235 | J83: 34.94892793 | N83: 79 | O83: 62551.28529 | P83: 0.5 | Q83: 50.40656943 | S83: 79 | T83: 73805.24697 | U83: 0.5 | V83: 32.76427013
B84: 80 | C84: 55764.95557 | D84: 0.6834 | E84: 60.6129509 | G84: 80 | H84: 69075.43867 | I84: 0.6235 | J84: 38.27969384 | N84: 80 | O84: 59398.28958 | P84: 0.5 | Q84: 55.34329569 | S84: 80 | T84: 71387.07192 | U84: 0.5 | V84: 35.9731422
B85: 81 | C85: 52384.87705 | D85: 0.6834 | E85: 64.95914592 | G85: 81 | H85: 66431.25203 | I85: 0.6235 | J85: 41.09448758 | N85: 81 | O85: 56110.99248 | P85: 0.5 | Q85: 59.6412889 | S85: 81 | T85: 68819.05463 | U85: 0.5 | V85: 38.76683778
B86: 82 | C86: 48982.00018 | D86: 0.6834 | E86: 71.06763829 | G86: 82 | H86: 63701.29377 | I86: 0.6235 | J86: 45.02340093 | N86: 82 | O86: 52764.46057 | P86: 0.5 | Q86: 65.55379649 | S86: 82 | T86: 66151.1575 | U86: 0.5 | V86: 42.60996772
B87: 83 | C87: 45500.96511 | D87: 0.6834 | E87: 81.19212778 | G87: 83 | H87: 60833.24488 | I87: 0.6235 | J87: 51.51873149 | N87: 83 | O87: 49305.54986 | P87: 0.5 | Q87: 75.27513284 | S87: 83 | T87: 63332.45882 | U87: 0.5 | V87: 48.92883635
B88: 84 | C88: 41806.64494 | D88: 0.6834 | E88: 97.31188743 | G88: 84 | H88: 57699.19327 | I88: 0.6235 | J88: 61.83444226 | N88: 84 | O88: 45594.06804 | P88: 0.5 | Q88: 90.6311788 | S88: 84 | T88: 60233.6753 | U88: 0.5 | V88: 58.91026622
B89: 85 | C89: 37738.36141 | D89: 0.6834 | E89: 112.4124981 | G89: 85 | H89: 54131.39584 | I89: 0.6235 | J89: 71.56944 | N89: 85 | O89: 41461.82391 | P89: 0.5 | Q89: 105.3530759 | S89: 85 | T89: 56685.29346 | U89: 0.5 | V89: 68.47949933
B90: 86 | C90: 33496.09793 | D90: 0.6834 | E90: 124.8764886 | G90: 86 | H90: 50257.24215 | I90: 0.6235 | J90: 79.59596914 | N90: 86 | O90: 37093.69323 | P90: 0.5 | Q90: 117.4634807 | S90: 86 | T90: 52803.51294 | U90: 0.5 | V90: 76.35126245
B91: 87 | C91: 29313.22284 | D91: 0.6834 | E91: 135.6688862 | G91: 87 | H91: 46256.96826 | I91: 0.6235 | J91: 86.5542645 | N91: 87 | O91: 32736.53891 | P91: 0.5 | Q91: 127.9885005 | S91: 87 | T91: 48771.89807 | U91: 0.5 | V91: 83.19252536
B92: 88 | C92: 25336.33055 | D92: 0.6834 | E92: 142.469039 | G92: 88 | H92: 42253.23039 | I92: 0.6235 | J92: 91.00809957 | N92: 88 | O92: 28546.63838 | P92: 0.5 | Q92: 134.9475627 | S92: 88 | T92: 44714.4407 | U92: 0.5 | V92: 87.71591573
B93: 89 | C93: 21726.68788 | D93: 0.6834 | E93: 154.4225938 | G93: 89 | H93: 38407.84419 | I93: 0.6235 | J93: 98.79716761 | N93: 89 | O93: 24694.33911 | P93: 0.5 | Q93: 146.9918279 | S93: 89 | T93: 40792.27259 | U93: 0.5 | V93: 95.54468813
B94: 90 | C94: 18371.59638 | D94: 0.6834 | E94: 168.0370074 | G94: 90 | H94: 34613.25797 | I94: 0.6235 | J94: 107.6733586 | N94: 90 | O94: 21064.47307 | P94: 0.5 | Q94: 160.7325851 | S94: 90 | T94: 36894.78763 | U94: 0.5 | V94: 104.4761803
B95: 91 | C95: 15284.48831 | D95: 0.6834 | E95: 184.4095344 | G95: 91 | H95: 30886.33223 | I95: 0.6235 | J95: 118.2964889 | N95: 91 | O95: 17678.72585 | P95: 0.5 | Q95: 177.0155566 | S95: 91 | T95: 33040.16114 | U95: 0.5 | V95: 115.0601118
B96: 92 | C96: 12465.88293 | D96: 0.6834 | E96: 199.8193719 | G96: 92 | H96: 27232.58757 | I96: 0.6235 | J96: 128.3502062 | N96: 92 | O96: 14549.31636 | P96: 0.5 | Q96: 192.6012005 | S96: 92 | T96: 29238.55651 | U96: 0.5 | V96: 125.1907803
B97: 93 | C97: 9974.958036 | D97: 0.6834 | E97: 216.4559145 | G97: 93 | H97: 23737.27934 | I97: 0.6235 | J97: 139.2129396 | N97: 93 | O97: 11747.10056 | P97: 0.5 | Q97: 209.4684623 | S97: 93 | T97: 25578.1588 | U97: 0.5 | V97: 136.1545005
B98: 94 | C98: 7815.819372 | D98: 0.6834 | E98: 235.2337737 | G98: 94 | H98: 20432.74291 | I98: 0.6235 | J98: 151.4676817 | N98: 94 | O98: 9286.45347 | P98: 0.5 | Q98: 228.4777614 | S98: 94 | T98: 22095.57737 | U98: 0.5 | V98: 148.5105449
B99: 95 | C99: 5977.274687 | D99: 0.6834 | E99: 256.5871169 | G99: 95 | H99: 17337.84271 | I99: 0.6235 | J99: 165.3675004 | N99: 95 | O99: 7164.70537 | P99: 0.5 | Q99: 249.9259989 | S99: 95 | T99: 18814.15113 | U99: 0.5 | V99: 162.4518993
B100: 96 | C100: 4443.583008 | D100: 0.6834 | E100: 280.8836832 | G100: 96 | H100: 14470.727 | I100: 0.6235 | J100: 181.1505488 | N100: 96 | O100: 5374.059223 | P100: 0.5 | Q100: 274.1767813 | S100: 96 | T100: 15757.75655 | U100: 0.5 | V100: 178.2149079
B101: 97 | C101: 3195.453046 | D101: 0.6834 | E101: 304.5055632 | G101: 97 | H101: 11849.34686 | I101: 0.6235 | J101: 196.5037389 | N101: 97 | O101: 3900.616963 | P101: 0.5 | Q101: 297.7938005 | S101: 97 | T101: 12949.48942 | U101: 0.5 | V101: 193.5659703
B102: 98 | C102: 2222.419817 | D102: 0.6834 | E102: 329.0398017 | G102: 98 | H102: 9520.9059 | I102: 0.6235 | J102: 212.4469174 | N102: 98 | O102: 2739.037413 | P102: 0.5 | Q102: 322.308837 | S102: 98 | T102: 10442.90893 | U102: 0.5 | V102: 209.500744
B103: 99 | C103: 1491.155241 | D103: 0.6834 | E103: 354.9130141 | G103: 99 | H103: 7498.21879 | I103: 0.6235 | J103: 229.2480123 | N103: 99 | O103: 1856.22145 | P103: 0.5 | Q103: 348.10436 | S103: 99 | T103: 8255.11174 | U103: 0.5 | V103: 226.267834
B104: 100 | C104: 961.9248399 | D104: 0.6834 | E104: 380.2947791 | G104: 100 | H104: 5779.267037 | I104: 0.6235 | J104: 245.7962813 | N104: 100 | O104: 1210.06267 | P104: 0.5 | Q104: 373.7222192 | S104: 100 | T104: 6387.245488 | U104: 0.5 | V104: 242.9194424
B105: 101 | C105: 596.1098453 | D105: 0.6834 | E105: 408.0346828 | G105: 101 | H105: 4358.74469 | I105: 0.6235 | J105: 263.7698422 | N105: 101 | O105: 757.8353638 | P105: 0.5 | Q105: 401.1918554 | S105: 101 | T105: 4835.659375 | U105: 0.5 | V105: 260.774706
B106: 102 | C106: 352.8763537 | D106: 0.6834 | E106: 438.0694636 | G106: 102 | H106: 3209.039291 | I106: 0.6235 | J106: 283.0621998 | N106: 102 | O106: 453.7979881 | P106: 0.5 | Q106: 430.1420639 | S106: 102 | T106: 3574.641723 | U106: 0.5 | V106: 279.5923415
B107: 103 | C107: 198.2919987 | D107: 0.6834 | E107: 466.2065731 | G107: 103 | H107: 2300.68157 | I107: 0.6235 | J107: 301.3379772 | N107: 103 | O107: 258.6003849 | P107: 0.5 | Q107: 458.2163188 | S107: 103 | T107: 2575.199274 | U107: 0.5 | V107: 297.8406072
B108: 104 | C108: 105.8469655 | D108: 0.6834 | E108: 492.9980005 | G108: 104 | H108: 1607.398839 | I108: 0.6235 | J108: 318.6416162 | N108: 104 | O108: 140.1054685 | P108: 0.5 | Q108: 484.4858845 | S108: 104 | T108: 1808.200358 | U108: 0.5 | V108: 314.9158249
B109: 105 | C109: 53.66462315 | D109: 0.6834 | E109: 519.3775 | G109: 105 | H109: 1095.214675 | I109: 0.6235 | J109: 336.1353125 | N109: 105 | O109: 72.22634667 | P109: 0.5 | Q109: 512.5 | S109: 105 | T109: 1238.769451 | U109: 0.5 | V109: 333.125
B110: 106 | C110: 25.79242534 | D110: 0.6834 | E110: 574.202963 | G110: 106 | H110: 727.0743483 | I110: 0.6235 | J110: 370.0594444 | N110: 106 | O110: 35.210344 | P110: 0.5 | Q110: 559.2592593 | S110: 106 | T110: 826.1043775 | U110: 0.5 | V110: 363.5185185
B111: 107 | C111: 10.98233829 | D111: 0.6834 | E111: 512.1769231 | G111: 107 | H111: 458.0136189 | I111: 0.6235 | J111: 334.4125 | N111: 107 | O111: 15.5186331 | P111: 0.5 | Q111: 519.2307692 | S111: 107 | T111: 525.8001381 | U111: 0.5 | V111: 337.5
B112: 108 | C112: 5.357438056 | D112: 0.6834 | E112: 631.4888889 | G112: 108 | H112: 304.8481396 | I112: 0.6235 | J112: 406.1416667 | N112: 108 | O112: 7.460881297 | P112: 0.5 | Q112: 611.1111111 | S112: 108 | T112: 348.3425915 | U112: 0.5 | V112: 397.2222222
B113: 109 | C113: 1.974275451 | D113: 0.6834 | E113: 881.275 | G113: 109 | H113: 181.0366081 | I113: 0.6235 | J113: 558.228125 | N113: 109 | O113: 2.901453838 | P113: 0.5 | Q113: 812.5 | S113: 109 | T113: 209.9731732 | U113: 0.5 | V113: 528.125
B114: 110 | C114: 0.2343958529 | D114: 0.6834 | E114: 211.0666667 | G114: 110 | H114: 79.97688179 | I114: 0.6235 | J114: 163.15 | N114: 110 | O114: 0.5440225946 | P114: 0.5 | Q114: 333.3333333 | S114: 110 | T114: 99.0810911 | U114: 0.5 | V114: 216.6666667
B115: 111 | C115: 0.1849227015 | D115: 0.6834 | E115: 316.6 | G115: 111 | H115: 66.92865353 | I115: 0.6235 | J115: 244.725 | N115: 111 | O115: 0.3626817297 | P115: 0.5 | Q115: 500 | S115: 111 | T115: 77.61352136 | U115: 0.5 | V115: 325
B116: 112 | C116: 0.1263761742 | D116: 0.6834 | E116: 0 | G116: 112 | H116: 50.54953879 | I116: 0.6235 | J116: 0 | N116: 112 | O116: 0.1813408649 | P116: 0.5 | Q116: 0 | S116: 112 | T116: 52.38912692 | U116: 0.5 | V116: 0

Sheet Calcolo 1 testa (hidden)
B2: Dati richiesti al contraente | E2: Tempo | H2: v | I2: Rate attualizzate | J2: capitale assicurato | K2: Calcolo tassi | L2: premi puri | M2: premi puri N | O2: Caricamento in T | P2: Provvigione in T | Q2: Caricamento in 0 | R2: Provvigione in 0
B3: Età assicurato | C3: =MAX('First Protection'!C35,'First Protection'!C36) -> 0 | E3: 1 | F3: 0.08333333333 | G3: =E3+F3-1 -> 0.08333333333 | H3: =IF(G3>$C$6,0,$C$21^G3) -> 0.9983511419 | I3: =IF(G3>$C$6,0,SUM(H3:$H$362)*$C$7) -> 198009.4268 | J3: =IF(G3>$C$6,0,I3) -> 198009.4268 | K3: =IF(G3>$C$6,0,[1]!add($C$3,1,TRUNC(G3-0.0001,0),IF($C$5=$AS$4,Basi!$C$4,Basi!$H$4),0)*(1+$C$14)^($C$20/2)*$C$20) ->  | L3: =K3*I3 ->  | M3: =I3*$C$25*$C$20 -> 0 | O3: =IF($G3>$C$43,0,$C$39-$C$29-$C$30) ->  | P3: =IF($C$52<40%,1,7/10)*$C$52*$C$33+$C$58*$C$57+$C$53*$C$34 ->  | Q3: =O3/(1+$C$59)^($E3-1) ->  | R3: =P3/(1+$C$59)^($E3-1) ->  | AR3: Sesso | AS3: Attitudine al fumo | AT3: Frazionamento | AW3: Complementare infortuni
B4: sesso | C4: M | E4: 1 | F4: 0.1666666667 | G4: =E4+F4-1 -> 0.1666666667 | H4: 0.9967050026 | I4: =IF(G4>$C$6,0,SUM(H4:$H$362)*$C$7) -> 197011.0756 | J4: =IF(G4>$C$6,0,I4/H3) -> 197336.4555 | K4: =IF(G4>$C$6,0,[1]!add($C$3,1,TRUNC(G4-0.0001,0),IF($C$5=$AS$4,Basi!$C$4,Basi!$H$4),0)*(1+$C$14)^($C$20/2)*$C$20) ->  | M4: =I4*$C$25*$C$20 -> 0 | AR4: M | AS4: Fumatore | AT4: Mensile | AU4: 12 | AV4: 0.025 | AW4: Non presente
B5: Attitudine al fumo | C5: =IF(IF('First Protection'!C35<>"-",'First Protection'!D35,'First Protection'!D36)="NO","Non fumatore","Fumatore") -> Non fumatore | E5: 1 | F5: 0.25 | G5: 0.25 | H5: 0.9950615775 | I5: =IF(G5>$C$6,0,SUM(H5:$H$362)*$C$7) -> 196014.3706 | J5: =IF(G5>$C$6,0,I5/H4) -> 196662.3727 | K5: =IF(G5>$C$6,0,[1]!add($C$3,1,TRUNC(G5-0.0001,0),IF($C$5=$AS$4,Basi!$C$4,Basi!$H$4),0)*(1+$C$14)^($C$20/2)*$C$20) ->  | M5: 0 | AR5: F | AS5: Non fumatore | AT5: Bimestrale | AU5: 6 | AV5: - | AW5: N05A
B6: durata copertura | C6: ='First Protection'!G35 -> 20 | E6: 1 | F6: 0.3333333333 | G6: 0.3333333333 | H6: 0.9934208622 | I6: =IF(G6>$C$6,0,SUM(H6:$H$362)*$C$7) -> 195019.3091 | J6: 195987.1766 | K6: =IF(G6>$C$6,0,[1]!add($C$3,1,TRUNC(G6-0.0001,0),IF($C$5=$AS$4,Basi!$C$4,Basi!$H$4),0)*(1+$C$14)^($C$20/2)*$C$20) ->  | M6: 0 | AT6: Trimestrale | AU6: 4 | AV6: 0.02
B7: Importo rata mensile | C7: ='First Protection'!I35/12 -> 1000 | E7: 1 | F7: 0.4166666667 | G7: 0.4166666667 | H7: 0.9917828521 | I7: =IF(G7>$C$6,0,SUM(H7:$H$362)*$C$7) -> 194025.8882 | J7: 195310.8653 | K7: =IF(G7>$C$6,0,[1]!add($C$3,1,TRUNC(G7-0.0001,0),IF($C$5=$AS$4,Basi!$C$4,Basi!$H$4),0)*(1+$C$14)^($C$20/2)*$C$20) ->  | M7: 0 | AT7: Quadrimestrale | AU7: 3 | AV7: -
B8: Frazionamento rendita | C8: Mensile | E8: 1 | F8: 0.5 | G8: 0.5 | H8: 0.990147543 | I8: =IF(G8>$C$6,0,SUM(H8:$H$362)*$C$7) -> 193034.1054 | J8: 194633.4371 | K8: =IF(G8>$C$6,0,[1]!add($C$3,1,TRUNC(G8-0.0001,0),IF($C$5=$AS$4,Basi!$C$4,Basi!$H$4),0)*(1+$C$14)^($C$20/2)*$C$20) ->  | M8: 0 | AT8: Semestrale | AU8: 2 | AV8: 0.015
B9: Importo iniziale (complementare) | C9: ='First Protection'!H35 -> 25000 | E9: 1 | F9: 0.5833333333 | G9: 0.5833333333 | H9: 0.9885149302 | I9: =IF(G9>$C$6,0,SUM(H9:$H$362)*$C$7) -> 192043.9578 | J9: 193954.89 | K9: =IF(G9>$C$6,0,[1]!add($C$3,1,TRUNC(G9-0.0001,0),IF($C$5=$AS$4,Basi!$C$4,Basi!$H$4),0)*(1+$C$14)^($C$20/2)*$C$20) ->  | M9: 0 | AT9: Annuale | AU9: 1 | AV9: 0
B10: frazionamento premio | C10: Annuale | E10: 1 | F10: 0.6666666667 | G10: 0.6666666667 | H10: 0.9868850094 | I10: =IF(G10>$C$6,0,SUM(H10:$H$362)*$C$7) -> 191055.4429 | J10: 193275.2223 | K10: =IF(G10>$C$6,0,[1]!add($C$3,1,TRUNC(G10-0.0001,0),IF($C$5=$AS$4,Basi!$C$4,Basi!$H$4),0)*(1+$C$14)^($C$20/2)*$C$20) ->  | M10: 0
B11: Complementare Infortuni | C11: =IF('First Protection'!J35="NO","Non presente","N05A") -> Non presente | E11: 1 | F11: 0.75 | G11: 0.75 | H11: 0.9852577761 | I11: =IF(G11>$C$6,0,SUM(H11:$H$362)*$C$7) -> 190068.5579 | J11: 192594.432 | K11: =IF(G11>$C$6,0,[1]!add($C$3,1,TRUNC(G11-0.0001,0),IF($C$5=$AS$4,Basi!$C$4,Basi!$H$4),0)*(1+$C$14)^($C$20/2)*$C$20) ->  | M11: 0
E12: 1 | F12: 0.8333333333 | G12: 0.8333333333 | H12: 0.9836332258 | I12: =IF(G12>$C$6,0,SUM(H12:$H$362)*$C$7) -> 189083.3001 | J12: 191912.5174 | K12: =IF(G12>$C$6,0,[1]!add($C$3,1,TRUNC(G12-0.0001,0),IF($C$5=$AS$4,Basi!$C$4,Basi!$H$4),0)*(1+$C$14)^($C$20/2)*$C$20) ->  | M12: 0
B13: Dati tecnici | E13: 1 | F13: 0.9166666667 | G13: 0.9166666667 | H13: 0.9820113542 | I13: =IF(G13>$C$6,0,SUM(H13:$H$362)*$C$7) -> 188099.6669 | J13: 191229.4765 | K13: =IF(G13>$C$6,0,[1]!add($C$3,1,TRUNC(G13-0.0001,0),IF($C$5=$AS$4,Basi!$C$4,Basi!$H$4),0)*(1+$C$14)^($C$20/2)*$C$20) ->  | M13: 0
B14: tasso tecnico | C14: 0.02 | E14: 1 | F14: 1 | G14: 1 | H14: 0.9803921569 | I14: =IF(G14>$C$6,0,SUM(H14:$H$362)*$C$7) -> 187117.6555 | J14: 190545.3076 | K14: =IF(G14>$C$6,0,[1]!add($C$3,1,TRUNC(G14-0.0001,0),IF($C$5=$AS$4,Basi!$C$4,Basi!$H$4),0)*(1+$C$14)^($C$20/2)*$C$20) ->  | M14: 0
B15: spese di emissione | C15: 15 | E15: 2 | F15: 0.08333333333 | G15: 1.083333333 | H15: 0.9787756293 | I15: =IF(G15>$C$6,0,SUM(H15:$H$362)*$C$7) -> 186137.2634 | J15: 189860.0086 | K15: =IF(G15>$C$6,0,[1]!add($C$3,1,TRUNC(G15-0.0001,0),IF($C$5=$AS$4,Basi!$C$4,Basi!$H$4),0)*(1+$C$14)^($C$20/2)*$C$20) ->  | M15: 0 | O15: =IF($G15>$C$43,0,$C$40-$C$29-$C$30) ->  | P15: =IF(G15>$C$43,0,IF($C$52<40%,0,3/10)*$C$52*$C$33+$C$55*$C$33+$C$53*$C$34) ->  | Q15: =O15/(1+$C$59)^($E15-1) ->  | R15: =P15/(1+$C$59)^($E15-1) -> 
B16: spese di incasso | C16: 2 | E16: 2 | F16: 0.1666666667 | G16: 1.166666667 | H16: 0.9771617672 | I16: =IF(G16>$C$6,0,SUM(H16:$H$362)*$C$7) -> 185158.4877 | J16: 189173.5779 | K16: =IF(G16>$C$6,0,[1]!add($C$3,1,TRUNC(G16-0.0001,0),IF($C$5=$AS$4,Basi!$C$4,Basi!$H$4),0)*(1+$C$14)^($C$20/2)*$C$20) ->  | M16: 0
B17: Caricamento | C17: 0.2 | E17: 2 | F17: 0.25 | G17: 1.25 | H17: 0.9755505662 | I17: =IF(G17>$C$6,0,SUM(H17:$H$362)*$C$7) -> 184181.326 | J17: 188486.0134 | K17: =IF(G17>$C$6,0,[1]!add($C$3,1,TRUNC(G17-0.0001,0),IF($C$5=$AS$4,Basi!$C$4,Basi!$H$4),0)*(1+$C$14)^($C$20/2)*$C$20) ->  | M17: 0
E18: 2 | F18: 0.3333333333 | G18: 1.333333333 | H18: 0.9739420217 | I18: =IF(G18>$C$6,0,SUM(H18:$H$362)*$C$7) -> 183205.7754 | J18: 187797.3134 | K18: =IF(G18>$C$6,0,[1]!add($C$3,1,TRUNC(G18-0.0001,0),IF($C$5=$AS$4,Basi!$C$4,Basi!$H$4),0)*(1+$C$14)^($C$20/2)*$C$20) ->  | M18: 0
B19: Calcoli | E19: 2 | F19: 0.4166666667 | G19: 1.416666667 | H19: 0.9723361296 | I19: =IF(G19>$C$6,0,SUM(H19:$H$362)*$C$7) -> 182231.8334 | J19: 187107.4759 | K19: =IF(G19>$C$6,0,[1]!add($C$3,1,TRUNC(G19-0.0001,0),IF($C$5=$AS$4,Basi!$C$4,Basi!$H$4),0)*(1+$C$14)^($C$20/2)*$C$20) ->  | M19: 0
B20: Frazionamento rendita | C20: =1/VLOOKUP(C8,AT4:AV9,2,FALSE) -> 0.08333333333 | E20: 2 | F20: 0.5 | G20: 1.5 | H20: 0.9707328853 | I20: =IF(G20>$C$6,0,SUM(H20:$H$362)*$C$7) -> 181259.4972 | J20: 186416.4991 | K20: =IF(G20>$C$6,0,[1]!add($C$3,1,TRUNC(G20-0.0001,0),IF($C$5=$AS$4,Basi!$C$4,Basi!$H$4),0)*(1+$C$14)^($C$20/2)*$C$20) ->  | M20: 0
B21: Coefficiente di attualizzazione | C21: =1/(1+$C$14) -> 0.9803921569 | E21: 2 | F21: 0.5833333333 | G21: 1.583333333 | H21: 0.9691322845 | I21: =IF(G21>$C$6,0,SUM(H21:$H$362)*$C$7) -> 180288.7644 | J21: 185724.3811 | K21: =IF(G21>$C$6,0,[1]!add($C$3,1,TRUNC(G21-0.0001,0),IF($C$5=$AS$4,Basi!$C$4,Basi!$H$4),0)*(1+$C$14)^($C$20/2)*$C$20) ->  | M21: 0
B22: Addizionale di frazionamento TCM | C22: =VLOOKUP(C10,AT4:AV9,3,FALSE) -> 0 | E22: 2 | F22: 0.6666666667 | G22: 1.666666667 | H22: 0.9675343229 | I22: =IF(G22>$C$6,0,SUM(H22:$H$362)*$C$7) -> 179319.6321 | J22: 185031.12 | K22: =IF(G22>$C$6,0,[1]!add($C$3,1,TRUNC(G22-0.0001,0),IF($C$5=$AS$4,Basi!$C$4,Basi!$H$4),0)*(1+$C$14)^($C$20/2)*$C$20) ->  | M22: 0
B23: A | C23: =[1]!Ad(C3,C6,IF(C5=$AS$4,Basi!$C$4,Basi!H4),C14,0,0) ->  | E23: 2 | F23: 0.75 | G23: 1.75 | H23: 0.9659389961 | I23: =IF(G23>$C$6,0,SUM(H23:$H$362)*$C$7) -> 178352.0978 | J23: 184336.714 | K23: =IF(G23>$C$6,0,[1]!add($C$3,1,TRUNC(G23-0.0001,0),IF($C$5=$AS$4,Basi!$C$4,Basi!$H$4),0)*(1+$C$14)^($C$20/2)*$C$20) ->  | M23: 0
B24: aan1 | C24: =[1]!aa(C3,C43,IF(C5=$AS$4,Basi!$C$4,Basi!H4),C14) ->  | E24: 2 | F24: 0.8333333333 | G24: 1.833333333 | H24: 0.9643462998 | I24: =IF(G24>$C$6,0,SUM(H24:$H$362)*$C$7) -> 177386.1588 | J24: 183641.1611 | K24: =IF(G24>$C$6,0,[1]!add($C$3,1,TRUNC(G24-0.0001,0),IF($C$5=$AS$4,Basi!$C$4,Basi!$H$4),0)*(1+$C$14)^($C$20/2)*$C$20) ->  | M24: 0
B25: Taso puro complementare Infortuni | C25: =IF(C11=AW4,0,0.0008) -> 0 | E25: 2 | F25: 0.9166666667 | G25: 1.916666667 | H25: 0.9627562296 | I25: =IF(G25>$C$6,0,SUM(H25:$H$362)*$C$7) -> 176421.8125 | J25: 182944.4594 | K25: =IF(G25>$C$6,0,[1]!add($C$3,1,TRUNC(G25-0.0001,0),IF($C$5=$AS$4,Basi!$C$4,Basi!$H$4),0)*(1+$C$14)^($C$20/2)*$C$20) ->  | M25: 0
B26: capitale assicurato iniziale | C26: =I3+C9 -> 223009.4268 | E26: 2 | F26: 1 | G26: 2 | H26: 0.9611687812 | I26: =IF(G26>$C$6,0,SUM(H26:$H$362)*$C$7) -> 175459.0562 | J26: 182246.607 | K26: =IF(G26>$C$6,0,[1]!add($C$3,1,TRUNC(G26-0.0001,0),IF($C$5=$AS$4,Basi!$C$4,Basi!$H$4),0)*(1+$C$14)^($C$20/2)*$C$20) ->  | M26: 0
B27: premio annuo puro rendita | C27: =ROUND((SUM(L3:L362)/C24),2) ->  | E27: 3 | F27: 0.08333333333 | G27: 2.083333333 | H27: 0.9595839503 | I27: =IF(G27>$C$6,0,SUM(H27:$H$362)*$C$7) -> 174497.8874 | J27: 181547.6021 | K27: =IF(G27>$C$6,0,[1]!add($C$3,1,TRUNC(G27-0.0001,0),IF($C$5=$AS$4,Basi!$C$4,Basi!$H$4),0)*(1+$C$14)^($C$20/2)*$C$20) ->  | M27: 0 | O27: =IF($G27>$C$43,0,$C$40-$C$29-$C$30) ->  | P27: =IF(G27>$C$43,0,$C$55*$C$33+$C$53*$C$34) ->  | Q27: =O27/(1+$C$59)^($E27-1) ->  | R27: =P27/(1+$C$59)^($E27-1) -> 
B28: premio annuo puro compl. TCM | C28: =ROUND((C23*C9/C24*(1+C14)^0.5),2) ->  | E28: 3 | F28: 0.1666666667 | G28: 2.166666667 | H28: 0.9580017326 | I28: =IF(G28>$C$6,0,SUM(H28:$H$362)*$C$7) -> 173538.3035 | J28: 180847.4427 | K28: =IF(G28>$C$6,0,[1]!add($C$3,1,TRUNC(G28-0.0001,0),IF($C$5=$AS$4,Basi!$C$4,Basi!$H$4),0)*(1+$C$14)^($C$20/2)*$C$20) ->  | M28: 0
B29: premio annuo puro base | C29: =C27+C28 ->  | E29: 3 | F29: 0.25 | G29: 2.25 | H29: 0.9564221237 | I29: =IF(G29>$C$6,0,SUM(H29:$H$362)*$C$7) -> 172580.3018 | J29: 180146.127 | K29: =IF(G29>$C$6,0,[1]!add($C$3,1,TRUNC(G29-0.0001,0),IF($C$5=$AS$4,Basi!$C$4,Basi!$H$4),0)*(1+$C$14)^($C$20/2)*$C$20) ->  | M29: 0
B30: premio annuo puro infortuni | C30: =ROUND(C25*C26,2) -> 0 | E30: 3 | F30: 0.3333333333 | G30: 2.333333333 | H30: 0.9548451193 | I30: =IF(G30>$C$6,0,SUM(H30:$H$362)*$C$7) -> 171623.8796 | J30: 179443.653 | K30: =IF(G30>$C$6,0,[1]!add($C$3,1,TRUNC(G30-0.0001,0),IF($C$5=$AS$4,Basi!$C$4,Basi!$H$4),0)*(1+$C$14)^($C$20/2)*$C$20) ->  | M30: 0
B31: premio annuo netto rendita | C31: =TRUNC(C27/(1-$C$17),2) ->  | E31: 3 | F31: 0.4166666667 | G31: 2.416666667 | H31: 0.9532707152 | I31: =IF(G31>$C$6,0,SUM(H31:$H$362)*$C$7) -> 170669.0345 | J31: 178740.0187 | K31: =IF(G31>$C$6,0,[1]!add($C$3,1,TRUNC(G31-0.0001,0),IF($C$5=$AS$4,Basi!$C$4,Basi!$H$4),0)*(1+$C$14)^($C$20/2)*$C$20) ->  | M31: 0
B32: premio annuo netto compl. TCM | C32: =TRUNC(C28/(1-$C$17),2) ->  | E32: 3 | F32: 0.5 | G32: 2.5 | H32: 0.9516989071 | I32: =IF(G32>$C$6,0,SUM(H32:$H$362)*$C$7) -> 169715.7638 | J32: 178035.2224 | K32: =IF(G32>$C$6,0,[1]!add($C$3,1,TRUNC(G32-0.0001,0),IF($C$5=$AS$4,Basi!$C$4,Basi!$H$4),0)*(1+$C$14)^($C$20/2)*$C$20) ->  | M32: 0
B33: premio annuo netto base | C33: =C31+C32 ->  | E33: 3 | F33: 0.5833333333 | G33: 2.583333333 | H33: 0.9501296907 | I33: =IF(G33>$C$6,0,SUM(H33:$H$362)*$C$7) -> 168764.0649 | J33: 177329.2621 | K33: =IF(G33>$C$6,0,[1]!add($C$3,1,TRUNC(G33-0.0001,0),IF($C$5=$AS$4,Basi!$C$4,Basi!$H$4),0)*(1+$C$14)^($C$20/2)*$C$20) ->  | M33: 0
B34: premio annuo netto infortuni | C34: =TRUNC(C30/(1-C17),2) -> 0 | E34: 3 | F34: 0.6666666667 | G34: 2.666666667 | H34: 0.9485630617 | I34: =IF(G34>$C$6,0,SUM(H34:$H$362)*$C$7) -> 167813.9352 | J34: 176622.1357 | K34: =IF(G34>$C$6,0,[1]!add($C$3,1,TRUNC(G34-0.0001,0),IF($C$5=$AS$4,Basi!$C$4,Basi!$H$4),0)*(1+$C$14)^($C$20/2)*$C$20) ->  | M34: 0
B35: premio annuo netto infortuni tassato | C35: =ROUND(C34/(1-2.5%),2) -> 0 | E35: 3 | F35: 0.75 | G35: 2.75 | H35: 0.9469990158 | I35: =IF(G35>$C$6,0,SUM(H35:$H$362)*$C$7) -> 166865.3721 | J35: 175913.8416 | K35: =IF(G35>$C$6,0,[1]!add($C$3,1,TRUNC(G35-0.0001,0),IF($C$5=$AS$4,Basi!$C$4,Basi!$H$4),0)*(1+$C$14)^($C$20/2)*$C$20) ->  | M35: 0
B36: premio anuo netto | C36: =C33+C35 ->  | E36: 3 | F36: 0.8333333333 | G36: 2.833333333 | H36: 0.9454375488 | I36: =IF(G36>$C$6,0,SUM(H36:$H$362)*$C$7) -> 165918.3731 | J36: 175204.3776 | K36: =IF(G36>$C$6,0,[1]!add($C$3,1,TRUNC(G36-0.0001,0),IF($C$5=$AS$4,Basi!$C$4,Basi!$H$4),0)*(1+$C$14)^($C$20/2)*$C$20) ->  | M36: 0
E37: 3 | F37: 0.9166666667 | G37: 2.916666667 | H37: 0.9438786565 | I37: =IF(G37>$C$6,0,SUM(H37:$H$362)*$C$7) -> 164972.9356 | J37: 174493.7418 | K37: =IF(G37>$C$6,0,[1]!add($C$3,1,TRUNC(G37-0.0001,0),IF($C$5=$AS$4,Basi!$C$4,Basi!$H$4),0)*(1+$C$14)^($C$20/2)*$C$20) ->  | M37: 0
B38: Output | E38: 3 | F38: 1 | G38: 3 | H38: 0.9423223345 | I38: =IF(G38>$C$6,0,SUM(H38:$H$362)*$C$7) -> 164029.0569 | J38: 173781.9324 | K38: =IF(G38>$C$6,0,[1]!add($C$3,1,TRUNC(G38-0.0001,0),IF($C$5=$AS$4,Basi!$C$4,Basi!$H$4),0)*(1+$C$14)^($C$20/2)*$C$20) ->  | M38: 0
B39: Primo premio lordo | C39: =C36/VLOOKUP(C10,$AT$4:$AV$9,2,FALSE)*(1+C22)+C15 ->  | E39: 4 | F39: 0.08333333333 | G39: 3.083333333 | H39: 0.9407685788 | I39: =IF(G39>$C$6,0,SUM(H39:$H$362)*$C$7) -> 163086.7346 | J39: 173068.9474 | K39: =IF(G39>$C$6,0,[1]!add($C$3,1,TRUNC(G39-0.0001,0),IF($C$5=$AS$4,Basi!$C$4,Basi!$H$4),0)*(1+$C$14)^($C$20/2)*$C$20) ->  | M39: 0 | O39: =IF($G39>$C$43,0,$C$40-$C$29-$C$30) ->  | P39: =IF(G39>$C$43,0,$C$55*$C$33+$C$53*$C$34) ->  | Q39: =O39/(1+$C$59)^($E39-1) ->  | R39: =P39/(1+$C$59)^($E39-1) -> 
B40: Premi lordi successivi | C40: =IF(AND(C43=1,C10="annuale"),0,C39+C16-C15) ->  | E40: 4 | F40: 0.1666666667 | G40: 3.166666667 | H40: 0.9392173849 | I40: =IF(G40>$C$6,0,SUM(H40:$H$362)*$C$7) -> 162145.966 | J40: 172354.7849 | K40: =IF(G40>$C$6,0,[1]!add($C$3,1,TRUNC(G40-0.0001,0),IF($C$5=$AS$4,Basi!$C$4,Basi!$H$4),0)*(1+$C$14)^($C$20/2)*$C$20) ->  | M40: 0
B41: totale premi versati nel primo anno | C41: =C39+C40*(VLOOKUP(C10,AT4:AV9,2,FALSE)-1) ->  | E41: 4 | F41: 0.25 | G41: 3.25 | H41: 0.9376687487 | I41: =IF(G41>$C$6,0,SUM(H41:$H$362)*$C$7) -> 161206.7486 | J41: 171639.4428 | K41: =IF(G41>$C$6,0,[1]!add($C$3,1,TRUNC(G41-0.0001,0),IF($C$5=$AS$4,Basi!$C$4,Basi!$H$4),0)*(1+$C$14)^($C$20/2)*$C$20) ->  | M41: 0
B42: totale premi versati anni successivi | C42: =IF(C43>1,C40*VLOOKUP(C10,AT4:AV9,2,FALSE),0) ->  | E42: 4 | F42: 0.3333333333 | G42: 3.333333333 | H42: 0.936122666 | I42: =IF(G42>$C$6,0,SUM(H42:$H$362)*$C$7) -> 160269.0799 | J42: 170922.9193 | K42: =IF(G42>$C$6,0,[1]!add($C$3,1,TRUNC(G42-0.0001,0),IF($C$5=$AS$4,Basi!$C$4,Basi!$H$4),0)*(1+$C$14)^($C$20/2)*$C$20) ->  | M42: 0
B43: durata pagamento premi | C43: =IF(C6>=10,C6-5,ROUND(C6/2,0)) -> 15 | E43: 4 | F43: 0.4166666667 | G43: 3.416666667 | H43: 0.9345791326 | I43: =IF(G43>$C$6,0,SUM(H43:$H$362)*$C$7) -> 159332.9572 | J43: 170205.2124 | K43: =IF(G43>$C$6,0,[1]!add($C$3,1,TRUNC(G43-0.0001,0),IF($C$5=$AS$4,Basi!$C$4,Basi!$H$4),0)*(1+$C$14)^($C$20/2)*$C$20) ->  | M43: 0
B44: cumulo premi | C44: =C41+C42*(C43-1) ->  | E44: 4 | F44: 0.5 | G44: 3.5 | H44: 0.9330381442 | I44: =IF(G44>$C$6,0,SUM(H44:$H$362)*$C$7) -> 158398.3781 | J44: 169486.3202 | K44: =IF(G44>$C$6,0,[1]!add($C$3,1,TRUNC(G44-0.0001,0),IF($C$5=$AS$4,Basi!$C$4,Basi!$H$4),0)*(1+$C$14)^($C$20/2)*$C$20) ->  | M44: 0
B45: cumulo premi | C45: =C42+C44*($C$43-1) ->  | E45: 4 | F45: 0.5833333333 | G45: 3.583333333 | H45: 0.9314996968 | I45: =IF(G45>$C$6,0,SUM(H45:$H$362)*$C$7) -> 157465.3399 | J45: 168766.2406 | K45: =IF(G45>$C$6,0,[1]!add($C$3,1,TRUNC(G45-0.0001,0),IF($C$5=$AS$4,Basi!$C$4,Basi!$H$4),0)*(1+$C$14)^($C$20/2)*$C$20) ->  | M45: 0
B46: Risparmio fiscale primo anno | C46: =MIN($C$33*(1+$C$22)+15+2*(VLOOKUP($C$10,$AT$4:$AV$9,2,FALSE)-1),530)*19% ->  | E46: 4 | F46: 0.6666666667 | G46: 3.666666667 | H46: 0.929963786 | I46: =IF(G46>$C$6,0,SUM(H46:$H$362)*$C$7) -> 156533.8402 | J46: 168044.9718 | K46: =IF(G46>$C$6,0,[1]!add($C$3,1,TRUNC(G46-0.0001,0),IF($C$5=$AS$4,Basi!$C$4,Basi!$H$4),0)*(1+$C$14)^($C$20/2)*$C$20) ->  | M46: 0
B47: Risparmio fiscale anni successivi | C47: =MIN($C$33*(1+$C$22)+2*VLOOKUP($C$10,$AT$4:$AV$9,2,FALSE),530)*19% ->  | E47: 4 | F47: 0.75 | G47: 3.75 | H47: 0.9284304077 | I47: =IF(G47>$C$6,0,SUM(H47:$H$362)*$C$7) -> 155603.8765 | J47: 167322.5117 | K47: =IF(G47>$C$6,0,[1]!add($C$3,1,TRUNC(G47-0.0001,0),IF($C$5=$AS$4,Basi!$C$4,Basi!$H$4),0)*(1+$C$14)^($C$20/2)*$C$20) ->  | M47: 0
B48: Totale risparmio fiscale | C48: =C46+C47*($C$43-1) ->  | E48: 4 | F48: 0.8333333333 | G48: 3.833333333 | H48: 0.9268995577 | I48: =IF(G48>$C$6,0,SUM(H48:$H$362)*$C$7) -> 154675.446 | J48: 166598.8584 | K48: =IF(G48>$C$6,0,[1]!add($C$3,1,TRUNC(G48-0.0001,0),IF($C$5=$AS$4,Basi!$C$4,Basi!$H$4),0)*(1+$C$14)^($C$20/2)*$C$20) ->  | M48: 0
B49: Totale spesa effettiva | C49: =C45-C48 ->  | E49: 4 | F49: 0.9166666667 | G49: 3.916666667 | H49: 0.9253712319 | I49: =IF(G49>$C$6,0,SUM(H49:$H$362)*$C$7) -> 153748.5465 | J49: 165874.01 | K49: =IF(G49>$C$6,0,[1]!add($C$3,1,TRUNC(G49-0.0001,0),IF($C$5=$AS$4,Basi!$C$4,Basi!$H$4),0)*(1+$C$14)^($C$20/2)*$C$20) ->  | M49: 0
E50: 4 | F50: 1 | G50: 4 | H50: 0.923845426 | I50: =IF(G50>$C$6,0,SUM(H50:$H$362)*$C$7) -> 152823.1753 | J50: 165147.9644 | K50: =IF(G50>$C$6,0,[1]!add($C$3,1,TRUNC(G50-0.0001,0),IF($C$5=$AS$4,Basi!$C$4,Basi!$H$4),0)*(1+$C$14)^($C$20/2)*$C$20) ->  | M50: 0
B51: Provvigioni | E51: 5 | F51: 0.08333333333 | G51: 4.083333333 | H51: 0.922322136 | I51: =IF(G51>$C$6,0,SUM(H51:$H$362)*$C$7) -> 151899.3298 | J51: 164420.7197 | K51: =IF(G51>$C$6,0,[1]!add($C$3,1,TRUNC(G51-0.0001,0),IF($C$5=$AS$4,Basi!$C$4,Basi!$H$4),0)*(1+$C$14)^($C$20/2)*$C$20) ->  | M51: 0 | O51: =IF($G51>$C$43,0,$C$40-$C$29-$C$30) ->  | P51: =IF(G51>$C$43,0,$C$55*$C$33+$C$53*$C$34) ->  | Q51: =O51/(1+$C$59)^($E51-1) ->  | R51: =P51/(1+$C$59)^($E51-1) -> 
B52: Provvigione primo premio | C52: =VLOOKUP(C43,$B$68:$C$97,2,) -> 0.82 | E52: 5 | F52: 0.1666666667 | G52: 4.166666667 | H52: 0.9208013577 | I52: =IF(G52>$C$6,0,SUM(H52:$H$362)*$C$7) -> 150977.0077 | J52: 163692.2739 | K52: =IF(G52>$C$6,0,[1]!add($C$3,1,TRUNC(G52-0.0001,0),IF($C$5=$AS$4,Basi!$C$4,Basi!$H$4),0)*(1+$C$14)^($C$20/2)*$C$20) ->  | M52: 0
B53: Provvigione garanzia infortuni | C53: 0.2 | E53: 5 | F53: 0.25 | G53: 4.25 | H53: 0.919283087 | I53: =IF(G53>$C$6,0,SUM(H53:$H$362)*$C$7) -> 150056.2063 | J53: 162962.625 | K53: =IF(G53>$C$6,0,[1]!add($C$3,1,TRUNC(G53-0.0001,0),IF($C$5=$AS$4,Basi!$C$4,Basi!$H$4),0)*(1+$C$14)^($C$20/2)*$C$20) ->  | M53: 0
B54: Provvigione totale primo anno | C54: =C52*C33+C53*C34 ->  | E54: 5 | F54: 0.3333333333 | G54: 4.333333333 | H54: 0.9177673196 | I54: =IF(G54>$C$6,0,SUM(H54:$H$362)*$C$7) -> 149136.9232 | J54: 162231.771 | K54: =IF(G54>$C$6,0,[1]!add($C$3,1,TRUNC(G54-0.0001,0),IF($C$5=$AS$4,Basi!$C$4,Basi!$H$4),0)*(1+$C$14)^($C$20/2)*$C$20) ->  | M54: 0
B55: Provvigione premi successivi | C55: 0.04 | E55: 5 | F55: 0.4166666667 | G55: 4.416666667 | H55: 0.9162540516 | I55: =IF(G55>$C$6,0,SUM(H55:$H$362)*$C$7) -> 148219.1559 | J55: 161499.71 | K55: =IF(G55>$C$6,0,[1]!add($C$3,1,TRUNC(G55-0.0001,0),IF($C$5=$AS$4,Basi!$C$4,Basi!$H$4),0)*(1+$C$14)^($C$20/2)*$C$20) ->  | M55: 0
B56: liquidazione | C56: 7/10 e 3/10 | E56: 5 | F56: 0.5 | G56: 4.5 | H56: 0.9147432787 | I56: =IF(G56>$C$6,0,SUM(H56:$H$362)*$C$7) -> 147302.9019 | J56: 160766.4399 | K56: =IF(G56>$C$6,0,[1]!add($C$3,1,TRUNC(G56-0.0001,0),IF($C$5=$AS$4,Basi!$C$4,Basi!$H$4),0)*(1+$C$14)^($C$20/2)*$C$20) ->  | M56: 0
B57: Computabile | C57: =MIN(C33,6%*I3)*MIN(1,C43/10) ->  | E57: 5 | F57: 0.5833333333 | G57: 4.583333333 | H57: 0.9132349968 | I57: =IF(G57>$C$6,0,SUM(H57:$H$362)*$C$7) -> 146388.1586 | J57: 160031.9587 | K57: =IF(G57>$C$6,0,[1]!add($C$3,1,TRUNC(G57-0.0001,0),IF($C$5=$AS$4,Basi!$C$4,Basi!$H$4),0)*(1+$C$14)^($C$20/2)*$C$20) ->  | M57: 0
B58: % di attribuzione del computabile | C58: 0.25 | E58: 5 | F58: 0.6666666667 | G58: 4.666666667 | H58: 0.9117292019 | I58: =IF(G58>$C$6,0,SUM(H58:$H$362)*$C$7) -> 145474.9236 | J58: 159296.2645 | K58: =IF(G58>$C$6,0,[1]!add($C$3,1,TRUNC(G58-0.0001,0),IF($C$5=$AS$4,Basi!$C$4,Basi!$H$4),0)*(1+$C$14)^($C$20/2)*$C$20) ->  | M58: 0
B59: Tasso di attualizzazione | C59: 0.04 | E59: 5 | F59: 0.75 | G59: 4.75 | H59: 0.9102258899 | I59: =IF(G59>$C$6,0,SUM(H59:$H$362)*$C$7) -> 144563.1944 | J59: 158559.3552 | K59: =IF(G59>$C$6,0,[1]!add($C$3,1,TRUNC(G59-0.0001,0),IF($C$5=$AS$4,Basi!$C$4,Basi!$H$4),0)*(1+$C$14)^($C$20/2)*$C$20) ->  | M59: 0
E60: 5 | F60: 0.8333333333 | G60: 4.833333333 | H60: 0.9087250566 | I60: =IF(G60>$C$6,0,SUM(H60:$H$362)*$C$7) -> 143652.9685 | J60: 157821.2289 | K60: =IF(G60>$C$6,0,[1]!add($C$3,1,TRUNC(G60-0.0001,0),IF($C$5=$AS$4,Basi!$C$4,Basi!$H$4),0)*(1+$C$14)^($C$20/2)*$C$20) ->  | M60: 0
E61: 5 | F61: 0.9166666667 | G61: 4.916666667 | H61: 0.9072266979 | I61: =IF(G61>$C$6,0,SUM(H61:$H$362)*$C$7) -> 142744.2435 | J61: 157081.8835 | K61: =IF(G61>$C$6,0,[1]!add($C$3,1,TRUNC(G61-0.0001,0),IF($C$5=$AS$4,Basi!$C$4,Basi!$H$4),0)*(1+$C$14)^($C$20/2)*$C$20) ->  | M61: 0
E62: 5 | F62: 1 | G62: 5 | H62: 0.9057308098 | I62: =IF(G62>$C$6,0,SUM(H62:$H$362)*$C$7) -> 141837.0168 | J62: 156341.317 | K62: =IF(G62>$C$6,0,[1]!add($C$3,1,TRUNC(G62-0.0001,0),IF($C$5=$AS$4,Basi!$C$4,Basi!$H$4),0)*(1+$C$14)^($C$20/2)*$C$20) ->  | M62: 0
E63: 6 | F63: 0.08333333333 | G63: 5.083333333 | H63: 0.9042373883 | I63: =IF(G63>$C$6,0,SUM(H63:$H$362)*$C$7) -> 140931.2859 | J63: 155599.5274 | K63: =IF(G63>$C$6,0,[1]!add($C$3,1,TRUNC(G63-0.0001,0),IF($C$5=$AS$4,Basi!$C$4,Basi!$H$4),0)*(1+$C$14)^($C$20/2)*$C$20) ->  | M63: 0 | O63: =IF($G63>$C$43,0,$C$40-$C$29-$C$30) ->  | P63: =IF(G63>$C$43,0,$C$55*$C$33+$C$53*$C$34) ->  | Q63: =O63/(1+$C$59)^($E63-1) ->  | R63: =P63/(1+$C$59)^($E63-1) -> 
E64: 6 | F64: 0.1666666667 | G64: 5.166666667 | H64: 0.9027464291 | I64: =IF(G64>$C$6,0,SUM(H64:$H$362)*$C$7) -> 140027.0486 | J64: 154856.5127 | K64: =IF(G64>$C$6,0,[1]!add($C$3,1,TRUNC(G64-0.0001,0),IF($C$5=$AS$4,Basi!$C$4,Basi!$H$4),0)*(1+$C$14)^($C$20/2)*$C$20) ->  | M64: 0
B65: Quota parte | C65: =SUM(R3:R362)/SUM(Q3:Q362) ->  | E65: 6 | F65: 0.25 | G65: 5.25 | H65: 0.9012579284 | I65: =IF(G65>$C$6,0,SUM(H65:$H$362)*$C$7) -> 139124.3021 | J65: 154112.2708 | K65: =IF(G65>$C$6,0,[1]!add($C$3,1,TRUNC(G65-0.0001,0),IF($C$5=$AS$4,Basi!$C$4,Basi!$H$4),0)*(1+$C$14)^($C$20/2)*$C$20) ->  | M65: 0
E66: 6 | F66: 0.3333333333 | G66: 5.333333333 | H66: 0.899771882 | I66: =IF(G66>$C$6,0,SUM(H66:$H$362)*$C$7) -> 138223.0442 | J66: 153366.7997 | K66: =IF(G66>$C$6,0,[1]!add($C$3,1,TRUNC(G66-0.0001,0),IF($C$5=$AS$4,Basi!$C$4,Basi!$H$4),0)*(1+$C$14)^($C$20/2)*$C$20) ->  | M66: 0
B67: Durata pagamento premi | C67: provvigione | E67: 6 | F67: 0.4166666667 | G67: 5.416666667 | H67: =IF(G67>$C$6,0,$C$21^G67) -> 0.8982882858 | I67: =IF(G67>$C$6,0,SUM(H67:$H$362)*$C$7) -> 137323.2723 | J67: 152620.0975 | K67: =IF(G67>$C$6,0,[1]!add($C$3,1,TRUNC(G67-0.0001,0),IF($C$5=$AS$4,Basi!$C$4,Basi!$H$4),0)*(1+$C$14)^($C$20/2)*$C$20) ->  | L67: =K67*I67 ->  | M67: 0
B68: 1 | C68: =B68/10*$C$77 -> 0.072 | E68: 6 | F68: 0.5 | G68: =E68+F68-1 -> 5.5 | H68: 0.896807136 | I68: =IF(G68>$C$6,0,SUM(H68:$H$362)*$C$7) -> 136424.984 | J68: 151872.162 | K68: =IF(G68>$C$6,0,[1]!add($C$3,1,TRUNC(G68-0.0001,0),IF($C$5=$AS$4,Basi!$C$4,Basi!$H$4),0)*(1+$C$14)^($C$20/2)*$C$20) ->  | M68: =I68*$C$25*$C$20 -> 0
B69: 2 | C69: 0.144 | E69: 6 | F69: 0.5833333333 | G69: 5.583333333 | H69: 0.8953284283 | I69: =IF(G69>$C$6,0,SUM(H69:$H$362)*$C$7) -> 135528.1769 | J69: =IF(G69>$C$6,0,I69/H68) -> 151122.9912 | K69: =IF(G69>$C$6,0,[1]!add($C$3,1,TRUNC(G69-0.0001,0),IF($C$5=$AS$4,Basi!$C$4,Basi!$H$4),0)*(1+$C$14)^($C$20/2)*$C$20) ->  | M69: 0
B70: 3 | C70: 0.216 | E70: 6 | F70: 0.6666666667 | G70: 5.666666667 | H70: 0.8938521587 | I70: =IF(G70>$C$6,0,SUM(H70:$H$362)*$C$7) -> 134632.8485 | J70: 150372.5831 | K70: =IF(G70>$C$6,0,[1]!add($C$3,1,TRUNC(G70-0.0001,0),IF($C$5=$AS$4,Basi!$C$4,Basi!$H$4),0)*(1+$C$14)^($C$20/2)*$C$20) ->  | M70: 0
B71: 4 | C71: 0.288 | E71: 6 | F71: 0.75 | G71: 5.75 | H71: 0.8923783234 | I71: =IF(G71>$C$6,0,SUM(H71:$H$362)*$C$7) -> 133738.9963 | J71: 149620.9356 | K71: =IF(G71>$C$6,0,[1]!add($C$3,1,TRUNC(G71-0.0001,0),IF($C$5=$AS$4,Basi!$C$4,Basi!$H$4),0)*(1+$C$14)^($C$20/2)*$C$20) ->  | M71: 0
B72: 5 | C72: 0.36 | E72: 6 | F72: 0.8333333333 | G72: 5.833333333 | H72: 0.8909069182 | I72: =IF(G72>$C$6,0,SUM(H72:$H$362)*$C$7) -> 132846.618 | J72: 148868.0468 | K72: =IF(G72>$C$6,0,[1]!add($C$3,1,TRUNC(G72-0.0001,0),IF($C$5=$AS$4,Basi!$C$4,Basi!$H$4),0)*(1+$C$14)^($C$20/2)*$C$20) ->  | M72: 0
B73: 6 | C73: 0.432 | E73: 6 | F73: 0.9166666667 | G73: 5.916666667 | H73: 0.8894379391 | I73: =IF(G73>$C$6,0,SUM(H73:$H$362)*$C$7) -> 131955.7111 | J73: 148113.9145 | K73: =IF(G73>$C$6,0,[1]!add($C$3,1,TRUNC(G73-0.0001,0),IF($C$5=$AS$4,Basi!$C$4,Basi!$H$4),0)*(1+$C$14)^($C$20/2)*$C$20) ->  | M73: 0
B74: 7 | C74: 0.504 | E74: 6 | F74: 1 | G74: 6 | H74: 0.8879713822 | I74: =IF(G74>$C$6,0,SUM(H74:$H$362)*$C$7) -> 131066.2731 | J74: 147358.5366 | K74: =IF(G74>$C$6,0,[1]!add($C$3,1,TRUNC(G74-0.0001,0),IF($C$5=$AS$4,Basi!$C$4,Basi!$H$4),0)*(1+$C$14)^($C$20/2)*$C$20) ->  | M74: 0
B75: 8 | C75: 0.576 | E75: 7 | F75: 0.08333333333 | G75: 6.083333333 | H75: 0.8865072434 | I75: =IF(G75>$C$6,0,SUM(H75:$H$362)*$C$7) -> 130178.3017 | J75: 146601.9112 | K75: =IF(G75>$C$6,0,[1]!add($C$3,1,TRUNC(G75-0.0001,0),IF($C$5=$AS$4,Basi!$C$4,Basi!$H$4),0)*(1+$C$14)^($C$20/2)*$C$20) ->  | M75: 0 | O75: =IF($G75>$C$43,0,$C$40-$C$29-$C$30) ->  | P75: =IF(G75>$C$43,0,$C$55*$C$33+$C$53*$C$34) ->  | Q75: =O75/(1+$C$59)^($E75-1) ->  | R75: =P75/(1+$C$59)^($E75-1) -> 
B76: 9 | C76: 0.648 | E76: 7 | F76: 0.1666666667 | G76: 6.166666667 | H76: 0.8850455188 | I76: =IF(G76>$C$6,0,SUM(H76:$H$362)*$C$7) -> 129291.7945 | J76: 145844.0362 | K76: =IF(G76>$C$6,0,[1]!add($C$3,1,TRUNC(G76-0.0001,0),IF($C$5=$AS$4,Basi!$C$4,Basi!$H$4),0)*(1+$C$14)^($C$20/2)*$C$20) ->  | M76: 0
B77: 10 | C77: 0.72 | E77: 7 | F77: 0.25 | G77: 6.25 | H77: 0.8835862043 | I77: =IF(G77>$C$6,0,SUM(H77:$H$362)*$C$7) -> 128406.749 | J77: 145084.9095 | K77: =IF(G77>$C$6,0,[1]!add($C$3,1,TRUNC(G77-0.0001,0),IF($C$5=$AS$4,Basi!$C$4,Basi!$H$4),0)*(1+$C$14)^($C$20/2)*$C$20) ->  | M77: 0
B78: 11 | C78: =C77+2% -> 0.74 | E78: 7 | F78: 0.3333333333 | G78: 6.333333333 | H78: 0.8821292961 | I78: =IF(G78>$C$6,0,SUM(H78:$H$362)*$C$7) -> 127523.1628 | J78: 144324.529 | K78: =IF(G78>$C$6,0,[1]!add($C$3,1,TRUNC(G78-0.0001,0),IF($C$5=$AS$4,Basi!$C$4,Basi!$H$4),0)*(1+$C$14)^($C$20/2)*$C$20) ->  | M78: 0
B79: 12 | C79: =C78+2% -> 0.76 | E79: 7 | F79: 0.4166666667 | G79: 6.416666667 | H79: 0.88067479 | I79: =IF(G79>$C$6,0,SUM(H79:$H$362)*$C$7) -> 126641.0335 | J79: 143562.8927 | K79: =IF(G79>$C$6,0,[1]!add($C$3,1,TRUNC(G79-0.0001,0),IF($C$5=$AS$4,Basi!$C$4,Basi!$H$4),0)*(1+$C$14)^($C$20/2)*$C$20) ->  | M79: 0
B80: 13 | C80: =C79+2% -> 0.78 | E80: 7 | F80: 0.5 | G80: 6.5 | H80: 0.8792226823 | I80: =IF(G80>$C$6,0,SUM(H80:$H$362)*$C$7) -> 125760.3587 | J80: 142799.9985 | K80: =IF(G80>$C$6,0,[1]!add($C$3,1,TRUNC(G80-0.0001,0),IF($C$5=$AS$4,Basi!$C$4,Basi!$H$4),0)*(1+$C$14)^($C$20/2)*$C$20) ->  | M80: 0
B81: 14 | C81: =C80+2% -> 0.8 | E81: 7 | F81: 0.5833333333 | G81: 6.583333333 | H81: 0.8777729689 | I81: =IF(G81>$C$6,0,SUM(H81:$H$362)*$C$7) -> 124881.136 | J81: 142035.8443 | K81: =IF(G81>$C$6,0,[1]!add($C$3,1,TRUNC(G81-0.0001,0),IF($C$5=$AS$4,Basi!$C$4,Basi!$H$4),0)*(1+$C$14)^($C$20/2)*$C$20) ->  | M81: 0
B82: 15 | C82: =C81+2% -> 0.82 | E82: 7 | F82: 0.6666666667 | G82: 6.666666667 | H82: 0.8763256458 | I82: =IF(G82>$C$6,0,SUM(H82:$H$362)*$C$7) -> 124003.363 | J82: 141270.428 | K82: =IF(G82>$C$6,0,[1]!add($C$3,1,TRUNC(G82-0.0001,0),IF($C$5=$AS$4,Basi!$C$4,Basi!$H$4),0)*(1+$C$14)^($C$20/2)*$C$20) ->  | M82: 0
B83: 16 | C83: =C82 -> 0.82 | E83: 7 | F83: 0.75 | G83: 6.75 | H83: 0.8748807092 | I83: =IF(G83>$C$6,0,SUM(H83:$H$362)*$C$7) -> 123127.0374 | J83: 140503.7476 | K83: =IF(G83>$C$6,0,[1]!add($C$3,1,TRUNC(G83-0.0001,0),IF($C$5=$AS$4,Basi!$C$4,Basi!$H$4),0)*(1+$C$14)^($C$20/2)*$C$20) ->  | M83: 0
B84: 17 | C84: =C83 -> 0.82 | E84: 7 | F84: 0.8333333333 | G84: 6.833333333 | H84: 0.8734381551 | I84: =IF(G84>$C$6,0,SUM(H84:$H$362)*$C$7) -> 122252.1567 | J84: 139735.801 | K84: =IF(G84>$C$6,0,[1]!add($C$3,1,TRUNC(G84-0.0001,0),IF($C$5=$AS$4,Basi!$C$4,Basi!$H$4),0)*(1+$C$14)^($C$20/2)*$C$20) ->  | M84: 0
B85: 18 | C85: 0.82 | E85: 7 | F85: 0.9166666667 | G85: 6.916666667 | H85: 0.8719979795 | I85: =IF(G85>$C$6,0,SUM(H85:$H$362)*$C$7) -> 121378.7185 | J85: 138966.586 | K85: =IF(G85>$C$6,0,[1]!add($C$3,1,TRUNC(G85-0.0001,0),IF($C$5=$AS$4,Basi!$C$4,Basi!$H$4),0)*(1+$C$14)^($C$20/2)*$C$20) ->  | M85: 0
B86: 19 | C86: 0.82 | E86: 7 | F86: 1 | G86: 7 | H86: 0.8705601786 | I86: =IF(G86>$C$6,0,SUM(H86:$H$362)*$C$7) -> 120506.7206 | J86: 138196.1007 | K86: =IF(G86>$C$6,0,[1]!add($C$3,1,TRUNC(G86-0.0001,0),IF($C$5=$AS$4,Basi!$C$4,Basi!$H$4),0)*(1+$C$14)^($C$20/2)*$C$20) ->  | M86: 0
B87: 20 | C87: 0.82 | E87: 8 | F87: 0.08333333333 | G87: 7.083333333 | H87: 0.8691247484 | I87: =IF(G87>$C$6,0,SUM(H87:$H$362)*$C$7) -> 119636.1604 | J87: 137424.3428 | K87: =IF(G87>$C$6,0,[1]!add($C$3,1,TRUNC(G87-0.0001,0),IF($C$5=$AS$4,Basi!$C$4,Basi!$H$4),0)*(1+$C$14)^($C$20/2)*$C$20) ->  | M87: 0 | O87: =IF($G87>$C$43,0,$C$40-$C$29-$C$30) ->  | P87: =IF(G87>$C$43,0,$C$55*$C$33+$C$53*$C$34) ->  | Q87: =O87/(1+$C$59)^($E87-1) ->  | R87: =P87/(1+$C$59)^($E87-1) -> 
B88: 21 | C88: 0.82 | E88: 8 | F88: 0.1666666667 | G88: 7.166666667 | H88: 0.8676916851 | I88: =IF(G88>$C$6,0,SUM(H88:$H$362)*$C$7) -> 118767.0356 | J88: 136651.3102 | K88: =IF(G88>$C$6,0,[1]!add($C$3,1,TRUNC(G88-0.0001,0),IF($C$5=$AS$4,Basi!$C$4,Basi!$H$4),0)*(1+$C$14)^($C$20/2)*$C$20) ->  | M88: 0
B89: 22 | C89: 0.82 | E89: 8 | F89: 0.25 | G89: 7.25 | H89: 0.8662609846 | I89: =IF(G89>$C$6,0,SUM(H89:$H$362)*$C$7) -> 117899.3439 | J89: 135877.001 | K89: =IF(G89>$C$6,0,[1]!add($C$3,1,TRUNC(G89-0.0001,0),IF($C$5=$AS$4,Basi!$C$4,Basi!$H$4),0)*(1+$C$14)^($C$20/2)*$C$20) ->  | M89: 0
B90: 23 | C90: 0.82 | E90: 8 | F90: 0.3333333333 | G90: 7.333333333 | H90: 0.8648326432 | I90: =IF(G90>$C$6,0,SUM(H90:$H$362)*$C$7) -> 117033.083 | J90: 135101.4129 | K90: =IF(G90>$C$6,0,[1]!add($C$3,1,TRUNC(G90-0.0001,0),IF($C$5=$AS$4,Basi!$C$4,Basi!$H$4),0)*(1+$C$14)^($C$20/2)*$C$20) ->  | M90: 0
B91: 24 | C91: 0.82 | E91: 8 | F91: 0.4166666667 | G91: 7.416666667 | H91: 0.8634066569 | I91: =IF(G91>$C$6,0,SUM(H91:$H$362)*$C$7) -> 116168.2503 | J91: 134324.5439 | K91: =IF(G91>$C$6,0,[1]!add($C$3,1,TRUNC(G91-0.0001,0),IF($C$5=$AS$4,Basi!$C$4,Basi!$H$4),0)*(1+$C$14)^($C$20/2)*$C$20) ->  | M91: 0
B92: 25 | C92: 0.82 | E92: 8 | F92: 0.5 | G92: 7.5 | H92: 0.8619830219 | I92: =IF(G92>$C$6,0,SUM(H92:$H$362)*$C$7) -> 115304.8437 | J92: 133546.3918 | K92: =IF(G92>$C$6,0,[1]!add($C$3,1,TRUNC(G92-0.0001,0),IF($C$5=$AS$4,Basi!$C$4,Basi!$H$4),0)*(1+$C$14)^($C$20/2)*$C$20) ->  | M92: 0
B93: 26 | C93: 0.82 | E93: 8 | F93: 0.5833333333 | G93: 7.583333333 | H93: 0.8605617342 | I93: =IF(G93>$C$6,0,SUM(H93:$H$362)*$C$7) -> 114442.8606 | J93: 132766.9545 | K93: =IF(G93>$C$6,0,[1]!add($C$3,1,TRUNC(G93-0.0001,0),IF($C$5=$AS$4,Basi!$C$4,Basi!$H$4),0)*(1+$C$14)^($C$20/2)*$C$20) ->  | M93: 0
B94: 27 | C94: 0.82 | E94: 8 | F94: 0.6666666667 | G94: 7.666666667 | H94: 0.85914279 | I94: =IF(G94>$C$6,0,SUM(H94:$H$362)*$C$7) -> 113582.2989 | J94: 131986.2299 | K94: =IF(G94>$C$6,0,[1]!add($C$3,1,TRUNC(G94-0.0001,0),IF($C$5=$AS$4,Basi!$C$4,Basi!$H$4),0)*(1+$C$14)^($C$20/2)*$C$20) ->  | M94: 0
B95: 28 | C95: 0.82 | E95: 8 | F95: 0.75 | G95: 7.75 | H95: 0.8577261855 | I95: =IF(G95>$C$6,0,SUM(H95:$H$362)*$C$7) -> 112723.1561 | J95: 131204.2159 | K95: =IF(G95>$C$6,0,[1]!add($C$3,1,TRUNC(G95-0.0001,0),IF($C$5=$AS$4,Basi!$C$4,Basi!$H$4),0)*(1+$C$14)^($C$20/2)*$C$20) ->  | M95: 0
B96: 29 | C96: 0.82 | E96: 8 | F96: 0.8333333333 | G96: 7.833333333 | H96: 0.8563119168 | I96: =IF(G96>$C$6,0,SUM(H96:$H$362)*$C$7) -> 111865.4299 | J96: 130420.9103 | K96: =IF(G96>$C$6,0,[1]!add($C$3,1,TRUNC(G96-0.0001,0),IF($C$5=$AS$4,Basi!$C$4,Basi!$H$4),0)*(1+$C$14)^($C$20/2)*$C$20) ->  | M96: 0
B97: 30 | C97: 0.82 | E97: 8 | F97: 0.9166666667 | G97: 7.916666667 | H97: 0.8548999799 | I97: =IF(G97>$C$6,0,SUM(H97:$H$362)*$C$7) -> 111009.118 | J97: 129636.3111 | K97: =IF(G97>$C$6,0,[1]!add($C$3,1,TRUNC(G97-0.0001,0),IF($C$5=$AS$4,Basi!$C$4,Basi!$H$4),0)*(1+$C$14)^($C$20/2)*$C$20) ->  | M97: 0
E98: 8 | F98: 1 | G98: 8 | H98: 0.8534903712 | I98: =IF(G98>$C$6,0,SUM(H98:$H$362)*$C$7) -> 110154.218 | J98: 128850.416 | K98: =IF(G98>$C$6,0,[1]!add($C$3,1,TRUNC(G98-0.0001,0),IF($C$5=$AS$4,Basi!$C$4,Basi!$H$4),0)*(1+$C$14)^($C$20/2)*$C$20) ->  | M98: 0
E99: 9 | F99: 0.08333333333 | G99: 8.083333333 | H99: 0.8520830867 | I99: =IF(G99>$C$6,0,SUM(H99:$H$362)*$C$7) -> 109300.7277 | J99: 128063.2229 | K99: =IF(G99>$C$6,0,[1]!add($C$3,1,TRUNC(G99-0.0001,0),IF($C$5=$AS$4,Basi!$C$4,Basi!$H$4),0)*(1+$C$14)^($C$20/2)*$C$20) ->  | M99: 0 | O99: =IF($G99>$C$43,0,$C$40-$C$29-$C$30) ->  | P99: =IF(G99>$C$43,0,$C$55*$C$33+$C$53*$C$34) ->  | Q99: =O99/(1+$C$59)^($E99-1) ->  | R99: =P99/(1+$C$59)^($E99-1) -> 
E100: 9 | F100: 0.1666666667 | G100: 8.166666667 | H100: 0.8506781226 | I100: =IF(G100>$C$6,0,SUM(H100:$H$362)*$C$7) -> 108448.6446 | J100: 127274.7297 | K100: =IF(G100>$C$6,0,[1]!add($C$3,1,TRUNC(G100-0.0001,0),IF($C$5=$AS$4,Basi!$C$4,Basi!$H$4),0)*(1+$C$14)^($C$20/2)*$C$20) ->  | M100: 0
E101: 9 | F101: 0.25 | G101: 8.25 | H101: 0.8492754751 | I101: =IF(G101>$C$6,0,SUM(H101:$H$362)*$C$7) -> 107597.9664 | J101: 126484.9343 | K101: =IF(G101>$C$6,0,[1]!add($C$3,1,TRUNC(G101-0.0001,0),IF($C$5=$AS$4,Basi!$C$4,Basi!$H$4),0)*(1+$C$14)^($C$20/2)*$C$20) ->  | M101: 0
E102: 9 | F102: 0.3333333333 | G102: 8.333333333 | H102: 0.8478751404 | I102: =IF(G102>$C$6,0,SUM(H102:$H$362)*$C$7) -> 106748.691 | J102: 125693.8344 | K102: =IF(G102>$C$6,0,[1]!add($C$3,1,TRUNC(G102-0.0001,0),IF($C$5=$AS$4,Basi!$C$4,Basi!$H$4),0)*(1+$C$14)^($C$20/2)*$C$20) ->  | M102: 0
E103: 9 | F103: 0.4166666667 | G103: 8.416666667 | H103: 0.8464771146 | I103: =IF(G103>$C$6,0,SUM(H103:$H$362)*$C$7) -> 105900.8158 | J103: 124901.428 | K103: =IF(G103>$C$6,0,[1]!add($C$3,1,TRUNC(G103-0.0001,0),IF($C$5=$AS$4,Basi!$C$4,Basi!$H$4),0)*(1+$C$14)^($C$20/2)*$C$20) ->  | M103: 0
E104: 9 | F104: 0.5 | G104: 8.5 | H104: 0.845081394 | I104: =IF(G104>$C$6,0,SUM(H104:$H$362)*$C$7) -> 105054.3387 | J104: 124107.7129 | K104: =IF(G104>$C$6,0,[1]!add($C$3,1,TRUNC(G104-0.0001,0),IF($C$5=$AS$4,Basi!$C$4,Basi!$H$4),0)*(1+$C$14)^($C$20/2)*$C$20) ->  | M104: 0
E105: 9 | F105: 0.5833333333 | G105: 8.583333333 | H105: 0.8436879747 | I105: =IF(G105>$C$6,0,SUM(H105:$H$362)*$C$7) -> 104209.2573 | J105: 123312.6869 | K105: =IF(G105>$C$6,0,[1]!add($C$3,1,TRUNC(G105-0.0001,0),IF($C$5=$AS$4,Basi!$C$4,Basi!$H$4),0)*(1+$C$14)^($C$20/2)*$C$20) ->  | M105: 0
E106: 9 | F106: 0.6666666667 | G106: 8.666666667 | H106: 0.842296853 | I106: =IF(G106>$C$6,0,SUM(H106:$H$362)*$C$7) -> 103365.5693 | J106: 122516.3478 | K106: =IF(G106>$C$6,0,[1]!add($C$3,1,TRUNC(G106-0.0001,0),IF($C$5=$AS$4,Basi!$C$4,Basi!$H$4),0)*(1+$C$14)^($C$20/2)*$C$20) ->  | M106: 0
E107: 9 | F107: 0.75 | G107: 8.75 | H107: 0.840908025 | I107: =IF(G107>$C$6,0,SUM(H107:$H$362)*$C$7) -> 102523.2725 | J107: 121718.6935 | K107: =IF(G107>$C$6,0,[1]!add($C$3,1,TRUNC(G107-0.0001,0),IF($C$5=$AS$4,Basi!$C$4,Basi!$H$4),0)*(1+$C$14)^($C$20/2)*$C$20) ->  | M107: 0
E108: 9 | F108: 0.8333333333 | G108: 8.833333333 | H108: 0.839521487 | I108: =IF(G108>$C$6,0,SUM(H108:$H$362)*$C$7) -> 101682.3645 | J108: 120919.7218 | K108: =IF(G108>$C$6,0,[1]!add($C$3,1,TRUNC(G108-0.0001,0),IF($C$5=$AS$4,Basi!$C$4,Basi!$H$4),0)*(1+$C$14)^($C$20/2)*$C$20) ->  | M108: 0
E109: 9 | F109: 0.9166666667 | G109: 8.916666667 | H109: 0.8381372352 | I109: =IF(G109>$C$6,0,SUM(H109:$H$362)*$C$7) -> 100842.843 | J109: 120119.4306 | K109: =IF(G109>$C$6,0,[1]!add($C$3,1,TRUNC(G109-0.0001,0),IF($C$5=$AS$4,Basi!$C$4,Basi!$H$4),0)*(1+$C$14)^($C$20/2)*$C$20) ->  | M109: 0
E110: 9 | F110: 1 | G110: 9 | H110: 0.8367552659 | I110: =IF(G110>$C$6,0,SUM(H110:$H$362)*$C$7) -> 100004.7057 | J110: 119317.8176 | K110: =IF(G110>$C$6,0,[1]!add($C$3,1,TRUNC(G110-0.0001,0),IF($C$5=$AS$4,Basi!$C$4,Basi!$H$4),0)*(1+$C$14)^($C$20/2)*$C$20) ->  | M110: 0
E111: 10 | F111: 0.08333333333 | G111: 9.083333333 | H111: 0.8353755752 | I111: =IF(G111>$C$6,0,SUM(H111:$H$362)*$C$7) -> 99167.95048 | J111: 118514.8807 | K111: =IF(G111>$C$6,0,[1]!add($C$3,1,TRUNC(G111-0.0001,0),IF($C$5=$AS$4,Basi!$C$4,Basi!$H$4),0)*(1+$C$14)^($C$20/2)*$C$20) ->  | M111: 0 | O111: =IF($G111>$C$43,0,$C$40-$C$29-$C$30) ->  | P111: =IF(G111>$C$43,0,$C$55*$C$33+$C$53*$C$34) ->  | Q111: =O111/(1+$C$59)^($E111-1) ->  | R111: =P111/(1+$C$59)^($E111-1) -> 
E112: 10 | F112: 0.1666666667 | G112: 9.166666667 | H112: 0.8339981594 | I112: =IF(G112>$C$6,0,SUM(H112:$H$362)*$C$7) -> 98332.57491 | J112: 117710.6176 | K112: =IF(G112>$C$6,0,[1]!add($C$3,1,TRUNC(G112-0.0001,0),IF($C$5=$AS$4,Basi!$C$4,Basi!$H$4),0)*(1+$C$14)^($C$20/2)*$C$20) ->  | M112: 0
E113: 10 | F113: 0.25 | G113: 9.25 | H113: 0.8326230148 | I113: =IF(G113>$C$6,0,SUM(H113:$H$362)*$C$7) -> 97498.57675 | J113: 116905.0263 | K113: =IF(G113>$C$6,0,[1]!add($C$3,1,TRUNC(G113-0.0001,0),IF($C$5=$AS$4,Basi!$C$4,Basi!$H$4),0)*(1+$C$14)^($C$20/2)*$C$20) ->  | M113: 0
E114: 10 | F114: 0.3333333333 | G114: 9.333333333 | H114: 0.8312501376 | I114: =IF(G114>$C$6,0,SUM(H114:$H$362)*$C$7) -> 96665.95373 | J114: 116098.1044 | K114: =IF(G114>$C$6,0,[1]!add($C$3,1,TRUNC(G114-0.0001,0),IF($C$5=$AS$4,Basi!$C$4,Basi!$H$4),0)*(1+$C$14)^($C$20/2)*$C$20) ->  | M114: 0
E115: 10 | F115: 0.4166666667 | G115: 9.416666667 | H115: 0.8298795241 | I115: =IF(G115>$C$6,0,SUM(H115:$H$362)*$C$7) -> 95834.70359 | J115: 115289.8499 | K115: =IF(G115>$C$6,0,[1]!add($C$3,1,TRUNC(G115-0.0001,0),IF($C$5=$AS$4,Basi!$C$4,Basi!$H$4),0)*(1+$C$14)^($C$20/2)*$C$20) ->  | M115: 0
E116: 10 | F116: 0.5 | G116: 9.5 | H116: 0.8285111706 | I116: =IF(G116>$C$6,0,SUM(H116:$H$362)*$C$7) -> 95004.82407 | J116: 114480.2605 | K116: =IF(G116>$C$6,0,[1]!add($C$3,1,TRUNC(G116-0.0001,0),IF($C$5=$AS$4,Basi!$C$4,Basi!$H$4),0)*(1+$C$14)^($C$20/2)*$C$20) ->  | M116: 0
E117: 10 | F117: 0.5833333333 | G117: 9.583333333 | H117: 0.8271450732 | I117: =IF(G117>$C$6,0,SUM(H117:$H$362)*$C$7) -> 94176.3129 | J117: 113669.3339 | K117: =IF(G117>$C$6,0,[1]!add($C$3,1,TRUNC(G117-0.0001,0),IF($C$5=$AS$4,Basi!$C$4,Basi!$H$4),0)*(1+$C$14)^($C$20/2)*$C$20) ->  | M117: 0
E118: 10 | F118: 0.6666666667 | G118: 9.666666667 | H118: 0.8257812284 | I118: =IF(G118>$C$6,0,SUM(H118:$H$362)*$C$7) -> 93349.16783 | J118: 112857.0681 | K118: =IF(G118>$C$6,0,[1]!add($C$3,1,TRUNC(G118-0.0001,0),IF($C$5=$AS$4,Basi!$C$4,Basi!$H$4),0)*(1+$C$14)^($C$20/2)*$C$20) ->  | M118: 0
E119: 10 | F119: 0.75 | G119: 9.75 | H119: 0.8244196324 | I119: =IF(G119>$C$6,0,SUM(H119:$H$362)*$C$7) -> 92523.3866 | J119: 112043.4607 | K119: =IF(G119>$C$6,0,[1]!add($C$3,1,TRUNC(G119-0.0001,0),IF($C$5=$AS$4,Basi!$C$4,Basi!$H$4),0)*(1+$C$14)^($C$20/2)*$C$20) ->  | M119: 0
E120: 10 | F120: 0.8333333333 | G120: 9.833333333 | H120: 0.8230602814 | I120: =IF(G120>$C$6,0,SUM(H120:$H$362)*$C$7) -> 91698.96697 | J120: 111228.5096 | K120: =IF(G120>$C$6,0,[1]!add($C$3,1,TRUNC(G120-0.0001,0),IF($C$5=$AS$4,Basi!$C$4,Basi!$H$4),0)*(1+$C$14)^($C$20/2)*$C$20) ->  | M120: 0
E121: 10 | F121: 0.9166666667 | G121: 9.916666667 | H121: 0.8217031718 | I121: =IF(G121>$C$6,0,SUM(H121:$H$362)*$C$7) -> 90875.90668 | J121: 110412.2125 | K121: =IF(G121>$C$6,0,[1]!add($C$3,1,TRUNC(G121-0.0001,0),IF($C$5=$AS$4,Basi!$C$4,Basi!$H$4),0)*(1+$C$14)^($C$20/2)*$C$20) ->  | M121: 0
E122: 10 | F122: 1 | G122: 10 | H122: 0.8203482999 | I122: =IF(G122>$C$6,0,SUM(H122:$H$362)*$C$7) -> 90054.20351 | J122: 109594.5672 | K122: =IF(G122>$C$6,0,[1]!add($C$3,1,TRUNC(G122-0.0001,0),IF($C$5=$AS$4,Basi!$C$4,Basi!$H$4),0)*(1+$C$14)^($C$20/2)*$C$20) ->  | M122: 0
E123: 11 | F123: 0.08333333333 | G123: 10.08333333 | H123: 0.818995662 | I123: =IF(G123>$C$6,0,SUM(H123:$H$362)*$C$7) -> 89233.85521 | J123: 108775.5716 | K123: =IF(G123>$C$6,0,[1]!add($C$3,1,TRUNC(G123-0.0001,0),IF($C$5=$AS$4,Basi!$C$4,Basi!$H$4),0)*(1+$C$14)^($C$20/2)*$C$20) ->  | M123: 0 | O123: =IF($G123>$C$43,0,$C$40-$C$29-$C$30) ->  | P123: =IF(G123>$C$43,0,$C$55*$C$33+$C$53*$C$34) ->  | Q123: =O123/(1+$C$59)^($E123-1) ->  | R123: =P123/(1+$C$59)^($E123-1) -> 
E124: 11 | F124: 0.1666666667 | G124: 10.16666667 | H124: 0.8176452543 | I124: =IF(G124>$C$6,0,SUM(H124:$H$362)*$C$7) -> 88414.85955 | J124: 107955.2233 | K124: =IF(G124>$C$6,0,[1]!add($C$3,1,TRUNC(G124-0.0001,0),IF($C$5=$AS$4,Basi!$C$4,Basi!$H$4),0)*(1+$C$14)^($C$20/2)*$C$20) ->  | M124: 0
E125: 11 | F125: 0.25 | G125: 10.25 | H125: 0.8162970734 | I125: =IF(G125>$C$6,0,SUM(H125:$H$362)*$C$7) -> 87597.2143 | J125: 107133.5201 | K125: =IF(G125>$C$6,0,[1]!add($C$3,1,TRUNC(G125-0.0001,0),IF($C$5=$AS$4,Basi!$C$4,Basi!$H$4),0)*(1+$C$14)^($C$20/2)*$C$20) ->  | M125: 0
E126: 11 | F126: 0.3333333333 | G126: 10.33333333 | H126: 0.8149511153 | I126: =IF(G126>$C$6,0,SUM(H126:$H$362)*$C$7) -> 86780.91722 | J126: 106310.4598 | K126: =IF(G126>$C$6,0,[1]!add($C$3,1,TRUNC(G126-0.0001,0),IF($C$5=$AS$4,Basi!$C$4,Basi!$H$4),0)*(1+$C$14)^($C$20/2)*$C$20) ->  | M126: 0
E127: 11 | F127: 0.4166666667 | G127: 10.41666667 | H127: 0.8136073766 | I127: =IF(G127>$C$6,0,SUM(H127:$H$362)*$C$7) -> 85965.96611 | J127: 105486.0402 | K127: =IF(G127>$C$6,0,[1]!add($C$3,1,TRUNC(G127-0.0001,0),IF($C$5=$AS$4,Basi!$C$4,Basi!$H$4),0)*(1+$C$14)^($C$20/2)*$C$20) ->  | M127: 0
E128: 11 | F128: 0.5 | G128: 10.5 | H128: 0.8122658535 | I128: =IF(G128>$C$6,0,SUM(H128:$H$362)*$C$7) -> 85152.35873 | J128: 104660.259 | K128: =IF(G128>$C$6,0,[1]!add($C$3,1,TRUNC(G128-0.0001,0),IF($C$5=$AS$4,Basi!$C$4,Basi!$H$4),0)*(1+$C$14)^($C$20/2)*$C$20) ->  | M128: 0
E129: 11 | F129: 0.5833333333 | G129: 10.58333333 | H129: 0.8109265424 | I129: =IF(G129>$C$6,0,SUM(H129:$H$362)*$C$7) -> 84340.09288 | J129: 103833.1139 | K129: =IF(G129>$C$6,0,[1]!add($C$3,1,TRUNC(G129-0.0001,0),IF($C$5=$AS$4,Basi!$C$4,Basi!$H$4),0)*(1+$C$14)^($C$20/2)*$C$20) ->  | M129: 0
E130: 11 | F130: 0.6666666667 | G130: 10.66666667 | H130: 0.8095894396 | I130: =IF(G130>$C$6,0,SUM(H130:$H$362)*$C$7) -> 83529.16633 | J130: 103004.6027 | K130: =IF(G130>$C$6,0,[1]!add($C$3,1,TRUNC(G130-0.0001,0),IF($C$5=$AS$4,Basi!$C$4,Basi!$H$4),0)*(1+$C$14)^($C$20/2)*$C$20) ->  | M130: 0
E131: 11 | F131: 0.75 | G131: 10.75 | H131: =IF(G131>$C$6,0,$C$21^G131) -> 0.8082545415 | I131: =IF(G131>$C$6,0,SUM(H131:$H$362)*$C$7) -> 82719.5769 | J131: 102174.7232 | K131: =IF(G131>$C$6,0,[1]!add($C$3,1,TRUNC(G131-0.0001,0),IF($C$5=$AS$4,Basi!$C$4,Basi!$H$4),0)*(1+$C$14)^($C$20/2)*$C$20) ->  | L131: =K131*I131 ->  | M131: 0
E132: 11 | F132: 0.8333333333 | G132: =E132+F132-1 -> 10.83333333 | H132: 0.8069218445 | I132: =IF(G132>$C$6,0,SUM(H132:$H$362)*$C$7) -> 81911.32235 | J132: 101343.4731 | K132: =IF(G132>$C$6,0,[1]!add($C$3,1,TRUNC(G132-0.0001,0),IF($C$5=$AS$4,Basi!$C$4,Basi!$H$4),0)*(1+$C$14)^($C$20/2)*$C$20) ->  | M132: =I132*$C$25*$C$20 -> 0
E133: 11 | F133: 0.9166666667 | G133: 10.91666667 | H133: 0.8055913449 | I133: =IF(G133>$C$6,0,SUM(H133:$H$362)*$C$7) -> 81104.40051 | J133: =IF(G133>$C$6,0,I133/H132) -> 100510.85 | K133: =IF(G133>$C$6,0,[1]!add($C$3,1,TRUNC(G133-0.0001,0),IF($C$5=$AS$4,Basi!$C$4,Basi!$H$4),0)*(1+$C$14)^($C$20/2)*$C$20) ->  | M133: 0
E134: 11 | F134: 1 | G134: 11 | H134: 0.8042630391 | I134: =IF(G134>$C$6,0,SUM(H134:$H$362)*$C$7) -> 80298.80916 | J134: 99676.85188 | K134: =IF(G134>$C$6,0,[1]!add($C$3,1,TRUNC(G134-0.0001,0),IF($C$5=$AS$4,Basi!$C$4,Basi!$H$4),0)*(1+$C$14)^($C$20/2)*$C$20) ->  | M134: 0
E135: 12 | F135: 0.08333333333 | G135: 11.08333333 | H135: 0.8029369235 | I135: =IF(G135>$C$6,0,SUM(H135:$H$362)*$C$7) -> 79494.54613 | J135: 98841.47631 | K135: =IF(G135>$C$6,0,[1]!add($C$3,1,TRUNC(G135-0.0001,0),IF($C$5=$AS$4,Basi!$C$4,Basi!$H$4),0)*(1+$C$14)^($C$20/2)*$C$20) ->  | M135: 0 | O135: =IF($G135>$C$43,0,$C$40-$C$29-$C$30) ->  | P135: =IF(G135>$C$43,0,$C$55*$C$33+$C$53*$C$34) ->  | Q135: =O135/(1+$C$59)^($E135-1) ->  | R135: =P135/(1+$C$59)^($E135-1) -> 
E136: 12 | F136: 0.1666666667 | G136: 11.16666667 | H136: 0.8016129945 | I136: =IF(G136>$C$6,0,SUM(H136:$H$362)*$C$7) -> 78691.6092 | J136: 98004.72104 | K136: =IF(G136>$C$6,0,[1]!add($C$3,1,TRUNC(G136-0.0001,0),IF($C$5=$AS$4,Basi!$C$4,Basi!$H$4),0)*(1+$C$14)^($C$20/2)*$C$20) ->  | M136: 0
E137: 12 | F137: 0.25 | G137: 11.25 | H137: 0.8002912484 | I137: =IF(G137>$C$6,0,SUM(H137:$H$362)*$C$7) -> 77889.99621 | J137: 97166.58381 | K137: =IF(G137>$C$6,0,[1]!add($C$3,1,TRUNC(G137-0.0001,0),IF($C$5=$AS$4,Basi!$C$4,Basi!$H$4),0)*(1+$C$14)^($C$20/2)*$C$20) ->  | M137: 0
E138: 12 | F138: 0.3333333333 | G138: 11.33333333 | H138: 0.7989716817 | I138: =IF(G138>$C$6,0,SUM(H138:$H$362)*$C$7) -> 77089.70496 | J138: 96327.06232 | K138: =IF(G138>$C$6,0,[1]!add($C$3,1,TRUNC(G138-0.0001,0),IF($C$5=$AS$4,Basi!$C$4,Basi!$H$4),0)*(1+$C$14)^($C$20/2)*$C$20) ->  | M138: 0
E139: 12 | F139: 0.4166666667 | G139: 11.41666667 | H139: 0.7976542908 | I139: =IF(G139>$C$6,0,SUM(H139:$H$362)*$C$7) -> 76290.73328 | J139: 95486.1543 | K139: =IF(G139>$C$6,0,[1]!add($C$3,1,TRUNC(G139-0.0001,0),IF($C$5=$AS$4,Basi!$C$4,Basi!$H$4),0)*(1+$C$14)^($C$20/2)*$C$20) ->  | M139: 0
E140: 12 | F140: 0.5 | G140: 11.5 | H140: 0.7963390721 | I140: =IF(G140>$C$6,0,SUM(H140:$H$362)*$C$7) -> 75493.07899 | J140: 94643.85744 | K140: =IF(G140>$C$6,0,[1]!add($C$3,1,TRUNC(G140-0.0001,0),IF($C$5=$AS$4,Basi!$C$4,Basi!$H$4),0)*(1+$C$14)^($C$20/2)*$C$20) ->  | M140: 0
E141: 12 | F141: 0.5833333333 | G141: 11.58333333 | H141: 0.795026022 | I141: =IF(G141>$C$6,0,SUM(H141:$H$362)*$C$7) -> 74696.73991 | J141: 93800.16947 | K141: =IF(G141>$C$6,0,[1]!add($C$3,1,TRUNC(G141-0.0001,0),IF($C$5=$AS$4,Basi!$C$4,Basi!$H$4),0)*(1+$C$14)^($C$20/2)*$C$20) ->  | M141: 0
E142: 12 | F142: 0.6666666667 | G142: 11.66666667 | H142: 0.7937151369 | I142: =IF(G142>$C$6,0,SUM(H142:$H$362)*$C$7) -> 73901.71389 | J142: 92955.08807 | K142: =IF(G142>$C$6,0,[1]!add($C$3,1,TRUNC(G142-0.0001,0),IF($C$5=$AS$4,Basi!$C$4,Basi!$H$4),0)*(1+$C$14)^($C$20/2)*$C$20) ->  | M142: 0
E143: 12 | F143: 0.75 | G143: 11.75 | H143: 0.7924064133 | I143: =IF(G143>$C$6,0,SUM(H143:$H$362)*$C$7) -> 73107.99876 | J143: 92108.61096 | K143: =IF(G143>$C$6,0,[1]!add($C$3,1,TRUNC(G143-0.0001,0),IF($C$5=$AS$4,Basi!$C$4,Basi!$H$4),0)*(1+$C$14)^($C$20/2)*$C$20) ->  | M143: 0
E144: 12 | F144: 0.8333333333 | G144: 11.83333333 | H144: 0.7910998475 | I144: =IF(G144>$C$6,0,SUM(H144:$H$362)*$C$7) -> 72315.59234 | J144: 91260.73582 | K144: =IF(G144>$C$6,0,[1]!add($C$3,1,TRUNC(G144-0.0001,0),IF($C$5=$AS$4,Basi!$C$4,Basi!$H$4),0)*(1+$C$14)^($C$20/2)*$C$20) ->  | M144: 0
E145: 12 | F145: 0.9166666667 | G145: 11.91666667 | H145: 0.7897954362 | I145: =IF(G145>$C$6,0,SUM(H145:$H$362)*$C$7) -> 71524.49249 | J145: 90411.46034 | K145: =IF(G145>$C$6,0,[1]!add($C$3,1,TRUNC(G145-0.0001,0),IF($C$5=$AS$4,Basi!$C$4,Basi!$H$4),0)*(1+$C$14)^($C$20/2)*$C$20) ->  | M145: 0
E146: 12 | F146: 1 | G146: 12 | H146: 0.7884931756 | I146: =IF(G146>$C$6,0,SUM(H146:$H$362)*$C$7) -> 70734.69706 | J146: 89560.78222 | K146: =IF(G146>$C$6,0,[1]!add($C$3,1,TRUNC(G146-0.0001,0),IF($C$5=$AS$4,Basi!$C$4,Basi!$H$4),0)*(1+$C$14)^($C$20/2)*$C$20) ->  | M146: 0
E147: 13 | F147: 0.08333333333 | G147: 12.08333333 | H147: 0.7871930622 | I147: =IF(G147>$C$6,0,SUM(H147:$H$362)*$C$7) -> 69946.20388 | J147: 88708.69914 | K147: =IF(G147>$C$6,0,[1]!add($C$3,1,TRUNC(G147-0.0001,0),IF($C$5=$AS$4,Basi!$C$4,Basi!$H$4),0)*(1+$C$14)^($C$20/2)*$C$20) ->  | M147: 0 | O147: =IF($G147>$C$43,0,$C$40-$C$29-$C$30) ->  | P147: =IF(G147>$C$43,0,$C$55*$C$33+$C$53*$C$34) ->  | Q147: =O147/(1+$C$59)^($E147-1) ->  | R147: =P147/(1+$C$59)^($E147-1) -> 
E148: 13 | F148: 0.1666666667 | G148: 12.16666667 | H148: 0.7858950926 | I148: =IF(G148>$C$6,0,SUM(H148:$H$362)*$C$7) -> 69159.01082 | J148: 87855.20876 | K148: =IF(G148>$C$6,0,[1]!add($C$3,1,TRUNC(G148-0.0001,0),IF($C$5=$AS$4,Basi!$C$4,Basi!$H$4),0)*(1+$C$14)^($C$20/2)*$C$20) ->  | M148: 0
E149: 13 | F149: 0.25 | G149: 12.25 | H149: 0.7845992631 | I149: =IF(G149>$C$6,0,SUM(H149:$H$362)*$C$7) -> 68373.11573 | J149: 87000.30878 | K149: =IF(G149>$C$6,0,[1]!add($C$3,1,TRUNC(G149-0.0001,0),IF($C$5=$AS$4,Basi!$C$4,Basi!$H$4),0)*(1+$C$14)^($C$20/2)*$C$20) ->  | M149: 0
E150: 13 | F150: 0.3333333333 | G150: 12.33333333 | H150: 0.7833055703 | I150: =IF(G150>$C$6,0,SUM(H150:$H$362)*$C$7) -> 67588.51647 | J150: 86143.99687 | K150: =IF(G150>$C$6,0,[1]!add($C$3,1,TRUNC(G150-0.0001,0),IF($C$5=$AS$4,Basi!$C$4,Basi!$H$4),0)*(1+$C$14)^($C$20/2)*$C$20) ->  | M150: 0
E151: 13 | F151: 0.4166666667 | G151: 12.41666667 | H151: 0.7820140106 | I151: =IF(G151>$C$6,0,SUM(H151:$H$362)*$C$7) -> 66805.21089 | J151: 85286.27068 | K151: =IF(G151>$C$6,0,[1]!add($C$3,1,TRUNC(G151-0.0001,0),IF($C$5=$AS$4,Basi!$C$4,Basi!$H$4),0)*(1+$C$14)^($C$20/2)*$C$20) ->  | M151: 0
E152: 13 | F152: 0.5 | G152: 12.5 | H152: 0.7807245805 | I152: =IF(G152>$C$6,0,SUM(H152:$H$362)*$C$7) -> 66023.19688 | J152: 84427.12789 | K152: =IF(G152>$C$6,0,[1]!add($C$3,1,TRUNC(G152-0.0001,0),IF($C$5=$AS$4,Basi!$C$4,Basi!$H$4),0)*(1+$C$14)^($C$20/2)*$C$20) ->  | M152: 0
E153: 13 | F153: 0.5833333333 | G153: 12.58333333 | H153: 0.7794372764 | I153: =IF(G153>$C$6,0,SUM(H153:$H$362)*$C$7) -> 65242.4723 | J153: 83566.56616 | K153: =IF(G153>$C$6,0,[1]!add($C$3,1,TRUNC(G153-0.0001,0),IF($C$5=$AS$4,Basi!$C$4,Basi!$H$4),0)*(1+$C$14)^($C$20/2)*$C$20) ->  | M153: 0
E154: 13 | F154: 0.6666666667 | G154: 12.66666667 | H154: 0.778152095 | I154: =IF(G154>$C$6,0,SUM(H154:$H$362)*$C$7) -> 64463.03503 | J154: 82704.58314 | K154: =IF(G154>$C$6,0,[1]!add($C$3,1,TRUNC(G154-0.0001,0),IF($C$5=$AS$4,Basi!$C$4,Basi!$H$4),0)*(1+$C$14)^($C$20/2)*$C$20) ->  | M154: 0
E155: 13 | F155: 0.75 | G155: 12.75 | H155: 0.7768690326 | I155: =IF(G155>$C$6,0,SUM(H155:$H$362)*$C$7) -> 63684.88293 | J155: 81841.17648 | K155: =IF(G155>$C$6,0,[1]!add($C$3,1,TRUNC(G155-0.0001,0),IF($C$5=$AS$4,Basi!$C$4,Basi!$H$4),0)*(1+$C$14)^($C$20/2)*$C$20) ->  | M155: 0
E156: 13 | F156: 0.8333333333 | G156: 12.83333333 | H156: 0.7755880858 | I156: =IF(G156>$C$6,0,SUM(H156:$H$362)*$C$7) -> 62908.0139 | J156: 80976.34384 | K156: =IF(G156>$C$6,0,[1]!add($C$3,1,TRUNC(G156-0.0001,0),IF($C$5=$AS$4,Basi!$C$4,Basi!$H$4),0)*(1+$C$14)^($C$20/2)*$C$20) ->  | M156: 0
E157: 13 | F157: 0.9166666667 | G157: 12.91666667 | H157: 0.7743092511 | I157: =IF(G157>$C$6,0,SUM(H157:$H$362)*$C$7) -> 62132.42581 | J157: 80110.08285 | K157: =IF(G157>$C$6,0,[1]!add($C$3,1,TRUNC(G157-0.0001,0),IF($C$5=$AS$4,Basi!$C$4,Basi!$H$4),0)*(1+$C$14)^($C$20/2)*$C$20) ->  | M157: 0
E158: 13 | F158: 1 | G158: 13 | H158: 0.7730325251 | I158: =IF(G158>$C$6,0,SUM(H158:$H$362)*$C$7) -> 61358.11656 | J158: 79242.39117 | K158: =IF(G158>$C$6,0,[1]!add($C$3,1,TRUNC(G158-0.0001,0),IF($C$5=$AS$4,Basi!$C$4,Basi!$H$4),0)*(1+$C$14)^($C$20/2)*$C$20) ->  | M158: 0
E159: 14 | F159: 0.08333333333 | G159: 13.08333333 | H159: 0.7717579042 | I159: =IF(G159>$C$6,0,SUM(H159:$H$362)*$C$7) -> 60585.08404 | J159: 78373.26642 | K159: =IF(G159>$C$6,0,[1]!add($C$3,1,TRUNC(G159-0.0001,0),IF($C$5=$AS$4,Basi!$C$4,Basi!$H$4),0)*(1+$C$14)^($C$20/2)*$C$20) ->  | M159: 0 | O159: =IF($G159>$C$43,0,$C$40-$C$29-$C$30) ->  | P159: =IF(G159>$C$43,0,$C$55*$C$33+$C$53*$C$34) ->  | Q159: =O159/(1+$C$59)^($E159-1) ->  | R159: =P159/(1+$C$59)^($E159-1) -> 
E160: 14 | F160: 0.1666666667 | G160: 13.16666667 | H160: 0.7704853849 | I160: =IF(G160>$C$6,0,SUM(H160:$H$362)*$C$7) -> 59813.32613 | J160: 77502.70624 | K160: =IF(G160>$C$6,0,[1]!add($C$3,1,TRUNC(G160-0.0001,0),IF($C$5=$AS$4,Basi!$C$4,Basi!$H$4),0)*(1+$C$14)^($C$20/2)*$C$20) ->  | M160: 0
E161: 14 | F161: 0.25 | G161: 13.25 | H161: 0.7692149638 | I161: =IF(G161>$C$6,0,SUM(H161:$H$362)*$C$7) -> 59042.84075 | J161: 76630.70826 | K161: =IF(G161>$C$6,0,[1]!add($C$3,1,TRUNC(G161-0.0001,0),IF($C$5=$AS$4,Basi!$C$4,Basi!$H$4),0)*(1+$C$14)^($C$20/2)*$C$20) ->  | M161: 0
E162: 14 | F162: 0.3333333333 | G162: 13.33333333 | H162: 0.7679466375 | I162: =IF(G162>$C$6,0,SUM(H162:$H$362)*$C$7) -> 58273.62578 | J162: 75757.2701 | K162: =IF(G162>$C$6,0,[1]!add($C$3,1,TRUNC(G162-0.0001,0),IF($C$5=$AS$4,Basi!$C$4,Basi!$H$4),0)*(1+$C$14)^($C$20/2)*$C$20) ->  | M162: 0
E163: 14 | F163: 0.4166666667 | G163: 13.41666667 | H163: 0.7666804025 | I163: =IF(G163>$C$6,0,SUM(H163:$H$362)*$C$7) -> 57505.67915 | J163: 74882.3894 | K163: =IF(G163>$C$6,0,[1]!add($C$3,1,TRUNC(G163-0.0001,0),IF($C$5=$AS$4,Basi!$C$4,Basi!$H$4),0)*(1+$C$14)^($C$20/2)*$C$20) ->  | M163: 0
E164: 14 | F164: 0.5 | G164: 13.5 | H164: 0.7654162553 | I164: =IF(G164>$C$6,0,SUM(H164:$H$362)*$C$7) -> 56738.99874 | J164: 74006.06375 | K164: =IF(G164>$C$6,0,[1]!add($C$3,1,TRUNC(G164-0.0001,0),IF($C$5=$AS$4,Basi!$C$4,Basi!$H$4),0)*(1+$C$14)^($C$20/2)*$C$20) ->  | M164: 0
E165: 14 | F165: 0.5833333333 | G165: 13.58333333 | H165: 0.7641541926 | I165: =IF(G165>$C$6,0,SUM(H165:$H$362)*$C$7) -> 55973.58249 | J165: 73128.29078 | K165: =IF(G165>$C$6,0,[1]!add($C$3,1,TRUNC(G165-0.0001,0),IF($C$5=$AS$4,Basi!$C$4,Basi!$H$4),0)*(1+$C$14)^($C$20/2)*$C$20) ->  | M165: 0
E166: 14 | F166: 0.6666666667 | G166: 13.66666667 | H166: 0.7628942108 | I166: =IF(G166>$C$6,0,SUM(H166:$H$362)*$C$7) -> 55209.4283 | J166: 72249.0681 | K166: =IF(G166>$C$6,0,[1]!add($C$3,1,TRUNC(G166-0.0001,0),IF($C$5=$AS$4,Basi!$C$4,Basi!$H$4),0)*(1+$C$14)^($C$20/2)*$C$20) ->  | M166: 0
E167: 14 | F167: 0.75 | G167: 13.75 | H167: 0.7616363065 | I167: =IF(G167>$C$6,0,SUM(H167:$H$362)*$C$7) -> 54446.53409 | J167: 71368.39331 | K167: =IF(G167>$C$6,0,[1]!add($C$3,1,TRUNC(G167-0.0001,0),IF($C$5=$AS$4,Basi!$C$4,Basi!$H$4),0)*(1+$C$14)^($C$20/2)*$C$20) ->  | M167: 0
E168: 14 | F168: 0.8333333333 | G168: 13.83333333 | H168: 0.7603804763 | I168: =IF(G168>$C$6,0,SUM(H168:$H$362)*$C$7) -> 53684.89778 | J168: 70486.26401 | K168: =IF(G168>$C$6,0,[1]!add($C$3,1,TRUNC(G168-0.0001,0),IF($C$5=$AS$4,Basi!$C$4,Basi!$H$4),0)*(1+$C$14)^($C$20/2)*$C$20) ->  | M168: 0
E169: 14 | F169: 0.9166666667 | G169: 13.91666667 | H169: 0.7591267168 | I169: =IF(G169>$C$6,0,SUM(H169:$H$362)*$C$7) -> 52924.5173 | J169: 69602.67781 | K169: =IF(G169>$C$6,0,[1]!add($C$3,1,TRUNC(G169-0.0001,0),IF($C$5=$AS$4,Basi!$C$4,Basi!$H$4),0)*(1+$C$14)^($C$20/2)*$C$20) ->  | M169: 0
E170: 14 | F170: 1 | G170: 14 | H170: 0.7578750246 | I170: =IF(G170>$C$6,0,SUM(H170:$H$362)*$C$7) -> 52165.39059 | J170: 68717.63229 | K170: =IF(G170>$C$6,0,[1]!add($C$3,1,TRUNC(G170-0.0001,0),IF($C$5=$AS$4,Basi!$C$4,Basi!$H$4),0)*(1+$C$14)^($C$20/2)*$C$20) ->  | M170: 0
E171: 15 | F171: 0.08333333333 | G171: 14.08333333 | H171: 0.7566253962 | I171: =IF(G171>$C$6,0,SUM(H171:$H$362)*$C$7) -> 51407.51556 | J171: 67831.12505 | K171: =IF(G171>$C$6,0,[1]!add($C$3,1,TRUNC(G171-0.0001,0),IF($C$5=$AS$4,Basi!$C$4,Basi!$H$4),0)*(1+$C$14)^($C$20/2)*$C$20) ->  | M171: 0 | O171: =IF($G171>$C$43,0,$C$40-$C$29-$C$30) ->  | P171: =IF(G171>$C$43,0,$C$55*$C$33+$C$53*$C$34) ->  | Q171: =O171/(1+$C$59)^($E171-1) ->  | R171: =P171/(1+$C$59)^($E171-1) -> 
E172: 15 | F172: 0.1666666667 | G172: 14.16666667 | H172: 0.7553778283 | I172: =IF(G172>$C$6,0,SUM(H172:$H$362)*$C$7) -> 50650.89017 | J172: 66943.15366 | K172: =IF(G172>$C$6,0,[1]!add($C$3,1,TRUNC(G172-0.0001,0),IF($C$5=$AS$4,Basi!$C$4,Basi!$H$4),0)*(1+$C$14)^($C$20/2)*$C$20) ->  | M172: 0
E173: 15 | F173: 0.25 | G173: 14.25 | H173: 0.7541323175 | I173: =IF(G173>$C$6,0,SUM(H173:$H$362)*$C$7) -> 49895.51234 | J173: 66053.71572 | K173: =IF(G173>$C$6,0,[1]!add($C$3,1,TRUNC(G173-0.0001,0),IF($C$5=$AS$4,Basi!$C$4,Basi!$H$4),0)*(1+$C$14)^($C$20/2)*$C$20) ->  | M173: 0
E174: 15 | F174: 0.3333333333 | G174: 14.33333333 | H174: 0.7528888603 | I174: =IF(G174>$C$6,0,SUM(H174:$H$362)*$C$7) -> 49141.38002 | J174: 65162.80881 | K174: =IF(G174>$C$6,0,[1]!add($C$3,1,TRUNC(G174-0.0001,0),IF($C$5=$AS$4,Basi!$C$4,Basi!$H$4),0)*(1+$C$14)^($C$20/2)*$C$20) ->  | M174: 0
E175: 15 | F175: 0.4166666667 | G175: 14.41666667 | H175: 0.7516474535 | I175: =IF(G175>$C$6,0,SUM(H175:$H$362)*$C$7) -> 48388.49116 | J175: 64270.43048 | K175: =IF(G175>$C$6,0,[1]!add($C$3,1,TRUNC(G175-0.0001,0),IF($C$5=$AS$4,Basi!$C$4,Basi!$H$4),0)*(1+$C$14)^($C$20/2)*$C$20) ->  | M175: 0
E176: 15 | F176: 0.5 | G176: 14.5 | H176: 0.7504080935 | I176: =IF(G176>$C$6,0,SUM(H176:$H$362)*$C$7) -> 47636.84371 | J176: 63376.57832 | K176: =IF(G176>$C$6,0,[1]!add($C$3,1,TRUNC(G176-0.0001,0),IF($C$5=$AS$4,Basi!$C$4,Basi!$H$4),0)*(1+$C$14)^($C$20/2)*$C$20) ->  | M176: 0
E177: 15 | F177: 0.5833333333 | G177: 14.58333333 | H177: 0.749170777 | I177: =IF(G177>$C$6,0,SUM(H177:$H$362)*$C$7) -> 46886.43561 | J177: 62481.2499 | K177: =IF(G177>$C$6,0,[1]!add($C$3,1,TRUNC(G177-0.0001,0),IF($C$5=$AS$4,Basi!$C$4,Basi!$H$4),0)*(1+$C$14)^($C$20/2)*$C$20) ->  | M177: 0
E178: 15 | F178: 0.6666666667 | G178: 14.66666667 | H178: 0.7479355007 | I178: =IF(G178>$C$6,0,SUM(H178:$H$362)*$C$7) -> 46137.26484 | J178: 61584.44276 | K178: =IF(G178>$C$6,0,[1]!add($C$3,1,TRUNC(G178-0.0001,0),IF($C$5=$AS$4,Basi!$C$4,Basi!$H$4),0)*(1+$C$14)^($C$20/2)*$C$20) ->  | M178: 0
E179: 15 | F179: 0.75 | G179: 14.75 | H179: 0.7467022613 | I179: =IF(G179>$C$6,0,SUM(H179:$H$362)*$C$7) -> 45389.32933 | J179: 60686.15447 | K179: =IF(G179>$C$6,0,[1]!add($C$3,1,TRUNC(G179-0.0001,0),IF($C$5=$AS$4,Basi!$C$4,Basi!$H$4),0)*(1+$C$14)^($C$20/2)*$C$20) ->  | M179: 0
E180: 15 | F180: 0.8333333333 | G180: 14.83333333 | H180: 0.7454710552 | I180: =IF(G180>$C$6,0,SUM(H180:$H$362)*$C$7) -> 44642.62707 | J180: 59786.38259 | K180: =IF(G180>$C$6,0,[1]!add($C$3,1,TRUNC(G180-0.0001,0),IF($C$5=$AS$4,Basi!$C$4,Basi!$H$4),0)*(1+$C$14)^($C$20/2)*$C$20) ->  | M180: 0
E181: 15 | F181: 0.9166666667 | G181: 14.91666667 | H181: 0.7442418792 | I181: =IF(G181>$C$6,0,SUM(H181:$H$362)*$C$7) -> 43897.15602 | J181: 58885.12466 | K181: =IF(G181>$C$6,0,[1]!add($C$3,1,TRUNC(G181-0.0001,0),IF($C$5=$AS$4,Basi!$C$4,Basi!$H$4),0)*(1+$C$14)^($C$20/2)*$C$20) ->  | M181: 0
E182: 15 | F182: 1 | G182: 15 | H182: 0.74301473 | I182: =IF(G182>$C$6,0,SUM(H182:$H$362)*$C$7) -> 43152.91414 | J182: 57982.37823 | K182: =IF(G182>$C$6,0,[1]!add($C$3,1,TRUNC(G182-0.0001,0),IF($C$5=$AS$4,Basi!$C$4,Basi!$H$4),0)*(1+$C$14)^($C$20/2)*$C$20) ->  | M182: 0
E183: 16 | F183: 0.08333333333 | G183: 15.08333333 | H183: 0.7417896041 | I183: =IF(G183>$C$6,0,SUM(H183:$H$362)*$C$7) -> 42409.89941 | J183: 57078.14085 | K183: =IF(G183>$C$6,0,[1]!add($C$3,1,TRUNC(G183-0.0001,0),IF($C$5=$AS$4,Basi!$C$4,Basi!$H$4),0)*(1+$C$14)^($C$20/2)*$C$20) ->  | M183: 0 | O183: =IF($G183>$C$43,0,$C$40-$C$29-$C$30) -> 0 | P183: =IF(G183>$C$43,0,$C$55*$C$33+$C$53*$C$34) -> 0 | Q183: =O183/(1+$C$59)^($E183-1) -> 0 | R183: =P183/(1+$C$59)^($E183-1) -> 0
E184: 16 | F184: 0.1666666667 | G184: 15.16666667 | H184: 0.7405664984 | I184: =IF(G184>$C$6,0,SUM(H184:$H$362)*$C$7) -> 41668.1098 | J184: 56172.41004 | K184: =IF(G184>$C$6,0,[1]!add($C$3,1,TRUNC(G184-0.0001,0),IF($C$5=$AS$4,Basi!$C$4,Basi!$H$4),0)*(1+$C$14)^($C$20/2)*$C$20) ->  | M184: 0
E185: 16 | F185: 0.25 | G185: 15.25 | H185: 0.7393454093 | I185: =IF(G185>$C$6,0,SUM(H185:$H$362)*$C$7) -> 40927.54331 | J185: 55265.18334 | K185: =IF(G185>$C$6,0,[1]!add($C$3,1,TRUNC(G185-0.0001,0),IF($C$5=$AS$4,Basi!$C$4,Basi!$H$4),0)*(1+$C$14)^($C$20/2)*$C$20) ->  | M185: 0
E186: 16 | F186: 0.3333333333 | G186: 15.33333333 | H186: 0.7381263337 | I186: =IF(G186>$C$6,0,SUM(H186:$H$362)*$C$7) -> 40188.1979 | J186: 54356.45828 | K186: =IF(G186>$C$6,0,[1]!add($C$3,1,TRUNC(G186-0.0001,0),IF($C$5=$AS$4,Basi!$C$4,Basi!$H$4),0)*(1+$C$14)^($C$20/2)*$C$20) ->  | M186: 0
E187: 16 | F187: 0.4166666667 | G187: 15.41666667 | H187: 0.7369092681 | I187: =IF(G187>$C$6,0,SUM(H187:$H$362)*$C$7) -> 39450.07156 | J187: 53446.23239 | K187: =IF(G187>$C$6,0,[1]!add($C$3,1,TRUNC(G187-0.0001,0),IF($C$5=$AS$4,Basi!$C$4,Basi!$H$4),0)*(1+$C$14)^($C$20/2)*$C$20) ->  | M187: 0
E188: 16 | F188: 0.5 | G188: 15.5 | H188: 0.7356942093 | I188: =IF(G188>$C$6,0,SUM(H188:$H$362)*$C$7) -> 38713.1623 | J188: 52534.50319 | K188: =IF(G188>$C$6,0,[1]!add($C$3,1,TRUNC(G188-0.0001,0),IF($C$5=$AS$4,Basi!$C$4,Basi!$H$4),0)*(1+$C$14)^($C$20/2)*$C$20) ->  | M188: 0
E189: 16 | F189: 0.5833333333 | G189: 15.58333333 | H189: 0.734481154 | I189: =IF(G189>$C$6,0,SUM(H189:$H$362)*$C$7) -> 37977.46809 | J189: 51621.26819 | K189: =IF(G189>$C$6,0,[1]!add($C$3,1,TRUNC(G189-0.0001,0),IF($C$5=$AS$4,Basi!$C$4,Basi!$H$4),0)*(1+$C$14)^($C$20/2)*$C$20) ->  | M189: 0
E190: 16 | F190: 0.6666666667 | G190: 15.66666667 | H190: 0.7332700988 | I190: =IF(G190>$C$6,0,SUM(H190:$H$362)*$C$7) -> 37242.98693 | J190: 50706.52491 | K190: =IF(G190>$C$6,0,[1]!add($C$3,1,TRUNC(G190-0.0001,0),IF($C$5=$AS$4,Basi!$C$4,Basi!$H$4),0)*(1+$C$14)^($C$20/2)*$C$20) ->  | M190: 0
E191: 16 | F191: 0.75 | G191: 15.75 | H191: 0.7320610404 | I191: =IF(G191>$C$6,0,SUM(H191:$H$362)*$C$7) -> 36509.71683 | J191: 49790.27086 | K191: =IF(G191>$C$6,0,[1]!add($C$3,1,TRUNC(G191-0.0001,0),IF($C$5=$AS$4,Basi!$C$4,Basi!$H$4),0)*(1+$C$14)^($C$20/2)*$C$20) ->  | M191: 0
E192: 16 | F192: 0.8333333333 | G192: 15.83333333 | H192: 0.7308539757 | I192: =IF(G192>$C$6,0,SUM(H192:$H$362)*$C$7) -> 35777.65579 | J192: 48872.50354 | K192: =IF(G192>$C$6,0,[1]!add($C$3,1,TRUNC(G192-0.0001,0),IF($C$5=$AS$4,Basi!$C$4,Basi!$H$4),0)*(1+$C$14)^($C$20/2)*$C$20) ->  | M192: 0
E193: 16 | F193: 0.9166666667 | G193: 15.91666667 | H193: 0.7296489012 | I193: =IF(G193>$C$6,0,SUM(H193:$H$362)*$C$7) -> 35046.80182 | J193: 47953.22046 | K193: =IF(G193>$C$6,0,[1]!add($C$3,1,TRUNC(G193-0.0001,0),IF($C$5=$AS$4,Basi!$C$4,Basi!$H$4),0)*(1+$C$14)^($C$20/2)*$C$20) ->  | M193: 0
E194: 16 | F194: 1 | G194: 16 | H194: 0.7284458137 | I194: =IF(G194>$C$6,0,SUM(H194:$H$362)*$C$7) -> 34317.15292 | J194: 47032.4191 | K194: =IF(G194>$C$6,0,[1]!add($C$3,1,TRUNC(G194-0.0001,0),IF($C$5=$AS$4,Basi!$C$4,Basi!$H$4),0)*(1+$C$14)^($C$20/2)*$C$20) ->  | M194: 0
E195: 17 | F195: 0.08333333333 | G195: 16.08333333 | H195: =IF(G195>$C$6,0,$C$21^G195) -> 0.7272447099 | I195: =IF(G195>$C$6,0,SUM(H195:$H$362)*$C$7) -> 33588.7071 | J195: 46110.09696 | K195: =IF(G195>$C$6,0,[1]!add($C$3,1,TRUNC(G195-0.0001,0),IF($C$5=$AS$4,Basi!$C$4,Basi!$H$4),0)*(1+$C$14)^($C$20/2)*$C$20) ->  | L195: =K195*I195 ->  | M195: 0 | O195: =IF($G195>$C$43,0,$C$40-$C$29-$C$30) -> 0 | P195: =IF(G195>$C$43,0,$C$55*$C$33+$C$53*$C$34) -> 0 | Q195: =O195/(1+$C$59)^($E195-1) -> 0 | R195: =P195/(1+$C$59)^($E195-1) -> 0
E196: 17 | F196: 0.1666666667 | G196: =E196+F196-1 -> 16.16666667 | H196: 0.7260455866 | I196: =IF(G196>$C$6,0,SUM(H196:$H$362)*$C$7) -> 32861.46239 | J196: 45186.25154 | K196: =IF(G196>$C$6,0,[1]!add($C$3,1,TRUNC(G196-0.0001,0),IF($C$5=$AS$4,Basi!$C$4,Basi!$H$4),0)*(1+$C$14)^($C$20/2)*$C$20) ->  | M196: =I196*$C$25*$C$20 -> 0
E197: 17 | F197: 0.25 | G197: 16.25 | H197: 0.7248484405 | I197: =IF(G197>$C$6,0,SUM(H197:$H$362)*$C$7) -> 32135.41681 | J197: =IF(G197>$C$6,0,I197/H196) -> 44260.8803 | K197: =IF(G197>$C$6,0,[1]!add($C$3,1,TRUNC(G197-0.0001,0),IF($C$5=$AS$4,Basi!$C$4,Basi!$H$4),0)*(1+$C$14)^($C$20/2)*$C$20) ->  | M197: 0
E198: 17 | F198: 0.3333333333 | G198: 16.33333333 | H198: 0.7236532683 | I198: =IF(G198>$C$6,0,SUM(H198:$H$362)*$C$7) -> 31410.56837 | J198: 43333.98075 | K198: =IF(G198>$C$6,0,[1]!add($C$3,1,TRUNC(G198-0.0001,0),IF($C$5=$AS$4,Basi!$C$4,Basi!$H$4),0)*(1+$C$14)^($C$20/2)*$C$20) ->  | M198: 0
E199: 17 | F199: 0.4166666667 | G199: 16.41666667 | H199: 0.7224600668 | I199: =IF(G199>$C$6,0,SUM(H199:$H$362)*$C$7) -> 30686.9151 | J199: 42405.55034 | K199: =IF(G199>$C$6,0,[1]!add($C$3,1,TRUNC(G199-0.0001,0),IF($C$5=$AS$4,Basi!$C$4,Basi!$H$4),0)*(1+$C$14)^($C$20/2)*$C$20) ->  | M199: 0
E200: 17 | F200: 0.5 | G200: 16.5 | H200: 0.7212688326 | I200: =IF(G200>$C$6,0,SUM(H200:$H$362)*$C$7) -> 29964.45503 | J200: 41475.58655 | K200: =IF(G200>$C$6,0,[1]!add($C$3,1,TRUNC(G200-0.0001,0),IF($C$5=$AS$4,Basi!$C$4,Basi!$H$4),0)*(1+$C$14)^($C$20/2)*$C$20) ->  | M200: 0
E201: 17 | F201: 0.5833333333 | G201: 16.58333333 | H201: 0.7200795627 | I201: =IF(G201>$C$6,0,SUM(H201:$H$362)*$C$7) -> 29243.1862 | J201: 40544.08686 | K201: =IF(G201>$C$6,0,[1]!add($C$3,1,TRUNC(G201-0.0001,0),IF($C$5=$AS$4,Basi!$C$4,Basi!$H$4),0)*(1+$C$14)^($C$20/2)*$C$20) ->  | M201: 0
... 161 more rows

Sheet Calcolo 2 teste (hidden)
B2: Dati richiesti al contraente | E2: Tempo | H2: v | I2: Rate attualizzate | J2: capitale assicurato | K2: Calcolo tassi | L2: premi puri | M2: premi puri N | O2: t | P2: v(0,t) | Q2: p(A,B) | R2: v(0,t) | S2: p(A) | T2: p(B) | U2: p(A,B) | V2: q(A) | W2: q(B) | X2: q(A)q(B) | Y2: Kq(A)q(B) | Z2: 1+(k-1)q(A)q(B) | AA2: q(A)-q(A)q(B) | AB2: q(B)-q(A)q(B) | AC2: morte A | AD2: morte B | AE2: comorienza AB | AF2: Tassi | AG2: Base | AH2: base | AI2: =((SUMPRODUCT(AC4:AC33,R4:R33,U4:U33)+SUMPRODUCT(AD4:AD33,R4:R33,U4:U33)+SUMPRODUCT(AE4:AE33,R4:R33,U4:U33))/SUMPRODUCT(P3:P32,Q3:Q32)) -> 0.0005524172175 | AL2: Caricamento in T | AM2: Provvigione in T | AN2: Caricamento in 0 | AO2: Provvigione in 0
A3: 1° testa | B3: Età assicurato | C3: ='First Protection'!C35 -> 0 | E3: 1 | F3: 0.08333333333 | G3: =E3+F3-1 -> 0.08333333333 | H3: =IF(G3>$C$9,0,$C$27^G3) -> 0.9983511419 | I3: =IF(G3>$C$9,0,SUM(H3:$H$362)*$C$10) -> 198009.4268 | J3: =IF(G3>$C$9,0,I3) -> 198009.4268 | K3: =IF(G3>$C$9,0,VLOOKUP(E3-1,$AH$7:$AJ$36,3,FALSE)*(1+$C$18)^($C$26/2)*$C$26) -> 0.0004741865343 | L3: =K3*J3 -> 93.89340384 | M3: =I3*$C$31*$C$26 -> 0 | O3: 0 | P3: 1 | Q3: =IF(O4="","",S4*T4) -> 1 | AH3: comorienza | AI3: =(SUMPRODUCT(U4:U33,AE4:AE33,R4:R33))/SUMPRODUCT(Q3:Q32,P3:P32) -> 2.117481464e-06 | AL3: =IF($G3>$C$49,0,$C$45-$C$35-$C$36) -> 47.78 | AM3: =IF($C$57<40%,1,7/10)*$C$57*$C$39+$C$60*$C$61+$C$62*$C$40 -> 135.07008 | AN3: =AL3/(1+$C$63)^($E3-1) -> 47.78 | AO3: =AM3/(1+$C$63)^($E3-1) -> 135.07008 | BJ3: Sesso | BK3: Attitudine al fumo | BL3: Frazionamento | BO3: Complementare infortuni | BP3: Importo di rendita
B4: sesso | C4: M | E4: 1 | F4: 0.1666666667 | G4: =E4+F4-1 -> 0.1666666667 | H4: 0.9967050026 | I4: =IF(G4>$C$9,0,SUM(H4:$H$362)*$C$10) -> 197011.0756 | J4: =IF(G4>$C$9,0,I4/H3) -> 197336.4555 | K4: 0.0004741865343 | L4: =K4*I4 -> 93.41999918 | M4: 0 | O4: 1 | P4: =IF(O5="","",(1+0)^(-(O4))) -> 1 | Q4: 0.9943854031 | R4: =IF(O4="","",(1+0)^(-(O4-IF($C$23="no",0,0.5)))) -> 1 | S4: =IF($C$5=$BK$5,IF(O4="","",VLOOKUP($C$3+O3+$C$15,Basi!$N$4:$Q$116,2,FALSE)/VLOOKUP($C$3+$C$15,Basi!$N$4:$Q$116,2,FALSE)),IF(O4="","",VLOOKUP($C$3+O3+$C$15,Basi!$S$4:$V$116,2,FALSE)/VLOOKUP($C$3+$C$15,Basi!$S$4:$V$116,2,FALSE))) -> 1 | T4: =IF($C$8=$BK$5,IF(O4="","",VLOOKUP($C$6+O3+$C$15,Basi!$N$4:$Q$116,2,FALSE)/VLOOKUP($C$6+$C$15,Basi!$N$4:$Q$116,2,FALSE)),IF(O4="","",VLOOKUP($C$6+O3+$C$15,Basi!$S$4:$V$116,2,FALSE)/VLOOKUP($C$6+$C$15,Basi!$S$4:$V$116,2,FALSE))) -> 1 | U4: =IF(O4="","",S4*T4) -> 1 | V4: =IF($C$5=$BK$5,IF(O4="","",(VLOOKUP($C$3+O3+$C$15,Basi!$N$4:$Q$116,2,FALSE)-VLOOKUP($C$3+O4+$C$15,Basi!$N$4:$Q$116,2,FALSE))/VLOOKUP($C$3+O3+$C$15,Basi!$N$4:$Q$116,2,FALSE)),IF(O4="","",(VLOOKUP($C$3+O3+$C$15,Basi!$S$4:$V$116,2,FALSE)-VLOOKUP($C$3+O4+$C$15,Basi!$S$4:$V$116,2,FALSE))/VLOOKUP($C$3+O3+$C$15,Basi!$S$4:$V$116,2,FALSE))) -> 0.00281125 | W4: =IF($C$8=$BK$5,IF(O4="","",(VLOOKUP($C$6+O3+$C$15,Basi!$N$4:$Q$116,2,FALSE)-VLOOKUP($C$6+O4+$C$15,Basi!$N$4:$Q$116,2,FALSE))/VLOOKUP($C$6+O3+$C$15,Basi!$N$4:$Q$116,2,FALSE)),IF(O4="","",(VLOOKUP($C$6+O3+$C$15,Basi!$S$4:$V$116,2,FALSE)-VLOOKUP($C$6+O4+$C$15,Basi!$S$4:$V$116,2,FALSE))/VLOOKUP($C$6+O3+$C$15,Basi!$S$4:$V$116,2,FALSE))) -> 0.00281125 | X4: =IF(O4="","",V4*W4) -> 7.903126562e-06 | Y4: =IF(O4="","",$C$22*X4) -> 3.951563281e-05 | Z4: =IF(O4="","",1+($C$22-1)*X4) -> 1.000031613 | AA4: =IF(O4="","",V4-X4) -> 0.002803346873 | AB4: =IF(O4="","",W4-X4) -> 0.002803346873 | AC4: =IF(O4="","",AA4/Z4) -> 0.002803258255 | AD4: =IF(O4="","",AB4/Z4) -> 0.002803258255 | AE4: =IF(R4="","",Y4/Z4) -> 3.951438366e-05 | AF4: =IF(R4="","",AC4+AD4+2*AE4) -> 0.005685545278 | AH4: base + comorienza | AI4: =AI2+AI3 -> 0.000554534699 | BJ4: M | BK4: Non fumatore | BL4: Mensile | BM4: 12 | BN4: 0.025 | BO4: Non presente | BP4: 500
B5: Fumatore/Non fumatore: | C5: =IF('First Protection'!D35="NO","Non fumatore","Fumatore") -> Non fumatore | E5: 1 | F5: 0.25 | G5: 0.25 | H5: 0.9950615775 | I5: =IF(G5>$C$9,0,SUM(H5:$H$362)*$C$10) -> 196014.3706 | J5: 196662.3727 | K5: 0.0004741865343 | L5: 92.94737509 | M5: 0 | O5: =IF(O4<$C$9,O4+1,"") -> 2 | P5: =IF(O6="","",(1+0)^(-(O5))) -> 1 | Q5: 0.9940154104 | R5: =IF(O5="","",(1+0)^(-(O5-IF($C$23="no",0,0.5)))) -> 1 | S5: =IF($C$5=$BK$5,IF(O5="","",VLOOKUP($C$3+O4+$C$15,Basi!$N$4:$Q$116,2,FALSE)/VLOOKUP($C$3+$C$15,Basi!$N$4:$Q$116,2,FALSE)),IF(O5="","",VLOOKUP($C$3+O4+$C$15,Basi!$S$4:$V$116,2,FALSE)/VLOOKUP($C$3+$C$15,Basi!$S$4:$V$116,2,FALSE))) -> 0.99718875 | T5: =IF($C$8=$BK$5,IF(O5="","",VLOOKUP($C$6+O4+$C$15,Basi!$N$4:$Q$116,2,FALSE)/VLOOKUP($C$6+$C$15,Basi!$N$4:$Q$116,2,FALSE)),IF(O5="","",VLOOKUP($C$6+O4+$C$15,Basi!$S$4:$V$116,2,FALSE)/VLOOKUP($C$6+$C$15,Basi!$S$4:$V$116,2,FALSE))) -> 0.99718875 | U5: =IF(O5="","",S5*T5) -> 0.9943854031 | V5: =IF($C$5=$BK$5,IF(O5="","",(VLOOKUP($C$3+O4+$C$15,Basi!$N$4:$Q$116,2,FALSE)-VLOOKUP($C$3+O5+$C$15,Basi!$N$4:$Q$116,2,FALSE))/VLOOKUP($C$3+O4,Basi!$N$4:$Q$116,2,FALSE)),IF(O5="","",(VLOOKUP($C$3+O4+$C$15,Basi!$S$4:$V$116,2,FALSE)-VLOOKUP($C$3+O5+$C$15,Basi!$S$4:$V$116,2,FALSE))/VLOOKUP($C$3+O4,Basi!$S$4:$V$116,2,FALSE))) -> 0.0001860582016 | W5: =IF($C$8=$BK$5,IF(O5="","",(VLOOKUP($C$6+O4+$C$15,Basi!$N$4:$Q$116,2,FALSE)-VLOOKUP($C$6+O5+$C$15,Basi!$N$4:$Q$116,2,FALSE))/VLOOKUP($C$6+O4,Basi!$N$4:$Q$116,2,FALSE)),IF(O5="","",(VLOOKUP($C$6+O4+$C$15,Basi!$S$4:$V$116,2,FALSE)-VLOOKUP($C$6+O5+$C$15,Basi!$S$4:$V$116,2,FALSE))/VLOOKUP($C$6+O4,Basi!$S$4:$V$116,2,FALSE))) -> 0.0001860582016 | X5: =IF(O5="","",V5*W5) -> 3.461765437e-08 | Y5: =IF(O5="","",$C$22*X5) -> 1.730882718e-07 | Z5: =IF(O5="","",1+($C$22-1)*X5) -> 1.000000138 | AA5: =IF(O5="","",V5-X5) -> 0.0001860235839 | AB5: =IF(O5="","",W5-X5) -> 0.0001860235839 | AC5: 0.0001860235581 | AD5: 0.0001860235581 | AE5: =IF(R5="","",Y5/Z5) -> 1.730882479e-07 | AF5: =IF(R5="","",AC5+AD5+2*AE5) -> 0.0003723932928 | BJ5: F | BK5: Fumatore | BL5: Bimestrale | BM5: 6 | BN5: - | BO5: N06A | BP5: 1000
A6: 2° testa | B6: Età assicurato | C6: ='First Protection'!C36 -> 0 | E6: 1 | F6: 0.3333333333 | G6: 0.3333333333 | H6: 0.9934208622 | I6: =IF(G6>$C$9,0,SUM(H6:$H$362)*$C$10) -> 195019.3091 | J6: 195987.1766 | K6: 0.0004741865343 | L6: 92.47553028 | M6: 0 | O6: 3 | P6: 1 | Q6: 0.9937428013 | R6: 1 | S6: =IF($C$5=$BK$5,IF(O6="","",VLOOKUP($C$3+O5+$C$15,Basi!$N$4:$Q$116,2,FALSE)/VLOOKUP($C$3+$C$15,Basi!$N$4:$Q$116,2,FALSE)),IF(O6="","",VLOOKUP($C$3+O5+$C$15,Basi!$S$4:$V$116,2,FALSE)/VLOOKUP($C$3+$C$15,Basi!$S$4:$V$116,2,FALSE))) -> 0.9970032149 | T6: =IF($C$8=$BK$5,IF(O6="","",VLOOKUP($C$6+O5+$C$15,Basi!$N$4:$Q$116,2,FALSE)/VLOOKUP($C$6+$C$15,Basi!$N$4:$Q$116,2,FALSE)),IF(O6="","",VLOOKUP($C$6+O5+$C$15,Basi!$S$4:$V$116,2,FALSE)/VLOOKUP($C$6+$C$15,Basi!$S$4:$V$116,2,FALSE))) -> 0.9970032149 | U6: 0.9940154104 | V6: =IF($C$5=$BK$5,IF(O6="","",(VLOOKUP($C$3+O5+$C$15,Basi!$N$4:$Q$116,2,FALSE)-VLOOKUP($C$3+O6+$C$15,Basi!$N$4:$Q$116,2,FALSE))/VLOOKUP($C$3+O5,Basi!$N$4:$Q$116,2,FALSE)),IF(O6="","",(VLOOKUP($C$3+O5+$C$15,Basi!$S$4:$V$116,2,FALSE)-VLOOKUP($C$3+O6+$C$15,Basi!$S$4:$V$116,2,FALSE))/VLOOKUP($C$3+O5,Basi!$S$4:$V$116,2,FALSE))) -> 0.0001371346256 | W6: =IF($C$8=$BK$5,IF(O6="","",(VLOOKUP($C$6+O5+$C$15,Basi!$N$4:$Q$116,2,FALSE)-VLOOKUP($C$6+O6+$C$15,Basi!$N$4:$Q$116,2,FALSE))/VLOOKUP($C$6+O5,Basi!$N$4:$Q$116,2,FALSE)),IF(O6="","",(VLOOKUP($C$6+O5+$C$15,Basi!$S$4:$V$116,2,FALSE)-VLOOKUP($C$6+O6+$C$15,Basi!$S$4:$V$116,2,FALSE))/VLOOKUP($C$6+O5,Basi!$S$4:$V$116,2,FALSE))) -> 0.0001371346256 | X6: 1.880590554e-08 | Y6: 9.402952772e-08 | Z6: 1.000000075 | AA6: 0.0001371158197 | AB6: =IF(O6="","",W6-X6) -> 0.0001371158197 | AC6: 0.0001371158094 | AD6: 0.0001371158094 | AE6: 9.402952065e-08 | AF6: 0.0002744196778 | AH6: =AI4 -> 0.000554534699 | AI6: 1 | BL6: Trimestrale | BM6: 4 | BN6: 0.02 | BP6: 1500
B7: sesso | C7: M | E7: 1 | F7: 0.4166666667 | G7: 0.4166666667 | H7: 0.9917828521 | I7: =IF(G7>$C$9,0,SUM(H7:$H$362)*$C$10) -> 194025.8882 | J7: 195310.8653 | K7: 0.0004741865343 | L7: 92.00446349 | M7: 0 | O7: 4 | P7: 1 | Q7: 0.9935351075 | R7: 1 | S7: =IF($C$5=$BK$5,IF(O7="","",VLOOKUP($C$3+O6+$C$15,Basi!$N$4:$Q$116,2,FALSE)/VLOOKUP($C$3+$C$15,Basi!$N$4:$Q$116,2,FALSE)),IF(O7="","",VLOOKUP($C$3+O6+$C$15,Basi!$S$4:$V$116,2,FALSE)/VLOOKUP($C$3+$C$15,Basi!$S$4:$V$116,2,FALSE))) -> 0.9968664912 | T7: =IF($C$8=$BK$5,IF(O7="","",VLOOKUP($C$6+O6+$C$15,Basi!$N$4:$Q$116,2,FALSE)/VLOOKUP($C$6+$C$15,Basi!$N$4:$Q$116,2,FALSE)),IF(O7="","",VLOOKUP($C$6+O6+$C$15,Basi!$S$4:$V$116,2,FALSE)/VLOOKUP($C$6+$C$15,Basi!$S$4:$V$116,2,FALSE))) -> 0.9968664912 | U7: 0.9937428013 | V7: =IF($C$5=$BK$5,IF(O7="","",(VLOOKUP($C$3+O6+$C$15,Basi!$N$4:$Q$116,2,FALSE)-VLOOKUP($C$3+O7+$C$15,Basi!$N$4:$Q$116,2,FALSE))/VLOOKUP($C$3+O6,Basi!$N$4:$Q$116,2,FALSE)),IF(O7="","",(VLOOKUP($C$3+O6+$C$15,Basi!$S$4:$V$116,2,FALSE)-VLOOKUP($C$3+O7+$C$15,Basi!$S$4:$V$116,2,FALSE))/VLOOKUP($C$3+O6,Basi!$S$4:$V$116,2,FALSE))) -> 0.0001045062171 | W7: =IF($C$8=$BK$5,IF(O7="","",(VLOOKUP($C$6+O6+$C$15,Basi!$N$4:$Q$116,2,FALSE)-VLOOKUP($C$6+O7+$C$15,Basi!$N$4:$Q$116,2,FALSE))/VLOOKUP($C$6+O6,Basi!$N$4:$Q$116,2,FALSE)),IF(O7="","",(VLOOKUP($C$6+O6+$C$15,Basi!$S$4:$V$116,2,FALSE)-VLOOKUP($C$6+O7+$C$15,Basi!$S$4:$V$116,2,FALSE))/VLOOKUP($C$6+O6,Basi!$S$4:$V$116,2,FALSE))) -> 0.0001045062171 | X7: 1.092154941e-08 | Y7: 5.460774706e-08 | Z7: 1.000000044 | AA7: 0.0001044952955 | AB7: 0.0001044952955 | AC7: 0.000104495291 | AD7: 0.000104495291 | AE7: 5.460774467e-08 | AF7: 0.0002090997974 | AH7: 0 | AI7: 0.005685545278 | AJ7: =AI7*U4 -> 0.005685545278 | BL7: Quadrimestrale | BM7: 3 | BN7: - | BP7: 2000
B8: Fumatore/Non fumatore: | C8: =IF('First Protection'!D36="NO","Non fumatore","Fumatore") -> Non fumatore | E8: 1 | F8: 0.5 | G8: 0.5 | H8: 0.990147543 | I8: =IF(G8>$C$9,0,SUM(H8:$H$362)*$C$10) -> 193034.1054 | J8: 194633.4371 | K8: 0.0004741865343 | L8: 91.53417342 | M8: 0 | O8: 5 | P8: 1 | Q8: 0.9933598746 | R8: 1 | S8: =IF($C$5=$BK$5,IF(O8="","",VLOOKUP($C$3+O7+$C$15,Basi!$N$4:$Q$116,2,FALSE)/VLOOKUP($C$3+$C$15,Basi!$N$4:$Q$116,2,FALSE)),IF(O8="","",VLOOKUP($C$3+O7+$C$15,Basi!$S$4:$V$116,2,FALSE)/VLOOKUP($C$3+$C$15,Basi!$S$4:$V$116,2,FALSE))) -> 0.9967623124 | T8: =IF($C$8=$BK$5,IF(O8="","",VLOOKUP($C$6+O7+$C$15,Basi!$N$4:$Q$116,2,FALSE)/VLOOKUP($C$6+$C$15,Basi!$N$4:$Q$116,2,FALSE)),IF(O8="","",VLOOKUP($C$6+O7+$C$15,Basi!$S$4:$V$116,2,FALSE)/VLOOKUP($C$6+$C$15,Basi!$S$4:$V$116,2,FALSE))) -> 0.9967623124 | U8: 0.9935351075 | V8: =IF($C$5=$BK$5,IF(O8="","",(VLOOKUP($C$3+O7+$C$15,Basi!$N$4:$Q$116,2,FALSE)-VLOOKUP($C$3+O8+$C$15,Basi!$N$4:$Q$116,2,FALSE))/VLOOKUP($C$3+O7,Basi!$N$4:$Q$116,2,FALSE)),IF(O8="","",(VLOOKUP($C$3+O7+$C$15,Basi!$S$4:$V$116,2,FALSE)-VLOOKUP($C$3+O8+$C$15,Basi!$S$4:$V$116,2,FALSE))/VLOOKUP($C$3+O7,Basi!$S$4:$V$116,2,FALSE))) -> 8.819047589e-05 | W8: =IF($C$8=$BK$5,IF(O8="","",(VLOOKUP($C$6+O7+$C$15,Basi!$N$4:$Q$116,2,FALSE)-VLOOKUP($C$6+O8+$C$15,Basi!$N$4:$Q$116,2,FALSE))/VLOOKUP($C$6+O7,Basi!$N$4:$Q$116,2,FALSE)),IF(O8="","",(VLOOKUP($C$6+O7+$C$15,Basi!$S$4:$V$116,2,FALSE)-VLOOKUP($C$6+O8+$C$15,Basi!$S$4:$V$116,2,FALSE))/VLOOKUP($C$6+O7,Basi!$S$4:$V$116,2,FALSE))) -> 8.819047589e-05 | X8: 7.777560039e-09 | Y8: 3.888780019e-08 | Z8: 1.000000031 | AA8: 8.818269833e-05 | AB8: 8.818269833e-05 | AC8: 8.818269559e-05 | AD8: 8.818269559e-05 | AE8: 3.888779898e-08 | AF8: 0.0001764431668 | AH8: 1 | AI8: 0.0003723932928 | AJ8: =AI8*U5 -> 0.0003703024546 | BL8: Semestrale | BM8: 2 | BN8: 0.015
B9: durata copertura | C9: ='First Protection'!G35 -> 20 | E9: 1 | F9: 0.5833333333 | G9: 0.5833333333 | H9: 0.9885149302 | I9: =IF(G9>$C$9,0,SUM(H9:$H$362)*$C$10) -> 192043.9578 | J9: 193954.89 | K9: 0.0004741865343 | L9: 91.06465878 | M9: 0 | O9: 6 | P9: 1 | Q9: 0.9931976225 | R9: 1 | S9: =IF($C$5=$BK$5,IF(O9="","",VLOOKUP($C$3+O8+$C$15,Basi!$N$4:$Q$116,2,FALSE)/VLOOKUP($C$3+$C$15,Basi!$N$4:$Q$116,2,FALSE)),IF(O9="","",VLOOKUP($C$3+O8+$C$15,Basi!$S$4:$V$116,2,FALSE)/VLOOKUP($C$3+$C$15,Basi!$S$4:$V$116,2,FALSE))) -> 0.9966744075 | T9: =IF($C$8=$BK$5,IF(O9="","",VLOOKUP($C$6+O8+$C$15,Basi!$N$4:$Q$116,2,FALSE)/VLOOKUP($C$6+$C$15,Basi!$N$4:$Q$116,2,FALSE)),IF(O9="","",VLOOKUP($C$6+O8+$C$15,Basi!$S$4:$V$116,2,FALSE)/VLOOKUP($C$6+$C$15,Basi!$S$4:$V$116,2,FALSE))) -> 0.9966744075 | U9: 0.9933598746 | V9: =IF($C$5=$BK$5,IF(O9="","",(VLOOKUP($C$3+O8+$C$15,Basi!$N$4:$Q$116,2,FALSE)-VLOOKUP($C$3+O9+$C$15,Basi!$N$4:$Q$116,2,FALSE))/VLOOKUP($C$3+O8,Basi!$N$4:$Q$116,2,FALSE)),IF(O9="","",(VLOOKUP($C$3+O8+$C$15,Basi!$S$4:$V$116,2,FALSE)-VLOOKUP($C$3+O9+$C$15,Basi!$S$4:$V$116,2,FALSE))/VLOOKUP($C$3+O8,Basi!$S$4:$V$116,2,FALSE))) -> 8.167163427e-05 | W9: =IF($C$8=$BK$5,IF(O9="","",(VLOOKUP($C$6+O8+$C$15,Basi!$N$4:$Q$116,2,FALSE)-VLOOKUP($C$6+O9+$C$15,Basi!$N$4:$Q$116,2,FALSE))/VLOOKUP($C$6+O8,Basi!$N$4:$Q$116,2,FALSE)),IF(O9="","",(VLOOKUP($C$6+O8+$C$15,Basi!$S$4:$V$116,2,FALSE)-VLOOKUP($C$6+O9+$C$15,Basi!$S$4:$V$116,2,FALSE))/VLOOKUP($C$6+O8,Basi!$S$4:$V$116,2,FALSE))) -> 8.167163427e-05 | X9: 6.670255844e-09 | Y9: 3.335127922e-08 | Z9: 1.000000027 | AA9: 8.166496401e-05 | AB9: 8.166496401e-05 | AC9: 8.166496183e-05 | AD9: 8.166496183e-05 | AE9: 3.335127833e-08 | AF9: 0.0001633966262 | AH9: 2 | AI9: 0.0002744196778 | AJ9: 0.0002727773887 | BL9: Annuale | BM9: 1 | BN9: 0
B10: Rendita mensile assicurata | C10: ='First Protection'!I35/12 -> 1000 | E10: 1 | F10: 0.6666666667 | G10: 0.6666666667 | H10: 0.9868850094 | I10: =IF(G10>$C$9,0,SUM(H10:$H$362)*$C$10) -> 191055.4429 | J10: 193275.2223 | K10: 0.0004741865343 | L10: 90.59591831 | M10: 0 | O10: 7 | P10: 1 | Q10: 0.9930418683 | R10: 1 | S10: =IF($C$5=$BK$5,IF(O10="","",VLOOKUP($C$3+O9+$C$15,Basi!$N$4:$Q$116,2,FALSE)/VLOOKUP($C$3+$C$15,Basi!$N$4:$Q$116,2,FALSE)),IF(O10="","",VLOOKUP($C$3+O9+$C$15,Basi!$S$4:$V$116,2,FALSE)/VLOOKUP($C$3+$C$15,Basi!$S$4:$V$116,2,FALSE))) -> 0.9965930075 | T10: =IF($C$8=$BK$5,IF(O10="","",VLOOKUP($C$6+O9+$C$15,Basi!$N$4:$Q$116,2,FALSE)/VLOOKUP($C$6+$C$15,Basi!$N$4:$Q$116,2,FALSE)),IF(O10="","",VLOOKUP($C$6+O9+$C$15,Basi!$S$4:$V$116,2,FALSE)/VLOOKUP($C$6+$C$15,Basi!$S$4:$V$116,2,FALSE))) -> 0.9965930075 | U10: 0.9931976225 | V10: =IF($C$5=$BK$5,IF(O10="","",(VLOOKUP($C$3+O9+$C$15,Basi!$N$4:$Q$116,2,FALSE)-VLOOKUP($C$3+O10+$C$15,Basi!$N$4:$Q$116,2,FALSE))/VLOOKUP($C$3+O9,Basi!$N$4:$Q$116,2,FALSE)),IF(O10="","",(VLOOKUP($C$3+O9+$C$15,Basi!$S$4:$V$116,2,FALSE)-VLOOKUP($C$3+O10+$C$15,Basi!$S$4:$V$116,2,FALSE))/VLOOKUP($C$3+O9,Basi!$S$4:$V$116,2,FALSE))) -> 7.841357945e-05 | W10: =IF($C$8=$BK$5,IF(O10="","",(VLOOKUP($C$6+O9+$C$15,Basi!$N$4:$Q$116,2,FALSE)-VLOOKUP($C$6+O10+$C$15,Basi!$N$4:$Q$116,2,FALSE))/VLOOKUP($C$6+O9,Basi!$N$4:$Q$116,2,FALSE)),IF(O10="","",(VLOOKUP($C$6+O9+$C$15,Basi!$S$4:$V$116,2,FALSE)-VLOOKUP($C$6+O10+$C$15,Basi!$S$4:$V$116,2,FALSE))/VLOOKUP($C$6+O9,Basi!$S$4:$V$116,2,FALSE))) -> 7.841357945e-05 | X10: 6.148689441e-09 | Y10: 3.074344721e-08 | Z10: 1.000000025 | AA10: 7.840743076e-05 | AB10: 7.840743076e-05 | AC10: 7.840742883e-05 | AD10: 7.840742883e-05 | AE10: 3.074344645e-08 | AF10: 0.0001568763445 | AH10: 3 | AI10: 0.0002090997974 | AJ10: 0.0002077914185
B11: Frazionamento rendita | C11: Mensile | E11: 1 | F11: 0.75 | G11: 0.75 | H11: 0.9852577761 | I11: =IF(G11>$C$9,0,SUM(H11:$H$362)*$C$10) -> 190068.5579 | J11: 192594.432 | K11: 0.0004741865343 | L11: 90.12795073 | M11: 0 | O11: 8 | P11: 1 | Q11: 0.9928861141 | R11: 1 | S11: =IF($C$5=$BK$5,IF(O11="","",VLOOKUP($C$3+O10+$C$15,Basi!$N$4:$Q$116,2,FALSE)/VLOOKUP($C$3+$C$15,Basi!$N$4:$Q$116,2,FALSE)),IF(O11="","",VLOOKUP($C$3+O10+$C$15,Basi!$S$4:$V$116,2,FALSE)/VLOOKUP($C$3+$C$15,Basi!$S$4:$V$116,2,FALSE))) -> 0.9965148611 | T11: =IF($C$8=$BK$5,IF(O11="","",VLOOKUP($C$6+O10+$C$15,Basi!$N$4:$Q$116,2,FALSE)/VLOOKUP($C$6+$C$15,Basi!$N$4:$Q$116,2,FALSE)),IF(O11="","",VLOOKUP($C$6+O10+$C$15,Basi!$S$4:$V$116,2,FALSE)/VLOOKUP($C$6+$C$15,Basi!$S$4:$V$116,2,FALSE))) -> 0.9965148611 | U11: 0.9930418683 | V11: =IF($C$5=$BK$5,IF(O11="","",(VLOOKUP($C$3+O10+$C$15,Basi!$N$4:$Q$116,2,FALSE)-VLOOKUP($C$3+O11+$C$15,Basi!$N$4:$Q$116,2,FALSE))/VLOOKUP($C$3+O10,Basi!$N$4:$Q$116,2,FALSE)),IF(O11="","",(VLOOKUP($C$3+O10+$C$15,Basi!$S$4:$V$116,2,FALSE)-VLOOKUP($C$3+O11+$C$15,Basi!$S$4:$V$116,2,FALSE))/VLOOKUP($C$3+O10,Basi!$S$4:$V$116,2,FALSE))) -> 7.842586597e-05 | W11: =IF($C$8=$BK$5,IF(O11="","",(VLOOKUP($C$6+O10+$C$15,Basi!$N$4:$Q$116,2,FALSE)-VLOOKUP($C$6+O11+$C$15,Basi!$N$4:$Q$116,2,FALSE))/VLOOKUP($C$6+O10,Basi!$N$4:$Q$116,2,FALSE)),IF(O11="","",(VLOOKUP($C$6+O10+$C$15,Basi!$S$4:$V$116,2,FALSE)-VLOOKUP($C$6+O11+$C$15,Basi!$S$4:$V$116,2,FALSE))/VLOOKUP($C$6+O10,Basi!$S$4:$V$116,2,FALSE))) -> 7.842586597e-05 | X11: 6.150616454e-09 | Y11: 3.075308227e-08 | Z11: 1.000000025 | AA11: 7.841971536e-05 | AB11: 7.841971536e-05 | AC11: 7.841971343e-05 | AD11: 7.841971343e-05 | AE11: 3.075308151e-08 | AF11: 0.000156900933 | AH11: 4 | AI11: 0.0001764431668 | AJ11: 0.0001753024807
B12: Capitale assicurato garanzia facoltativa caso morte | C12: ='First Protection'!H35 -> 25000 | E12: 1 | F12: 0.8333333333 | G12: 0.8333333333 | H12: 0.9836332258 | I12: =IF(G12>$C$9,0,SUM(H12:$H$362)*$C$10) -> 189083.3001 | J12: 191912.5174 | K12: 0.0004741865343 | L12: 89.66075476 | M12: 0 | O12: 9 | P12: 1 | Q12: 0.9927498286 | R12: 1 | S12: =IF($C$5=$BK$5,IF(O12="","",VLOOKUP($C$3+O11+$C$15,Basi!$N$4:$Q$116,2,FALSE)/VLOOKUP($C$3+$C$15,Basi!$N$4:$Q$116,2,FALSE)),IF(O12="","",VLOOKUP($C$3+O11+$C$15,Basi!$S$4:$V$116,2,FALSE)/VLOOKUP($C$3+$C$15,Basi!$S$4:$V$116,2,FALSE))) -> 0.9964367085 | T12: =IF($C$8=$BK$5,IF(O12="","",VLOOKUP($C$6+O11+$C$15,Basi!$N$4:$Q$116,2,FALSE)/VLOOKUP($C$6+$C$15,Basi!$N$4:$Q$116,2,FALSE)),IF(O12="","",VLOOKUP($C$6+O11+$C$15,Basi!$S$4:$V$116,2,FALSE)/VLOOKUP($C$6+$C$15,Basi!$S$4:$V$116,2,FALSE))) -> 0.9964367085 | U12: 0.9928861141 | V12: =IF($C$5=$BK$5,IF(O12="","",(VLOOKUP($C$3+O11+$C$15,Basi!$N$4:$Q$116,2,FALSE)-VLOOKUP($C$3+O12+$C$15,Basi!$N$4:$Q$116,2,FALSE))/VLOOKUP($C$3+O11,Basi!$N$4:$Q$116,2,FALSE)),IF(O12="","",(VLOOKUP($C$3+O11+$C$15,Basi!$S$4:$V$116,2,FALSE)-VLOOKUP($C$3+O12+$C$15,Basi!$S$4:$V$116,2,FALSE))/VLOOKUP($C$3+O11,Basi!$S$4:$V$116,2,FALSE))) -> 6.863331332e-05 | W12: =IF($C$8=$BK$5,IF(O12="","",(VLOOKUP($C$6+O11+$C$15,Basi!$N$4:$Q$116,2,FALSE)-VLOOKUP($C$6+O12+$C$15,Basi!$N$4:$Q$116,2,FALSE))/VLOOKUP($C$6+O11,Basi!$N$4:$Q$116,2,FALSE)),IF(O12="","",(VLOOKUP($C$6+O11+$C$15,Basi!$S$4:$V$116,2,FALSE)-VLOOKUP($C$6+O12+$C$15,Basi!$S$4:$V$116,2,FALSE))/VLOOKUP($C$6+O11,Basi!$S$4:$V$116,2,FALSE))) -> 6.863331332e-05 | X12: 4.710531697e-09 | Y12: 2.355265848e-08 | Z12: 1.000000019 | AA12: 6.862860278e-05 | AB12: 6.862860278e-05 | AC12: 6.862860149e-05 | AD12: 6.862860149e-05 | AE12: 2.355265804e-08 | AF12: 0.0001373043083 | AH12: 5 | AI12: 0.0001633966262 | AJ12: 0.0001623116521
B13: Rateazione del premio | C13: Annuale | E13: 1 | F13: 0.9166666667 | G13: 0.9166666667 | H13: 0.9820113542 | I13: =IF(G13>$C$9,0,SUM(H13:$H$362)*$C$10) -> 188099.6669 | J13: 191229.4765 | K13: 0.0004741865343 | L13: 89.19432913 | M13: 0 | O13: 10 | P13: 1 | Q13: 0.992607061 | R13: 1 | S13: =IF($C$5=$BK$5,IF(O13="","",VLOOKUP($C$3+O12+$C$15,Basi!$N$4:$Q$116,2,FALSE)/VLOOKUP($C$3+$C$15,Basi!$N$4:$Q$116,2,FALSE)),IF(O13="","",VLOOKUP($C$3+O12+$C$15,Basi!$S$4:$V$116,2,FALSE)/VLOOKUP($C$3+$C$15,Basi!$S$4:$V$116,2,FALSE))) -> 0.9963683198 | T13: =IF($C$8=$BK$5,IF(O13="","",VLOOKUP($C$6+O12+$C$15,Basi!$N$4:$Q$116,2,FALSE)/VLOOKUP($C$6+$C$15,Basi!$N$4:$Q$116,2,FALSE)),IF(O13="","",VLOOKUP($C$6+O12+$C$15,Basi!$S$4:$V$116,2,FALSE)/VLOOKUP($C$6+$C$15,Basi!$S$4:$V$116,2,FALSE))) -> 0.9963683198 | U13: 0.9927498286 | V13: =IF($C$5=$BK$5,IF(O13="","",(VLOOKUP($C$3+O12+$C$15,Basi!$N$4:$Q$116,2,FALSE)-VLOOKUP($C$3+O13+$C$15,Basi!$N$4:$Q$116,2,FALSE))/VLOOKUP($C$3+O12,Basi!$N$4:$Q$116,2,FALSE)),IF(O13="","",(VLOOKUP($C$3+O12+$C$15,Basi!$S$4:$V$116,2,FALSE)-VLOOKUP($C$3+O13+$C$15,Basi!$S$4:$V$116,2,FALSE))/VLOOKUP($C$3+O12,Basi!$S$4:$V$116,2,FALSE))) -> 7.190769909e-05 | W13: =IF($C$8=$BK$5,IF(O13="","",(VLOOKUP($C$6+O12+$C$15,Basi!$N$4:$Q$116,2,FALSE)-VLOOKUP($C$6+O13+$C$15,Basi!$N$4:$Q$116,2,FALSE))/VLOOKUP($C$6+O12,Basi!$N$4:$Q$116,2,FALSE)),IF(O13="","",(VLOOKUP($C$6+O12+$C$15,Basi!$S$4:$V$116,2,FALSE)-VLOOKUP($C$6+O13+$C$15,Basi!$S$4:$V$116,2,FALSE))/VLOOKUP($C$6+O12,Basi!$S$4:$V$116,2,FALSE))) -> 7.190769909e-05 | X13: 5.170717188e-09 | Y13: 2.585358594e-08 | Z13: 1.000000021 | AA13: 7.190252837e-05 | AB13: 7.190252837e-05 | AC13: 7.190252688e-05 | AD13: 7.190252688e-05 | AE13: 2.58535854e-08 | AF13: 0.0001438567609 | AH13: 6 | AI13: 0.0001568763445 | AJ13: 0.0001558092124
B14: Complementare Infortuni | C14: =IF('First Protection'!J35="NO","Non presente","N06A") -> Non presente | E14: 1 | F14: 1 | G14: 1 | H14: 0.9803921569 | I14: =IF(G14>$C$9,0,SUM(H14:$H$362)*$C$10) -> 187117.6555 | J14: 190545.3076 | K14: 0.0004741865343 | L14: 88.72867257 | M14: 0 | O14: 11 | P14: 1 | Q14: 0.9924578061 | R14: 1 | S14: =IF($C$5=$BK$5,IF(O14="","",VLOOKUP($C$3+O13+$C$15,Basi!$N$4:$Q$116,2,FALSE)/VLOOKUP($C$3+$C$15,Basi!$N$4:$Q$116,2,FALSE)),IF(O14="","",VLOOKUP($C$3+O13+$C$15,Basi!$S$4:$V$116,2,FALSE)/VLOOKUP($C$3+$C$15,Basi!$S$4:$V$116,2,FALSE))) -> 0.9962966732 | T14: =IF($C$8=$BK$5,IF(O14="","",VLOOKUP($C$6+O13+$C$15,Basi!$N$4:$Q$116,2,FALSE)/VLOOKUP($C$6+$C$15,Basi!$N$4:$Q$116,2,FALSE)),IF(O14="","",VLOOKUP($C$6+O13+$C$15,Basi!$S$4:$V$116,2,FALSE)/VLOOKUP($C$6+$C$15,Basi!$S$4:$V$116,2,FALSE))) -> 0.9962966732 | U14: 0.992607061 | V14: =IF($C$5=$BK$5,IF(O14="","",(VLOOKUP($C$3+O13+$C$15,Basi!$N$4:$Q$116,2,FALSE)-VLOOKUP($C$3+O14+$C$15,Basi!$N$4:$Q$116,2,FALSE))/VLOOKUP($C$3+O13,Basi!$N$4:$Q$116,2,FALSE)),IF(O14="","",(VLOOKUP($C$3+O13+$C$15,Basi!$S$4:$V$116,2,FALSE)-VLOOKUP($C$3+O14+$C$15,Basi!$S$4:$V$116,2,FALSE))/VLOOKUP($C$3+O13,Basi!$S$4:$V$116,2,FALSE))) -> 7.518612918e-05 | W14: =IF($C$8=$BK$5,IF(O14="","",(VLOOKUP($C$6+O13+$C$15,Basi!$N$4:$Q$116,2,FALSE)-VLOOKUP($C$6+O14+$C$15,Basi!$N$4:$Q$116,2,FALSE))/VLOOKUP($C$6+O13,Basi!$N$4:$Q$116,2,FALSE)),IF(O14="","",(VLOOKUP($C$6+O13+$C$15,Basi!$S$4:$V$116,2,FALSE)-VLOOKUP($C$6+O14+$C$15,Basi!$S$4:$V$116,2,FALSE))/VLOOKUP($C$6+O13,Basi!$S$4:$V$116,2,FALSE))) -> 7.518612918e-05 | X14: 5.652954022e-09 | Y14: 2.826477011e-08 | Z14: 1.000000023 | AA14: 7.518047623e-05 | AB14: 7.518047623e-05 | AC14: 7.518047453e-05 | AD14: 7.518047453e-05 | AE14: 2.826476947e-08 | AF14: 0.0001504174786 | AH14: 7 | AI14: 0.000156900933 | AJ14: 0.0001558091957
B15: Incremento | C15: 0 | E15: 2 | F15: 0.08333333333 | G15: 1.083333333 | H15: 0.9787756293 | I15: =IF(G15>$C$9,0,SUM(H15:$H$362)*$C$10) -> 186137.2634 | J15: 189860.0086 | K15: 3.088401006e-05 | L15: 5.748665114 | M15: 0 | O15: 12 | P15: 1 | Q15: 0.9923085688 | R15: 1 | S15: =IF($C$5=$BK$5,IF(O15="","",VLOOKUP($C$3+O14+$C$15,Basi!$N$4:$Q$116,2,FALSE)/VLOOKUP($C$3+$C$15,Basi!$N$4:$Q$116,2,FALSE)),IF(O15="","",VLOOKUP($C$3+O14+$C$15,Basi!$S$4:$V$116,2,FALSE)/VLOOKUP($C$3+$C$15,Basi!$S$4:$V$116,2,FALSE))) -> 0.9962217655 | T15: =IF($C$8=$BK$5,IF(O15="","",VLOOKUP($C$6+O14+$C$15,Basi!$N$4:$Q$116,2,FALSE)/VLOOKUP($C$6+$C$15,Basi!$N$4:$Q$116,2,FALSE)),IF(O15="","",VLOOKUP($C$6+O14+$C$15,Basi!$S$4:$V$116,2,FALSE)/VLOOKUP($C$6+$C$15,Basi!$S$4:$V$116,2,FALSE))) -> 0.9962217655 | U15: 0.9924578061 | V15: =IF($C$5=$BK$5,IF(O15="","",(VLOOKUP($C$3+O14+$C$15,Basi!$N$4:$Q$116,2,FALSE)-VLOOKUP($C$3+O15+$C$15,Basi!$N$4:$Q$116,2,FALSE))/VLOOKUP($C$3+O14,Basi!$N$4:$Q$116,2,FALSE)),IF(O15="","",(VLOOKUP($C$3+O14+$C$15,Basi!$S$4:$V$116,2,FALSE)-VLOOKUP($C$3+O15+$C$15,Basi!$S$4:$V$116,2,FALSE))/VLOOKUP($C$3+O14,Basi!$S$4:$V$116,2,FALSE))) -> 7.518853223e-05 | W15: =IF($C$8=$BK$5,IF(O15="","",(VLOOKUP($C$6+O14+$C$15,Basi!$N$4:$Q$116,2,FALSE)-VLOOKUP($C$6+O15+$C$15,Basi!$N$4:$Q$116,2,FALSE))/VLOOKUP($C$6+O14,Basi!$N$4:$Q$116,2,FALSE)),IF(O15="","",(VLOOKUP($C$6+O14+$C$15,Basi!$S$4:$V$116,2,FALSE)-VLOOKUP($C$6+O15+$C$15,Basi!$S$4:$V$116,2,FALSE))/VLOOKUP($C$6+O14,Basi!$S$4:$V$116,2,FALSE))) -> 7.518853223e-05 | X15: 5.653315379e-09 | Y15: 2.826657689e-08 | Z15: 1.000000023 | AA15: 7.518287891e-05 | AB15: 7.518287891e-05 | AC15: 7.518287721e-05 | AD15: 7.518287721e-05 | AE15: 2.826657625e-08 | AF15: 0.0001504222876 | AH15: 8 | AI15: 0.0001373043083 | AJ15: 0.0001363275411 | AL15: =IF($G15>$C$49,0,$C$46-$C$35-$C$36) -> 34.78 | AM15: =IF($G15>$C$49,0,IF($C$57<40%,0,3/10)*$C$57*$C$39+$C$58*$C$39+$C$62*$C$40) -> 46.88112 | AN15: =AL15/(1+$C$63)^($E15-1) -> 33.44230769 | AO15: =AM15/(1+$C$63)^($E15-1) -> 45.078
E16: 2 | F16: 0.1666666667 | G16: 1.166666667 | H16: 0.9771617672 | I16: =IF(G16>$C$9,0,SUM(H16:$H$362)*$C$10) -> 185158.4877 | J16: 189173.5779 | K16: 3.088401006e-05 | L16: 5.718436598 | M16: 0 | O16: 13 | P16: 1 | Q16: 0.9921398628 | R16: 1 | S16: =IF($C$5=$BK$5,IF(O16="","",VLOOKUP($C$3+O15+$C$15,Basi!$N$4:$Q$116,2,FALSE)/VLOOKUP($C$3+$C$15,Basi!$N$4:$Q$116,2,FALSE)),IF(O16="","",VLOOKUP($C$3+O15+$C$15,Basi!$S$4:$V$116,2,FALSE)/VLOOKUP($C$3+$C$15,Basi!$S$4:$V$116,2,FALSE))) -> 0.9961468611 | T16: =IF($C$8=$BK$5,IF(O16="","",VLOOKUP($C$6+O15+$C$15,Basi!$N$4:$Q$116,2,FALSE)/VLOOKUP($C$6+$C$15,Basi!$N$4:$Q$116,2,FALSE)),IF(O16="","",VLOOKUP($C$6+O15+$C$15,Basi!$S$4:$V$116,2,FALSE)/VLOOKUP($C$6+$C$15,Basi!$S$4:$V$116,2,FALSE))) -> 0.9961468611 | U16: 0.9923085688 | V16: =IF($C$5=$BK$5,IF(O16="","",(VLOOKUP($C$3+O15+$C$15,Basi!$N$4:$Q$116,2,FALSE)-VLOOKUP($C$3+O16+$C$15,Basi!$N$4:$Q$116,2,FALSE))/VLOOKUP($C$3+O15,Basi!$N$4:$Q$116,2,FALSE)),IF(O16="","",(VLOOKUP($C$3+O15+$C$15,Basi!$S$4:$V$116,2,FALSE)-VLOOKUP($C$3+O16+$C$15,Basi!$S$4:$V$116,2,FALSE))/VLOOKUP($C$3+O15,Basi!$S$4:$V$116,2,FALSE))) -> 8.501044447e-05 | W16: =IF($C$8=$BK$5,IF(O16="","",(VLOOKUP($C$6+O15+$C$15,Basi!$N$4:$Q$116,2,FALSE)-VLOOKUP($C$6+O16+$C$15,Basi!$N$4:$Q$116,2,FALSE))/VLOOKUP($C$6+O15,Basi!$N$4:$Q$116,2,FALSE)),IF(O16="","",(VLOOKUP($C$6+O15+$C$15,Basi!$S$4:$V$116,2,FALSE)-VLOOKUP($C$6+O16+$C$15,Basi!$S$4:$V$116,2,FALSE))/VLOOKUP($C$6+O15,Basi!$S$4:$V$116,2,FALSE))) -> 8.501044447e-05 | X16: 7.226775669e-09 | Y16: 3.613387834e-08 | Z16: 1.000000029 | AA16: 8.500321769e-05 | AB16: 8.500321769e-05 | AC16: 8.500321524e-05 | AD16: 8.500321524e-05 | AE16: 3.61338773e-08 | AF16: 0.0001700786982 | AH16: 9 | AI16: 0.0001438567609 | AJ16: 0.0001428137748
B17: Dati tecnici | E17: 2 | F17: 0.25 | G17: 1.25 | H17: 0.9755505662 | I17: =IF(G17>$C$9,0,SUM(H17:$H$362)*$C$10) -> 184181.326 | J17: 188486.0134 | K17: 3.088401006e-05 | L17: 5.688257924 | M17: 0 | O17: 14 | P17: 1 | Q17: 0.9919322234 | R17: 1 | S17: =IF($C$5=$BK$5,IF(O17="","",VLOOKUP($C$3+O16+$C$15,Basi!$N$4:$Q$116,2,FALSE)/VLOOKUP($C$3+$C$15,Basi!$N$4:$Q$116,2,FALSE)),IF(O17="","",VLOOKUP($C$3+O16+$C$15,Basi!$S$4:$V$116,2,FALSE)/VLOOKUP($C$3+$C$15,Basi!$S$4:$V$116,2,FALSE))) -> 0.9960621782 | T17: =IF($C$8=$BK$5,IF(O17="","",VLOOKUP($C$6+O16+$C$15,Basi!$N$4:$Q$116,2,FALSE)/VLOOKUP($C$6+$C$15,Basi!$N$4:$Q$116,2,FALSE)),IF(O17="","",VLOOKUP($C$6+O16+$C$15,Basi!$S$4:$V$116,2,FALSE)/VLOOKUP($C$6+$C$15,Basi!$S$4:$V$116,2,FALSE))) -> 0.9960621782 | U17: 0.9921398628 | V17: =IF($C$5=$BK$5,IF(O17="","",(VLOOKUP($C$3+O16+$C$15,Basi!$N$4:$Q$116,2,FALSE)-VLOOKUP($C$3+O17+$C$15,Basi!$N$4:$Q$116,2,FALSE))/VLOOKUP($C$3+O16,Basi!$N$4:$Q$116,2,FALSE)),IF(O17="","",(VLOOKUP($C$3+O16+$C$15,Basi!$S$4:$V$116,2,FALSE)-VLOOKUP($C$3+O17+$C$15,Basi!$S$4:$V$116,2,FALSE))/VLOOKUP($C$3+O16,Basi!$S$4:$V$116,2,FALSE))) -> 0.0001046476665 | W17: =IF($C$8=$BK$5,IF(O17="","",(VLOOKUP($C$6+O16+$C$15,Basi!$N$4:$Q$116,2,FALSE)-VLOOKUP($C$6+O17+$C$15,Basi!$N$4:$Q$116,2,FALSE))/VLOOKUP($C$6+O16,Basi!$N$4:$Q$116,2,FALSE)),IF(O17="","",(VLOOKUP($C$6+O16+$C$15,Basi!$S$4:$V$116,2,FALSE)-VLOOKUP($C$6+O17+$C$15,Basi!$S$4:$V$116,2,FALSE))/VLOOKUP($C$6+O16,Basi!$S$4:$V$116,2,FALSE))) -> 0.0001046476665 | X17: 1.09511341e-08 | Y17: 5.475567051e-08 | Z17: 1.000000044 | AA17: 0.0001046367154 | AB17: 0.0001046367154 | AC17: 0.0001046367108 | AD17: 0.0001046367108 | AE17: 5.475566811e-08 | AF17: 0.0002093829329 | AH17: 10 | AI17: 0.0001504174786 | AJ17: 0.0001493054514
B18: tasso tecnico | C18: 0.02 | E18: 2 | F18: 0.3333333333 | G18: 1.333333333 | H18: 0.9739420217 | I18: =IF(G18>$C$9,0,SUM(H18:$H$362)*$C$10) -> 183205.7754 | J18: 187797.3134 | K18: 3.088401006e-05 | L18: 5.65812901 | M18: 0 | O18: 15 | P18: 1 | Q18: 0.9916661892 | R18: 1 | S18: =IF($C$5=$BK$5,IF(O18="","",VLOOKUP($C$3+O17+$C$15,Basi!$N$4:$Q$116,2,FALSE)/VLOOKUP($C$3+$C$15,Basi!$N$4:$Q$116,2,FALSE)),IF(O18="","",VLOOKUP($C$3+O17+$C$15,Basi!$S$4:$V$116,2,FALSE)/VLOOKUP($C$3+$C$15,Basi!$S$4:$V$116,2,FALSE))) -> 0.9959579426 | T18: =IF($C$8=$BK$5,IF(O18="","",VLOOKUP($C$6+O17+$C$15,Basi!$N$4:$Q$116,2,FALSE)/VLOOKUP($C$6+$C$15,Basi!$N$4:$Q$116,2,FALSE)),IF(O18="","",VLOOKUP($C$6+O17+$C$15,Basi!$S$4:$V$116,2,FALSE)/VLOOKUP($C$6+$C$15,Basi!$S$4:$V$116,2,FALSE))) -> 0.9959579426 | U18: 0.9919322234 | V18: =IF($C$5=$BK$5,IF(O18="","",(VLOOKUP($C$3+O17+$C$15,Basi!$N$4:$Q$116,2,FALSE)-VLOOKUP($C$3+O18+$C$15,Basi!$N$4:$Q$116,2,FALSE))/VLOOKUP($C$3+O17,Basi!$N$4:$Q$116,2,FALSE)),IF(O18="","",(VLOOKUP($C$3+O17+$C$15,Basi!$S$4:$V$116,2,FALSE)-VLOOKUP($C$3+O18+$C$15,Basi!$S$4:$V$116,2,FALSE))/VLOOKUP($C$3+O17,Basi!$S$4:$V$116,2,FALSE))) -> 0.0001341079713 | W18: =IF($C$8=$BK$5,IF(O18="","",(VLOOKUP($C$6+O17+$C$15,Basi!$N$4:$Q$116,2,FALSE)-VLOOKUP($C$6+O18+$C$15,Basi!$N$4:$Q$116,2,FALSE))/VLOOKUP($C$6+O17,Basi!$N$4:$Q$116,2,FALSE)),IF(O18="","",(VLOOKUP($C$6+O17+$C$15,Basi!$S$4:$V$116,2,FALSE)-VLOOKUP($C$6+O18+$C$15,Basi!$S$4:$V$116,2,FALSE))/VLOOKUP($C$6+O17,Basi!$S$4:$V$116,2,FALSE))) -> 0.0001341079713 | X18: 1.798494798e-08 | Y18: 8.992473988e-08 | Z18: 1.000000072 | AA18: 0.0001340899864 | AB18: 0.0001340899864 | AC18: 0.0001340899767 | AD18: 0.0001340899767 | AE18: 8.992473341e-08 | AF18: 0.000268359803 | AH18: 11 | AI18: 0.0001504222876 | AJ18: 0.0001492877735
B19: spese di emissione | C19: 15 | E19: 2 | F19: 0.4166666667 | G19: 1.416666667 | H19: 0.9723361296 | I19: =IF(G19>$C$9,0,SUM(H19:$H$362)*$C$10) -> 182231.8334 | J19: 187107.4759 | K19: 3.088401006e-05 | L19: 5.628049775 | M19: 0 | O19: 16 | P19: 1 | Q19: 0.9913287852 | R19: 1 | S19: =IF($C$5=$BK$5,IF(O19="","",VLOOKUP($C$3+O18+$C$15,Basi!$N$4:$Q$116,2,FALSE)/VLOOKUP($C$3+$C$15,Basi!$N$4:$Q$116,2,FALSE)),IF(O19="","",VLOOKUP($C$3+O18+$C$15,Basi!$S$4:$V$116,2,FALSE)/VLOOKUP($C$3+$C$15,Basi!$S$4:$V$116,2,FALSE))) -> 0.9958243767 | T19: =IF($C$8=$BK$5,IF(O19="","",VLOOKUP($C$6+O18+$C$15,Basi!$N$4:$Q$116,2,FALSE)/VLOOKUP($C$6+$C$15,Basi!$N$4:$Q$116,2,FALSE)),IF(O19="","",VLOOKUP($C$6+O18+$C$15,Basi!$S$4:$V$116,2,FALSE)/VLOOKUP($C$6+$C$15,Basi!$S$4:$V$116,2,FALSE))) -> 0.9958243767 | U19: 0.9916661892 | V19: =IF($C$5=$BK$5,IF(O19="","",(VLOOKUP($C$3+O18+$C$15,Basi!$N$4:$Q$116,2,FALSE)-VLOOKUP($C$3+O19+$C$15,Basi!$N$4:$Q$116,2,FALSE))/VLOOKUP($C$3+O18,Basi!$N$4:$Q$116,2,FALSE)),IF(O19="","",(VLOOKUP($C$3+O18+$C$15,Basi!$S$4:$V$116,2,FALSE)-VLOOKUP($C$3+O19+$C$15,Basi!$S$4:$V$116,2,FALSE))/VLOOKUP($C$3+O18,Basi!$S$4:$V$116,2,FALSE))) -> 0.0001701342005 | W19: =IF($C$8=$BK$5,IF(O19="","",(VLOOKUP($C$6+O18+$C$15,Basi!$N$4:$Q$116,2,FALSE)-VLOOKUP($C$6+O19+$C$15,Basi!$N$4:$Q$116,2,FALSE))/VLOOKUP($C$6+O18,Basi!$N$4:$Q$116,2,FALSE)),IF(O19="","",(VLOOKUP($C$6+O18+$C$15,Basi!$S$4:$V$116,2,FALSE)-VLOOKUP($C$6+O19+$C$15,Basi!$S$4:$V$116,2,FALSE))/VLOOKUP($C$6+O18,Basi!$S$4:$V$116,2,FALSE))) -> 0.0001701342005 | X19: 2.894564618e-08 | Y19: 1.447282309e-07 | Z19: 1.000000116 | AA19: 0.0001701052549 | AB19: 0.0001701052549 | AC19: 0.0001701052352 | AD19: 0.0001701052352 | AE19: 1.447282141e-07 | AF19: 0.0003404999267 | AH19: 12 | AI19: 0.0001700786982 | AJ19: 0.0001687705496
B20: spese di incasso | C20: 2 | E20: 2 | F20: 0.5 | G20: 1.5 | H20: 0.9707328853 | I20: =IF(G20>$C$9,0,SUM(H20:$H$362)*$C$10) -> 181259.4972 | J20: 186416.4991 | K20: 3.088401006e-05 | L20: 5.598020136 | M20: 0 | O20: 17 | P20: 1 | Q20: 0.9908746138 | R20: 1 | S20: =IF($C$5=$BK$5,IF(O20="","",VLOOKUP($C$3+O19+$C$15,Basi!$N$4:$Q$116,2,FALSE)/VLOOKUP($C$3+$C$15,Basi!$N$4:$Q$116,2,FALSE)),IF(O20="","",VLOOKUP($C$3+O19+$C$15,Basi!$S$4:$V$116,2,FALSE)/VLOOKUP($C$3+$C$15,Basi!$S$4:$V$116,2,FALSE))) -> 0.9956549529 | T20: =IF($C$8=$BK$5,IF(O20="","",VLOOKUP($C$6+O19+$C$15,Basi!$N$4:$Q$116,2,FALSE)/VLOOKUP($C$6+$C$15,Basi!$N$4:$Q$116,2,FALSE)),IF(O20="","",VLOOKUP($C$6+O19+$C$15,Basi!$S$4:$V$116,2,FALSE)/VLOOKUP($C$6+$C$15,Basi!$S$4:$V$116,2,FALSE))) -> 0.9956549529 | U20: 0.9913287852 | V20: =IF($C$5=$BK$5,IF(O20="","",(VLOOKUP($C$3+O19+$C$15,Basi!$N$4:$Q$116,2,FALSE)-VLOOKUP($C$3+O20+$C$15,Basi!$N$4:$Q$116,2,FALSE))/VLOOKUP($C$3+O19,Basi!$N$4:$Q$116,2,FALSE)),IF(O20="","",(VLOOKUP($C$3+O19+$C$15,Basi!$S$4:$V$116,2,FALSE)-VLOOKUP($C$3+O20+$C$15,Basi!$S$4:$V$116,2,FALSE))/VLOOKUP($C$3+O19,Basi!$S$4:$V$116,2,FALSE))) -> 0.0002290982958 | W20: =IF($C$8=$BK$5,IF(O20="","",(VLOOKUP($C$6+O19+$C$15,Basi!$N$4:$Q$116,2,FALSE)-VLOOKUP($C$6+O20+$C$15,Basi!$N$4:$Q$116,2,FALSE))/VLOOKUP($C$6+O19,Basi!$N$4:$Q$116,2,FALSE)),IF(O20="","",(VLOOKUP($C$6+O19+$C$15,Basi!$S$4:$V$116,2,FALSE)-VLOOKUP($C$6+O20+$C$15,Basi!$S$4:$V$116,2,FALSE))/VLOOKUP($C$6+O19,Basi!$S$4:$V$116,2,FALSE))) -> 0.0002290982958 | X20: 5.248602912e-08 | Y20: 2.624301456e-07 | Z20: 1.00000021 | AA20: 0.0002290458097 | AB20: 0.0002290458097 | AC20: 0.0002290457617 | AD20: 0.0002290457617 | AE20: 2.624300905e-07 | AF20: 0.0004586163835 | AH20: 13 | AI20: 0.0002093829329 | AJ20: 0.0002077371543
B21: Caricamento | C21: 0.2 | E21: 2 | F21: 0.5833333333 | G21: 1.583333333 | H21: 0.9691322845 | I21: =IF(G21>$C$9,0,SUM(H21:$H$362)*$C$10) -> 180288.7644 | J21: 185724.3811 | K21: 3.088401006e-05 | L21: 5.568040012 | M21: 0 | O21: 18 | P21: 1 | Q21: 0.9903425911 | R21: 1 | S21: =IF($C$5=$BK$5,IF(O21="","",VLOOKUP($C$3+O20+$C$15,Basi!$N$4:$Q$116,2,FALSE)/VLOOKUP($C$3+$C$15,Basi!$N$4:$Q$116,2,FALSE)),IF(O21="","",VLOOKUP($C$3+O20+$C$15,Basi!$S$4:$V$116,2,FALSE)/VLOOKUP($C$3+$C$15,Basi!$S$4:$V$116,2,FALSE))) -> 0.9954268501 | T21: =IF($C$8=$BK$5,IF(O21="","",VLOOKUP($C$6+O20+$C$15,Basi!$N$4:$Q$116,2,FALSE)/VLOOKUP($C$6+$C$15,Basi!$N$4:$Q$116,2,FALSE)),IF(O21="","",VLOOKUP($C$6+O20+$C$15,Basi!$S$4:$V$116,2,FALSE)/VLOOKUP($C$6+$C$15,Basi!$S$4:$V$116,2,FALSE))) -> 0.9954268501 | U21: 0.9908746138 | V21: =IF($C$5=$BK$5,IF(O21="","",(VLOOKUP($C$3+O20+$C$15,Basi!$N$4:$Q$116,2,FALSE)-VLOOKUP($C$3+O21+$C$15,Basi!$N$4:$Q$116,2,FALSE))/VLOOKUP($C$3+O20,Basi!$N$4:$Q$116,2,FALSE)),IF(O21="","",(VLOOKUP($C$3+O20+$C$15,Basi!$S$4:$V$116,2,FALSE)-VLOOKUP($C$3+O21+$C$15,Basi!$S$4:$V$116,2,FALSE))/VLOOKUP($C$3+O20,Basi!$S$4:$V$116,2,FALSE))) -> 0.0002684971941 | W21: =IF($C$8=$BK$5,IF(O21="","",(VLOOKUP($C$6+O20+$C$15,Basi!$N$4:$Q$116,2,FALSE)-VLOOKUP($C$6+O21+$C$15,Basi!$N$4:$Q$116,2,FALSE))/VLOOKUP($C$6+O20,Basi!$N$4:$Q$116,2,FALSE)),IF(O21="","",(VLOOKUP($C$6+O20+$C$15,Basi!$S$4:$V$116,2,FALSE)-VLOOKUP($C$6+O21+$C$15,Basi!$S$4:$V$116,2,FALSE))/VLOOKUP($C$6+O20,Basi!$S$4:$V$116,2,FALSE))) -> 0.0002684971941 | X21: 7.209074324e-08 | Y21: 3.604537162e-07 | Z21: 1.000000288 | AA21: 0.0002684251034 | AB21: 0.0002684251034 | AC21: 0.000268425026 | AD21: 0.000268425026 | AE21: 3.604536123e-07 | AF21: 0.0005375709591 | AH21: 14 | AI21: 0.000268359803 | AJ21: 0.000266194736
B22: parametro K | C22: 5 | E22: 2 | F22: 0.6666666667 | G22: 1.666666667 | H22: 0.9675343229 | I22: =IF(G22>$C$9,0,SUM(H22:$H$362)*$C$10) -> 179319.6321 | J22: 185031.12 | K22: 3.088401006e-05 | L22: 5.538109321 | M22: 0 | O22: 19 | P22: 1 | Q22: 0.9897262512 | R22: 1 | S22: =IF($C$5=$BK$5,IF(O22="","",VLOOKUP($C$3+O21+$C$15,Basi!$N$4:$Q$116,2,FALSE)/VLOOKUP($C$3+$C$15,Basi!$N$4:$Q$116,2,FALSE)),IF(O22="","",VLOOKUP($C$3+O21+$C$15,Basi!$S$4:$V$116,2,FALSE)/VLOOKUP($C$3+$C$15,Basi!$S$4:$V$116,2,FALSE))) -> 0.9951595807 | T22: =IF($C$8=$BK$5,IF(O22="","",VLOOKUP($C$6+O21+$C$15,Basi!$N$4:$Q$116,2,FALSE)/VLOOKUP($C$6+$C$15,Basi!$N$4:$Q$116,2,FALSE)),IF(O22="","",VLOOKUP($C$6+O21+$C$15,Basi!$S$4:$V$116,2,FALSE)/VLOOKUP($C$6+$C$15,Basi!$S$4:$V$116,2,FALSE))) -> 0.9951595807 | U22: 0.9903425911 | V22: =IF($C$5=$BK$5,IF(O22="","",(VLOOKUP($C$3+O21+$C$15,Basi!$N$4:$Q$116,2,FALSE)-VLOOKUP($C$3+O22+$C$15,Basi!$N$4:$Q$116,2,FALSE))/VLOOKUP($C$3+O21,Basi!$N$4:$Q$116,2,FALSE)),IF(O22="","",(VLOOKUP($C$3+O21+$C$15,Basi!$S$4:$V$116,2,FALSE)-VLOOKUP($C$3+O22+$C$15,Basi!$S$4:$V$116,2,FALSE))/VLOOKUP($C$3+O21,Basi!$S$4:$V$116,2,FALSE))) -> 0.0003112235225 | W22: =IF($C$8=$BK$5,IF(O22="","",(VLOOKUP($C$6+O21+$C$15,Basi!$N$4:$Q$116,2,FALSE)-VLOOKUP($C$6+O22+$C$15,Basi!$N$4:$Q$116,2,FALSE))/VLOOKUP($C$6+O21,Basi!$N$4:$Q$116,2,FALSE)),IF(O22="","",(VLOOKUP($C$6+O21+$C$15,Basi!$S$4:$V$116,2,FALSE)-VLOOKUP($C$6+O22+$C$15,Basi!$S$4:$V$116,2,FALSE))/VLOOKUP($C$6+O21,Basi!$S$4:$V$116,2,FALSE))) -> 0.0003112235225 | X22: 9.686008095e-08 | Y22: 4.843004048e-07 | Z22: 1.000000387 | AA22: 0.0003111266624 | AB22: 0.0003111266624 | AC22: 0.0003111265419 | AD22: 0.0003111265419 | AE22: 4.843002171e-07 | AF22: 0.0006232216842 | AH22: 15 | AI22: 0.0003404999267 | AJ22: 0.0003376622648
B23: Centralizza | C23: sì | E23: 2 | F23: 0.75 | G23: 1.75 | H23: 0.9659389961 | I23: =IF(G23>$C$9,0,SUM(H23:$H$362)*$C$10) -> 178352.0978 | J23: 184336.714 | K23: 3.088401006e-05 | L23: 5.508227981 | M23: 0 | O23: 20 | R23: 1 | S23: =IF($C$5=$BK$5,IF(O23="","",VLOOKUP($C$3+O22+$C$15,Basi!$N$4:$Q$116,2,FALSE)/VLOOKUP($C$3+$C$15,Basi!$N$4:$Q$116,2,FALSE)),IF(O23="","",VLOOKUP($C$3+O22+$C$15,Basi!$S$4:$V$116,2,FALSE)/VLOOKUP($C$3+$C$15,Basi!$S$4:$V$116,2,FALSE))) -> 0.9948498637 | T23: =IF($C$8=$BK$5,IF(O23="","",VLOOKUP($C$6+O22+$C$15,Basi!$N$4:$Q$116,2,FALSE)/VLOOKUP($C$6+$C$15,Basi!$N$4:$Q$116,2,FALSE)),IF(O23="","",VLOOKUP($C$6+O22+$C$15,Basi!$S$4:$V$116,2,FALSE)/VLOOKUP($C$6+$C$15,Basi!$S$4:$V$116,2,FALSE))) -> 0.9948498637 | U23: 0.9897262512 | V23: =IF($C$5=$BK$5,IF(O23="","",(VLOOKUP($C$3+O22+$C$15,Basi!$N$4:$Q$116,2,FALSE)-VLOOKUP($C$3+O23+$C$15,Basi!$N$4:$Q$116,2,FALSE))/VLOOKUP($C$3+O22,Basi!$N$4:$Q$116,2,FALSE)),IF(O23="","",(VLOOKUP($C$3+O22+$C$15,Basi!$S$4:$V$116,2,FALSE)-VLOOKUP($C$3+O23+$C$15,Basi!$S$4:$V$116,2,FALSE))/VLOOKUP($C$3+O22,Basi!$S$4:$V$116,2,FALSE))) -> 0.0003343676865 | W23: =IF($C$8=$BK$5,IF(O23="","",(VLOOKUP($C$6+O22+$C$15,Basi!$N$4:$Q$116,2,FALSE)-VLOOKUP($C$6+O23+$C$15,Basi!$N$4:$Q$116,2,FALSE))/VLOOKUP($C$6+O22,Basi!$N$4:$Q$116,2,FALSE)),IF(O23="","",(VLOOKUP($C$6+O22+$C$15,Basi!$S$4:$V$116,2,FALSE)-VLOOKUP($C$6+O23+$C$15,Basi!$S$4:$V$116,2,FALSE))/VLOOKUP($C$6+O22,Basi!$S$4:$V$116,2,FALSE))) -> 0.0003343676865 | X23: 1.118017498e-07 | Y23: 5.590087489e-07 | Z23: 1.000000447 | AA23: 0.0003342558848 | AB23: 0.0003342558848 | AC23: 0.0003342557353 | AD23: 0.0003342557353 | AE23: 5.590084989e-07 | AF23: 0.0006696294876 | AH23: 16 | AI23: 0.0004586163835 | AJ23: 0.0004546396223
E24: 2 | F24: 0.8333333333 | G24: 1.833333333 | H24: 0.9643462998 | I24: =IF(G24>$C$9,0,SUM(H24:$H$362)*$C$10) -> 177386.1588 | J24: 183641.1611 | K24: 3.088401006e-05 | L24: 5.478395911 | M24: 0 | S24: =IF($C$5=$BK$5,IF(O24="","",VLOOKUP($C$3+O23+$C$15,Basi!$N$4:$Q$116,2,FALSE)/VLOOKUP($C$3+$C$15,Basi!$N$4:$Q$116,2,FALSE)),IF(O24="","",VLOOKUP($C$3+O23+$C$15,Basi!$S$4:$V$116,2,FALSE)/VLOOKUP($C$3+$C$15,Basi!$S$4:$V$116,2,FALSE))) ->  | T24: =IF($C$8=$BK$5,IF(O24="","",VLOOKUP($C$6+O23+$C$15,Basi!$N$4:$Q$116,2,FALSE)/VLOOKUP($C$6+$C$15,Basi!$N$4:$Q$116,2,FALSE)),IF(O24="","",VLOOKUP($C$6+O23+$C$15,Basi!$S$4:$V$116,2,FALSE)/VLOOKUP($C$6+$C$15,Basi!$S$4:$V$116,2,FALSE))) ->  | V24: =IF($C$5=$BK$5,IF(O24="","",(VLOOKUP($C$3+O23+$C$15,Basi!$N$4:$Q$116,2,FALSE)-VLOOKUP($C$3+O24+$C$15,Basi!$N$4:$Q$116,2,FALSE))/VLOOKUP($C$3+O23,Basi!$N$4:$Q$116,2,FALSE)),IF(O24="","",(VLOOKUP($C$3+O23+$C$15,Basi!$S$4:$V$116,2,FALSE)-VLOOKUP($C$3+O24+$C$15,Basi!$S$4:$V$116,2,FALSE))/VLOOKUP($C$3+O23,Basi!$S$4:$V$116,2,FALSE))) ->  | W24: =IF($C$8=$BK$5,IF(O24="","",(VLOOKUP($C$6+O23+$C$15,Basi!$N$4:$Q$116,2,FALSE)-VLOOKUP($C$6+O24+$C$15,Basi!$N$4:$Q$116,2,FALSE))/VLOOKUP($C$6+O23,Basi!$N$4:$Q$116,2,FALSE)),IF(O24="","",(VLOOKUP($C$6+O23+$C$15,Basi!$S$4:$V$116,2,FALSE)-VLOOKUP($C$6+O24+$C$15,Basi!$S$4:$V$116,2,FALSE))/VLOOKUP($C$6+O23,Basi!$S$4:$V$116,2,FALSE))) ->  | AH24: 17 | AI24: 0.0005375709591 | AJ24: 0.0005326654165
B25: Calcoli | E25: 2 | F25: 0.9166666667 | G25: 1.916666667 | H25: 0.9627562296 | I25: =IF(G25>$C$9,0,SUM(H25:$H$362)*$C$10) -> 176421.8125 | J25: 182944.4594 | K25: 3.088401006e-05 | L25: 5.448613031 | M25: 0 | S25: =IF($C$5=$BK$5,IF(O25="","",VLOOKUP($C$3+O24+$C$15,Basi!$N$4:$Q$116,2,FALSE)/VLOOKUP($C$3+$C$15,Basi!$N$4:$Q$116,2,FALSE)),IF(O25="","",VLOOKUP($C$3+O24+$C$15,Basi!$S$4:$V$116,2,FALSE)/VLOOKUP($C$3+$C$15,Basi!$S$4:$V$116,2,FALSE))) ->  | T25: =IF($C$8=$BK$5,IF(O25="","",VLOOKUP($C$6+O24+$C$15,Basi!$N$4:$Q$116,2,FALSE)/VLOOKUP($C$6+$C$15,Basi!$N$4:$Q$116,2,FALSE)),IF(O25="","",VLOOKUP($C$6+O24+$C$15,Basi!$S$4:$V$116,2,FALSE)/VLOOKUP($C$6+$C$15,Basi!$S$4:$V$116,2,FALSE))) ->  | V25: =IF($C$5=$BK$5,IF(O25="","",(VLOOKUP($C$3+O24+$C$15,Basi!$N$4:$Q$116,2,FALSE)-VLOOKUP($C$3+O25+$C$15,Basi!$N$4:$Q$116,2,FALSE))/VLOOKUP($C$3+O24,Basi!$N$4:$Q$116,2,FALSE)),IF(O25="","",(VLOOKUP($C$3+O24+$C$15,Basi!$S$4:$V$116,2,FALSE)-VLOOKUP($C$3+O25+$C$15,Basi!$S$4:$V$116,2,FALSE))/VLOOKUP($C$3+O24,Basi!$S$4:$V$116,2,FALSE))) ->  | W25: =IF($C$8=$BK$5,IF(O25="","",(VLOOKUP($C$6+O24+$C$15,Basi!$N$4:$Q$116,2,FALSE)-VLOOKUP($C$6+O25+$C$15,Basi!$N$4:$Q$116,2,FALSE))/VLOOKUP($C$6+O24,Basi!$N$4:$Q$116,2,FALSE)),IF(O25="","",(VLOOKUP($C$6+O24+$C$15,Basi!$S$4:$V$116,2,FALSE)-VLOOKUP($C$6+O25+$C$15,Basi!$S$4:$V$116,2,FALSE))/VLOOKUP($C$6+O24,Basi!$S$4:$V$116,2,FALSE))) ->  | AH25: 18 | AI25: 0.0006232216842 | AJ25: 0.0006172029776
B26: Frazionamento rendita | C26: =1/VLOOKUP(C11,BL4:BN9,2,FALSE) -> 0.08333333333 | E26: 2 | F26: 1 | G26: 2 | H26: 0.9611687812 | I26: =IF(G26>$C$9,0,SUM(H26:$H$362)*$C$10) -> 175459.0562 | J26: 182246.607 | K26: 3.088401006e-05 | L26: 5.418879258 | M26: 0 | S26: =IF($C$5=$BK$5,IF(O26="","",VLOOKUP($C$3+O25+$C$15,Basi!$N$4:$Q$116,2,FALSE)/VLOOKUP($C$3+$C$15,Basi!$N$4:$Q$116,2,FALSE)),IF(O26="","",VLOOKUP($C$3+O25+$C$15,Basi!$S$4:$V$116,2,FALSE)/VLOOKUP($C$3+$C$15,Basi!$S$4:$V$116,2,FALSE))) ->  | T26: =IF($C$8=$BK$5,IF(O26="","",VLOOKUP($C$6+O25+$C$15,Basi!$N$4:$Q$116,2,FALSE)/VLOOKUP($C$6+$C$15,Basi!$N$4:$Q$116,2,FALSE)),IF(O26="","",VLOOKUP($C$6+O25+$C$15,Basi!$S$4:$V$116,2,FALSE)/VLOOKUP($C$6+$C$15,Basi!$S$4:$V$116,2,FALSE))) ->  | V26: =IF($C$5=$BK$5,IF(O26="","",(VLOOKUP($C$3+O25+$C$15,Basi!$N$4:$Q$116,2,FALSE)-VLOOKUP($C$3+O26+$C$15,Basi!$N$4:$Q$116,2,FALSE))/VLOOKUP($C$3+O25,Basi!$N$4:$Q$116,2,FALSE)),IF(O26="","",(VLOOKUP($C$3+O25+$C$15,Basi!$S$4:$V$116,2,FALSE)-VLOOKUP($C$3+O26+$C$15,Basi!$S$4:$V$116,2,FALSE))/VLOOKUP($C$3+O25,Basi!$S$4:$V$116,2,FALSE))) ->  | W26: =IF($C$8=$BK$5,IF(O26="","",(VLOOKUP($C$6+O25+$C$15,Basi!$N$4:$Q$116,2,FALSE)-VLOOKUP($C$6+O26+$C$15,Basi!$N$4:$Q$116,2,FALSE))/VLOOKUP($C$6+O25,Basi!$N$4:$Q$116,2,FALSE)),IF(O26="","",(VLOOKUP($C$6+O25+$C$15,Basi!$S$4:$V$116,2,FALSE)-VLOOKUP($C$6+O26+$C$15,Basi!$S$4:$V$116,2,FALSE))/VLOOKUP($C$6+O25,Basi!$S$4:$V$116,2,FALSE))) ->  | AH26: 19 | AI26: 0.0006696294876 | AJ26: 0.0006627498824
B27: Coefficiente di attualizzazione | C27: =1/(1+$C$18) -> 0.9803921569 | E27: 3 | F27: 0.08333333333 | G27: 2.083333333 | H27: 0.9595839503 | I27: =IF(G27>$C$9,0,SUM(H27:$H$362)*$C$10) -> 174497.8874 | J27: 181547.6021 | K27: 2.275021273e-05 | L27: 3.969864061 | M27: 0 | S27: =IF($C$5=$BK$5,IF(O27="","",VLOOKUP($C$3+O26+$C$15,Basi!$N$4:$Q$116,2,FALSE)/VLOOKUP($C$3+$C$15,Basi!$N$4:$Q$116,2,FALSE)),IF(O27="","",VLOOKUP($C$3+O26+$C$15,Basi!$S$4:$V$116,2,FALSE)/VLOOKUP($C$3+$C$15,Basi!$S$4:$V$116,2,FALSE))) ->  | T27: =IF($C$8=$BK$5,IF(O27="","",VLOOKUP($C$6+O26+$C$15,Basi!$N$4:$Q$116,2,FALSE)/VLOOKUP($C$6+$C$15,Basi!$N$4:$Q$116,2,FALSE)),IF(O27="","",VLOOKUP($C$6+O26+$C$15,Basi!$S$4:$V$116,2,FALSE)/VLOOKUP($C$6+$C$15,Basi!$S$4:$V$116,2,FALSE))) ->  | V27: =IF($C$5=$BK$5,IF(O27="","",(VLOOKUP($C$3+O26+$C$15,Basi!$N$4:$Q$116,2,FALSE)-VLOOKUP($C$3+O27+$C$15,Basi!$N$4:$Q$116,2,FALSE))/VLOOKUP($C$3+O26,Basi!$N$4:$Q$116,2,FALSE)),IF(O27="","",(VLOOKUP($C$3+O26+$C$15,Basi!$S$4:$V$116,2,FALSE)-VLOOKUP($C$3+O27+$C$15,Basi!$S$4:$V$116,2,FALSE))/VLOOKUP($C$3+O26,Basi!$S$4:$V$116,2,FALSE))) ->  | W27: =IF($C$8=$BK$5,IF(O27="","",(VLOOKUP($C$6+O26+$C$15,Basi!$N$4:$Q$116,2,FALSE)-VLOOKUP($C$6+O27+$C$15,Basi!$N$4:$Q$116,2,FALSE))/VLOOKUP($C$6+O26,Basi!$N$4:$Q$116,2,FALSE)),IF(O27="","",(VLOOKUP($C$6+O26+$C$15,Basi!$S$4:$V$116,2,FALSE)-VLOOKUP($C$6+O27+$C$15,Basi!$S$4:$V$116,2,FALSE))/VLOOKUP($C$6+O26,Basi!$S$4:$V$116,2,FALSE))) ->  | AH27: 20 | AI27: 0.0007029616953 | AL27: =IF($G27>$C$49,0,$C$46-$C$35-$C$36) -> 34.78 | AM27: =IF($G27>$C$49,0,$C$58*$C$39+$C$62*$C$40) -> 6.5568 | AN27: =AL27/(1+$C$63)^($E27-1) -> 32.15606509 | AO27: =AM27/(1+$C$63)^($E27-1) -> 6.062130178
B28: Addizionale di frazionamento TCM | C28: =VLOOKUP(C13,BL4:BN9,3,FALSE) -> 0 | E28: 3 | F28: 0.1666666667 | G28: 2.166666667 | H28: 0.9580017326 | I28: =IF(G28>$C$9,0,SUM(H28:$H$362)*$C$10) -> 173538.3035 | J28: 180847.4427 | K28: 2.275021273e-05 | L28: 3.948033322 | M28: 0 | S28: =IF($C$5=$BK$5,IF(O28="","",VLOOKUP($C$3+O27+$C$15,Basi!$N$4:$Q$116,2,FALSE)/VLOOKUP($C$3+$C$15,Basi!$N$4:$Q$116,2,FALSE)),IF(O28="","",VLOOKUP($C$3+O27+$C$15,Basi!$S$4:$V$116,2,FALSE)/VLOOKUP($C$3+$C$15,Basi!$S$4:$V$116,2,FALSE))) ->  | T28: =IF($C$8=$BK$5,IF(O28="","",VLOOKUP($C$6+O27+$C$15,Basi!$N$4:$Q$116,2,FALSE)/VLOOKUP($C$6+$C$15,Basi!$N$4:$Q$116,2,FALSE)),IF(O28="","",VLOOKUP($C$6+O27+$C$15,Basi!$S$4:$V$116,2,FALSE)/VLOOKUP($C$6+$C$15,Basi!$S$4:$V$116,2,FALSE))) ->  | V28: =IF($C$5=$BK$5,IF(O28="","",(VLOOKUP($C$3+O27+$C$15,Basi!$N$4:$Q$116,2,FALSE)-VLOOKUP($C$3+O28+$C$15,Basi!$N$4:$Q$116,2,FALSE))/VLOOKUP($C$3+O27,Basi!$N$4:$Q$116,2,FALSE)),IF(O28="","",(VLOOKUP($C$3+O27+$C$15,Basi!$S$4:$V$116,2,FALSE)-VLOOKUP($C$3+O28+$C$15,Basi!$S$4:$V$116,2,FALSE))/VLOOKUP($C$3+O27,Basi!$S$4:$V$116,2,FALSE))) ->  | W28: =IF($C$8=$BK$5,IF(O28="","",(VLOOKUP($C$6+O27+$C$15,Basi!$N$4:$Q$116,2,FALSE)-VLOOKUP($C$6+O28+$C$15,Basi!$N$4:$Q$116,2,FALSE))/VLOOKUP($C$6+O27,Basi!$N$4:$Q$116,2,FALSE)),IF(O28="","",(VLOOKUP($C$6+O27+$C$15,Basi!$S$4:$V$116,2,FALSE)-VLOOKUP($C$6+O28+$C$15,Basi!$S$4:$V$116,2,FALSE))/VLOOKUP($C$6+O27,Basi!$S$4:$V$116,2,FALSE))) ->  | AH28: 21 | AI28: 0.0007298261536
B29: A | C29: =SUMPRODUCT(AC4:AC33,R41:R70,U4:U33)+SUMPRODUCT(AD4:AD33,R41:R70,U4:U33)+2*SUMPRODUCT(AE4:AE33,R41:R70,U4:U33) -> 0.009815228893 | E29: 3 | F29: 0.25 | G29: 2.25 | H29: 0.9564221237 | I29: =IF(G29>$C$9,0,SUM(H29:$H$362)*$C$10) -> 172580.3018 | J29: 180146.127 | K29: 2.275021273e-05 | L29: 3.926238579 | M29: 0 | S29: =IF($C$5=$BK$5,IF(O29="","",VLOOKUP($C$3+O28+$C$15,Basi!$N$4:$Q$116,2,FALSE)/VLOOKUP($C$3+$C$15,Basi!$N$4:$Q$116,2,FALSE)),IF(O29="","",VLOOKUP($C$3+O28+$C$15,Basi!$S$4:$V$116,2,FALSE)/VLOOKUP($C$3+$C$15,Basi!$S$4:$V$116,2,FALSE))) ->  | T29: =IF($C$8=$BK$5,IF(O29="","",VLOOKUP($C$6+O28+$C$15,Basi!$N$4:$Q$116,2,FALSE)/VLOOKUP($C$6+$C$15,Basi!$N$4:$Q$116,2,FALSE)),IF(O29="","",VLOOKUP($C$6+O28+$C$15,Basi!$S$4:$V$116,2,FALSE)/VLOOKUP($C$6+$C$15,Basi!$S$4:$V$116,2,FALSE))) ->  | V29: =IF($C$5=$BK$5,IF(O29="","",(VLOOKUP($C$3+O28+$C$15,Basi!$N$4:$Q$116,2,FALSE)-VLOOKUP($C$3+O29+$C$15,Basi!$N$4:$Q$116,2,FALSE))/VLOOKUP($C$3+O28,Basi!$N$4:$Q$116,2,FALSE)),IF(O29="","",(VLOOKUP($C$3+O28+$C$15,Basi!$S$4:$V$116,2,FALSE)-VLOOKUP($C$3+O29+$C$15,Basi!$S$4:$V$116,2,FALSE))/VLOOKUP($C$3+O28,Basi!$S$4:$V$116,2,FALSE))) ->  | W29: =IF($C$8=$BK$5,IF(O29="","",(VLOOKUP($C$6+O28+$C$15,Basi!$N$4:$Q$116,2,FALSE)-VLOOKUP($C$6+O29+$C$15,Basi!$N$4:$Q$116,2,FALSE))/VLOOKUP($C$6+O28,Basi!$N$4:$Q$116,2,FALSE)),IF(O29="","",(VLOOKUP($C$6+O28+$C$15,Basi!$S$4:$V$116,2,FALSE)-VLOOKUP($C$6+O29+$C$15,Basi!$S$4:$V$116,2,FALSE))/VLOOKUP($C$6+O28,Basi!$S$4:$V$116,2,FALSE))) ->  | AH29: 22 | AI29: 0.0007632850075
B30: aan1 | C30: =SUMPRODUCT(P40:P69,Q40:Q69) -> 13.02248715 | E30: 3 | F30: 0.3333333333 | G30: 2.333333333 | H30: 0.9548451193 | I30: =IF(G30>$C$9,0,SUM(H30:$H$362)*$C$10) -> 171623.8796 | J30: 179443.653 | K30: 2.275021273e-05 | L30: 3.904479772 | M30: 0 | S30: =IF($C$5=$BK$5,IF(O30="","",VLOOKUP($C$3+O29+$C$15,Basi!$N$4:$Q$116,2,FALSE)/VLOOKUP($C$3+$C$15,Basi!$N$4:$Q$116,2,FALSE)),IF(O30="","",VLOOKUP($C$3+O29+$C$15,Basi!$S$4:$V$116,2,FALSE)/VLOOKUP($C$3+$C$15,Basi!$S$4:$V$116,2,FALSE))) ->  | T30: =IF($C$8=$BK$5,IF(O30="","",VLOOKUP($C$6+O29+$C$15,Basi!$N$4:$Q$116,2,FALSE)/VLOOKUP($C$6+$C$15,Basi!$N$4:$Q$116,2,FALSE)),IF(O30="","",VLOOKUP($C$6+O29+$C$15,Basi!$S$4:$V$116,2,FALSE)/VLOOKUP($C$6+$C$15,Basi!$S$4:$V$116,2,FALSE))) ->  | V30: =IF($C$5=$BK$5,IF(O30="","",(VLOOKUP($C$3+O29+$C$15,Basi!$N$4:$Q$116,2,FALSE)-VLOOKUP($C$3+O30+$C$15,Basi!$N$4:$Q$116,2,FALSE))/VLOOKUP($C$3+O29,Basi!$N$4:$Q$116,2,FALSE)),IF(O30="","",(VLOOKUP($C$3+O29+$C$15,Basi!$S$4:$V$116,2,FALSE)-VLOOKUP($C$3+O30+$C$15,Basi!$S$4:$V$116,2,FALSE))/VLOOKUP($C$3+O29,Basi!$S$4:$V$116,2,FALSE))) ->  | W30: =IF($C$8=$BK$5,IF(O30="","",(VLOOKUP($C$6+O29+$C$15,Basi!$N$4:$Q$116,2,FALSE)-VLOOKUP($C$6+O30+$C$15,Basi!$N$4:$Q$116,2,FALSE))/VLOOKUP($C$6+O29,Basi!$N$4:$Q$116,2,FALSE)),IF(O30="","",(VLOOKUP($C$6+O29+$C$15,Basi!$S$4:$V$116,2,FALSE)-VLOOKUP($C$6+O30+$C$15,Basi!$S$4:$V$116,2,FALSE))/VLOOKUP($C$6+O29,Basi!$S$4:$V$116,2,FALSE))) ->  | AH30: 23 | AI30: 0.0007572924225
B31: Taso puro complementare Infortuni | C31: =IF(C14=BO4,0,0.0016) -> 0 | E31: 3 | F31: 0.4166666667 | G31: 2.416666667 | H31: 0.9532707152 | I31: =IF(G31>$C$9,0,SUM(H31:$H$362)*$C$10) -> 170669.0345 | J31: 178740.0187 | K31: 2.275021273e-05 | L31: 3.882756842 | M31: 0 | S31: =IF($C$5=$BK$5,IF(O31="","",VLOOKUP($C$3+O30+$C$15,Basi!$N$4:$Q$116,2,FALSE)/VLOOKUP($C$3+$C$15,Basi!$N$4:$Q$116,2,FALSE)),IF(O31="","",VLOOKUP($C$3+O30+$C$15,Basi!$S$4:$V$116,2,FALSE)/VLOOKUP($C$3+$C$15,Basi!$S$4:$V$116,2,FALSE))) ->  | T31: =IF($C$8=$BK$5,IF(O31="","",VLOOKUP($C$6+O30+$C$15,Basi!$N$4:$Q$116,2,FALSE)/VLOOKUP($C$6+$C$15,Basi!$N$4:$Q$116,2,FALSE)),IF(O31="","",VLOOKUP($C$6+O30+$C$15,Basi!$S$4:$V$116,2,FALSE)/VLOOKUP($C$6+$C$15,Basi!$S$4:$V$116,2,FALSE))) ->  | V31: =IF($C$5=$BK$5,IF(O31="","",(VLOOKUP($C$3+O30+$C$15,Basi!$N$4:$Q$116,2,FALSE)-VLOOKUP($C$3+O31+$C$15,Basi!$N$4:$Q$116,2,FALSE))/VLOOKUP($C$3+O30,Basi!$N$4:$Q$116,2,FALSE)),IF(O31="","",(VLOOKUP($C$3+O30+$C$15,Basi!$S$4:$V$116,2,FALSE)-VLOOKUP($C$3+O31+$C$15,Basi!$S$4:$V$116,2,FALSE))/VLOOKUP($C$3+O30,Basi!$S$4:$V$116,2,FALSE))) ->  | W31: =IF($C$8=$BK$5,IF(O31="","",(VLOOKUP($C$6+O30+$C$15,Basi!$N$4:$Q$116,2,FALSE)-VLOOKUP($C$6+O31+$C$15,Basi!$N$4:$Q$116,2,FALSE))/VLOOKUP($C$6+O30,Basi!$N$4:$Q$116,2,FALSE)),IF(O31="","",(VLOOKUP($C$6+O30+$C$15,Basi!$S$4:$V$116,2,FALSE)-VLOOKUP($C$6+O31+$C$15,Basi!$S$4:$V$116,2,FALSE))/VLOOKUP($C$6+O30,Basi!$S$4:$V$116,2,FALSE))) ->  | AH31: 24 | AI31: 0.0007842655613
B32: capitale assicurato iniziale | C32: =I3+C12 -> 223009.4268 | E32: 3 | F32: 0.5 | G32: 2.5 | H32: 0.9516989071 | I32: =IF(G32>$C$9,0,SUM(H32:$H$362)*$C$10) -> 169715.7638 | J32: 178035.2224 | K32: 2.275021273e-05 | L32: 3.861069731 | M32: 0 | S32: =IF($C$5=$BK$5,IF(O32="","",VLOOKUP($C$3+O31+$C$15,Basi!$N$4:$Q$116,2,FALSE)/VLOOKUP($C$3+$C$15,Basi!$N$4:$Q$116,2,FALSE)),IF(O32="","",VLOOKUP($C$3+O31+$C$15,Basi!$S$4:$V$116,2,FALSE)/VLOOKUP($C$3+$C$15,Basi!$S$4:$V$116,2,FALSE))) ->  | T32: =IF($C$8=$BK$5,IF(O32="","",VLOOKUP($C$6+O31+$C$15,Basi!$N$4:$Q$116,2,FALSE)/VLOOKUP($C$6+$C$15,Basi!$N$4:$Q$116,2,FALSE)),IF(O32="","",VLOOKUP($C$6+O31+$C$15,Basi!$S$4:$V$116,2,FALSE)/VLOOKUP($C$6+$C$15,Basi!$S$4:$V$116,2,FALSE))) ->  | V32: =IF($C$5=$BK$5,IF(O32="","",(VLOOKUP($C$3+O31+$C$15,Basi!$N$4:$Q$116,2,FALSE)-VLOOKUP($C$3+O32+$C$15,Basi!$N$4:$Q$116,2,FALSE))/VLOOKUP($C$3+O31,Basi!$N$4:$Q$116,2,FALSE)),IF(O32="","",(VLOOKUP($C$3+O31+$C$15,Basi!$S$4:$V$116,2,FALSE)-VLOOKUP($C$3+O32+$C$15,Basi!$S$4:$V$116,2,FALSE))/VLOOKUP($C$3+O31,Basi!$S$4:$V$116,2,FALSE))) ->  | W32: =IF($C$8=$BK$5,IF(O32="","",(VLOOKUP($C$6+O31+$C$15,Basi!$N$4:$Q$116,2,FALSE)-VLOOKUP($C$6+O32+$C$15,Basi!$N$4:$Q$116,2,FALSE))/VLOOKUP($C$6+O31,Basi!$N$4:$Q$116,2,FALSE)),IF(O32="","",(VLOOKUP($C$6+O31+$C$15,Basi!$S$4:$V$116,2,FALSE)-VLOOKUP($C$6+O32+$C$15,Basi!$S$4:$V$116,2,FALSE))/VLOOKUP($C$6+O31,Basi!$S$4:$V$116,2,FALSE))) ->  | AH32: 25 | AI32: 0.000778266203 | AJ32: =AI32*U29 -> 
B33: premio annuo puro rendita | C33: =ROUND((SUM(L3:L362)/C30),2) -> 112.3 | E33: 3 | F33: 0.5833333333 | G33: 2.583333333 | H33: 0.9501296907 | I33: =IF(G33>$C$9,0,SUM(H33:$H$362)*$C$10) -> 168764.0649 | J33: 177329.2621 | K33: 2.275021273e-05 | L33: 3.839418378 | M33: 0 | Q33: =IF(O35="","",S35*T35) ->  | S33: =IF($C$5=$BK$5,IF(O33="","",VLOOKUP($C$3+O32+$C$15,Basi!$N$4:$Q$116,2,FALSE)/VLOOKUP($C$3+$C$15,Basi!$N$4:$Q$116,2,FALSE)),IF(O33="","",VLOOKUP($C$3+O32+$C$15,Basi!$S$4:$V$116,2,FALSE)/VLOOKUP($C$3+$C$15,Basi!$S$4:$V$116,2,FALSE))) ->  | T33: =IF($C$8=$BK$5,IF(O33="","",VLOOKUP($C$6+O32+$C$15,Basi!$N$4:$Q$116,2,FALSE)/VLOOKUP($C$6+$C$15,Basi!$N$4:$Q$116,2,FALSE)),IF(O33="","",VLOOKUP($C$6+O32+$C$15,Basi!$S$4:$V$116,2,FALSE)/VLOOKUP($C$6+$C$15,Basi!$S$4:$V$116,2,FALSE))) ->  | V33: =IF($C$5=$BK$5,IF(O33="","",(VLOOKUP($C$3+O32+$C$15,Basi!$N$4:$Q$116,2,FALSE)-VLOOKUP($C$3+O33+$C$15,Basi!$N$4:$Q$116,2,FALSE))/VLOOKUP($C$3+O32,Basi!$N$4:$Q$116,2,FALSE)),IF(O33="","",(VLOOKUP($C$3+O32+$C$15,Basi!$S$4:$V$116,2,FALSE)-VLOOKUP($C$3+O33+$C$15,Basi!$S$4:$V$116,2,FALSE))/VLOOKUP($C$3+O32,Basi!$S$4:$V$116,2,FALSE))) ->  | W33: =IF($C$8=$BK$5,IF(O33="","",(VLOOKUP($C$6+O32+$C$15,Basi!$N$4:$Q$116,2,FALSE)-VLOOKUP($C$6+O33+$C$15,Basi!$N$4:$Q$116,2,FALSE))/VLOOKUP($C$6+O32,Basi!$N$4:$Q$116,2,FALSE)),IF(O33="","",(VLOOKUP($C$6+O32+$C$15,Basi!$S$4:$V$116,2,FALSE)-VLOOKUP($C$6+O33+$C$15,Basi!$S$4:$V$116,2,FALSE))/VLOOKUP($C$6+O32,Basi!$S$4:$V$116,2,FALSE))) ->  | AH33: 26 | AI33: 0.0007656286762
B34: premio annuo puro compl. TCM | C34: =ROUND((C29*C12/C30),2) -> 18.84 | E34: 3 | F34: 0.6666666667 | G34: 2.666666667 | H34: 0.9485630617 | I34: =IF(G34>$C$9,0,SUM(H34:$H$362)*$C$10) -> 167813.9352 | J34: 176622.1357 | K34: 2.275021273e-05 | L34: 3.817802725 | M34: 0 | AH34: 27 | AI34: 0.0007793648933
B35: premio annuo puro base | C35: =C33+C34 -> 131.14 | E35: 3 | F35: 0.75 | G35: 2.75 | H35: 0.9469990158 | I35: =IF(G35>$C$9,0,SUM(H35:$H$362)*$C$10) -> 166865.3721 | J35: 175913.8416 | K35: 2.275021273e-05 | L35: 3.796222714 | M35: 0 | AH35: 28 | AI35: 0.000786480611
B36: premio annuo puro infortuni | C36: =ROUND(C32*C31,2) -> 0 | E36: 3 | F36: 0.8333333333 | G36: 2.833333333 | H36: 0.9454375488 | I36: =IF(G36>$C$9,0,SUM(H36:$H$362)*$C$10) -> 165918.3731 | J36: 175204.3776 | K36: 2.275021273e-05 | L36: 3.774678285 | M36: 0 | AH36: 29 | AI36: 0.0007671500989
B37: premio annuo netto rendita | C37: =TRUNC(C33/(1-C21),2) -> 140.37 | E37: 3 | F37: 0.9166666667 | G37: 2.916666667 | H37: 0.9438786565 | I37: =IF(G37>$C$9,0,SUM(H37:$H$362)*$C$10) -> 164972.9356 | J37: 174493.7418 | K37: 2.275021273e-05 | L37: 3.75316938 | M37: 0
B38: premio annuo netto compl. TCM | C38: =TRUNC(C34/(1-C21),2) -> 23.55 | E38: 3 | F38: 1 | G38: 3 | H38: 0.9423223345 | I38: =IF(G38>$C$9,0,SUM(H38:$H$362)*$C$10) -> 164029.0569 | J38: 173781.9324 | K38: 2.275021273e-05 | L38: 3.731695939 | M38: 0
B39: premio annuo netto base | C39: =C38+C37 -> 163.92 | E39: 4 | F39: 0.08333333333 | G39: 3.083333333 | H39: 0.9407685788 | I39: =IF(G39>$C$9,0,SUM(H39:$H$362)*$C$10) -> 163086.7346 | J39: 173068.9474 | K39: 1.733024499e-05 | L39: 2.826333065 | M39: 0 | O39: t | P39: v(0,t) | Q39: p(A,B) | R39: v(0,t) | S39: p(A) | T39: p(B) | U39: p(A,B) | V39: q(A) | W39: q(B) | X39: q(A)q(B) | Y39: Kq(A)q(B) | Z39: 1+(k-1)q(A)q(B) | AA39: q(A)-q(A)q(B) | AB39: q(B)-q(A)q(B) | AC39: morte A | AD39: morte B | AE39: comorienza AB | AL39: =IF($G39>$C$49,0,$C$46-$C$35-$C$36) -> 34.78 | AM39: =IF($G39>$C$49,0,$C$58*$C$39+$C$62*$C$40) -> 6.5568 | AN39: =AL39/(1+$C$63)^($E39-1) -> 30.91929335 | AO39: =AM39/(1+$C$63)^($E39-1) -> 5.828971325
B40: premio annuo netto infortuni | C40: =C36/(1-C21) -> 0 | E40: 4 | F40: 0.1666666667 | G40: 3.166666667 | H40: 0.9392173849 | I40: =IF(G40>$C$9,0,SUM(H40:$H$362)*$C$10) -> 162145.966 | J40: 172354.7849 | K40: 1.733024499e-05 | L40: 2.810029315 | M40: 0 | O40: 0 | P40: 1 | Q40: =IF(O41="","",S41*T41) -> 1
B41: premio annuo netto infortuni tassato | C41: =ROUND(C40/(1-2.5%),2) -> 0 | E41: 4 | F41: 0.25 | G41: 3.25 | H41: 0.9376687487 | I41: =IF(G41>$C$9,0,SUM(H41:$H$362)*$C$10) -> 161206.7486 | J41: 171639.4428 | K41: 1.733024499e-05 | L41: 2.793752448 | M41: 0 | O41: 1 | P41: =IF(OR(O42="",O42>$C$49),"",(1+$C$18)^(-(O41))) -> 0.9803921569 | Q41: =IF(OR(O42="",O42>$C$49),"",S42*T42) -> 0.9943854031 | R41: =IF(O41="","",(1+$C$18)^(-(O41-IF($C$23="no",0,0.5)))) -> 0.990147543 | S41: =IF($C$5=$BK$5,IF(O41="","",VLOOKUP($C$3+O40+$C$15,Basi!$N$4:$Q$116,2,FALSE)/VLOOKUP($C$3+$C$15,Basi!$N$4:$Q$116,2,FALSE)),IF(O41="","",VLOOKUP($C$3+O40+$C$15,Basi!$S$4:$V$116,2,FALSE)/VLOOKUP($C$3+$C$15,Basi!$S$4:$V$116,2,FALSE))) -> 1 | T41: =IF($C$8=$BK$5,IF(O41="","",VLOOKUP($C$6+O40+$C$15,Basi!$N$4:$Q$116,2,FALSE)/VLOOKUP($C$6+$C$15,Basi!$N$4:$Q$116,2,FALSE)),IF(O41="","",VLOOKUP($C$6+O40+$C$15,Basi!$S$4:$V$116,2,FALSE)/VLOOKUP($C$6+$C$15,Basi!$S$4:$V$116,2,FALSE))) -> 1
B42: premio anuo netto | C42: =C39+C41 -> 163.92 | E42: 4 | F42: 0.3333333333 | G42: 3.333333333 | H42: 0.936122666 | I42: =IF(G42>$C$9,0,SUM(H42:$H$362)*$C$10) -> 160269.0799 | J42: 170922.9193 | K42: 1.733024499e-05 | L42: 2.777502419 | M42: 0 | O42: =IF(O41<$C$9,O41+1,"") -> 2 | P42: 0.9611687812 | Q42: 0.9940154104 | R42: 0.9707328853 | S42: =IF($C$5=$BK$5,IF(O42="","",VLOOKUP($C$3+O41+$C$15,Basi!$N$4:$Q$116,2,FALSE)/VLOOKUP($C$3+$C$15,Basi!$N$4:$Q$116,2,FALSE)),IF(O42="","",VLOOKUP($C$3+O41+$C$15,Basi!$S$4:$V$116,2,FALSE)/VLOOKUP($C$3+$C$15,Basi!$S$4:$V$116,2,FALSE))) -> 0.99718875 | T42: =IF($C$8=$BK$5,IF(O42="","",VLOOKUP($C$6+O41+$C$15,Basi!$N$4:$Q$116,2,FALSE)/VLOOKUP($C$6+$C$15,Basi!$N$4:$Q$116,2,FALSE)),IF(O42="","",VLOOKUP($C$6+O41+$C$15,Basi!$S$4:$V$116,2,FALSE)/VLOOKUP($C$6+$C$15,Basi!$S$4:$V$116,2,FALSE))) -> 0.99718875
E43: 4 | F43: 0.4166666667 | G43: 3.416666667 | H43: 0.9345791326 | I43: =IF(G43>$C$9,0,SUM(H43:$H$362)*$C$10) -> 159332.9572 | J43: 170205.2124 | K43: 1.733024499e-05 | L43: 2.761279183 | M43: 0 | O43: 3 | P43: 0.9423223345 | Q43: 0.9937428013 | R43: 0.9516989071 | S43: =IF($C$5=$BK$5,IF(O43="","",VLOOKUP($C$3+O42+$C$15,Basi!$N$4:$Q$116,2,FALSE)/VLOOKUP($C$3+$C$15,Basi!$N$4:$Q$116,2,FALSE)),IF(O43="","",VLOOKUP($C$3+O42+$C$15,Basi!$S$4:$V$116,2,FALSE)/VLOOKUP($C$3+$C$15,Basi!$S$4:$V$116,2,FALSE))) -> 0.9970032149 | T43: =IF($C$8=$BK$5,IF(O43="","",VLOOKUP($C$6+O42+$C$15,Basi!$N$4:$Q$116,2,FALSE)/VLOOKUP($C$6+$C$15,Basi!$N$4:$Q$116,2,FALSE)),IF(O43="","",VLOOKUP($C$6+O42+$C$15,Basi!$S$4:$V$116,2,FALSE)/VLOOKUP($C$6+$C$15,Basi!$S$4:$V$116,2,FALSE))) -> 0.9970032149
B44: Output | E44: 4 | F44: 0.5 | G44: 3.5 | H44: 0.9330381442 | I44: =IF(G44>$C$9,0,SUM(H44:$H$362)*$C$10) -> 158398.3781 | J44: 169486.3202 | K44: 1.733024499e-05 | L44: 2.745082698 | M44: 0 | O44: 4 | P44: 0.923845426 | Q44: 0.9935351075 | R44: 0.9330381442 | S44: =IF($C$5=$BK$5,IF(O44="","",VLOOKUP($C$3+O43+$C$15,Basi!$N$4:$Q$116,2,FALSE)/VLOOKUP($C$3+$C$15,Basi!$N$4:$Q$116,2,FALSE)),IF(O44="","",VLOOKUP($C$3+O43+$C$15,Basi!$S$4:$V$116,2,FALSE)/VLOOKUP($C$3+$C$15,Basi!$S$4:$V$116,2,FALSE))) -> 0.9968664912 | T44: =IF($C$8=$BK$5,IF(O44="","",VLOOKUP($C$6+O43+$C$15,Basi!$N$4:$Q$116,2,FALSE)/VLOOKUP($C$6+$C$15,Basi!$N$4:$Q$116,2,FALSE)),IF(O44="","",VLOOKUP($C$6+O43+$C$15,Basi!$S$4:$V$116,2,FALSE)/VLOOKUP($C$6+$C$15,Basi!$S$4:$V$116,2,FALSE))) -> 0.9968664912
B45: Primo premio lordo | C45: =C42/VLOOKUP(C13,$BL$4:$BN$9,2,FALSE)*(1+C28)+C19 -> 178.92 | E45: 4 | F45: 0.5833333333 | G45: 3.583333333 | H45: 0.9314996968 | I45: =IF(G45>$C$9,0,SUM(H45:$H$362)*$C$10) -> 157465.3399 | J45: 168766.2406 | K45: 1.733024499e-05 | L45: 2.728912918 | M45: 0 | O45: 5 | P45: 0.9057308098 | Q45: 0.9933598746 | R45: 0.9147432787 | S45: =IF($C$5=$BK$5,IF(O45="","",VLOOKUP($C$3+O44+$C$15,Basi!$N$4:$Q$116,2,FALSE)/VLOOKUP($C$3+$C$15,Basi!$N$4:$Q$116,2,FALSE)),IF(O45="","",VLOOKUP($C$3+O44+$C$15,Basi!$S$4:$V$116,2,FALSE)/VLOOKUP($C$3+$C$15,Basi!$S$4:$V$116,2,FALSE))) -> 0.9967623124 | T45: =IF($C$8=$BK$5,IF(O45="","",VLOOKUP($C$6+O44+$C$15,Basi!$N$4:$Q$116,2,FALSE)/VLOOKUP($C$6+$C$15,Basi!$N$4:$Q$116,2,FALSE)),IF(O45="","",VLOOKUP($C$6+O44+$C$15,Basi!$S$4:$V$116,2,FALSE)/VLOOKUP($C$6+$C$15,Basi!$S$4:$V$116,2,FALSE))) -> 0.9967623124
B46: Premi lordi successivi | C46: =IF(AND(C49=1,C13="annuale"),0,C45+C20-C19) -> 165.92 | E46: 4 | F46: 0.6666666667 | G46: 3.666666667 | H46: 0.929963786 | I46: =IF(G46>$C$9,0,SUM(H46:$H$362)*$C$10) -> 156533.8402 | J46: 168044.9718 | K46: 1.733024499e-05 | L46: 2.712769801 | M46: 0 | O46: 6 | P46: 0.8879713822 | Q46: 0.9931976225 | R46: 0.896807136 | S46: =IF($C$5=$BK$5,IF(O46="","",VLOOKUP($C$3+O45+$C$15,Basi!$N$4:$Q$116,2,FALSE)/VLOOKUP($C$3+$C$15,Basi!$N$4:$Q$116,2,FALSE)),IF(O46="","",VLOOKUP($C$3+O45+$C$15,Basi!$S$4:$V$116,2,FALSE)/VLOOKUP($C$3+$C$15,Basi!$S$4:$V$116,2,FALSE))) -> 0.9966744075 | T46: =IF($C$8=$BK$5,IF(O46="","",VLOOKUP($C$6+O45+$C$15,Basi!$N$4:$Q$116,2,FALSE)/VLOOKUP($C$6+$C$15,Basi!$N$4:$Q$116,2,FALSE)),IF(O46="","",VLOOKUP($C$6+O45+$C$15,Basi!$S$4:$V$116,2,FALSE)/VLOOKUP($C$6+$C$15,Basi!$S$4:$V$116,2,FALSE))) -> 0.9966744075
B47: totale premi versati nel primo anno | C47: =C45+C46*(VLOOKUP(C13,BL4:BN9,2,FALSE)-1) -> 178.92 | E47: 4 | F47: 0.75 | G47: 3.75 | H47: 0.9284304077 | I47: =IF(G47>$C$9,0,SUM(H47:$H$362)*$C$10) -> 155603.8765 | J47: 167322.5117 | K47: 1.733024499e-05 | L47: 2.6966533 | M47: 0 | O47: 7 | P47: 0.8705601786 | Q47: 0.9930418683 | R47: 0.8792226823 | S47: =IF($C$5=$BK$5,IF(O47="","",VLOOKUP($C$3+O46+$C$15,Basi!$N$4:$Q$116,2,FALSE)/VLOOKUP($C$3+$C$15,Basi!$N$4:$Q$116,2,FALSE)),IF(O47="","",VLOOKUP($C$3+O46+$C$15,Basi!$S$4:$V$116,2,FALSE)/VLOOKUP($C$3+$C$15,Basi!$S$4:$V$116,2,FALSE))) -> 0.9965930075 | T47: =IF($C$8=$BK$5,IF(O47="","",VLOOKUP($C$6+O46+$C$15,Basi!$N$4:$Q$116,2,FALSE)/VLOOKUP($C$6+$C$15,Basi!$N$4:$Q$116,2,FALSE)),IF(O47="","",VLOOKUP($C$6+O46+$C$15,Basi!$S$4:$V$116,2,FALSE)/VLOOKUP($C$6+$C$15,Basi!$S$4:$V$116,2,FALSE))) -> 0.9965930075
B48: totale premi versati anni successivi | C48: =IF(C49>1,C46*VLOOKUP(C13,BL4:BN9,2,FALSE),0) -> 165.92 | E48: 4 | F48: 0.8333333333 | G48: 3.833333333 | H48: 0.9268995577 | I48: =IF(G48>$C$9,0,SUM(H48:$H$362)*$C$10) -> 154675.446 | J48: 166598.8584 | K48: 1.733024499e-05 | L48: 2.680563374 | M48: 0 | O48: 8 | P48: 0.8534903712 | Q48: 0.9928861141 | R48: 0.8619830219 | S48: =IF($C$5=$BK$5,IF(O48="","",VLOOKUP($C$3+O47+$C$15,Basi!$N$4:$Q$116,2,FALSE)/VLOOKUP($C$3+$C$15,Basi!$N$4:$Q$116,2,FALSE)),IF(O48="","",VLOOKUP($C$3+O47+$C$15,Basi!$S$4:$V$116,2,FALSE)/VLOOKUP($C$3+$C$15,Basi!$S$4:$V$116,2,FALSE))) -> 0.9965148611 | T48: =IF($C$8=$BK$5,IF(O48="","",VLOOKUP($C$6+O47+$C$15,Basi!$N$4:$Q$116,2,FALSE)/VLOOKUP($C$6+$C$15,Basi!$N$4:$Q$116,2,FALSE)),IF(O48="","",VLOOKUP($C$6+O47+$C$15,Basi!$S$4:$V$116,2,FALSE)/VLOOKUP($C$6+$C$15,Basi!$S$4:$V$116,2,FALSE))) -> 0.9965148611
B49: durata pagamento premi | C49: =IF(C9>=10,C9-5,ROUND(C9/2,0)) -> 15 | E49: 4 | F49: 0.9166666667 | G49: 3.916666667 | H49: 0.9253712319 | I49: =IF(G49>$C$9,0,SUM(H49:$H$362)*$C$10) -> 153748.5465 | J49: 165874.01 | K49: 1.733024499e-05 | L49: 2.664499977 | M49: 0 | O49: 9 | P49: 0.8367552659 | Q49: 0.9927498286 | R49: 0.845081394 | S49: =IF($C$5=$BK$5,IF(O49="","",VLOOKUP($C$3+O48+$C$15,Basi!$N$4:$Q$116,2,FALSE)/VLOOKUP($C$3+$C$15,Basi!$N$4:$Q$116,2,FALSE)),IF(O49="","",VLOOKUP($C$3+O48+$C$15,Basi!$S$4:$V$116,2,FALSE)/VLOOKUP($C$3+$C$15,Basi!$S$4:$V$116,2,FALSE))) -> 0.9964367085 | T49: =IF($C$8=$BK$5,IF(O49="","",VLOOKUP($C$6+O48+$C$15,Basi!$N$4:$Q$116,2,FALSE)/VLOOKUP($C$6+$C$15,Basi!$N$4:$Q$116,2,FALSE)),IF(O49="","",VLOOKUP($C$6+O48+$C$15,Basi!$S$4:$V$116,2,FALSE)/VLOOKUP($C$6+$C$15,Basi!$S$4:$V$116,2,FALSE))) -> 0.9964367085
B50: cumulo premi | C50: =C47+C48*($C$49-1) -> 2501.8 | E50: 4 | F50: 1 | G50: 4 | H50: 0.923845426 | I50: =IF(G50>$C$9,0,SUM(H50:$H$362)*$C$10) -> 152823.1753 | J50: 165147.9644 | K50: 1.733024499e-05 | L50: 2.648463067 | M50: 0 | O50: 10 | P50: 0.8203482999 | Q50: 0.992607061 | R50: 0.8285111706 | S50: =IF($C$5=$BK$5,IF(O50="","",VLOOKUP($C$3+O49+$C$15,Basi!$N$4:$Q$116,2,FALSE)/VLOOKUP($C$3+$C$15,Basi!$N$4:$Q$116,2,FALSE)),IF(O50="","",VLOOKUP($C$3+O49+$C$15,Basi!$S$4:$V$116,2,FALSE)/VLOOKUP($C$3+$C$15,Basi!$S$4:$V$116,2,FALSE))) -> 0.9963683198 | T50: =IF($C$8=$BK$5,IF(O50="","",VLOOKUP($C$6+O49+$C$15,Basi!$N$4:$Q$116,2,FALSE)/VLOOKUP($C$6+$C$15,Basi!$N$4:$Q$116,2,FALSE)),IF(O50="","",VLOOKUP($C$6+O49+$C$15,Basi!$S$4:$V$116,2,FALSE)/VLOOKUP($C$6+$C$15,Basi!$S$4:$V$116,2,FALSE))) -> 0.9963683198
B51: Risparmio fiscale primo anno | C51: =MIN($C$39*(1+$C$28)+15+2*(VLOOKUP($C$13,$BL$4:$BN$9,2,FALSE)-1),530)*19% -> 33.9948 | E51: 5 | F51: 0.08333333333 | G51: 4.083333333 | H51: 0.922322136 | I51: =IF(G51>$C$9,0,SUM(H51:$H$362)*$C$10) -> 151899.3298 | J51: 164420.7197 | K51: 1.462059868e-05 | L51: 2.22085914 | M51: 0 | O51: 11 | P51: 0.8042630391 | Q51: 0.9924578061 | R51: 0.8122658535 | S51: =IF($C$5=$BK$5,IF(O51="","",VLOOKUP($C$3+O50+$C$15,Basi!$N$4:$Q$116,2,FALSE)/VLOOKUP($C$3+$C$15,Basi!$N$4:$Q$116,2,FALSE)),IF(O51="","",VLOOKUP($C$3+O50+$C$15,Basi!$S$4:$V$116,2,FALSE)/VLOOKUP($C$3+$C$15,Basi!$S$4:$V$116,2,FALSE))) -> 0.9962966732 | T51: =IF($C$8=$BK$5,IF(O51="","",VLOOKUP($C$6+O50+$C$15,Basi!$N$4:$Q$116,2,FALSE)/VLOOKUP($C$6+$C$15,Basi!$N$4:$Q$116,2,FALSE)),IF(O51="","",VLOOKUP($C$6+O50+$C$15,Basi!$S$4:$V$116,2,FALSE)/VLOOKUP($C$6+$C$15,Basi!$S$4:$V$116,2,FALSE))) -> 0.9962966732 | AL51: =IF($G51>$C$49,0,$C$46-$C$35-$C$36) -> 34.78 | AM51: =IF($G51>$C$49,0,$C$58*$C$39+$C$62*$C$40) -> 6.5568 | AN51: =AL51/(1+$C$63)^($E51-1) -> 29.73008976 | AO51: =AM51/(1+$C$63)^($E51-1) -> 5.60478012
B52: Risparmio fiscale anni successivi | C52: =MIN($C$39*(1+$C$28)+2*VLOOKUP($C$13,$BL$4:$BN$9,2,FALSE),530)*19% -> 31.5248 | E52: 5 | F52: 0.1666666667 | G52: 4.166666667 | H52: 0.9208013577 | I52: =IF(G52>$C$9,0,SUM(H52:$H$362)*$C$10) -> 150977.0077 | J52: 163692.2739 | K52: 1.462059868e-05 | L52: 2.207374239 | M52: 0 | O52: 12 | P52: 0.7884931756 | Q52: 0.9923085688 | R52: 0.7963390721 | S52: =IF($C$5=$BK$5,IF(O52="","",VLOOKUP($C$3+O51+$C$15,Basi!$N$4:$Q$116,2,FALSE)/VLOOKUP($C$3+$C$15,Basi!$N$4:$Q$116,2,FALSE)),IF(O52="","",VLOOKUP($C$3+O51+$C$15,Basi!$S$4:$V$116,2,FALSE)/VLOOKUP($C$3+$C$15,Basi!$S$4:$V$116,2,FALSE))) -> 0.9962217655 | T52: =IF($C$8=$BK$5,IF(O52="","",VLOOKUP($C$6+O51+$C$15,Basi!$N$4:$Q$116,2,FALSE)/VLOOKUP($C$6+$C$15,Basi!$N$4:$Q$116,2,FALSE)),IF(O52="","",VLOOKUP($C$6+O51+$C$15,Basi!$S$4:$V$116,2,FALSE)/VLOOKUP($C$6+$C$15,Basi!$S$4:$V$116,2,FALSE))) -> 0.9962217655
B53: Totale risparmio fiscale | C53: =C51+C52*($C$49-1) -> 475.342 | E53: 5 | F53: 0.25 | G53: 4.25 | H53: 0.919283087 | I53: =IF(G53>$C$9,0,SUM(H53:$H$362)*$C$10) -> 150056.2063 | J53: 162962.625 | K53: 1.462059868e-05 | L53: 2.193911572 | M53: 0 | O53: 13 | P53: 0.7730325251 | Q53: 0.9921398628 | R53: 0.7807245805 | S53: =IF($C$5=$BK$5,IF(O53="","",VLOOKUP($C$3+O52+$C$15,Basi!$N$4:$Q$116,2,FALSE)/VLOOKUP($C$3+$C$15,Basi!$N$4:$Q$116,2,FALSE)),IF(O53="","",VLOOKUP($C$3+O52+$C$15,Basi!$S$4:$V$116,2,FALSE)/VLOOKUP($C$3+$C$15,Basi!$S$4:$V$116,2,FALSE))) -> 0.9961468611 | T53: =IF($C$8=$BK$5,IF(O53="","",VLOOKUP($C$6+O52+$C$15,Basi!$N$4:$Q$116,2,FALSE)/VLOOKUP($C$6+$C$15,Basi!$N$4:$Q$116,2,FALSE)),IF(O53="","",VLOOKUP($C$6+O52+$C$15,Basi!$S$4:$V$116,2,FALSE)/VLOOKUP($C$6+$C$15,Basi!$S$4:$V$116,2,FALSE))) -> 0.9961468611
B54: Totale spesa effettiva | C54: =C50-C53 -> 2026.458 | E54: 5 | F54: 0.3333333333 | G54: 4.333333333 | H54: 0.9177673196 | I54: =IF(G54>$C$9,0,SUM(H54:$H$362)*$C$10) -> 149136.9232 | J54: 162231.771 | K54: 1.462059868e-05 | L54: 2.180471102 | M54: 0 | O54: 14 | P54: 0.7578750246 | Q54: 0.9919322234 | R54: 0.7654162553 | S54: =IF($C$5=$BK$5,IF(O54="","",VLOOKUP($C$3+O53+$C$15,Basi!$N$4:$Q$116,2,FALSE)/VLOOKUP($C$3+$C$15,Basi!$N$4:$Q$116,2,FALSE)),IF(O54="","",VLOOKUP($C$3+O53+$C$15,Basi!$S$4:$V$116,2,FALSE)/VLOOKUP($C$3+$C$15,Basi!$S$4:$V$116,2,FALSE))) -> 0.9960621782 | T54: =IF($C$8=$BK$5,IF(O54="","",VLOOKUP($C$6+O53+$C$15,Basi!$N$4:$Q$116,2,FALSE)/VLOOKUP($C$6+$C$15,Basi!$N$4:$Q$116,2,FALSE)),IF(O54="","",VLOOKUP($C$6+O53+$C$15,Basi!$S$4:$V$116,2,FALSE)/VLOOKUP($C$6+$C$15,Basi!$S$4:$V$116,2,FALSE))) -> 0.9960621782
E55: 5 | F55: 0.4166666667 | G55: 4.416666667 | H55: 0.9162540516 | I55: =IF(G55>$C$9,0,SUM(H55:$H$362)*$C$10) -> 148219.1559 | J55: 161499.71 | K55: 1.462059868e-05 | L55: 2.167052795 | M55: 0 | O55: 15 | R55: 0.7504080935 | S55: =IF($C$5=$BK$5,IF(O55="","",VLOOKUP($C$3+O54+$C$15,Basi!$N$4:$Q$116,2,FALSE)/VLOOKUP($C$3+$C$15,Basi!$N$4:$Q$116,2,FALSE)),IF(O55="","",VLOOKUP($C$3+O54+$C$15,Basi!$S$4:$V$116,2,FALSE)/VLOOKUP($C$3+$C$15,Basi!$S$4:$V$116,2,FALSE))) -> 0.9959579426 | T55: =IF($C$8=$BK$5,IF(O55="","",VLOOKUP($C$6+O54+$C$15,Basi!$N$4:$Q$116,2,FALSE)/VLOOKUP($C$6+$C$15,Basi!$N$4:$Q$116,2,FALSE)),IF(O55="","",VLOOKUP($C$6+O54+$C$15,Basi!$S$4:$V$116,2,FALSE)/VLOOKUP($C$6+$C$15,Basi!$S$4:$V$116,2,FALSE))) -> 0.9959579426
B56: Provvigioni | C56: =C39*C57+20%*C40 -> 134.4144 | E56: 5 | F56: 0.5 | G56: 4.5 | H56: 0.9147432787 | I56: =IF(G56>$C$9,0,SUM(H56:$H$362)*$C$10) -> 147302.9019 | J56: 160766.4399 | K56: 1.462059868e-05 | L56: 2.153656612 | M56: 0 | O56: 16 | R56: 0.7356942093 | S56: =IF($C$5=$BK$5,IF(O56="","",VLOOKUP($C$3+O55+$C$15,Basi!$N$4:$Q$116,2,FALSE)/VLOOKUP($C$3+$C$15,Basi!$N$4:$Q$116,2,FALSE)),IF(O56="","",VLOOKUP($C$3+O55+$C$15,Basi!$S$4:$V$116,2,FALSE)/VLOOKUP($C$3+$C$15,Basi!$S$4:$V$116,2,FALSE))) -> 0.9958243767 | T56: =IF($C$8=$BK$5,IF(O56="","",VLOOKUP($C$6+O55+$C$15,Basi!$N$4:$Q$116,2,FALSE)/VLOOKUP($C$6+$C$15,Basi!$N$4:$Q$116,2,FALSE)),IF(O56="","",VLOOKUP($C$6+O55+$C$15,Basi!$S$4:$V$116,2,FALSE)/VLOOKUP($C$6+$C$15,Basi!$S$4:$V$116,2,FALSE))) -> 0.9958243767
B57: Provvigione primo premio | C57: =VLOOKUP(C49,$B$68:$C$97,2,) -> 0.82 | E57: 5 | F57: 0.5833333333 | G57: 4.583333333 | H57: 0.9132349968 | I57: =IF(G57>$C$9,0,SUM(H57:$H$362)*$C$10) -> 146388.1586 | J57: 160031.9587 | K57: 1.462059868e-05 | L57: 2.140282518 | M57: 0 | O57: 17 | R57: 0.7212688326 | S57: =IF($C$5=$BK$5,IF(O57="","",VLOOKUP($C$3+O56+$C$15,Basi!$N$4:$Q$116,2,FALSE)/VLOOKUP($C$3+$C$15,Basi!$N$4:$Q$116,2,FALSE)),IF(O57="","",VLOOKUP($C$3+O56+$C$15,Basi!$S$4:$V$116,2,FALSE)/VLOOKUP($C$3+$C$15,Basi!$S$4:$V$116,2,FALSE))) -> 0.9956549529 | T57: =IF($C$8=$BK$5,IF(O57="","",VLOOKUP($C$6+O56+$C$15,Basi!$N$4:$Q$116,2,FALSE)/VLOOKUP($C$6+$C$15,Basi!$N$4:$Q$116,2,FALSE)),IF(O57="","",VLOOKUP($C$6+O56+$C$15,Basi!$S$4:$V$116,2,FALSE)/VLOOKUP($C$6+$C$15,Basi!$S$4:$V$116,2,FALSE))) -> 0.9956549529
B58: Provvigione premi successivi | C58: 0.04 | E58: 5 | F58: 0.6666666667 | G58: 4.666666667 | H58: 0.9117292019 | I58: =IF(G58>$C$9,0,SUM(H58:$H$362)*$C$10) -> 145474.9236 | J58: 159296.2645 | K58: 1.462059868e-05 | L58: 2.126930475 | M58: 0 | O58: 18 | R58: 0.7071263065 | S58: =IF($C$5=$BK$5,IF(O58="","",VLOOKUP($C$3+O57+$C$15,Basi!$N$4:$Q$116,2,FALSE)/VLOOKUP($C$3+$C$15,Basi!$N$4:$Q$116,2,FALSE)),IF(O58="","",VLOOKUP($C$3+O57+$C$15,Basi!$S$4:$V$116,2,FALSE)/VLOOKUP($C$3+$C$15,Basi!$S$4:$V$116,2,FALSE))) -> 0.9954268501 | T58: =IF($C$8=$BK$5,IF(O58="","",VLOOKUP($C$6+O57+$C$15,Basi!$N$4:$Q$116,2,FALSE)/VLOOKUP($C$6+$C$15,Basi!$N$4:$Q$116,2,FALSE)),IF(O58="","",VLOOKUP($C$6+O57+$C$15,Basi!$S$4:$V$116,2,FALSE)/VLOOKUP($C$6+$C$15,Basi!$S$4:$V$116,2,FALSE))) -> 0.9954268501
B59: liquidazione | C59: 7/10 e 3/10 | E59: 5 | F59: 0.75 | G59: 4.75 | H59: 0.9102258899 | I59: =IF(G59>$C$9,0,SUM(H59:$H$362)*$C$10) -> 144563.1944 | J59: 158559.3552 | K59: 1.462059868e-05 | L59: 2.113600449 | M59: 0 | O59: 19 | R59: 0.6932610848 | S59: =IF($C$5=$BK$5,IF(O59="","",VLOOKUP($C$3+O58+$C$15,Basi!$N$4:$Q$116,2,FALSE)/VLOOKUP($C$3+$C$15,Basi!$N$4:$Q$116,2,FALSE)),IF(O59="","",VLOOKUP($C$3+O58+$C$15,Basi!$S$4:$V$116,2,FALSE)/VLOOKUP($C$3+$C$15,Basi!$S$4:$V$116,2,FALSE))) -> 0.9951595807 | T59: =IF($C$8=$BK$5,IF(O59="","",VLOOKUP($C$6+O58+$C$15,Basi!$N$4:$Q$116,2,FALSE)/VLOOKUP($C$6+$C$15,Basi!$N$4:$Q$116,2,FALSE)),IF(O59="","",VLOOKUP($C$6+O58+$C$15,Basi!$S$4:$V$116,2,FALSE)/VLOOKUP($C$6+$C$15,Basi!$S$4:$V$116,2,FALSE))) -> 0.9951595807
B60: Computabile | C60: =MIN(C39,6%*I3)*MIN(1,C49/10) -> 163.92 | E60: 5 | F60: 0.8333333333 | G60: 4.833333333 | H60: 0.9087250566 | I60: =IF(G60>$C$9,0,SUM(H60:$H$362)*$C$10) -> 143652.9685 | J60: 157821.2289 | K60: 1.462059868e-05 | L60: 2.100292401 | M60: 0 | O60: 20 | R60: 0.6796677302 | S60: =IF($C$5=$BK$5,IF(O60="","",VLOOKUP($C$3+O59+$C$15,Basi!$N$4:$Q$116,2,FALSE)/VLOOKUP($C$3+$C$15,Basi!$N$4:$Q$116,2,FALSE)),IF(O60="","",VLOOKUP($C$3+O59+$C$15,Basi!$S$4:$V$116,2,FALSE)/VLOOKUP($C$3+$C$15,Basi!$S$4:$V$116,2,FALSE))) -> 0.9948498637 | T60: =IF($C$8=$BK$5,IF(O60="","",VLOOKUP($C$6+O59+$C$15,Basi!$N$4:$Q$116,2,FALSE)/VLOOKUP($C$6+$C$15,Basi!$N$4:$Q$116,2,FALSE)),IF(O60="","",VLOOKUP($C$6+O59+$C$15,Basi!$S$4:$V$116,2,FALSE)/VLOOKUP($C$6+$C$15,Basi!$S$4:$V$116,2,FALSE))) -> 0.9948498637
B61: % di attribuzione del computabile | C61: 0.25 | E61: 5 | F61: 0.9166666667 | G61: 4.916666667 | H61: 0.9072266979 | I61: =IF(G61>$C$9,0,SUM(H61:$H$362)*$C$10) -> 142744.2435 | J61: 157081.8835 | K61: 1.462059868e-05 | L61: 2.087006297 | M61: 0 | S61: =IF($C$5=$BK$5,IF(O61="","",VLOOKUP($C$3+O60+$C$15,Basi!$N$4:$Q$116,2,FALSE)/VLOOKUP($C$3+$C$15,Basi!$N$4:$Q$116,2,FALSE)),IF(O61="","",VLOOKUP($C$3+O60+$C$15,Basi!$S$4:$V$116,2,FALSE)/VLOOKUP($C$3+$C$15,Basi!$S$4:$V$116,2,FALSE))) ->  | T61: =IF($C$8=$BK$5,IF(O61="","",VLOOKUP($C$6+O60+$C$15,Basi!$N$4:$Q$116,2,FALSE)/VLOOKUP($C$6+$C$15,Basi!$N$4:$Q$116,2,FALSE)),IF(O61="","",VLOOKUP($C$6+O60+$C$15,Basi!$S$4:$V$116,2,FALSE)/VLOOKUP($C$6+$C$15,Basi!$S$4:$V$116,2,FALSE))) -> 
B62: Provvigione garanzia infortuni | C62: 0.2 | E62: 5 | F62: 1 | G62: 5 | H62: 0.9057308098 | I62: =IF(G62>$C$9,0,SUM(H62:$H$362)*$C$10) -> 141837.0168 | J62: 156341.317 | K62: 1.462059868e-05 | L62: 2.073742099 | M62: 0 | S62: =IF($C$5=$BK$5,IF(O62="","",VLOOKUP($C$3+O61+$C$15,Basi!$N$4:$Q$116,2,FALSE)/VLOOKUP($C$3+$C$15,Basi!$N$4:$Q$116,2,FALSE)),IF(O62="","",VLOOKUP($C$3+O61+$C$15,Basi!$S$4:$V$116,2,FALSE)/VLOOKUP($C$3+$C$15,Basi!$S$4:$V$116,2,FALSE))) ->  | T62: =IF($C$8=$BK$5,IF(O62="","",VLOOKUP($C$6+O61+$C$15,Basi!$N$4:$Q$116,2,FALSE)/VLOOKUP($C$6+$C$15,Basi!$N$4:$Q$116,2,FALSE)),IF(O62="","",VLOOKUP($C$6+O61+$C$15,Basi!$S$4:$V$116,2,FALSE)/VLOOKUP($C$6+$C$15,Basi!$S$4:$V$116,2,FALSE))) -> 
B63: Tasso di attualizzazione | C63: 0.04 | E63: 6 | F63: 0.08333333333 | G63: 5.083333333 | H63: 0.9042373883 | I63: =IF(G63>$C$9,0,SUM(H63:$H$362)*$C$10) -> 140931.2859 | J63: 155599.5274 | K63: 1.353713602e-05 | L63: 1.907805988 | M63: 0 | S63: =IF($C$5=$BK$5,IF(O63="","",VLOOKUP($C$3+O62+$C$15,Basi!$N$4:$Q$116,2,FALSE)/VLOOKUP($C$3+$C$15,Basi!$N$4:$Q$116,2,FALSE)),IF(O63="","",VLOOKUP($C$3+O62+$C$15,Basi!$S$4:$V$116,2,FALSE)/VLOOKUP($C$3+$C$15,Basi!$S$4:$V$116,2,FALSE))) ->  | T63: =IF($C$8=$BK$5,IF(O63="","",VLOOKUP($C$6+O62+$C$15,Basi!$N$4:$Q$116,2,FALSE)/VLOOKUP($C$6+$C$15,Basi!$N$4:$Q$116,2,FALSE)),IF(O63="","",VLOOKUP($C$6+O62+$C$15,Basi!$S$4:$V$116,2,FALSE)/VLOOKUP($C$6+$C$15,Basi!$S$4:$V$116,2,FALSE))) ->  | AL63: =IF($G63>$C$49,0,$C$46-$C$35-$C$36) -> 34.78 | AM63: =IF($G63>$C$49,0,$C$58*$C$39+$C$62*$C$40) -> 6.5568 | AN63: =AL63/(1+$C$63)^($E63-1) -> 28.58662477 | AO63: =AM63/(1+$C$63)^($E63-1) -> 5.389211654
E64: 6 | F64: 0.1666666667 | G64: 5.166666667 | H64: 0.9027464291 | I64: =IF(G64>$C$9,0,SUM(H64:$H$362)*$C$10) -> 140027.0486 | J64: 154856.5127 | K64: 1.353713602e-05 | L64: 1.895565203 | M64: 0 | S64: =IF($C$5=$BK$5,IF(O64="","",VLOOKUP($C$3+O63+$C$15,Basi!$N$4:$Q$116,2,FALSE)/VLOOKUP($C$3+$C$15,Basi!$N$4:$Q$116,2,FALSE)),IF(O64="","",VLOOKUP($C$3+O63+$C$15,Basi!$S$4:$V$116,2,FALSE)/VLOOKUP($C$3+$C$15,Basi!$S$4:$V$116,2,FALSE))) ->  | T64: =IF($C$8=$BK$5,IF(O64="","",VLOOKUP($C$6+O63+$C$15,Basi!$N$4:$Q$116,2,FALSE)/VLOOKUP($C$6+$C$15,Basi!$N$4:$Q$116,2,FALSE)),IF(O64="","",VLOOKUP($C$6+O63+$C$15,Basi!$S$4:$V$116,2,FALSE)/VLOOKUP($C$6+$C$15,Basi!$S$4:$V$116,2,FALSE))) -> 
B65: Quota parte | C65: =SUM(AO3:AO362)/SUM(AN3:AN362) -> 0.5855587676 | E65: 6 | F65: 0.25 | G65: 5.25 | H65: 0.9012579284 | I65: =IF(G65>$C$9,0,SUM(H65:$H$362)*$C$10) -> 139124.3021 | J65: 154112.2708 | K65: 1.353713602e-05 | L65: 1.883344602 | M65: 0 | S65: =IF($C$5=$BK$5,IF(O65="","",VLOOKUP($C$3+O64+$C$15,Basi!$N$4:$Q$116,2,FALSE)/VLOOKUP($C$3+$C$15,Basi!$N$4:$Q$116,2,FALSE)),IF(O65="","",VLOOKUP($C$3+O64+$C$15,Basi!$S$4:$V$116,2,FALSE)/VLOOKUP($C$3+$C$15,Basi!$S$4:$V$116,2,FALSE))) ->  | T65: =IF($C$8=$BK$5,IF(O65="","",VLOOKUP($C$6+O64+$C$15,Basi!$N$4:$Q$116,2,FALSE)/VLOOKUP($C$6+$C$15,Basi!$N$4:$Q$116,2,FALSE)),IF(O65="","",VLOOKUP($C$6+O64+$C$15,Basi!$S$4:$V$116,2,FALSE)/VLOOKUP($C$6+$C$15,Basi!$S$4:$V$116,2,FALSE))) -> 
E66: 6 | F66: 0.3333333333 | G66: 5.333333333 | H66: 0.899771882 | I66: =IF(G66>$C$9,0,SUM(H66:$H$362)*$C$10) -> 138223.0442 | J66: 153366.7997 | K66: 1.353713602e-05 | L66: 1.871144151 | M66: 0 | S66: =IF($C$5=$BK$5,IF(O66="","",VLOOKUP($C$3+O65+$C$15,Basi!$N$4:$Q$116,2,FALSE)/VLOOKUP($C$3+$C$15,Basi!$N$4:$Q$116,2,FALSE)),IF(O66="","",VLOOKUP($C$3+O65+$C$15,Basi!$S$4:$V$116,2,FALSE)/VLOOKUP($C$3+$C$15,Basi!$S$4:$V$116,2,FALSE))) ->  | T66: =IF($C$8=$BK$5,IF(O66="","",VLOOKUP($C$6+O65+$C$15,Basi!$N$4:$Q$116,2,FALSE)/VLOOKUP($C$6+$C$15,Basi!$N$4:$Q$116,2,FALSE)),IF(O66="","",VLOOKUP($C$6+O65+$C$15,Basi!$S$4:$V$116,2,FALSE)/VLOOKUP($C$6+$C$15,Basi!$S$4:$V$116,2,FALSE))) -> 
B67: Durata pagamento premi | C67: provvigione | E67: 6 | F67: 0.4166666667 | G67: 5.416666667 | H67: =IF(G67>$C$9,0,$C$27^G67) -> 0.8982882858 | I67: =IF(G67>$C$9,0,SUM(H67:$H$362)*$C$10) -> 137323.2723 | J67: 152620.0975 | K67: =IF(G67>$C$9,0,VLOOKUP(E67-1,$AH$7:$AJ$36,3,FALSE)*(1+$C$18)^($C$26/2)*$C$26) -> 1.353713602e-05 | L67: 1.858963817 | M67: =I67*$C$31*$C$26 -> 0 | S67: =IF($C$5=$BK$5,IF(O67="","",VLOOKUP($C$3+O66+$C$15,Basi!$N$4:$Q$116,2,FALSE)/VLOOKUP($C$3+$C$15,Basi!$N$4:$Q$116,2,FALSE)),IF(O67="","",VLOOKUP($C$3+O66+$C$15,Basi!$S$4:$V$116,2,FALSE)/VLOOKUP($C$3+$C$15,Basi!$S$4:$V$116,2,FALSE))) ->  | T67: =IF($C$8=$BK$5,IF(O67="","",VLOOKUP($C$6+O66+$C$15,Basi!$N$4:$Q$116,2,FALSE)/VLOOKUP($C$6+$C$15,Basi!$N$4:$Q$116,2,FALSE)),IF(O67="","",VLOOKUP($C$6+O66+$C$15,Basi!$S$4:$V$116,2,FALSE)/VLOOKUP($C$6+$C$15,Basi!$S$4:$V$116,2,FALSE))) -> 
B68: 1 | C68: 0.072 | E68: 6 | F68: 0.5 | G68: =E68+F68-1 -> 5.5 | H68: 0.896807136 | I68: =IF(G68>$C$9,0,SUM(H68:$H$362)*$C$10) -> 136424.984 | J68: =IF(G68>$C$9,0,I68/H67) -> 151872.162 | K68: 1.353713602e-05 | L68: =K68*I68 -> 1.846803566 | M68: 0 | S68: =IF($C$5=$BK$5,IF(O68="","",VLOOKUP($C$3+O67+$C$15,Basi!$N$4:$Q$116,2,FALSE)/VLOOKUP($C$3+$C$15,Basi!$N$4:$Q$116,2,FALSE)),IF(O68="","",VLOOKUP($C$3+O67+$C$15,Basi!$S$4:$V$116,2,FALSE)/VLOOKUP($C$3+$C$15,Basi!$S$4:$V$116,2,FALSE))) ->  | T68: =IF($C$8=$BK$5,IF(O68="","",VLOOKUP($C$6+O67+$C$15,Basi!$N$4:$Q$116,2,FALSE)/VLOOKUP($C$6+$C$15,Basi!$N$4:$Q$116,2,FALSE)),IF(O68="","",VLOOKUP($C$6+O67+$C$15,Basi!$S$4:$V$116,2,FALSE)/VLOOKUP($C$6+$C$15,Basi!$S$4:$V$116,2,FALSE))) -> 
B69: 2 | C69: 0.144 | E69: 6 | F69: 0.5833333333 | G69: 5.583333333 | H69: 0.8953284283 | I69: =IF(G69>$C$9,0,SUM(H69:$H$362)*$C$10) -> 135528.1769 | J69: 151122.9912 | K69: 1.353713602e-05 | L69: 1.834663366 | M69: 0 | S69: =IF($C$5=$BK$5,IF(O69="","",VLOOKUP($C$3+O68+$C$15,Basi!$N$4:$Q$116,2,FALSE)/VLOOKUP($C$3+$C$15,Basi!$N$4:$Q$116,2,FALSE)),IF(O69="","",VLOOKUP($C$3+O68+$C$15,Basi!$S$4:$V$116,2,FALSE)/VLOOKUP($C$3+$C$15,Basi!$S$4:$V$116,2,FALSE))) ->  | T69: =IF($C$8=$BK$5,IF(O69="","",VLOOKUP($C$6+O68+$C$15,Basi!$N$4:$Q$116,2,FALSE)/VLOOKUP($C$6+$C$15,Basi!$N$4:$Q$116,2,FALSE)),IF(O69="","",VLOOKUP($C$6+O68+$C$15,Basi!$S$4:$V$116,2,FALSE)/VLOOKUP($C$6+$C$15,Basi!$S$4:$V$116,2,FALSE))) -> 
B70: 3 | C70: 0.216 | E70: 6 | F70: 0.6666666667 | G70: 5.666666667 | H70: 0.8938521587 | I70: =IF(G70>$C$9,0,SUM(H70:$H$362)*$C$10) -> 134632.8485 | J70: 150372.5831 | K70: 1.353713602e-05 | L70: 1.822543183 | M70: 0 | S70: =IF($C$5=$BK$5,IF(O70="","",VLOOKUP($C$3+O69+$C$15,Basi!$N$4:$Q$116,2,FALSE)/VLOOKUP($C$3+$C$15,Basi!$N$4:$Q$116,2,FALSE)),IF(O70="","",VLOOKUP($C$3+O69+$C$15,Basi!$S$4:$V$116,2,FALSE)/VLOOKUP($C$3+$C$15,Basi!$S$4:$V$116,2,FALSE))) ->  | T70: =IF($C$8=$BK$5,IF(O70="","",VLOOKUP($C$6+O69+$C$15,Basi!$N$4:$Q$116,2,FALSE)/VLOOKUP($C$6+$C$15,Basi!$N$4:$Q$116,2,FALSE)),IF(O70="","",VLOOKUP($C$6+O69+$C$15,Basi!$S$4:$V$116,2,FALSE)/VLOOKUP($C$6+$C$15,Basi!$S$4:$V$116,2,FALSE))) -> 
B71: 4 | C71: 0.288 | E71: 6 | F71: 0.75 | G71: 5.75 | H71: 0.8923783234 | I71: =IF(G71>$C$9,0,SUM(H71:$H$362)*$C$10) -> 133738.9963 | J71: 149620.9356 | K71: 1.353713602e-05 | L71: 1.810442985 | M71: 0
B72: 5 | C72: 0.36 | E72: 6 | F72: 0.8333333333 | G72: 5.833333333 | H72: 0.8909069182 | I72: =IF(G72>$C$9,0,SUM(H72:$H$362)*$C$10) -> 132846.618 | J72: 148868.0468 | K72: 1.353713602e-05 | L72: 1.798362738 | M72: 0
B73: 6 | C73: 0.432 | E73: 6 | F73: 0.9166666667 | G73: 5.916666667 | H73: 0.8894379391 | I73: =IF(G73>$C$9,0,SUM(H73:$H$362)*$C$10) -> 131955.7111 | J73: 148113.9145 | K73: 1.353713602e-05 | L73: 1.78630241 | M73: 0
B74: 7 | C74: 0.504 | E74: 6 | F74: 1 | G74: 6 | H74: 0.8879713822 | I74: =IF(G74>$C$9,0,SUM(H74:$H$362)*$C$10) -> 131066.2731 | J74: 147358.5366 | K74: 1.353713602e-05 | L74: 1.774261967 | M74: 0
B75: 8 | C75: 0.576 | E75: 7 | F75: 0.08333333333 | G75: 6.083333333 | H75: 0.8865072434 | I75: =IF(G75>$C$9,0,SUM(H75:$H$362)*$C$10) -> 130178.3017 | J75: 146601.9112 | K75: 1.299481876e-05 | L75: 1.691643438 | M75: 0 | AL75: =IF($G75>$C$49,0,$C$46-$C$35-$C$36) -> 34.78 | AM75: =IF($G75>$C$49,0,$C$58*$C$39+$C$62*$C$40) -> 6.5568 | AN75: =AL75/(1+$C$63)^($E75-1) -> 27.4871392 | AO75: =AM75/(1+$C$63)^($E75-1) -> 5.181934282
B76: 9 | C76: 0.648 | E76: 7 | F76: 0.1666666667 | G76: 6.166666667 | H76: 0.8850455188 | I76: =IF(G76>$C$9,0,SUM(H76:$H$362)*$C$10) -> 129291.7945 | J76: 145844.0362 | K76: 1.299481876e-05 | L76: 1.680123437 | M76: 0
B77: 10 | C77: 0.72 | E77: 7 | F77: 0.25 | G77: 6.25 | H77: 0.8835862043 | I77: =IF(G77>$C$9,0,SUM(H77:$H$362)*$C$10) -> 128406.749 | J77: 145084.9095 | K77: 1.299481876e-05 | L77: 1.668622431 | M77: 0
B78: 11 | C78: 0.74 | E78: 7 | F78: 0.3333333333 | G78: 6.333333333 | H78: 0.8821292961 | I78: =IF(G78>$C$9,0,SUM(H78:$H$362)*$C$10) -> 127523.1628 | J78: 144324.529 | K78: 1.299481876e-05 | L78: 1.657140388 | M78: 0
B79: 12 | C79: 0.76 | E79: 7 | F79: 0.4166666667 | G79: 6.416666667 | H79: 0.88067479 | I79: =IF(G79>$C$9,0,SUM(H79:$H$362)*$C$10) -> 126641.0335 | J79: 143562.8927 | K79: 1.299481876e-05 | L79: 1.645677278 | M79: 0
B80: 13 | C80: 0.78 | E80: 7 | F80: 0.5 | G80: 6.5 | H80: 0.8792226823 | I80: =IF(G80>$C$9,0,SUM(H80:$H$362)*$C$10) -> 125760.3587 | J80: 142799.9985 | K80: 1.299481876e-05 | L80: 1.634233069 | M80: 0
B81: 14 | C81: 0.8 | E81: 7 | F81: 0.5833333333 | G81: 6.583333333 | H81: 0.8777729689 | I81: =IF(G81>$C$9,0,SUM(H81:$H$362)*$C$10) -> 124881.136 | J81: 142035.8443 | K81: 1.299481876e-05 | L81: 1.622807729 | M81: 0
B82: 15 | C82: 0.82 | E82: 7 | F82: 0.6666666667 | G82: 6.666666667 | H82: 0.8763256458 | I82: =IF(G82>$C$9,0,SUM(H82:$H$362)*$C$10) -> 124003.363 | J82: 141270.428 | K82: 1.299481876e-05 | L82: 1.611401229 | M82: 0
B83: 16 | C83: 0.82 | E83: 7 | F83: 0.75 | G83: 6.75 | H83: 0.8748807092 | I83: =IF(G83>$C$9,0,SUM(H83:$H$362)*$C$10) -> 123127.0374 | J83: 140503.7476 | K83: 1.299481876e-05 | L83: 1.600013536 | M83: 0
B84: 17 | C84: =C83 -> 0.82 | E84: 7 | F84: 0.8333333333 | G84: 6.833333333 | H84: 0.8734381551 | I84: =IF(G84>$C$9,0,SUM(H84:$H$362)*$C$10) -> 122252.1567 | J84: 139735.801 | K84: 1.299481876e-05 | L84: 1.588644619 | M84: 0
B85: 18 | C85: 0.82 | E85: 7 | F85: 0.9166666667 | G85: 6.916666667 | H85: 0.8719979795 | I85: =IF(G85>$C$9,0,SUM(H85:$H$362)*$C$10) -> 121378.7185 | J85: 138966.586 | K85: 1.299481876e-05 | L85: 1.577294449 | M85: 0
B86: 19 | C86: 0.82 | E86: 7 | F86: 1 | G86: 7 | H86: 0.8705601786 | I86: =IF(G86>$C$9,0,SUM(H86:$H$362)*$C$10) -> 120506.7206 | J86: 138196.1007 | K86: 1.299481876e-05 | L86: 1.565962993 | M86: 0
B87: 20 | C87: 0.82 | E87: 8 | F87: 0.08333333333 | G87: 7.083333333 | H87: 0.8691247484 | I87: =IF(G87>$C$9,0,SUM(H87:$H$362)*$C$10) -> 119636.1604 | J87: 137424.3428 | K87: 1.299481736e-05 | L87: 1.554650054 | M87: 0 | AL87: =IF($G87>$C$49,0,$C$46-$C$35-$C$36) -> 34.78 | AM87: =IF($G87>$C$49,0,$C$58*$C$39+$C$62*$C$40) -> 6.5568 | AN87: =AL87/(1+$C$63)^($E87-1) -> 26.42994154 | AO87: =AM87/(1+$C$63)^($E87-1) -> 4.982629118
B88: 21 | C88: 0.82 | E88: 8 | F88: 0.1666666667 | G88: 7.166666667 | H88: 0.8676916851 | I88: =IF(G88>$C$9,0,SUM(H88:$H$362)*$C$10) -> 118767.0356 | J88: 136651.3102 | K88: 1.299481736e-05 | L88: 1.543355937 | M88: 0
B89: 22 | C89: 0.82 | E89: 8 | F89: 0.25 | G89: 7.25 | H89: 0.8662609846 | I89: =IF(G89>$C$9,0,SUM(H89:$H$362)*$C$10) -> 117899.3439 | J89: 135877.001 | K89: 1.299481736e-05 | L89: 1.532080442 | M89: 0
B90: 23 | C90: 0.82 | E90: 8 | F90: 0.3333333333 | G90: 7.333333333 | H90: 0.8648326432 | I90: =IF(G90>$C$9,0,SUM(H90:$H$362)*$C$10) -> 117033.083 | J90: 135101.4129 | K90: 1.299481736e-05 | L90: 1.520823538 | M90: 0
B91: 24 | C91: 0.82 | E91: 8 | F91: 0.4166666667 | G91: 7.416666667 | H91: 0.8634066569 | I91: =IF(G91>$C$9,0,SUM(H91:$H$362)*$C$10) -> 116168.2503 | J91: 134324.5439 | K91: 1.299481736e-05 | L91: 1.509585196 | M91: 0
B92: 25 | C92: 0.82 | E92: 8 | F92: 0.5 | G92: 7.5 | H92: 0.8619830219 | I92: =IF(G92>$C$9,0,SUM(H92:$H$362)*$C$10) -> 115304.8437 | J92: 133546.3918 | K92: 1.299481736e-05 | L92: 1.498365384 | M92: 0
B93: 26 | C93: 0.82 | E93: 8 | F93: 0.5833333333 | G93: 7.583333333 | H93: 0.8605617342 | I93: =IF(G93>$C$9,0,SUM(H93:$H$362)*$C$10) -> 114442.8606 | J93: 132766.9545 | K93: 1.299481736e-05 | L93: 1.487164072 | M93: 0
B94: 27 | C94: 0.82 | E94: 8 | F94: 0.6666666667 | G94: 7.666666667 | H94: 0.85914279 | I94: =IF(G94>$C$9,0,SUM(H94:$H$362)*$C$10) -> 113582.2989 | J94: 131986.2299 | K94: 1.299481736e-05 | L94: 1.47598123 | M94: 0
B95: 28 | C95: 0.82 | E95: 8 | F95: 0.75 | G95: 7.75 | H95: 0.8577261855 | I95: =IF(G95>$C$9,0,SUM(H95:$H$362)*$C$10) -> 112723.1561 | J95: 131204.2159 | K95: 1.299481736e-05 | L95: 1.464816826 | M95: 0
B96: 29 | C96: 0.82 | E96: 8 | F96: 0.8333333333 | G96: 7.833333333 | H96: 0.8563119168 | I96: =IF(G96>$C$9,0,SUM(H96:$H$362)*$C$10) -> 111865.4299 | J96: 130420.9103 | K96: 1.299481736e-05 | L96: 1.453670831 | M96: 0
B97: 30 | C97: 0.82 | E97: 8 | F97: 0.9166666667 | G97: 7.916666667 | H97: 0.8548999799 | I97: =IF(G97>$C$9,0,SUM(H97:$H$362)*$C$10) -> 111009.118 | J97: 129636.3111 | K97: 1.299481736e-05 | L97: 1.442543214 | M97: 0
E98: 8 | F98: 1 | G98: 8 | H98: 0.8534903712 | I98: =IF(G98>$C$9,0,SUM(H98:$H$362)*$C$10) -> 110154.218 | J98: 128850.416 | K98: 1.299481736e-05 | L98: 1.431433945 | M98: 0
E99: 9 | F99: 0.08333333333 | G99: 8.083333333 | H99: 0.8520830867 | I99: =IF(G99>$C$9,0,SUM(H99:$H$362)*$C$10) -> 109300.7277 | J99: 128063.2229 | K99: 1.137000606e-05 | L99: 1.242749935 | M99: 0 | AL99: =IF($G99>$C$49,0,$C$46-$C$35-$C$36) -> 34.78 | AM99: =IF($G99>$C$49,0,$C$58*$C$39+$C$62*$C$40) -> 6.5568 | AN99: =AL99/(1+$C$63)^($E99-1) -> 25.41340533 | AO99: =AM99/(1+$C$63)^($E99-1) -> 4.790989536
E100: 9 | F100: 0.1666666667 | G100: 8.166666667 | H100: 0.8506781226 | I100: =IF(G100>$C$9,0,SUM(H100:$H$362)*$C$10) -> 108448.6446 | J100: 127274.7297 | K100: 1.137000606e-05 | L100: 1.233061746 | M100: 0
E101: 9 | F101: 0.25 | G101: 8.25 | H101: 0.8492754751 | I101: =IF(G101>$C$9,0,SUM(H101:$H$362)*$C$10) -> 107597.9664 | J101: 126484.9343 | K101: 1.137000606e-05 | L101: 1.22338953 | M101: 0
E102: 9 | F102: 0.3333333333 | G102: 8.333333333 | H102: 0.8478751404 | I102: =IF(G102>$C$9,0,SUM(H102:$H$362)*$C$10) -> 106748.691 | J102: 125693.8344 | K102: 1.137000606e-05 | L102: 1.213733263 | M102: 0
E103: 9 | F103: 0.4166666667 | G103: 8.416666667 | H103: 0.8464771146 | I103: =IF(G103>$C$9,0,SUM(H103:$H$362)*$C$10) -> 105900.8158 | J103: 124901.428 | K103: 1.137000606e-05 | L103: 1.204092917 | M103: 0
E104: 9 | F104: 0.5 | G104: 8.5 | H104: 0.845081394 | I104: =IF(G104>$C$9,0,SUM(H104:$H$362)*$C$10) -> 105054.3387 | J104: 124107.7129 | K104: 1.137000606e-05 | L104: 1.194468467 | M104: 0
E105: 9 | F105: 0.5833333333 | G105: 8.583333333 | H105: 0.8436879747 | I105: =IF(G105>$C$9,0,SUM(H105:$H$362)*$C$10) -> 104209.2573 | J105: 123312.6869 | K105: 1.137000606e-05 | L105: 1.184859887 | M105: 0
E106: 9 | F106: 0.6666666667 | G106: 8.666666667 | H106: 0.842296853 | I106: =IF(G106>$C$9,0,SUM(H106:$H$362)*$C$10) -> 103365.5693 | J106: 122516.3478 | K106: 1.137000606e-05 | L106: 1.175267149 | M106: 0
E107: 9 | F107: 0.75 | G107: 8.75 | H107: 0.840908025 | I107: =IF(G107>$C$9,0,SUM(H107:$H$362)*$C$10) -> 102523.2725 | J107: 121718.6935 | K107: 1.137000606e-05 | L107: 1.165690229 | M107: 0
E108: 9 | F108: 0.8333333333 | G108: 8.833333333 | H108: 0.839521487 | I108: =IF(G108>$C$9,0,SUM(H108:$H$362)*$C$10) -> 101682.3645 | J108: 120919.7218 | K108: 1.137000606e-05 | L108: 1.1561291 | M108: 0
E109: 9 | F109: 0.9166666667 | G109: 8.916666667 | H109: 0.8381372352 | I109: =IF(G109>$C$9,0,SUM(H109:$H$362)*$C$10) -> 100842.843 | J109: 120119.4306 | K109: 1.137000606e-05 | L109: 1.146583735 | M109: 0
E110: 9 | F110: 1 | G110: 9 | H110: 0.8367552659 | I110: =IF(G110>$C$9,0,SUM(H110:$H$362)*$C$10) -> 100004.7057 | J110: 119317.8176 | K110: 1.137000606e-05 | L110: 1.13705411 | M110: 0
E111: 10 | F111: 0.08333333333 | G111: 9.083333333 | H111: 0.8353755752 | I111: =IF(G111>$C$9,0,SUM(H111:$H$362)*$C$10) -> 99167.95048 | J111: 118514.8807 | K111: 1.19109717e-05 | L111: 1.181186652 | M111: 0 | AL111: =IF($G111>$C$49,0,$C$46-$C$35-$C$36) -> 34.78 | AM111: =IF($G111>$C$49,0,$C$58*$C$39+$C$62*$C$40) -> 6.5568 | AN111: =AL111/(1+$C$63)^($E111-1) -> 24.43596666 | AO111: =AM111/(1+$C$63)^($E111-1) -> 4.606720708
E112: 10 | F112: 0.1666666667 | G112: 9.166666667 | H112: 0.8339981594 | I112: =IF(G112>$C$9,0,SUM(H112:$H$362)*$C$10) -> 98332.57491 | J112: 117710.6176 | K112: 1.19109717e-05 | L112: 1.171236517 | M112: 0
E113: 10 | F113: 0.25 | G113: 9.25 | H113: 0.8326230148 | I113: =IF(G113>$C$9,0,SUM(H113:$H$362)*$C$10) -> 97498.57675 | J113: 116905.0263 | K113: 1.19109717e-05 | L113: 1.161302788 | M113: 0
E114: 10 | F114: 0.3333333333 | G114: 9.333333333 | H114: 0.8312501376 | I114: =IF(G114>$C$9,0,SUM(H114:$H$362)*$C$10) -> 96665.95373 | J114: 116098.1044 | K114: 1.19109717e-05 | L114: 1.151385439 | M114: 0
E115: 10 | F115: 0.4166666667 | G115: 9.416666667 | H115: 0.8298795241 | I115: =IF(G115>$C$9,0,SUM(H115:$H$362)*$C$10) -> 95834.70359 | J115: 115289.8499 | K115: 1.19109717e-05 | L115: 1.141484442 | M115: 0
E116: 10 | F116: 0.5 | G116: 9.5 | H116: 0.8285111706 | I116: =IF(G116>$C$9,0,SUM(H116:$H$362)*$C$10) -> 95004.82407 | J116: 114480.2605 | K116: 1.19109717e-05 | L116: 1.131599771 | M116: 0
E117: 10 | F117: 0.5833333333 | G117: 9.583333333 | H117: 0.8271450732 | I117: =IF(G117>$C$9,0,SUM(H117:$H$362)*$C$10) -> 94176.3129 | J117: 113669.3339 | K117: 1.19109717e-05 | L117: 1.121731398 | M117: 0
E118: 10 | F118: 0.6666666667 | G118: 9.666666667 | H118: 0.8257812284 | I118: =IF(G118>$C$9,0,SUM(H118:$H$362)*$C$10) -> 93349.16783 | J118: 112857.0681 | K118: 1.19109717e-05 | L118: 1.111879296 | M118: 0
E119: 10 | F119: 0.75 | G119: 9.75 | H119: 0.8244196324 | I119: =IF(G119>$C$9,0,SUM(H119:$H$362)*$C$10) -> 92523.3866 | J119: 112043.4607 | K119: 1.19109717e-05 | L119: 1.102043439 | M119: 0
E120: 10 | F120: 0.8333333333 | G120: 9.833333333 | H120: 0.8230602814 | I120: =IF(G120>$C$9,0,SUM(H120:$H$362)*$C$10) -> 91698.96697 | J120: 111228.5096 | K120: 1.19109717e-05 | L120: 1.0922238 | M120: 0
E121: 10 | F121: 0.9166666667 | G121: 9.916666667 | H121: 0.8217031718 | I121: =IF(G121>$C$9,0,SUM(H121:$H$362)*$C$10) -> 90875.90668 | J121: 110412.2125 | K121: 1.19109717e-05 | L121: 1.082420353 | M121: 0
E122: 10 | F122: 1 | G122: 10 | H122: 0.8203482999 | I122: =IF(G122>$C$9,0,SUM(H122:$H$362)*$C$10) -> 90054.20351 | J122: 109594.5672 | K122: 1.19109717e-05 | L122: 1.072633069 | M122: 0
E123: 11 | F123: 0.08333333333 | G123: 10.08333333 | H123: 0.818995662 | I123: =IF(G123>$C$9,0,SUM(H123:$H$362)*$C$10) -> 89233.85521 | J123: 108775.5716 | K123: 1.245239129e-05 | L123: 1.111174882 | M123: 0 | AL123: =IF($G123>$C$49,0,$C$46-$C$35-$C$36) -> 34.78 | AM123: =IF($G123>$C$49,0,$C$58*$C$39+$C$62*$C$40) -> 6.5568 | AN123: =AL123/(1+$C$63)^($E123-1) -> 23.49612179 | AO123: =AM123/(1+$C$63)^($E123-1) -> 4.429539142
E124: 11 | F124: 0.1666666667 | G124: 10.16666667 | H124: 0.8176452543 | I124: =IF(G124>$C$9,0,SUM(H124:$H$362)*$C$10) -> 88414.85955 | J124: 107955.2233 | K124: 1.245239129e-05 | L124: 1.100976427 | M124: 0
E125: 11 | F125: 0.25 | G125: 10.25 | H125: 0.8162970734 | I125: =IF(G125>$C$9,0,SUM(H125:$H$362)*$C$10) -> 87597.2143 | J125: 107133.5201 | K125: 1.245239129e-05 | L125: 1.090794789 | M125: 0
E126: 11 | F126: 0.3333333333 | G126: 10.33333333 | H126: 0.8149511153 | I126: =IF(G126>$C$9,0,SUM(H126:$H$362)*$C$10) -> 86780.91722 | J126: 106310.4598 | K126: 1.245239129e-05 | L126: 1.080629938 | M126: 0
E127: 11 | F127: 0.4166666667 | G127: 10.41666667 | H127: 0.8136073766 | I127: =IF(G127>$C$9,0,SUM(H127:$H$362)*$C$10) -> 85965.96611 | J127: 105486.0402 | K127: 1.245239129e-05 | L127: 1.070481848 | M127: 0
E128: 11 | F128: 0.5 | G128: 10.5 | H128: 0.8122658535 | I128: =IF(G128>$C$9,0,SUM(H128:$H$362)*$C$10) -> 85152.35873 | J128: 104660.259 | K128: 1.245239129e-05 | L128: 1.060350491 | M128: 0
E129: 11 | F129: 0.5833333333 | G129: 10.58333333 | H129: 0.8109265424 | I129: =IF(G129>$C$9,0,SUM(H129:$H$362)*$C$10) -> 84340.09288 | J129: 103833.1139 | K129: 1.245239129e-05 | L129: 1.050235838 | M129: 0
E130: 11 | F130: 0.6666666667 | G130: 10.66666667 | H130: 0.8095894396 | I130: =IF(G130>$C$9,0,SUM(H130:$H$362)*$C$10) -> 83529.16633 | J130: 103004.6027 | K130: 1.245239129e-05 | L130: 1.040137864 | M130: 0
E131: 11 | F131: 0.75 | G131: 10.75 | H131: =IF(G131>$C$9,0,$C$27^G131) -> 0.8082545415 | I131: =IF(G131>$C$9,0,SUM(H131:$H$362)*$C$10) -> 82719.5769 | J131: 102174.7232 | K131: =IF(G131>$C$9,0,VLOOKUP(E131-1,$AH$7:$AJ$36,3,FALSE)*(1+$C$18)^($C$26/2)*$C$26) -> 1.245239129e-05 | L131: 1.030056539 | M131: =I131*$C$31*$C$26 -> 0
E132: 11 | F132: 0.8333333333 | G132: =E132+F132-1 -> 10.83333333 | H132: 0.8069218445 | I132: =IF(G132>$C$9,0,SUM(H132:$H$362)*$C$10) -> 81911.32235 | J132: =IF(G132>$C$9,0,I132/H131) -> 101343.4731 | K132: 1.245239129e-05 | L132: =K132*I132 -> 1.019991837 | M132: 0
E133: 11 | F133: 0.9166666667 | G133: 10.91666667 | H133: 0.8055913449 | I133: =IF(G133>$C$9,0,SUM(H133:$H$362)*$C$10) -> 81104.40051 | J133: 100510.85 | K133: 1.245239129e-05 | L133: 1.009943731 | M133: 0
E134: 11 | F134: 1 | G134: 11 | H134: 0.8042630391 | I134: =IF(G134>$C$9,0,SUM(H134:$H$362)*$C$10) -> 80298.80916 | J134: 99676.85188 | K134: 1.245239129e-05 | L134: 0.9999121922 | M134: 0
E135: 12 | F135: 0.08333333333 | G135: 11.08333333 | H135: 0.8029369235 | I135: =IF(G135>$C$9,0,SUM(H135:$H$362)*$C$10) -> 79494.54613 | J135: 98841.47631 | K135: 1.245091693e-05 | L135: 0.9897799898 | M135: 0 | AL135: =IF($G135>$C$49,0,$C$46-$C$35-$C$36) -> 34.78 | AM135: =IF($G135>$C$49,0,$C$58*$C$39+$C$62*$C$40) -> 6.5568 | AN135: =AL135/(1+$C$63)^($E135-1) -> 22.5924248 | AO135: =AM135/(1+$C$63)^($E135-1) -> 4.259172252
E136: 12 | F136: 0.1666666667 | G136: 11.16666667 | H136: 0.8016129945 | I136: =IF(G136>$C$9,0,SUM(H136:$H$362)*$C$10) -> 78691.6092 | J136: 98004.72104 | K136: 1.245091693e-05 | L136: 0.9797826889 | M136: 0
E137: 12 | F137: 0.25 | G137: 11.25 | H137: 0.8002912484 | I137: =IF(G137>$C$9,0,SUM(H137:$H$362)*$C$10) -> 77889.99621 | J137: 97166.58381 | K137: 1.245091693e-05 | L137: 0.9698018721 | M137: 0
E138: 12 | F138: 0.3333333333 | G138: 11.33333333 | H138: 0.7989716817 | I138: =IF(G138>$C$9,0,SUM(H138:$H$362)*$C$10) -> 77089.70496 | J138: 96327.06232 | K138: 1.245091693e-05 | L138: 0.9598375123 | M138: 0
E139: 12 | F139: 0.4166666667 | G139: 11.41666667 | H139: 0.7976542908 | I139: =IF(G139>$C$9,0,SUM(H139:$H$362)*$C$10) -> 76290.73328 | J139: 95486.1543 | K139: 1.245091693e-05 | L139: 0.9498895822 | M139: 0
E140: 12 | F140: 0.5 | G140: 11.5 | H140: 0.7963390721 | I140: =IF(G140>$C$9,0,SUM(H140:$H$362)*$C$10) -> 75493.07899 | J140: 94643.85744 | K140: 1.245091693e-05 | L140: 0.9399580549 | M140: 0
E141: 12 | F141: 0.5833333333 | G141: 11.58333333 | H141: 0.795026022 | I141: =IF(G141>$C$9,0,SUM(H141:$H$362)*$C$10) -> 74696.73991 | J141: 93800.16947 | K141: 1.245091693e-05 | L141: 0.9300429033 | M141: 0
E142: 12 | F142: 0.6666666667 | G142: 11.66666667 | H142: 0.7937151369 | I142: =IF(G142>$C$9,0,SUM(H142:$H$362)*$C$10) -> 73901.71389 | J142: 92955.08807 | K142: 1.245091693e-05 | L142: 0.9201441003 | M142: 0
E143: 12 | F143: 0.75 | G143: 11.75 | H143: 0.7924064133 | I143: =IF(G143>$C$9,0,SUM(H143:$H$362)*$C$10) -> 73107.99876 | J143: 92108.61096 | K143: 1.245091693e-05 | L143: 0.9102616191 | M143: 0
E144: 12 | F144: 0.8333333333 | G144: 11.83333333 | H144: 0.7910998475 | I144: =IF(G144>$C$9,0,SUM(H144:$H$362)*$C$10) -> 72315.59234 | J144: 91260.73582 | K144: 1.245091693e-05 | L144: 0.9003954327 | M144: 0
E145: 12 | F145: 0.9166666667 | G145: 11.91666667 | H145: 0.7897954362 | I145: =IF(G145>$C$9,0,SUM(H145:$H$362)*$C$10) -> 71524.49249 | J145: 90411.46034 | K145: 1.245091693e-05 | L145: 0.8905455142 | M145: 0
E146: 12 | F146: 1 | G146: 12 | H146: 0.7884931756 | I146: =IF(G146>$C$9,0,SUM(H146:$H$362)*$C$10) -> 70734.69706 | J146: 89560.78222 | K146: 1.245091693e-05 | L146: 0.8807118368 | M146: 0
E147: 13 | F147: 0.08333333333 | G147: 12.08333333 | H147: 0.7871930622 | I147: =IF(G147>$C$9,0,SUM(H147:$H$362)*$C$10) -> 69946.20388 | J147: 88708.69914 | K147: 1.407582177e-05 | L147: 0.9845502995 | M147: 0 | AL147: =IF($G147>$C$49,0,$C$46-$C$35-$C$36) -> 34.78 | AM147: =IF($G147>$C$49,0,$C$58*$C$39+$C$62*$C$40) -> 6.5568 | AN147: =AL147/(1+$C$63)^($E147-1) -> 21.72348538 | AO147: =AM147/(1+$C$63)^($E147-1) -> 4.095357935
E148: 13 | F148: 0.1666666667 | G148: 12.16666667 | H148: 0.7858950926 | I148: =IF(G148>$C$9,0,SUM(H148:$H$362)*$C$10) -> 69159.01082 | J148: 87855.20876 | K148: 1.407582177e-05 | L148: 0.9734699103 | M148: 0
E149: 13 | F149: 0.25 | G149: 12.25 | H149: 0.7845992631 | I149: =IF(G149>$C$9,0,SUM(H149:$H$362)*$C$10) -> 68373.11573 | J149: 87000.30878 | K149: 1.407582177e-05 | L149: 0.962407791 | M149: 0
E150: 13 | F150: 0.3333333333 | G150: 12.33333333 | H150: 0.7833055703 | I150: =IF(G150>$C$9,0,SUM(H150:$H$362)*$C$10) -> 67588.51647 | J150: 86143.99687 | K150: 1.407582177e-05 | L150: 0.9513639116 | M150: 0
E151: 13 | F151: 0.4166666667 | G151: 12.41666667 | H151: 0.7820140106 | I151: =IF(G151>$C$9,0,SUM(H151:$H$362)*$C$10) -> 66805.21089 | J151: 85286.27068 | K151: 1.407582177e-05 | L151: 0.940338242 | M151: 0
E152: 13 | F152: 0.5 | G152: 12.5 | H152: 0.7807245805 | I152: =IF(G152>$C$9,0,SUM(H152:$H$362)*$C$10) -> 66023.19688 | J152: 84427.12789 | K152: 1.407582177e-05 | L152: 0.9293307522 | M152: 0
E153: 13 | F153: 0.5833333333 | G153: 12.58333333 | H153: 0.7794372764 | I153: =IF(G153>$C$9,0,SUM(H153:$H$362)*$C$10) -> 65242.4723 | J153: 83566.56616 | K153: 1.407582177e-05 | L153: 0.9183414121 | M153: 0
E154: 13 | F154: 0.6666666667 | G154: 12.66666667 | H154: 0.778152095 | I154: =IF(G154>$C$9,0,SUM(H154:$H$362)*$C$10) -> 64463.03503 | J154: 82704.58314 | K154: 1.407582177e-05 | L154: 0.9073701919 | M154: 0
E155: 13 | F155: 0.75 | G155: 12.75 | H155: 0.7768690326 | I155: =IF(G155>$C$9,0,SUM(H155:$H$362)*$C$10) -> 63684.88293 | J155: 81841.17648 | K155: 1.407582177e-05 | L155: 0.8964170617 | M155: 0
E156: 13 | F156: 0.8333333333 | G156: 12.83333333 | H156: 0.7755880858 | I156: =IF(G156>$C$9,0,SUM(H156:$H$362)*$C$10) -> 62908.0139 | J156: 80976.34384 | K156: 1.407582177e-05 | L156: 0.8854819917 | M156: 0
E157: 13 | F157: 0.9166666667 | G157: 12.91666667 | H157: 0.7743092511 | I157: =IF(G157>$C$9,0,SUM(H157:$H$362)*$C$10) -> 62132.42581 | J157: 80110.08285 | K157: 1.407582177e-05 | L157: 0.874564952 | M157: 0
E158: 13 | F158: 1 | G158: 13 | H158: 0.7730325251 | I158: =IF(G158>$C$9,0,SUM(H158:$H$362)*$C$10) -> 61358.11656 | J158: 79242.39117 | K158: 1.407582177e-05 | L158: 0.863665913 | M158: 0
E159: 14 | F159: 0.08333333333 | G159: 13.08333333 | H159: 0.7717579042 | I159: =IF(G159>$C$9,0,SUM(H159:$H$362)*$C$10) -> 60585.08404 | J159: 78373.26642 | K159: 1.732571924e-05 | L159: 1.049680156 | M159: 0 | AL159: =IF($G159>$C$49,0,$C$46-$C$35-$C$36) -> 34.78 | AM159: =IF($G159>$C$49,0,$C$58*$C$39+$C$62*$C$40) -> 6.5568 | AN159: =AL159/(1+$C$63)^($E159-1) -> 20.88796672 | AO159: =AM159/(1+$C$63)^($E159-1) -> 3.937844168
E160: 14 | F160: 0.1666666667 | G160: 13.16666667 | H160: 0.7704853849 | I160: =IF(G160>$C$9,0,SUM(H160:$H$362)*$C$10) -> 59813.32613 | J160: 77502.70624 | K160: 1.732571924e-05 | L160: 1.036308896 | M160: 0
E161: 14 | F161: 0.25 | G161: 13.25 | H161: 0.7692149638 | I161: =IF(G161>$C$9,0,SUM(H161:$H$362)*$C$10) -> 59042.84075 | J161: 76630.70826 | K161: 1.732571924e-05 | L161: 1.022959682 | M161: 0
E162: 14 | F162: 0.3333333333 | G162: 13.33333333 | H162: 0.7679466375 | I162: =IF(G162>$C$9,0,SUM(H162:$H$362)*$C$10) -> 58273.62578 | J162: 75757.2701 | K162: 1.732571924e-05 | L162: 1.00963248 | M162: 0
E163: 14 | F163: 0.4166666667 | G163: 13.41666667 | H163: 0.7666804025 | I163: =IF(G163>$C$9,0,SUM(H163:$H$362)*$C$10) -> 57505.67915 | J163: 74882.3894 | K163: 1.732571924e-05 | L163: 0.9963272519 | M163: 0
E164: 14 | F164: 0.5 | G164: 13.5 | H164: 0.7654162553 | I164: =IF(G164>$C$9,0,SUM(H164:$H$362)*$C$10) -> 56738.99874 | J164: 74006.06375 | K164: 1.732571924e-05 | L164: 0.9830439625 | M164: 0
E165: 14 | F165: 0.5833333333 | G165: 13.58333333 | H165: 0.7641541926 | I165: =IF(G165>$C$9,0,SUM(H165:$H$362)*$C$10) -> 55973.58249 | J165: 73128.29078 | K165: 1.732571924e-05 | L165: 0.9697825753 | M165: 0
E166: 14 | F166: 0.6666666667 | G166: 13.66666667 | H166: 0.7628942108 | I166: =IF(G166>$C$9,0,SUM(H166:$H$362)*$C$10) -> 55209.4283 | J166: 72249.0681 | K166: 1.732571924e-05 | L166: 0.9565430543 | M166: 0
E167: 14 | F167: 0.75 | G167: 13.75 | H167: 0.7616363065 | I167: =IF(G167>$C$9,0,SUM(H167:$H$362)*$C$10) -> 54446.53409 | J167: 71368.39331 | K167: 1.732571924e-05 | L167: 0.9433253634 | M167: 0
E168: 14 | F168: 0.8333333333 | G168: 13.83333333 | H168: 0.7603804763 | I168: =IF(G168>$C$9,0,SUM(H168:$H$362)*$C$10) -> 53684.89778 | J168: 70486.26401 | K168: 1.732571924e-05 | L168: 0.9301294666 | M168: 0
E169: 14 | F169: 0.9166666667 | G169: 13.91666667 | H169: 0.7591267168 | I169: =IF(G169>$C$9,0,SUM(H169:$H$362)*$C$10) -> 52924.5173 | J169: 69602.67781 | K169: 1.732571924e-05 | L169: 0.9169553279 | M169: 0
E170: 14 | F170: 1 | G170: 14 | H170: 0.7578750246 | I170: =IF(G170>$C$9,0,SUM(H170:$H$362)*$C$10) -> 52165.39059 | J170: 68717.63229 | K170: 1.732571924e-05 | L170: 0.9038029116 | M170: 0
E171: 15 | F171: 0.08333333333 | G171: 14.08333333 | H171: 0.7566253962 | I171: =IF(G171>$C$9,0,SUM(H171:$H$362)*$C$10) -> 51407.51556 | J171: 67831.12505 | K171: 2.220120554e-05 | L171: 1.141308819 | M171: 0 | AL171: =IF($G171>$C$49,0,$C$46-$C$35-$C$36) -> 34.78 | AM171: =IF($G171>$C$49,0,$C$58*$C$39+$C$62*$C$40) -> 6.5568 | AN171: =AL171/(1+$C$63)^($E171-1) -> 20.08458338 | AO171: =AM171/(1+$C$63)^($E171-1) -> 3.786388623
E172: 15 | F172: 0.1666666667 | G172: 14.16666667 | H172: 0.7553778283 | I172: =IF(G172>$C$9,0,SUM(H172:$H$362)*$C$10) -> 50650.89017 | J172: 66943.15366 | K172: 2.220120554e-05 | L172: 1.124510823 | M172: 0
E173: 15 | F173: 0.25 | G173: 14.25 | H173: 0.7541323175 | I173: =IF(G173>$C$9,0,SUM(H173:$H$362)*$C$10) -> 49895.51234 | J173: 66053.71572 | K173: 2.220120554e-05 | L173: 1.107740525 | M173: 0
E174: 15 | F174: 0.3333333333 | G174: 14.33333333 | H174: 0.7528888603 | I174: =IF(G174>$C$9,0,SUM(H174:$H$362)*$C$10) -> 49141.38002 | J174: 65162.80881 | K174: 2.220120554e-05 | L174: 1.090997878 | M174: 0
E175: 15 | F175: 0.4166666667 | G175: 14.41666667 | H175: 0.7516474535 | I175: =IF(G175>$C$9,0,SUM(H175:$H$362)*$C$10) -> 48388.49116 | J175: 64270.43048 | K175: 2.220120554e-05 | L175: 1.074282838 | M175: 0
E176: 15 | F176: 0.5 | G176: 14.5 | H176: 0.7504080935 | I176: =IF(G176>$C$9,0,SUM(H176:$H$362)*$C$10) -> 47636.84371 | J176: 63376.57832 | K176: 2.220120554e-05 | L176: 1.057595358 | M176: 0
E177: 15 | F177: 0.5833333333 | G177: 14.58333333 | H177: 0.749170777 | I177: =IF(G177>$C$9,0,SUM(H177:$H$362)*$C$10) -> 46886.43561 | J177: 62481.2499 | K177: 2.220120554e-05 | L177: 1.040935394 | M177: 0
E178: 15 | F178: 0.6666666667 | G178: 14.66666667 | H178: 0.7479355007 | I178: =IF(G178>$C$9,0,SUM(H178:$H$362)*$C$10) -> 46137.26484 | J178: 61584.44276 | K178: 2.220120554e-05 | L178: 1.0243029 | M178: 0
E179: 15 | F179: 0.75 | G179: 14.75 | H179: 0.7467022613 | I179: =IF(G179>$C$9,0,SUM(H179:$H$362)*$C$10) -> 45389.32933 | J179: 60686.15447 | K179: 2.220120554e-05 | L179: 1.00769783 | M179: 0
E180: 15 | F180: 0.8333333333 | G180: 14.83333333 | H180: 0.7454710552 | I180: =IF(G180>$C$9,0,SUM(H180:$H$362)*$C$10) -> 44642.62707 | J180: 59786.38259 | K180: 2.220120554e-05 | L180: 0.9911201394 | M180: 0
E181: 15 | F181: 0.9166666667 | G181: 14.91666667 | H181: 0.7442418792 | I181: =IF(G181>$C$9,0,SUM(H181:$H$362)*$C$10) -> 43897.15602 | J181: 58885.12466 | K181: 2.220120554e-05 | L181: 0.9745697833 | M181: 0
E182: 15 | F182: 1 | G182: 15 | H182: 0.74301473 | I182: =IF(G182>$C$9,0,SUM(H182:$H$362)*$C$10) -> 43152.91414 | J182: 57982.37823 | K182: 2.220120554e-05 | L182: 0.9580467164 | M182: 0
E183: 16 | F183: 0.08333333333 | G183: 15.08333333 | H183: 0.7417896041 | I183: =IF(G183>$C$9,0,SUM(H183:$H$362)*$C$10) -> 42409.89941 | J183: 57078.14085 | K183: 2.816174901e-05 | L183: 1.194336943 | M183: 0 | AL183: =IF($G183>$C$49,0,$C$46-$C$35-$C$36) -> 0 | AM183: =IF($G183>$C$49,0,$C$58*$C$39+$C$62*$C$40) -> 0 | AN183: =AL183/(1+$C$63)^($E183-1) -> 0 | AO183: =AM183/(1+$C$63)^($E183-1) -> 0
E184: 16 | F184: 0.1666666667 | G184: 15.16666667 | H184: 0.7405664984 | I184: =IF(G184>$C$9,0,SUM(H184:$H$362)*$C$10) -> 41668.1098 | J184: 56172.41004 | K184: 2.816174901e-05 | L184: 1.17344685 | M184: 0
E185: 16 | F185: 0.25 | G185: 15.25 | H185: 0.7393454093 | I185: =IF(G185>$C$9,0,SUM(H185:$H$362)*$C$10) -> 40927.54331 | J185: 55265.18334 | K185: 2.816174901e-05 | L185: 1.152591202 | M185: 0
E186: 16 | F186: 0.3333333333 | G186: 15.33333333 | H186: 0.7381263337 | I186: =IF(G186>$C$9,0,SUM(H186:$H$362)*$C$10) -> 40188.1979 | J186: 54356.45828 | K186: 2.816174901e-05 | L186: 1.131769942 | M186: 0
E187: 16 | F187: 0.4166666667 | G187: 15.41666667 | H187: 0.7369092681 | I187: =IF(G187>$C$9,0,SUM(H187:$H$362)*$C$10) -> 39450.07156 | J187: 53446.23239 | K187: 2.816174901e-05 | L187: 1.110983014 | M187: 0
E188: 16 | F188: 0.5 | G188: 15.5 | H188: 0.7356942093 | I188: =IF(G188>$C$9,0,SUM(H188:$H$362)*$C$10) -> 38713.1623 | J188: 52534.50319 | K188: 2.816174901e-05 | L188: 1.09023036 | M188: 0
E189: 16 | F189: 0.5833333333 | G189: 15.58333333 | H189: 0.734481154 | I189: =IF(G189>$C$9,0,SUM(H189:$H$362)*$C$10) -> 37977.46809 | J189: 51621.26819 | K189: 2.816174901e-05 | L189: 1.069511924 | M189: 0
E190: 16 | F190: 0.6666666667 | G190: 15.66666667 | H190: 0.7332700988 | I190: =IF(G190>$C$9,0,SUM(H190:$H$362)*$C$10) -> 37242.98693 | J190: 50706.52491 | K190: 2.816174901e-05 | L190: 1.04882765 | M190: 0
E191: 16 | F191: 0.75 | G191: 15.75 | H191: 0.7320610404 | I191: =IF(G191>$C$9,0,SUM(H191:$H$362)*$C$10) -> 36509.71683 | J191: 49790.27086 | K191: 2.816174901e-05 | L191: 1.028177482 | M191: 0
E192: 16 | F192: 0.8333333333 | G192: 15.83333333 | H192: 0.7308539757 | I192: =IF(G192>$C$9,0,SUM(H192:$H$362)*$C$10) -> 35777.65579 | J192: 48872.50354 | K192: 2.816174901e-05 | L192: 1.007561363 | M192: 0
E193: 16 | F193: 0.9166666667 | G193: 15.91666667 | H193: 0.7296489012 | I193: =IF(G193>$C$9,0,SUM(H193:$H$362)*$C$10) -> 35046.80182 | J193: 47953.22046 | K193: 2.816174901e-05 | L193: 0.9869792363 | M193: 0
E194: 16 | F194: 1 | G194: 16 | H194: 0.7284458137 | I194: =IF(G194>$C$9,0,SUM(H194:$H$362)*$C$10) -> 34317.15292 | J194: 47032.4191 | K194: 2.816174901e-05 | L194: 0.9664310471 | M194: 0
E195: 17 | F195: 0.08333333333 | G195: 16.08333333 | H195: =IF(G195>$C$9,0,$C$27^G195) -> 0.7272447099 | I195: =IF(G195>$C$9,0,SUM(H195:$H$362)*$C$10) -> 33588.7071 | J195: 46110.09696 | K195: =IF(G195>$C$9,0,VLOOKUP(E195-1,$AH$7:$AJ$36,3,FALSE)*(1+$C$18)^($C$26/2)*$C$26) -> 3.791790872e-05 | L195: 1.27361353 | M195: =I195*$C$31*$C$26 -> 0 | AL195: =IF($G195>$C$49,0,$C$46-$C$35-$C$36) -> 0 | AM195: =IF($G195>$C$49,0,$C$58*$C$39+$C$62*$C$40) -> 0 | AN195: =AL195/(1+$C$63)^($E195-1) -> 0 | AO195: =AM195/(1+$C$63)^($E195-1) -> 0
E196: 17 | F196: 0.1666666667 | G196: =E196+F196-1 -> 16.16666667 | H196: 0.7260455866 | I196: =IF(G196>$C$9,0,SUM(H196:$H$362)*$C$10) -> 32861.46239 | J196: =IF(G196>$C$9,0,I196/H195) -> 45186.25154 | K196: 3.791790872e-05 | L196: =K196*I196 -> 1.246037931 | M196: 0
E197: 17 | F197: 0.25 | G197: 16.25 | H197: 0.7248484405 | I197: =IF(G197>$C$9,0,SUM(H197:$H$362)*$C$10) -> 32135.41681 | J197: 44260.8803 | K197: 3.791790872e-05 | L197: 1.218507801 | M197: 0
E198: 17 | F198: 0.3333333333 | G198: 16.33333333 | H198: 0.7236532683 | I198: =IF(G198>$C$9,0,SUM(H198:$H$362)*$C$10) -> 31410.56837 | J198: 43333.98075 | K198: 3.791790872e-05 | L198: 1.191023064 | M198: 0
E199: 17 | F199: 0.4166666667 | G199: 16.41666667 | H199: 0.7224600668 | I199: =IF(G199>$C$9,0,SUM(H199:$H$362)*$C$10) -> 30686.9151 | J199: 42405.55034 | K199: 3.791790872e-05 | L199: 1.163583645 | M199: 0
E200: 17 | F200: 0.5 | G200: 16.5 | H200: 0.7212688326 | I200: =IF(G200>$C$9,0,SUM(H200:$H$362)*$C$10) -> 29964.45503 | J200: 41475.58655 | K200: 3.791790872e-05 | L200: 1.136189471 | M200: 0
E201: 17 | F201: 0.5833333333 | G201: 16.58333333 | H201: 0.7200795627 | I201: =IF(G201>$C$9,0,SUM(H201:$H$362)*$C$10) -> 29243.1862 | J201: 40544.08686 | K201: 3.791790872e-05 | L201: 1.108840465 | M201: 0
... 161 more rows

Sheet Continuità del Reddito (hidden)
B2: GARANZIA CAPITALE da IP completa | G2: GARANZIA RENDITA da IP completa | L2: ASSISTENZA CONTINUITA' DEL REDDITO | N2: GARANZIA CAPITALE da IP completa | S2: GARANZIA RENDITA da IP completa
C4: TASSI PER MILLE NETTI | H4: TASSI PER MILLE NETTI | L4: PREMIO NETTO | O4: TASSI PER MILLE NETTI+AG | T4: PREMI PER MILLE NETTI+AG | Z4: PREMIO NETTO+AG
B5: Età | C5: IP INF | D5: IP MAL | E5: garanzia "Capitale da IP Completa" | G5: Età | H5: RENDITA INF | I5: RENDITA MAL | J5: "Rendita da IP Completa" | L5: 16.53 | N5: Età | O5: IP INF | P5: IP MAL | Q5: garanzia "Capitale da IP Completa" | S5: Età | T5: RENDITA INF | U5: RENDITA MAL | V5: "Rendita da IP Completa" | Z5: =ROUND(L5*10%,2)+L5 -> 18.18
B6: 18 | C6: 0.28 | D6: 0.14 | E6: =C6+D6 -> 0.42 | G6: 18 | H6: 9.25 | I6: 6.02 | J6: =H6+I6 -> 15.27 | N6: 18 | O6: =ROUND(C6*10%,2)+C6 -> 0.31 | P6: =ROUND(D6*10%,2)+D6 -> 0.15 | Q6: =O6+P6 -> 0.46 | S6: 18 | T6: =ROUND(H6*10%,2)+H6 -> 10.18 | U6: =ROUND(I6*10%,2)+I6 -> 6.62 | V6: =T6+U6 -> 16.8
B7: 19 | C7: 0.28 | D7: 0.16 | E7: =C7+D7 -> 0.44 | G7: 19 | H7: 9.14 | I7: 6.48 | J7: 15.62 | N7: 19 | O7: 0.31 | P7: =ROUND(D7*10%,2)+D7 -> 0.18 | Q7: =O7+P7 -> 0.49 | S7: 19 | T7: =ROUND(H7*10%,2)+H7 -> 10.05 | U7: =ROUND(I7*10%,2)+I7 -> 7.13 | V7: 17.18
B8: 20 | C8: 0.28 | D8: 0.16 | E8: 0.44 | G8: 20 | H8: 9.03 | I8: 6.74 | J8: 15.77 | N8: 20 | O8: 0.31 | P8: 0.18 | Q8: 0.49 | S8: 20 | T8: 9.93 | U8: 7.41 | V8: 17.34
B9: 21 | C9: 0.28 | D9: 0.17 | E9: 0.45 | G9: 21 | H9: 8.93 | I9: 6.91 | J9: 15.84 | N9: 21 | O9: 0.31 | P9: 0.19 | Q9: 0.5 | S9: 21 | T9: 9.82 | U9: 7.6 | V9: 17.42
B10: 22 | C10: 0.28 | D10: 0.18 | E10: 0.46 | G10: 22 | H10: 8.82 | I10: 7.05 | J10: 15.87 | N10: 22 | O10: 0.31 | P10: 0.2 | Q10: 0.51 | S10: 22 | T10: 9.7 | U10: 7.76 | V10: 17.46
B11: 23 | C11: 0.28 | D11: 0.18 | E11: 0.46 | G11: 23 | H11: 8.71 | I11: 7.03 | J11: 15.74 | N11: 23 | O11: 0.31 | P11: 0.2 | Q11: 0.51 | S11: 23 | T11: 9.58 | U11: 7.73 | V11: 17.31
B12: 24 | C12: 0.28 | D12: 0.18 | E12: 0.46 | G12: 24 | H12: 8.6 | I12: 7.08 | J12: 15.68 | N12: 24 | O12: 0.31 | P12: 0.2 | Q12: 0.51 | S12: 24 | T12: 9.46 | U12: 7.79 | V12: 17.25
B13: 25 | C13: 0.28 | D13: 0.18 | E13: 0.46 | G13: 25 | H13: 8.49 | I13: 6.9 | J13: 15.39 | N13: 25 | O13: 0.31 | P13: 0.2 | Q13: 0.51 | S13: 25 | T13: 9.34 | U13: 7.59 | V13: 16.93
B14: 26 | C14: 0.28 | D14: 0.18 | E14: 0.46 | G14: 26 | H14: 8.37 | I14: 6.8 | J14: 15.17 | N14: 26 | O14: 0.31 | P14: 0.2 | Q14: 0.51 | S14: 26 | T14: 9.21 | U14: 7.48 | V14: 16.69
B15: 27 | C15: 0.28 | D15: 0.18 | E15: 0.46 | G15: 27 | H15: 8.26 | I15: 6.74 | J15: 15 | N15: 27 | O15: 0.31 | P15: 0.2 | Q15: 0.51 | S15: 27 | T15: 9.09 | U15: 7.41 | V15: 16.5
B16: 28 | C16: 0.28 | D16: 0.18 | E16: 0.46 | G16: 28 | H16: 8.14 | I16: 6.62 | J16: 14.76 | N16: 28 | O16: 0.31 | P16: 0.2 | Q16: 0.51 | S16: 28 | T16: 8.95 | U16: 7.28 | V16: 16.23
B17: 29 | C17: 0.28 | D17: 0.18 | E17: 0.46 | G17: 29 | H17: 8.03 | I17: 6.48 | J17: 14.51 | N17: 29 | O17: 0.31 | P17: 0.2 | Q17: 0.51 | S17: 29 | T17: 8.83 | U17: 7.13 | V17: 15.96
B18: 30 | C18: 0.28 | D18: 0.18 | E18: 0.46 | G18: 30 | H18: 7.91 | I18: 6.59 | J18: 14.5 | N18: 30 | O18: 0.31 | P18: 0.2 | Q18: 0.51 | S18: 30 | T18: 8.7 | U18: 7.25 | V18: 15.95
B19: 31 | C19: 0.28 | D19: 0.18 | E19: 0.46 | G19: 31 | H19: 7.79 | I19: 6.54 | J19: 14.33 | N19: 31 | O19: 0.31 | P19: 0.2 | Q19: 0.51 | S19: 31 | T19: 8.57 | U19: 7.19 | V19: 15.76
B20: 32 | C20: 0.28 | D20: 0.19 | E20: 0.47 | G20: 32 | H20: 7.67 | I20: 6.78 | J20: 14.45 | N20: 32 | O20: 0.31 | P20: 0.21 | Q20: 0.52 | S20: 32 | T20: 8.44 | U20: 7.46 | V20: 15.9
B21: 33 | C21: 0.28 | D21: 0.21 | E21: 0.49 | G21: 33 | H21: 7.55 | I21: 7.13 | J21: 14.68 | N21: 33 | O21: 0.31 | P21: 0.23 | Q21: 0.54 | S21: 33 | T21: 8.31 | U21: 7.84 | V21: 16.15
B22: 34 | C22: 0.28 | D22: 0.22 | E22: 0.5 | G22: 34 | H22: 7.42 | I22: 7.51 | J22: 14.93 | N22: 34 | O22: 0.31 | P22: 0.24 | Q22: 0.55 | S22: 34 | T22: 8.16 | U22: 8.26 | V22: 16.42
B23: 35 | C23: 0.28 | D23: 0.23 | E23: 0.51 | G23: 35 | H23: 7.3 | I23: 7.82 | J23: 15.12 | N23: 35 | O23: 0.31 | P23: 0.25 | Q23: 0.56 | S23: 35 | T23: 8.03 | U23: 8.6 | V23: 16.63
B24: 36 | C24: 0.28 | D24: 0.24 | E24: 0.52 | G24: 36 | H24: 7.17 | I24: 8.17 | J24: 15.34 | N24: 36 | O24: 0.31 | P24: 0.26 | Q24: 0.57 | S24: 36 | T24: 7.89 | U24: 8.99 | V24: 16.88
B25: 37 | C25: 0.28 | D25: 0.25 | E25: 0.53 | G25: 37 | H25: 7.05 | I25: 8.45 | J25: 15.5 | N25: 37 | O25: 0.31 | P25: 0.28 | Q25: 0.59 | S25: 37 | T25: 7.76 | U25: 9.3 | V25: 17.06
B26: 38 | C26: 0.28 | D26: 0.27 | E26: 0.55 | G26: 38 | H26: 6.92 | I26: 8.95 | J26: 15.87 | N26: 38 | O26: 0.31 | P26: 0.3 | Q26: 0.61 | S26: 38 | T26: 7.61 | U26: 9.85 | V26: 17.46
B27: 39 | C27: 0.28 | D27: 0.29 | E27: 0.57 | G27: 39 | H27: 6.79 | I27: 9.6 | J27: 16.39 | N27: 39 | O27: 0.31 | P27: 0.32 | Q27: 0.63 | S27: 39 | T27: 7.47 | U27: 10.56 | V27: 18.03
B28: 40 | C28: 0.28 | D28: 0.32 | E28: 0.6 | G28: 40 | H28: 6.67 | I28: 10.26 | J28: 16.93 | N28: 40 | O28: 0.31 | P28: 0.35 | Q28: 0.66 | S28: 40 | T28: 7.34 | U28: 11.29 | V28: 18.63
B29: 41 | C29: 0.28 | D29: 0.34 | E29: 0.62 | G29: 41 | H29: 6.54 | I29: 10.86 | J29: 17.4 | N29: 41 | O29: 0.31 | P29: 0.37 | Q29: 0.68 | S29: 41 | T29: 7.19 | U29: 11.95 | V29: 19.14
B30: 42 | C30: 0.28 | D30: 0.37 | E30: 0.65 | G30: 42 | H30: 6.41 | I30: 11.64 | J30: 18.05 | N30: 42 | O30: 0.31 | P30: 0.41 | Q30: 0.72 | S30: 42 | T30: 7.05 | U30: 12.8 | V30: 19.85
B31: 43 | C31: 0.28 | D31: 0.4 | E31: 0.68 | G31: 43 | H31: 6.27 | I31: 12.48 | J31: 18.75 | N31: 43 | O31: 0.31 | P31: 0.44 | Q31: 0.75 | S31: 43 | T31: 6.9 | U31: 13.73 | V31: 20.63
B32: 44 | C32: 0.28 | D32: 0.44 | E32: 0.72 | G32: 44 | H32: 6.14 | I32: 13.63 | J32: 19.77 | N32: 44 | O32: 0.31 | P32: 0.48 | Q32: 0.79 | S32: 44 | T32: 6.75 | U32: 14.99 | V32: 21.74
B33: 45 | C33: 0.28 | D33: 0.49 | E33: 0.77 | G33: 45 | H33: 6.01 | I33: 14.81 | J33: 20.82 | N33: 45 | O33: 0.31 | P33: 0.54 | Q33: 0.85 | S33: 45 | T33: 6.61 | U33: 16.29 | V33: 22.9
B34: 46 | C34: 0.28 | D34: 0.53 | E34: 0.81 | G34: 46 | H34: 5.88 | I34: 15.96 | J34: 21.84 | N34: 46 | O34: 0.31 | P34: 0.58 | Q34: 0.89 | S34: 46 | T34: 6.47 | U34: 17.56 | V34: 24.03
B35: 47 | C35: 0.28 | D35: 0.59 | E35: 0.87 | G35: 47 | H35: 5.74 | I35: 17.51 | J35: 23.25 | N35: 47 | O35: 0.31 | P35: 0.65 | Q35: 0.96 | S35: 47 | T35: 6.31 | U35: 19.26 | V35: 25.57
B36: 48 | C36: 0.28 | D36: 0.64 | E36: 0.92 | G36: 48 | H36: 5.61 | I36: 18.74 | J36: 24.35 | N36: 48 | O36: 0.31 | P36: 0.7 | Q36: 1.01 | S36: 48 | T36: 6.17 | U36: 20.61 | V36: 26.78
B37: 49 | C37: 0.28 | D37: 0.7 | E37: 0.98 | G37: 49 | H37: 5.47 | I37: 20.29 | J37: 25.76 | N37: 49 | O37: 0.31 | P37: 0.77 | Q37: 1.08 | S37: 49 | T37: 6.02 | U37: 22.32 | V37: 28.34
B38: 50 | C38: 0.28 | D38: 0.77 | E38: 1.05 | G38: 50 | H38: 5.34 | I38: 21.86 | J38: 27.2 | N38: 50 | O38: 0.31 | P38: 0.85 | Q38: 1.16 | S38: 50 | T38: 5.87 | U38: 24.05 | V38: 29.92
B39: 51 | C39: 0.28 | D39: 0.85 | E39: 1.13 | G39: 51 | H39: 5.2 | I39: 23.85 | J39: 29.05 | N39: 51 | O39: 0.31 | P39: 0.94 | Q39: 1.25 | S39: 51 | T39: 5.72 | U39: 26.24 | V39: 31.96
B40: 52 | C40: 0.28 | D40: 0.94 | E40: 1.22 | G40: 52 | H40: 5.07 | I40: 26.01 | J40: 31.08 | N40: 52 | O40: 0.31 | P40: 1.03 | Q40: 1.34 | S40: 52 | T40: 5.58 | U40: 28.61 | V40: 34.19
B41: 53 | C41: 0.28 | D41: 1.08 | E41: 1.36 | G41: 53 | H41: 4.93 | I41: 29.19 | J41: 34.12 | N41: 53 | O41: 0.31 | P41: 1.19 | Q41: 1.5 | S41: 53 | T41: 5.42 | U41: 32.11 | V41: 37.53
B42: 54 | C42: 0.28 | D42: 1.15 | E42: 1.43 | G42: 54 | H42: 4.8 | I42: 30.77 | J42: 35.57 | N42: 54 | O42: 0.31 | P42: 1.27 | Q42: 1.58 | S42: 54 | T42: 5.28 | U42: 33.85 | V42: 39.13
B43: 55 | C43: 0.28 | D43: 1.26 | E43: 1.54 | G43: 55 | H43: 4.66 | I43: 33.03 | J43: 37.69 | N43: 55 | O43: 0.31 | P43: 1.39 | Q43: 1.7 | S43: 55 | T43: 5.13 | U43: 36.33 | V43: 41.46
B44: 56 | C44: 0.28 | D44: 1.39 | E44: 1.67 | G44: 56 | H44: 4.53 | I44: 35.82 | J44: 40.35 | N44: 56 | O44: 0.31 | P44: 1.53 | Q44: 1.84 | S44: 56 | T44: 4.98 | U44: 39.4 | V44: 44.38
B45: 57 | C45: 0.28 | D45: 1.57 | E45: 1.85 | G45: 57 | H45: 4.39 | I45: 39.46 | J45: 43.85 | N45: 57 | O45: 0.31 | P45: 1.73 | Q45: 2.04 | S45: 57 | T45: 4.83 | U45: 43.41 | V45: 48.24
B46: 58 | C46: 0.28 | D46: 1.72 | E46: 2 | G46: 58 | H46: 4.26 | I46: 42.35 | J46: 46.61 | N46: 58 | O46: 0.31 | P46: 1.89 | Q46: 2.2 | S46: 58 | T46: 4.69 | U46: 46.59 | V46: 51.28
B47: 59 | C47: 0.28 | D47: 1.94 | E47: 2.22 | G47: 59 | H47: 4.12 | I47: 46.76 | J47: 50.88 | N47: 59 | O47: 0.31 | P47: 2.13 | Q47: 2.44 | S47: 59 | T47: 4.53 | U47: 51.44 | V47: 55.97
B48: 60 | C48: 0.28 | D48: 2.09 | E48: 2.37 | G48: 60 | H48: 3.99 | I48: 49.37 | J48: 53.36 | N48: 60 | O48: 0.31 | P48: 2.3 | Q48: 2.61 | S48: 60 | T48: 4.39 | U48: 54.31 | V48: 58.7

Sheet Salute (hidden)
B2: GARANZIA RENDITA IP completa | E2: ASSISTENZA SALUTE
B5: Età | C5: Partita DREAD DISEASE TASSI NETTI | E5: PREMIO NETTO | G5: Età | H5: Partita DREAD DISEASE NETTI+AG | J5: PREMIO NETTO+AG
B6: 18 | C6: 0.42 | E6: 14.05 | H6: =ROUND(C6*10%,2)+C6 -> 0.46 | J6: =ROUND(E6*10%,2)+E6 -> 15.46
B7: 19 | C7: 0.5 | H7: =ROUND(C7*10%,2)+C7 -> 0.55
B8: 20 | C8: 0.58 | H8: 0.64
B9: 21 | C9: 0.64 | H9: 0.7
B10: 22 | C10: 0.71 | H10: 0.78
B11: 23 | C11: 0.76 | H11: 0.84
B12: 24 | C12: 0.82 | H12: 0.9
B13: 25 | C13: 0.88 | H13: 0.97
B14: 26 | C14: 0.95 | H14: 1.05
B15: 27 | C15: 1.02 | H15: 1.12
B16: 28 | C16: 1.11 | H16: 1.22
B17: 29 | C17: 1.21 | H17: 1.33
B18: 30 | C18: 1.33 | H18: 1.46
B19: 31 | C19: 1.44 | H19: 1.58
B20: 32 | C20: 1.57 | H20: 1.73
B21: 33 | C21: 1.72 | H21: 1.89
B22: 34 | C22: 1.88 | H22: 2.07
B23: 35 | C23: 2.07 | H23: 2.28
B24: 36 | C24: 2.27 | H24: 2.5
B25: 37 | C25: 2.5 | H25: 2.75
B26: 38 | C26: 2.76 | H26: 3.04
B27: 39 | C27: 3.06 | H27: 3.37
B28: 40 | C28: 3.39 | H28: 3.73
B29: 41 | C29: 3.66 | H29: 4.03
B30: 42 | C30: 3.95 | H30: 4.35
B31: 43 | C31: 4.29 | H31: 4.72
B32: 44 | C32: 4.66 | H32: 5.13
B33: 45 | C33: 5.07 | H33: 5.58
B34: 46 | C34: 5.52 | H34: 6.07
B35: 47 | C35: 6 | H35: 6.6
B36: 48 | C36: 6.56 | H36: 7.22
B37: 49 | C37: 7.18 | H37: 7.9
B38: 50 | C38: 7.87 | H38: 8.66
B39: 51 | C39: 8.67 | H39: 9.54
B40: 52 | C40: 9.57 | H40: 10.53
B41: 53 | C41: 10.46 | H41: 11.51
B42: 54 | C42: 11.43 | H42: 12.57
B43: 55 | C43: 12.51 | H43: 13.76
B44: 56 | C44: 13.73 | H44: 15.1
B45: 57 | C45: 15.06 | H45: 16.57
B46: 58 | C46: 16.46 | H46: 18.11
B47: 59 | C47: 18.02 | H47: 19.82
B48: 60 | C48: 19.73 | H48: 21.7
B49: 61 | C49: 21.22 | H49: 23.34
B50: 62 | C50: 22.82 | H50: 25.1
B51: 63 | C51: 24.38 | H51: 26.82
B52: 64 | C52: 26.06 | H52: 28.67
B53: 65 | C53: 27.86 | H53: 30.65
B54: 66 | C54: 29.76 | H54: 32.74
B55: 67 | C55: 31.81 | H55: 34.99
B56: 68 | C56: 33.86 | H56: 37.25
B57: 69 | C57: 36.04 | H57: 39.64
B58: 70 | C58: 38.39 | H58: 42.23

Sheet tariffa casa (hidden)
A1: GARANZIA INCENDIO | J1: CAP TEST | K1: ZONA | L1: FASCIA | M1: TCU
A2: FASCE | C2: 50.000-100.000 | D2: 80.000-150.000 | E2: 130.000-200.000 | F2: 180.000-250.000 | G2: 230.000-300.000 | J2: 20060 | K2: 0 | L2: 50/100 | M2: 1 | N2: Bellinzago Lombardo - MI
A3: PREMIO NETTO | C3: 15.327 | D3: 22.0325625 | E3: 32.569875 | F3: 41.38 | G3: 50.7706875 | J3: 00063 | K3: 1 | L3: 50/100 | M3: 2 | N3: Campagnano di Roma - RM
J4: 51013 | K4: 2 | L4: 50/100 | M4: 3 | N4: Chiesina Uzzanese - PT
J5: 00177 | K5: 3 | L5: 50/100 | M5: 4 | N5: Roma
A6: GARANZIA TERREMOTO - PREMI NETTI | J6: 31100 | K6: 4 | L6: 50/100 | M6: 5 | N6: Treviso - TV
B7: FASCE | J7: 32100 | K7: 5 | L7: 50/100 | M7: 6 | N7: Belluno - BL
A8: ZONE | B8: 50.000-100.000 | C8: 80.000-150.000 | D8: 130.000-200.000 | E8: 180.000-250.000 | F8: 230.000-300.000 | J8: 80122 | K8: 6 | L8: 50/100 | M8: 7 | N8: Napoli - NA
B9: 2 | C9: 3 | D9: 4 | E9: 5 | F9: 6
A10: 0 | B10: 8.3736 | C10: 12.03705 | D10: 17.7939 | E10: 22.60872 | F10: 27.73755 | J10: 83040 | K10: 7 | L10: 50/100 | M10: 8 | N10: Andretta - AV
A11: 1 | B11: 15.5088 | C11: 22.2939 | D11: 32.9562 | E11: 41.87376 | F11: 51.3729 | J11: 89815 | K11: 8 | L11: 50/100 | M11: 9 | N11: Francavilla Angitola - VV
A12: 2 | B12: 29.4624 | C12: 42.3522 | D12: 62.6076 | E12: 79.54848 | F12: 97.5942 | H12: =(E3+D10)*1.1*1.2225 -> 67.72668643 | J12: 88025 | K12: 9 | L12: 50/100 | M12: 10 | N12: Maida - CZ
A13: 3 | B13: 58.932 | C13: 84.71475 | D13: 125.2305 | E13: 159.1164 | F13: 195.21225 | H13: =E24*1.1*1.1 -> 4.4165 | J13: 20127 | K13: 0 | L13: 80/150 | M13: 11 | N13: Milano
A14: 4 | B14: 100.8 | C14: 144.9 | D14: 214.2 | E14: 272.16 | F14: 333.9 | J14: 12033 | K14: 1 | L14: 80/150 | M14: 12 | N14: Moretta - CN
A15: 5 | B15: 158.184 | C15: 227.3895 | D15: 336.141 | E15: 427.0968 | F15: 523.9845 | J15: 66021 | K15: 2 | L15: 80/150 | M15: 13 | N15: Casalbordino - CH
A16: 6 | B16: 227.9664 | C16: 327.7017 | D16: 484.4286 | E16: 615.50928 | F16: 755.1387 | J16: 19123 | K16: 3 | L16: 80/150 | M16: 14 | N16: La Spezia - SP
A17: 7 | B17: 313.2648 | C17: 450.31815 | D17: 665.6877 | E17: 845.81496 | F17: 1037.68965 | J17: 47521 | K17: 4 | L17: 80/150 | M17: 15 | N17: Cesena - FC
A18: 8 | B18: 414.0648 | C18: 595.21815 | D18: 879.8877 | E18: 1117.97496 | F18: 1371.58965 | J18: 47121 | K18: 5 | L18: 80/150 | M18: 16 | N18: Forlì - FC
A19: 9 | B19: 660.6432 | C19: 949.6746 | D19: 1403.8668 | E19: 1783.73664 | F19: 2188.3806 | J19: 63822 | K19: 6 | L19: 80/150 | M19: 17 | N19: Porto San Giorgio - FM
J20: 89900 | K20: 7 | L20: 80/150 | M20: 18 | N20: Vibo Valentia - VV
J21: 87100 | K21: 8 | L21: 80/150 | M21: 19 | N21: Cosenza - CS
A22: GARANZIA RC PREMIO NETTO | E22: 33.4 | J22: 89025 | K22: 9 | L22: 80/150 | M22: 20 | N22: Rosarno - RC
J23: 10125 | K23: 0 | L23: 130/200 | M23: 21 | N23: Torino
A24: GARANZIA ASSISTENZA PER LA CASA | E24: 3.65 | J24: 24044 | K24: 1 | L24: 130/200 | M24: 22 | N24: Dalmine - BG
A25: confermato 19/1/15 | J25: 75013 | K25: 2 | L25: 130/200 | M25: 23 | N25: Ferrandina - MT
J26: 25124 | K26: 3 | L26: 130/200 | M26: 24 | N26: Brescia - BS
B27: massimale rc | J27: 60121 | K27: 4 | L27: 130/200 | M27: 25 | N27: Ancona - AN
B28: 1000000 | J28: 61100 | K28: 5 | L28: 130/200 | M28: 26 | N28: Pesaro - PU
B29: Non prestata | J29: 06041 | K29: 6 | L29: 130/200 | M29: 27 | N29: Cerreto di Spoleto - PG
J30: 67100 | K30: 7 | L30: 130/200 | M30: 28 | N30: L'Aquila - AQ
J31: 89121 | K31: 8 | L31: 130/200 | M31: 29 | N31: Reggio di Calabria - RC
J32: 89814 | K32: 9 | L32: 130/200 | M32: 30 | N32: Filadelfia - VV
J33: 16127 | K33: 0 | L33: 180/250 | M33: 31 | N33: Genova
J34: 34127 | K34: 1 | L34: 180/250 | M34: 32 | N34: Trieste
J35: 38061 | K35: 2 | L35: 180/250 | M35: 33 | N35: Ala - TN
J36: 36100 | K36: 3 | L36: 180/250 | M36: 34 | N36: Vicenza - VI
J37: 71100 | K37: 4 | L37: 180/250 | M37: 35 | N37: Foggia - FG
J38: 83100 | K38: 5 | L38: 180/250 | M38: 36 | N38: Avellino - AV
J39: 33090 | K39: 6 | L39: 180/250 | M39: 37 | N39: Arba - PN
J40: 88100 | K40: 7 | L40: 180/250 | M40: 38 | N40: Catanzaro - CZ
J41: 88070 | K41: 8 | L41: 180/250 | M41: 39 | N41: Botricello - CZ
J42: 98125 | K42: 9 | L42: 180/250 | M42: 40 | N42: Messina - ME
J43: 10095 | K43: 0 | L43: 230/300 | M43: 41 | N43: Grugliasco
J44: 45037 | K44: 1 | L44: 230/300 | M44: 42 | N44: Melara - RO
J45: 25050 | K45: 2 | L45: 230/300 | M45: 43 | N45: Cimbergo - BS
J46: 40122 | K46: 3 | L46: 230/300 | M46: 44 | N46: Bologna - BO
J47: 80131 | K47: 4 | L47: 230/300 | M47: 45 | N47: Napoli - NA
J48: 98127 | K48: 5 | L48: 230/300 | M48: 46 | N48: Messina - ME
J49: 85040 | K49: 6 | L49: 230/300 | M49: 47 | N49: Nemoli - PZ
J50: 87050 | K50: 7 | L50: 230/300 | M50: 48 | N50: Cellara - CS
J51: 98131 | K51: 8 | L51: 230/300 | M51: 49 | N51: Messina - ME
J52: 98026 | K52: 9 | L52: 230/300 | M52: 50 | N52: Nizza di Sicilia - ME

Sheet parametri (hidden)
A1: SINO | B1: professione | D1: classe | F1: rendita | H1: patrimonio | M1: zona
A2: SI | B2: Abbattitore di piante (boscaiolo) | C2: A - F | D2: 4 | M2: CAP | N2: ZONA
A3: NO | B3: Accalappiacani | C3: A - F | D3: 3 | F3: 6000 | H3: 50.000-100.000 | N3: -
B4: Agente di assicurazione | C4: A - F | D4: 2 | F4: 12000 | H4: 80.000-150.000 | M4: 00010 | N4: 3
B5: Agente di borsa - cambio | C5: A - F | D5: 1 | F5: 18000 | H5: 130.000-200.000 | M5: 00011 | N5: 4
B6: Agente di commercio | C6: A - F | D6: 2 | F6: 24000 | H6: 180.000-250.000 | M6: 00012 | N6: 4
B7: Agente immobiliare | C7: A - F | D7: 2 | H7: 230.000-300.000 | M7: 00013 | N7: 3
B8: Agente di investigazione | C8: A - F | D8: 2 | M8: 00014 | N8: 3
B9: Agente marittimo / Commissario di avaria - di bordo | C9: A - F | D9: 2 | M9: 00015 | N9: 3
B10: Agente di pubblicità | C10: A - F | D10: 2 | M10: 00016 | N10: 2
B11: Agente di viaggio | C11: A - F | D11: 2 | M11: 00017 | N11: 3
B12: Agente teatrale, collocamento, cinematografico | C12: A - F | D12: 2 | M12: 00018 | N12: 3
B13: Agricoltore con uso di macchine agricole | C13: A - F | D13: 4 | M13: 00019 | N13: 4
B14: Agricoltore senza uso di macchine agricole | C14: A - F | D14: 2 | F14: Data di scadenza del file | M14: 00020 | N14: 3
B15: Agrimensore / Agronomo | C15: A - F | D15: 2 | F15: 2023-01-31 | M15: 00021 | N15: 3
B16: Albergatore | C16: A - F | D16: 2 | M16: 00022 | N16: 3
B17: Allenatore sportivo | C17: A - F | D17: 2 | M17: 00023 | N17: 3
B18: Allevatore animali da cortile, ovini | C18: A - F | D18: 2 | M18: 00024 | N18: 3
B19: Allevatore equini, bovini, suini, struzzi | C19: A - F | D19: 4 | M19: 00025 | N19: 3
B20: Allevatore di altri animali | C20: A - F | D20: R.D. | M20: 00026 | N20: 3
B21: Ambasciatore / Console / Diplomatico | C21: A - F | D21: 2 | M21: 00027 | N21: 3
B22: Ambulante | C22: A - F | D22: 2 | M22: 00028 | N22: 3
B23: Amministratore di beni - enti | C23: A - F | D23: 2 | M23: 00029 | N23: 3
B24: Analista di laboratorio | C24: A - F | D24: 2 | M24: 00030 | N24: 4
B25: Animatore turistico | C25: A - F | D25: 2 | M25: 00031 | N25: 4
B26: Antennista con installazione - riparazione antenne | C26: A - F | D26: 4 | M26: 00032 | N26: 1
B27: Antiquario senza restauro (solo vendita) | C27: A - F | D27: 1 | M27: 00033 | N27: 4
B28: Apicultore | C28: A - F | D28: 2 | M28: 00034 | N28: 4
B29: Arbitro | C29: A - F | D29: 2 | M29: 00035 | N29: 3
B30: Archeologo | C30: A - F | D30: R.D. | F30: Indicizzazione | M30: 00036 | N30: 4
B31: Architetto | C31: A - F | D31: 2 | G31: SI | M31: 00037 | N31: 2
B32: Armaiolo – negozio con riparazione e preparazione cartucce | C32: A - F | D32: 3 | G32: NO | M32: 00038 | N32: 4
B33: Armaiolo – costruttore, riparatore, preparatore di cartucce | C33: A - F | D33: R.D. | M33: 00039 | N33: 4
B34: Armatore | C34: A - F | D34: 2 | F34: Elenco | M34: 00040 | N34: 4
B35: Arredatore | C35: A - F | D35: 2 | G35: A_F | M35: 00041 | N35: 4
B36: Ascensorista solo riparazione e/o manutenzione | C36: A - F | D36: 3 | G36: G_Z | M36: 00042 | N36: 2
B37: Ascensorista con istallazione impianti | C37: A - F | D37: 4 | G37: Negozi | M37: 00043 | N37: 4
B38: Assistente sociale | C38: A - F | D38: 2 | M38: 00044 | N38: 4
B39: Attore / Direttore artistico / Regista (cinema, teatro, TV) | C39: A - F | D39: 2 | M39: 00045 | N39: 4
B40: Autista di autovetture | C40: A - F | D40: 2 | M40: 00046 | N40: 4
B41: Autista di autobus | C41: A - F | D41: 2 | M41: 00047 | N41: 4
B42: Autorimessa /Autofficina senza lavoro manuale | C42: A - F | D42: 1 | M42: 00048 | N42: 2
B43: Autorimessa / Autofficina con manut., lavaggio, ripar. | C43: A - F | D43: 3 | M43: 00049 | N43: 4
B44: Autoscuola - istruttore | C44: A - F | D44: 2 | M44: 00050 | N44: 0
B45: Autotrasportatore senza carico-scarico | C45: A - F | D45: 2 | M45: 00051 | N45: 0
B46: Autotrasportatore con carico-scarico | C46: A - F | D46: 4 | M46: 00052 | N46: 0
B47: Avvocato / Procuratore legale | C47: A - F | D47: 2 | M47: 00053 | N47: 0
B48: Badante | C48: A - F | D48: 2 | M48: 00054 | N48: 0
B49: Bagnino | C49: A - F | D49: 2 | M49: 00055 | N49: 0
B50: Ballerina professionista | C50: A - F | D50: R.D. | M50: 00057 | N50: 0
B51: Barcaiolo / Gondoliere | C51: A - F | D51: 2 | M51: 00058 | N51: 0
B52: Barista – bar ed esercizi similari | C52: A - F | D52: 2 | M52: 00059 | N52: 0
B53: Barbiere | C53: A - F | D53: 1 | M53: 00060 | N53: 2
B54: Benestante (reddituario senza particolare occupazione) | C54: A - F | D54: 2 | M54: 00061 | N54: 0
B55: Biciclette / Motocicli con riparazione | C55: A - F | D55: 2 | M55: 00062 | N55: 0
B56: Bidello / Operatore scolastico | C56: A - F | D56: 2 | M56: 00063 | N56: 1
B57: Biologo | C57: A - F | D57: 1 | M57: 00064 | N57: 0
B58: Bigiotteria (lavorazione oggetti di) | C58: A - F | D58: 2 | M58: 00065 | N58: 3
B59: Bronzo / Rame – lavorazione | C59: A - F | D59: 3 | M59: 00066 | N59: 0
B60: Calciatore professionista (serie A – B – C) | C60: A - F | D60: R.D. | M60: 00067 | N60: 2
B61: Calciatore dilettante (serie D – eccellenza – promozione) | C61: A - F | D61: R.D. | M61: 00068 | N61: 2
B62: Calzolaio | C62: A - F | D62: 2 | M62: 00069 | N62: 0
B63: Cameraman – anche esterno no estero | C63: A - F | D63: 2 | M63: 00118 | N63: 3
B64: Cameraman – inviato speciale estero | C64: A - F | D64: R.D. | M64: 00119 | N64: 0
B65: Cameriere | C65: A - F | D65: 2 | M65: 00120 | N65: 2
B66: Camiciaia / Bustaia | C66: A - F | D66: 2 | M66: 00121 | N66: 0
B67: Cancelliere | C67: A - F | D67: 1 | M67: 00122 | N67: 0
B68: Candele (lavorazione) | C68: A - F | D68: 2 | M68: 00123 | N68: 0
B69: Cantante | C69: A - F | D69: 2 | M69: 00124 | N69: 1
B70: Cantoniere | C70: A - F | D70: 3 | M70: 00125 | N70: 2
B71: Cappellaio | C71: A - F | D71: 2 | M71: 00126 | N71: 1
B72: Carpentiere solo a terra | C72: A - F | D72: 3 | M72: 00127 | N72: 2
B73: Carpentiere con accesso impalcature, tetti, ponti, pozzi | C73: A - F | D73: 4 | M73: 00128 | N73: 3
B74: Carrozziere | C74: A - F | D74: 3 | M74: 00131 | N74: 3
B75: Casalinga | C75: A - F | D75: 2 | M75: 00132 | N75: 4
B76: Casaro | C76: A - F | D76: 3 | M76: 00133 | N76: 4
B77: Cassiere (cinema, teatro, ecc.) | C77: A - F | D77: 1 | M77: 00134 | N77: 4
B78: Cave (lavoro in) senza lavoro manuale | C78: A - F | D78: 2 | M78: 00135 | N78: 1
B79: Cave (lavoro in) con lavoro manuale senza uso di mine | C79: A - F | D79: 3 | M79: 00136 | N79: 1
B80: Cave (lavoro in) con lavoro manuale e con uso di mine | C80: A - F | D80: 4 | M80: 00137 | N80: 2
B81: Ceramiche (lavorazione) con modellatura e cottura | C81: A - F | D81: 2 | M81: 00138 | N81: 2
B82: Cesellatore / Incisore / Acqueforti (riproduttore di) | C82: A - F | D82: 2 | M82: 00139 | N82: 2
B83: Ciclista professionista | C83: A - F | D83: R.D. | M83: 00141 | N83: 2
B84: Ciclista dilettante / Amatore con gare “elite” | C84: A - F | D84: R.D. | M84: 00142 | N84: 3
B85: Clero (appartenente al) esclusi missionari all’estero | C85: A - F | D85: 2 | M85: 00143 | N85: 3
B86: Clero (appartenente al) – missionario all’estero | C86: A - F | D86: R.D. | M86: 00144 | N86: 3
B87: Collaudatore di veicoli e natanti a motore | C87: A - F | D87: 3 | M87: 00145 | N87: 3
B88: Commercialista | C88: A - F | D88: 2 | M88: 00146 | N88: 2
B89: Commerciante all’ingrosso | C89: A - F | D89: 2 | M89: 00147 | N89: 3
B90: Commesso / Fattorino | C90: A - F | D90: 2 | M90: 00148 | N90: 2
B91: Concessionario di veicoli o natanti – solo vendita | C91: A - F | D91: 1 | M91: 00149 | N91: 2
B92: Concessionario di veicoli o natanti – con riparazione e manutenzione | C92: A - F | D92: 3 | M92: 00151 | N92: 2
B93: Consigliere comunale | C93: A - F | D93: 1 | M93: 00152 | N93: 2
B94: Consulente del lavoro | C94: A - F | D94: 1 | M94: 00153 | N94: 2
B95: Consulente aziendale / Informatico / Softwarehouse / C.E.D. (attività presso un) | C95: A - F | D95: 1 | M95: 00154 | N95: 2
B96: Cordami (lavorazione di) | C96: A - F | D96: 2 | M96: 00155 | N96: 3
B97: Cornici – fabbricazione | C97: A - F | D97: 3 | M97: 00156 | N97: 2
B98: Cromatore / Nichelatore | C98: A - F | D98: 3 | M98: 00157 | N98: 2
B99: Cuoco / Pizzaiolo | C99: A - F | D99: 2 | M99: 00158 | N99: 2
B100: Custode diurno e non armato | C100: A - F | D100: 2 | M100: 00159 | N100: 3
B101: Decoratore / Imbianchino solo interni con uso di scale | C101: A - F | D101: 2 | M101: 00161 | N101: 2
B102: Decoratore / Imbianchino con accesso a impalcature o ponti | C102: A - F | D102: 4 | M102: 00162 | N102: 2
B103: Dentista | C103: A - F | D103: 2 | M103: 00163 | N103: 1
B104: Dirigente | C104: A - F | D104: 2 | M104: 00164 | N104: 2
B105: Disegnatore | C105: A - F | D105: 2 | M105: 00165 | N105: 1
B106: Disinfestatore | C106: A - F | D106: 2 | M106: 00166 | N106: 0
B107: Distributore di carburanti (addetto a un) senza riparazioni/lavaggio | C107: A - F | D107: 2 | M107: 00167 | N107: 1
B108: Distributore di carburanti (addetto a un) con riparazioni/lavaggio | C108: A - F | D108: 3 | M108: 00168 | N108: 1
B109: Collaboratore domestico / Colf | C109: A - F | D109: 2 | M109: 00169 | N109: 3
B110: Ebanista / Intarsiatore | C110: A - F | D110: 2 | M110: 00171 | N110: 3
B111: Elettrauto | C111: A - F | D111: 2 | M111: 00172 | N111: 3
B112: Elettricista solo in laboratorio | C112: A - F | D112: 2 | M112: 00173 | N112: 4
B113: Elettricista all’interno di fabbricati | C113: A - F | D113: 3 | M113: 00174 | N113: 4
B114: Elettricista all’esterno di fabbricati | C114: A - F | D114: 4 | M114: 00175 | N114: 3
B115: Elettrodomestici, radio TV (no antenne) con installazione e/o riparazioni | C115: A - F | D115: 2 | M115: 00176 | N115: 3
B116: Enologo / Enotecnico | C116: A - F | D116: 2 | M116: 00177 | N116: 3
B117: Erborista | C117: A - F | D117: 1 | M117: 00178 | N117: 3
B118: Esattore | C118: A - F | D118: 2 | M118: 00179 | N118: 3
B119: Estetista / Callista / Podologo | C119: A - F | D119: 2 | M119: 00181 | N119: 3
B120: Fabbro solo a terra | C120: A - F | D120: 3 | M120: 00182 | N120: 3
B121: Fabbro su impalcature, tetti, ponti, pozzi | C121: A - F | D121: 4 | M121: 00183 | N121: 3
B122: Facchino / Portabagagli | C122: A - F | D122: 2 | M122: 00184 | N122: 2
B123: Scaricatore (portuale, doganale, mercati) | C123: A - F | D123: 3 | M123: 00185 | N123: 2
B124: Falegname solo a terra | C124: A - F | D124: 3 | M124: 00186 | N124: 2
B125: Falegname su impalcature, tetti, ponti, pozzi | C125: A - F | D125: 4 | M125: 00187 | N125: 2
B126: Fantino | C126: A - F | D126: R.D. | M126: 00188 | N126: 1
B127: Farmacista | C127: A - F | D127: 1 | M127: 00189 | N127: 1
B128: Figurinista | C128: A - F | D128: 1 | M128: 00191 | N128: 1
B129: Floricultore senza uso di trattori | C129: A - F | D129: 2 | M129: 00192 | N129: 2
B130: Floricultore con uso di trattori | C130: A - F | D130: 3 | M130: 00193 | N130: 2
B131: Fonditore di metalli | C131: A - F | D131: 3 | M131: 00194 | N131: 1
B132: Fornaio | C132: A - F | D132: 2 | M132: 00195 | N132: 2
B133: Fotografo solo in studio | C133: A - F | D133: 1 | M133: 00196 | N133: 1
B134: Fotografo anche esterno / Fotoreporter | C134: A - F | D134: 2 | M134: 00197 | N134: 2
B135: Fotografo all’estero | C135: A - F | D135: R.D. | M135: 00198 | N135: 2
B136: Fuochi d’artificio (lavorazione di) | C136: A - F | D136: 4 | M136: 00199 | N136: 2
B137: Fuochista | C137: A - F | D137: 3 | M137: 01010 | N137: 2
B138: Galleria d’arte (attività presso una) | C138: G - Z | D138: 1 | M138: 01011 | N138: 2
B139: Galvanoplastica (lavorazione di) | C139: G - Z | D139: 3 | M139: 01012 | N139: 1
B140: Gelataio / Pastaio / Pasticcere | C140: G - Z | D140: 2 | M140: 01013 | N140: 2
B141: Geologo | C141: G - Z | D141: 2 | M141: 01014 | N141: 1
B142: Geometra | C142: G - Z | D142: 2 | M142: 01015 | N142: 1
B143: Giardiniere / Vivaista | C143: G - Z | D143: 2 | M143: 01016 | N143: 0
B144: Giornalaio / Edicola | C144: G - Z | D144: 1 | M144: 01017 | N144: 2
B145: Giornalista – solo in ufficio | C145: G - Z | D145: 1 | M145: 01018 | N145: 2
B146: Giornalista – anche esterno no estero | C146: G - Z | D146: 2 | M146: 01019 | N146: 2
B147: Giornalista – inviato speciale all’estero | C147: G - Z | D147: R.D. | M147: 01020 | N147: 3
B148: Gommista (montaggio, riparazione e vendita) | C148: G - Z | D148: 2 | M148: 01021 | N148: 2
B149: Gruista (compreso montaggio) | C149: G - Z | D149: 4 | M149: 01022 | N149: 2
B150: Guardia campestre / forestale | C150: G - Z | D150: 3 | M150: 01023 | N150: 3
B151: Guardia caccia | C151: G - Z | D151: 2 | M151: 01024 | N151: 2
B152: Guardia pesca | C152: G - Z | D152: 2 | M152: 01025 | N152: 3
B153: Guardia giurata / Custode notturno o armato | C153: G - Z | D153: 3 | M153: 01026 | N153: 2
B154: Guida alpina / Aspirante Guida alpina | C154: G - Z | D154: 4 | M154: 01027 | N154: 2
B155: Guida turistica | C155: G - Z | D155: 2 | M155: 01028 | N155: 3
B156: Idraulico | C156: G - Z | D156: 3 | M156: 01029 | N156: 2
B157: Idraulico con accesso a impalcature, tetti, ponti, pozzi | C157: G - Z | D157: 4 | M157: 01030 | N157: 2
B158: Imbalsamatore di animali | C158: G - Z | D158: 2 | M158: 01031 | N158: 2
B159: Impagliatore (di sedie, di recipienti) | C159: G - Z | D159: 2 | M159: 01032 | N159: 2
B160: Impiegato con mansioni interne | C160: G - Z | D160: 1 | M160: 01033 | N160: 2
B161: Impiegato con funzioni esterne | C161: G - Z | D161: 2 | M161: 01034 | N161: 2
B162: Impiegato con accesso cantieri o ambienti sostante tossiche | C162: G - Z | D162: 3 | M162: 01035 | N162: 3
B163: Imprenditore | C163: G - Z | D163: 2 | M163: 01036 | N163: 1
B164: Imprenditore edile che prende parte ai lavori | C164: G - Z | D164: 4 | M164: 01037 | N164: 2
B165: Indossatore / Indossatrice | C165: G - Z | D165: 2 | M165: 01038 | N165: 2
B166: Infermiere | C166: G - Z | D166: 2 | M166: 01039 | N166: 2
B167: Ingegnere | C167: G - Z | D167: 2 | M167: 01100 | N167: 2
B168: Insegnante scolastico (no ed. fisica) | C168: G - Z | D168: 1 | M168: 02010 | N168: 4
B169: Insegnante scolastico (ed. fisica) | C169: G - Z | D169: 2 | M169: 02011 | N169: 7
B170: Insegnante di ginnastica - fitness - body building | C170: G - Z | D170: 2 | M170: 02012 | N170: 7
B171: Insegnante di basket, tennis e simili | C171: G - Z | D171: 2 | M171: 02013 | N171: 5
B172: Insegnante di arti marziali | C172: G - Z | D172: 2 | M172: 02014 | N172: 4
B173: Insegnante di equitazione | C173: G - Z | D173: 3 | M173: 02015 | N173: 5
B174: Insegnante di sci (maestro) | C174: G - Z | D174: 3 | M174: 02016 | N174: 6
B175: Insegnante di altre pratiche sportive | C175: G - Z | D175: R.D. | M175: 02017 | N175: 4
B176: Insegne (installazione) – non più di 4 mt. da terra | C176: G - Z | D176: 2 | M176: 02018 | N176: 4
B177: Insegne (installazione) – oltre 4 mt. da terra - sui tetti | C177: G - Z | D177: 4 | M177: 02019 | N177: 6
B178: Intagliatore legno in studio | C178: G - Z | D178: 2 | M178: 02020 | N178: 4
B179: Interprete | C179: G - Z | D179: 1 | M179: 02021 | N179: 6
B180: Ispettore di assicurazione / Bancario | C180: G - Z | D180: 2 | M180: 02022 | N180: 4
B181: Linotipista / Litografo | C181: G - Z | D181: 2 | M181: 02023 | N181: 5
B182: Liutaio | C182: G - Z | D182: 2 | M182: 02024 | N182: 5
B183: Lucidatore (pelli, mobili, metalli) | C183: G - Z | D183: 2 | M183: 02025 | N183: 5
B184: Macchine da scrivere/calcolo – riparazione | C184: G - Z | D184: 2 | M184: 02026 | N184: 4
B185: Macchinista (di treni) | C185: G - Z | D185: 3 | M185: 02027 | N185: 6
B186: Macellaio | C186: G - Z | D186: 2 | M186: 02028 | N186: 6
B187: Magazziniere capo senza lavoro manuale | C187: G - Z | D187: 1 | M187: 02029 | N187: 6
B188: Magazziniere | C188: G - Z | D188: 3 | M188: 02030 | N188: 3
B189: Magistrato / Giudice | C189: G - Z | D189: 2 | M189: 02031 | N189: 3
B190: Magliaia/o | C190: G - Z | D190: 2 | M190: 02032 | N190: 3
B191: Marinaio | C191: G - Z | D191: R.D. | M191: 02033 | N191: 3
B192: Marmista solo a terra (non in cave) | C192: G - Z | D192: 3 | M192: 02034 | N192: 3
B193: Marmista su impalcature - ponti (in cave) | C193: G - Z | D193: 4 | M193: 02035 | N193: 3
B194: Massaggiatore / Fisioterapista | C194: G - Z | D194: 2 | M194: 02036 | N194: 2
B195: Materassaio | C195: G - Z | D195: 3 | M195: 02037 | N195: 3
B196: Meccanico | C196: G - Z | D196: 3 | M196: 02038 | N196: 3
B197: Mediatore – esclusi legname o bestiame | C197: G - Z | D197: 2 | M197: 02039 | N197: 3
B198: Mediatore – legname o bestiame | C198: G - Z | D198: 2 | M198: 02040 | N198: 3
B199: Medico che non pratica la chirurgia | C199: G - Z | D199: 2 | M199: 02041 | N199: 3
B200: Medico che pratica la chirurgia | C200: G - Z | D200: 2 | M200: 02042 | N200: 2
... 4858 more rows

Sheet First Protection
B2: FIRST PROTECTION
K3: Contratto Danni | N3: Contratto Vita
B4: DATA EMISSIONE PREVENTIVO | D4: =TODAY() -> 2023-01-03 | K4: Tariffa Mod. MAL50004 Ed. 04/2015 | N4: Tariffa B05A
D5: =IF(J7="R.D.","Attenzione - Attività professionale Riservata Direzione - Preventivo non valido","") ->  | N5: Tariffa B06A
B6: INDICIZZAZIONE | D6: NO
B7: SETTORE | D7: G_Z | H7: Cat. Rischio | J7: =+IF($D$8="","",VLOOKUP(D8,parametri!$B$2:$D$328,3,FALSE)) -> 
B8: ATTIVITA'
D9: =IF(OR(AND(D14="SI",F14<>"",G14=""),AND(D15="SI",F15<>"",G15=""),AND(D16="SI",F16<>"",G16=""),AND(D17="SI",F17<>"",G17=""),AND(D18="SI",F18<>"",G18=""),AND(D19="SI",F19<>"",G19=""),AND(D20="SI",F20<>"",G20=""),AND(D21="SI",F21<>"",G21="")),"Attenzione - Obbligatorio attivare anche la Rendita ","") -> 
B10: PERSONE ASSICURATE | D10: CONTINUITA' DEL REDDITO | L10: SALUTE
D11: Scelta | F11: Capitali | I11: Premi netti | L11: Scelta | M11: Capitali | O11: Premi netti
B12: DATA DI NASCITA (gg/mm/aaaa) | C12: ETÀ | F12: IP GRAVE | H12: ASSISTENZA | I12: IP GRAVE | K12: ASSISTENZA | M12: DREAD DISEASE | N12: ASSISTENZA | O12: DREAD DISEASE | P12: ASSISTENZA
F13: Capitale | G13: Rendita | I13: Capitale | J13: Rendita | M13: Capitale | O13: Capitale
B14: 1981-12-20 | C14: =IF(B14="","-",DATEDIF(B14,$D$4,"Y")) -> 41 | D14: NO | H14: =IF(AND(D14="SI",B14<>""),"SI","") ->  | I14: =IF(AND(D14="SI",B14<>""),ROUND(VLOOKUP(C14,'Continuità del Reddito'!$B$5:$E$48,4,FALSE)*F14/1000,2),0) -> 0 | J14: =IF(AND(D14="SI",B14<>""),ROUND(VLOOKUP(C14,'Continuità del Reddito'!$G$5:$J$48,4,FALSE)*G14/1000,2),0) -> 0 | K14: =IF(AND(H14="SI",C14<=60,C14>=18),ROUND('Continuità del Reddito'!$L$5,2),0) -> 0 | L14: SI | M14: 25000 | N14: =IF(AND(L14="SI",B14<>""),"SI","") -> SI | O14: =IF(AND(L14="SI",B14<>""),ROUND(VLOOKUP(C14,Salute!$B$6:$C$58,2,FALSE)*M14/1000,2),0) -> 91.5 | P14: =IF(AND(N14="SI",C14<=60,C14>=18),ROUND(Salute!$E$6,2),0) -> 14.05
C15: =IF(B15="","-",DATEDIF(B15,$D$4,"Y")) -> - | D15: NO | H15: =IF(AND(D15="SI",B15<>""),"SI","") ->  | I15: =IF(AND(D15="SI",B15<>""),ROUND(VLOOKUP(C15,'Continuità del Reddito'!$B$5:$E$48,4,FALSE)*F15/1000,2),0) -> 0 | J15: =IF(AND(D15="SI",B15<>""),ROUND(VLOOKUP(C15,'Continuità del Reddito'!$G$5:$J$48,4,FALSE)*G15/1000,2),0) -> 0 | K15: =IF(AND(H15="SI",C15<=60,C15>=18),ROUND('Continuità del Reddito'!$L$5,2),0) -> 0 | L15: NO | N15: =IF(AND(L15="SI",B15<>""),"SI","") ->  | O15: =IF(AND(L15="SI",B15<>""),ROUND(VLOOKUP(C15,Salute!$B$6:$C$58,2,FALSE)*M15/1000,2),0) -> 0 | P15: =IF(AND(N15="SI",C15<=60,C15>=18),ROUND(Salute!$E$6,2),0) -> 0
C16: - | D16: NO | I16: =IF(AND(D16="SI",B16<>""),ROUND(VLOOKUP(C16,'Continuità del Reddito'!$B$5:$E$48,4,FALSE)*F16/1000,2),0) -> 0 | J16: =IF(AND(D16="SI",B16<>""),ROUND(VLOOKUP(C16,'Continuità del Reddito'!$G$5:$J$48,4,FALSE)*G16/1000,2),0) -> 0 | K16: =IF(AND(H16="SI",C16<=60,C16>=18),ROUND('Continuità del Reddito'!$L$5,2),0) -> 0 | L16: SI | O16: =IF(AND(L16="SI",B16<>""),ROUND(VLOOKUP(C16,Salute!$B$6:$C$58,2,FALSE)*M16/1000,2),0) -> 0 | P16: =IF(AND(N16="SI",C16<=60,C16>=18),ROUND(Salute!$E$6,2),0) -> 0
C17: - | D17: NO | I17: =IF(AND(D17="SI",B17<>""),ROUND(VLOOKUP(C17,'Continuità del Reddito'!$B$5:$E$48,4,FALSE)*F17/1000,2),0) -> 0 | J17: =IF(AND(D17="SI",B17<>""),ROUND(VLOOKUP(C17,'Continuità del Reddito'!$G$5:$J$48,4,FALSE)*G17/1000,2),0) -> 0 | K17: =IF(AND(H17="SI",C17<=60,C17>=18),ROUND('Continuità del Reddito'!$L$5,2),0) -> 0 | L17: SI | O17: =IF(AND(L17="SI",B17<>""),ROUND(VLOOKUP(C17,Salute!$B$6:$C$58,2,FALSE)*M17/1000,2),0) -> 0 | P17: =IF(AND(N17="SI",C17<=60,C17>=18),ROUND(Salute!$E$6,2),0) -> 0
C18: - | D18: NO | I18: =IF(AND(D18="SI",B18<>""),ROUND(VLOOKUP(C18,'Continuità del Reddito'!$B$5:$E$48,4,FALSE)*F18/1000,2),0) -> 0 | J18: =IF(AND(D18="SI",B18<>""),ROUND(VLOOKUP(C18,'Continuità del Reddito'!$G$5:$J$48,4,FALSE)*G18/1000,2),0) -> 0 | K18: =IF(AND(H18="SI",C18<=60,C18>=18),ROUND('Continuità del Reddito'!$L$5,2),0) -> 0 | L18: SI | O18: =IF(AND(L18="SI",B18<>""),ROUND(VLOOKUP(C18,Salute!$B$6:$C$58,2,FALSE)*M18/1000,2),0) -> 0 | P18: =IF(AND(N18="SI",C18<=60,C18>=18),ROUND(Salute!$E$6,2),0) -> 0
C19: - | D19: NO | I19: =IF(AND(D19="SI",B19<>""),ROUND(VLOOKUP(C19,'Continuità del Reddito'!$B$5:$E$48,4,FALSE)*F19/1000,2),0) -> 0 | J19: =IF(AND(D19="SI",B19<>""),ROUND(VLOOKUP(C19,'Continuità del Reddito'!$G$5:$J$48,4,FALSE)*G19/1000,2),0) -> 0 | K19: =IF(AND(H19="SI",C19<=60,C19>=18),ROUND('Continuità del Reddito'!$L$5,2),0) -> 0 | L19: SI | O19: =IF(AND(L19="SI",B19<>""),ROUND(VLOOKUP(C19,Salute!$B$6:$C$58,2,FALSE)*M19/1000,2),0) -> 0 | P19: =IF(AND(N19="SI",C19<=60,C19>=18),ROUND(Salute!$E$6,2),0) -> 0
C20: - | D20: NO | I20: =IF(AND(D20="SI",B20<>""),ROUND(VLOOKUP(C20,'Continuità del Reddito'!$B$5:$E$48,4,FALSE)*F20/1000,2),0) -> 0 | J20: =IF(AND(D20="SI",B20<>""),ROUND(VLOOKUP(C20,'Continuità del Reddito'!$G$5:$J$48,4,FALSE)*G20/1000,2),0) -> 0 | K20: =IF(AND(H20="SI",C20<=60,C20>=18),ROUND('Continuità del Reddito'!$L$5,2),0) -> 0 | L20: SI | O20: =IF(AND(L20="SI",B20<>""),ROUND(VLOOKUP(C20,Salute!$B$6:$C$58,2,FALSE)*M20/1000,2),0) -> 0 | P20: =IF(AND(N20="SI",C20<=60,C20>=18),ROUND(Salute!$E$6,2),0) -> 0
C21: - | D21: NO | I21: =IF(AND(D21="SI",B21<>""),ROUND(VLOOKUP(C21,'Continuità del Reddito'!$B$5:$E$48,4,FALSE)*F21/1000,2),0) -> 0 | J21: =IF(AND(D21="SI",B21<>""),ROUND(VLOOKUP(C21,'Continuità del Reddito'!$G$5:$J$48,4,FALSE)*G21/1000,2),0) -> 0 | K21: =IF(AND(H21="SI",C21<=60,C21>=18),ROUND('Continuità del Reddito'!$L$5,2),0) -> 0 | L21: SI | O21: =IF(AND(L21="SI",B21<>""),ROUND(VLOOKUP(C21,Salute!$B$6:$C$58,2,FALSE)*M21/1000,2),0) -> 0 | P21: =IF(AND(N21="SI",C21<=60,C21>=18),ROUND(Salute!$E$6,2),0) -> 0
I22: =ROUND(SUM($I$14:$J$21)*10%,2) -> 0 | K22: =ROUND(SUM($K$14:$K$21)*10%,2) -> 0 | O22: =ROUND(SUM($O$14:$O$21)*10%,2) -> 9.15 | P22: =ROUND(SUM($P$14:$P$21)*10%,2) -> 1.41
D23: =IF(AND(D28="SI",D14<>"SI",L14<>"SI",F35<>"SI"),"Attenzione - Obbligatorio attivare almeno una garanzia sulla persona ","") -> 
B24: CASA | D24: PATRIMONIO
D25: Scelta | F25: Capitali | J25: Premi netti
B26: CAP | C26: zona | F26: PATRIMONIO | I26: ASSISTENZA | J26: PATRIMONIO | M26: ASSISTENZA
F27: Incendio e terremoto | H27: RC | J27: Incendio | K27: Terremoto | L27: RC
C28: =VLOOKUP(B28,parametri!$M$4:$N$5058,2,FALSE) ->  | H28: Non prestata | I28: =IF(AND(D28="SI",B28<>""),"SI","") ->  | J28: =IF(AND(D28="SI",B28<>"",F28<>""),ROUND(HLOOKUP(F28,'tariffa casa'!C2:G3,2,FALSE),2),0) -> 0 | K28: =IF(AND(D28="SI",B28<>"",F28<>""),ROUND(VLOOKUP($C$28,'tariffa casa'!$A$8:$F$19,HLOOKUP($F$28,'tariffa casa'!$A$8:$F$9,2,FALSE),FALSE),2),0) -> 0 | L28: =IF(AND(D28="SI",B28<>""),IF(H28="1000000",ROUND('tariffa casa'!$E$22,2),0),0) -> 0 | M28: =IF(I28="SI",ROUND('tariffa casa'!$E$24,2),0) -> 0
J29: =ROUND(J28*10%,2) -> 0 | K29: =ROUND(K28*10%,2) -> 0 | L29: =ROUND(L28*10%,2) -> 0 | M29: =ROUND(M28*10%,2) -> 0
B31: PERSONE ASSICURATE | F31: CONTINUITA' DEL REDDITO
F32: Scelta | G32: Durata | H32: Capitali | K32: Premi netti
B33: DATA DI NASCITA (gg/mm/aaaa) | C33: ETÀ | D33: Fumatore | H33: TCM | J33: compl. nfortuni | K33: TCM | M33: compl. nfortuni
H34: Capitale | I34: Rendita | K34: Capitale | L34: Rendita
C35: =IF(B35="",0,TRUNC(($D$4-B35)/365.25+0.5+1/365)) -> 0 | D35: NO | F35: NO | G35: 20 | H35: 25000 | I35: 12000 | J35: NO | K35: =IF(D4>parametri!F15,0,IF(F35="SI",IF(OR(AND(B35<>"",C36=0),AND(B36<>"",C35=0)),'Calcolo 1 testa'!C32,IF(AND(B35<>"",B36<>""),'Calcolo 2 teste'!C38,0)),0)) -> 0 | L35: =IF(D4>parametri!F15,0,IF(F35="SI",IF(OR(AND(B35<>"",C36=0),AND(B36<>"",C35=0)),'Calcolo 1 testa'!C31,IF(AND(B35<>"",B36<>""),'Calcolo 2 teste'!C37,0)),0)) -> 0 | M35: =IF(D4>parametri!F15,0,IF(F35="SI",IF(OR(AND(B35<>"",C36=0),AND(B36<>"",C35=0)),'Calcolo 1 testa'!C34,IF(AND(B35<>"",B36<>""),'Calcolo 2 teste'!C40,0)),0)) -> 0
C36: =IF(B36="",0,TRUNC(($D$4-B36)/365.25+0.5+1/365)) -> 0 | D36: NO
D38: Contratto danni | K38: Contratto vita
D39: Premio netto | H39: =SUM(I14:K21,O14:P21,J28:M28) -> 105.55 | K39: Premio netto | N39: =SUM(K35:M36) -> 0
D40: premio netto+ag | H40: =H39+ROUND(10%*H39,2) -> 116.11 | K40: premio netto + tasse | N40: =K35+L35+M35/(1-2.5%) -> 0
D41: Diritti | H41: 0 | K41: Primo premio lordo | N41: =IF(N39=0,0,N40+15) -> 0
D42: Premio lordo | H42: =IF(H39=0,0,(SUM(I14:J22,O14:O22)/H40*H41+SUM(I14:J22,O14:O22))*(1+2.5%) + (SUM(K14:K22,P14:P22,M28:M29)/H40*H41+SUM(K14:K22,P14:P22,M28:M29))*(1+10%) + ((SUM(J28:L29)/H40*H41+SUM(J28:L29)))*(1+22.25%)) -> 120.17225 | K42: Premi lordi successivi al primo | N42: =IF(N39=0,0,IF(G35>2,N40+2,0)) -> 0 | O42: =IF(N42=0,"",CONCATENATE(" da versare per ",'Calcolo 1 testa'!C43," anni")) -> 
D45: Premio lordo annuo totale | M45: =H42+N41 -> 120.17225
B47: I premi indicati sono relativi ad Assicurati che non presentano rischi assuntivi tali da determinare sovrappremi.
B48: I premi riportasi sono calcolati ipotizzando che il premio annuo non sia frazionato.
B49: =CONCATENATE("Il presente strumento è utilizzabile fino al giorno ",DAY(parametri!F15),"/",MONTH(parametri!F15),"/",YEAR(parametri!F15),"; dopo tale data sarà necessario contattare l'Ufficio Sviluppo Offerta per ottenre una versione aggiornata.") -> Il presente strumento è utilizzabile fino al giorno 31/1/2023; dopo tale data sarà necessario contattare l'Ufficio Sviluppo Offerta per ottenre una versione aggiornata.
